Workbook

Sheet Portada
AA1: =+TODAY() -> 2022-06-08
N4: Guatemala, | O4: =$AA$1 -> 2022-06-08
L6: Este documento debe citarse así:
L7: IGSS (2022). IGSS en Cifras 2021: Subgerencia de Planificación y Desarrollo. (E. García, W. Rivas, & E. Cinto, Edits.) Guatemala: Departamento Actuarial y Estadístico. Obtenido de Informes y Estadísticas: https://www.igssgt.org
S11: AVISOS
S13: Para la descarga del archivo en Excel favor tomar en cuenta las siguientes recomendaciones.
S16: Este documento es compatible con el sistema operativo Windows 7 en adelante y con Office 2013 en adelante. Al descargar el archivo podrá visualizar la información por Departamento de la República. Una mejor visualización de los datos abiertos se obtendrá al utilizar los exploradores: Chrome y Mozzila Firefox

Sheet Introducción
AA1: =+TODAY() -> 2022-06-08

Sheet Indice
A1: m
B10: A | C10: Antecedentes
B11: 1 | C11: Base Legal
B12: 2 | C12: Trayectoria / Institucionalidad
B13: 3 | C13: Misión / Visión
B14: 4 | C14: Autoridades
B15: 5 | C15: Organigrama
B16: 6 | C16: Importancia de la Seguridad Social
B17: 7 | C17: Diccionario de Variables
B18: 8 | C18: Resumen de los principales indicadores
C19: Cuadros Estadísticos y Gráficas
B20: 9 | C20: Distribución geográfica de lo servicios; Estadísticas, año 2021
B21: B | C21: Afiliación
B22: 10 | C22: Histórico de Afiliados Cotizantes
B23: 11 | C23: Histórico de Afiliados Cotizantes por Actividad Económica, 1960 - 2021
B24: 12 | C24: Histórico de Afiliados Cotizantes por Actividad Económica, 2020 - 2021
B25: 13 | C25: Histórico de la Masa Salarial, 1960 - 2021
B26: 14 | C26: Histórico del Salario Medio, 1997 - 2021
B27: 15 | C27: Estructura Demográfica de los Afiliados Cotizantes
B28: 16 | C28: Participación mensual de Afiliados Cotizantes y Salarios, año 2021
B29: 17 | C29: Participación mensual de Afiliados Cotizantes y Salarios, por Departamento, año 2021
B30: 18 | C30: Participación mensual de Afiliados Cotizantes y Salarios, por Tipo de Patrono y Departamento, año 2021
B31: 19 | C31: Participación de Afiliados por Tipo de Programa
B32: 20 | C32: Patronos Cotizantes, 2013 - 2021
B33: C | C33: Población Protegida
B34: 21 | C34: Histórico de la Población Protegida, 1948 - 2021
B35: 22 | C35: Población Protegida por Departamento, y tipo de Derechohabiente, año 2021
B36: 23 | C36: Población Protegida por Departamento, y tipo de Derechohabiente, año 2021 -Gráfica-
B37: 24 | C37: Cobertura por tipo de Programa
B38: D | C38: Prestaciones en Salud
B39: 25 | C39: Unidades Médicas
B40: 26 | C40: Atenciones médicas por tipo de servicio, año 2021
B41: 27 | C41: Atenciones médicas por tipo de riesgo, año 2021
B42: 28 | C42: Atenciones médicas por tipo de servicio y riesgo, año 2021
B43: 29 | C43: Atenciones médicas por el riesgo de accidentes, año 2021
B44: 30 | C44: Indicadores de Egresos Hospitalarios
B45: 31 | C45: Primeras 20 Morbilidades más atendidas
B46: 32 | C46: Enfermedades Crónicas
B47: E | C47: Prestaciones Pecuniarias
B48: 33 | C48: Indicadores Pecuniarios
B49: 34 | C49: Histórico de Pensiones Periodo 1964 - 2021
B50: 35 | C50: Pensiones otorgadas por riesgo y Departamento, año 2021
B51: 36 | C51: Cuadro de Pensiones otorgadas por riesgo y Departamento, año 2021
B52: F | C52: Costos
B53: 37 | C53: Costos totales y unitarios, por Departamento y Riesgo, año 2021
B54: G | C54: Recursos Humanos
B55: 38 | C55: Histórico de Recursos Humanos al servicio del Instituto, año 2010 - 2021
B56: 39 | C56: Recurso Humano mensual, año 2021
B57: 40 | C57: Recurso Humano mensual por área de servicio, año 2021
B58: 41 | C58: Recurso Humano para la atención COVID-19, año 2020 - 2021
B59: H | C59: Macrosituación Institucional
B60: 42 | C60: Primas de contribución por tipo de Programa
B61: 43 | C61: Capitalización
B62: 44 | C62: Situación Financiera Programa -EMA-
B63: 45 | C63: Situación Financiera Programa -IVS-
B64: 46 | C64: Costos
B65: 47 | C65: Contribuciones Estado
B66: 48 | C66: Incumplimento de pago del Estado de Guatemala
B67: 49 | C67: Compromisos
B68: 50 | C68: Recurso Humano en función de los servicios institucionales
B69: 51 | C69: Información Estadística en la Web

Sheet Base Legal
AA1: =+TODAY() -> 2022-06-08

Sheet Trayectoria
AA1: =+TODAY() -> 2022-06-08

Sheet Mis. Vis
V1: =+TODAY() -> 2022-06-08

Sheet Autoridades
Z1: =+TODAY() -> 2022-06-08
B13: Nombrado por: | C13: Titular | D13: Suplente
B14: Organismo Ejecutivo | C14: Presidente | D14: Dr. Manuel Vicente Paiz Luarca. | F14: Gerente en Funciones | G14: Lic. Edson Javier Rivera Méndez. | I14: Subgerente Administrativo | J14: Dr. Carlos René Sierra Romero.
C15: Lic. José Adolfo Flamenco Jau.
B16: Junta Monetaria | C16: Primer vicepresidente | D16: Lic. Efren Arturo Rosales Alvarez. | I16: Subgerente Financiero | J16: Pendiente de nombramiento.
C17: Vacante.
B18: Universidad de San Carlos de Guatemala | C18: Segundo vicepresidente | D18: Lic. Diego José Montenegro López. | F18: Presidente del Consejo Técnico | G18: Dr. Julio César Valdes Díaz. | I18: Subgerente de Integridad y Transparencia Administrativa | J18: Licda. Zaira Lucrecia Mejía Navas.
C19: Dr. Mario David Cerón Donis.
B20: Colegio de Médicos y Cirujanos de Guatemala | C20: Vocal I | D20: Pendiente de nombramiento. | F20: Consejero Técnico | G20: M.Sc. Licda. Cina Elizabeth Guerra Giordano. | I20: Subgerente de Planificación y Desarrollo | J20: Lic. Santiago Alfredo Urbizo Guzman.
C21: Dr. Luis Rodolfo Narciso Chúa.
B22: Asociaciones Patronales | C22: Vocal II | D22: Lic. Douglas Ovalle Ruano. | F22: Consejero Técnico | G22: Dr. Pável Andrés Méndez Guzmán. | I22: Subgerente de Prestaciones Pecuniarias | J22: Licda. Sonia Esthella López Luttmann de Dardon.
C23: Lic. José Bernardo Pineda Jurado.
B24: Sindicatos de Trabajadores | C24: Vocal III | D24: Sr. Juan Francisco Mendoza Estrada. | F24: Consejero Técnico | G24: Lic. Guillermo Ramón Putzeys Urigüen. | I24: Subgerente de Prestaciones en Salud | J24: Dr. Arturo Ernesto García Aquino.
C25: Sr. Adolfo Lacs Palomo.
B26: Secretaria(o) de la Junta Directiva | C26: Lic. José Fernando Sierra Cóbar. | I26: Subgerente de Recursos Humanos | J26: MSc. Zámara Yohana Velásquez Ramos de Herrera.
B28: Secretario Adjunto de la Junta Directiva | C28: Lic. David Arnoldo Reyes Alonzo. | F28: Contralor | G28: Lic. César Armando Elías Ajcá. | I28: Subgerente de Tecnología | J28: Lic. Sergio Roberto Vinicio Barillas Ramírez.

Sheet Organigrama
N8: Junta Directiva
N10: 21
I11: Consejo Técnico | S11: Contraloría
I12: 8 | S12: 16
N13: Gerencia
N14: 36 | S14: Departamentos
S15: 103
C18: Subgerencia de RRHH | F18: Subgerencia Administrativa | I18: Subgerencia Financiera | L18: Subgerencia Prestaciones en Salud | P18: Subgerencia de Prestaciones Pecuniarias | S18: Subgerencia de Planificación y Desarrollo | V18: Subgerencia de Transparencia | Y18: Subgerencia de Tecnología
C19: 193 | F19: 45 | I19: 24 | L19: 87 | P19: 252 | S19: 29 | V19: 8 | Y19: 25
I22: Direcciones | L22: Direcciones | S22: Direcciones | Y22: Direcciones
I23: 28 | L23: 285 | S23: 2 | Y23: 5
C26: Departamentos | F26: Departamentos | I26: Departamentos | L26: Departamentos | P26: Departamentos | S26: Departamentos | V26: Departamentos | Y26: Departamentos
C27: 155 | F27: 270 | I27: 307 | L27: 68 | P27: 155 | S27: 47 | V27: 37 | Y27: 38
F30: Divisiones | I30: Divisiones
F31: 339 | I31: 89
F34: Secciones | L34: Secciones
F35: 69 | L35: 66
P37: Delegaciones y Cajas
P38: 574
F40: Unidad de Acceso | L40: Unidades Médicas
F41: 2 | L41: 17530

Sheet Importancia Af.
AA1: =+TODAY() -> 2022-06-08
B5: ¿Por qué es importante el Seguro Social para un trabajador?

Sheet Importancia Patr.
AA1: =+TODAY() -> 2022-06-08
B5: ¿Por qué es importante el Seguro Social para el patrono?

Sheet Diccionario var_
Z1: =+TODAY() -> 2022-06-08
B4: Diccionario de variables:
E7: Base Legal
B9: Sección de Afiliación
B10: Afiliado[1]. Se considera afiliado, al trabajador, al servidor público o a la persona individual que, por mandato de ley, contribuye con el Régimen de Seguridad Social, inscrito en el Instituto Guatemalteco de Seguridad Social, a cambio de los servicios relativos al seguro social establecidos en la ley. | E10: [1] Acuerdo 1269 (Artículo 1); Acuerdo 1124 (Artículo 3). Junta Directiva. IGSS
B11: Patrono[2]: Entidad individual y jurídica que utiliza los servicios de uno o más trabajadores, en virtud de un contrato de trabajo. | E11: [2] Artículo 2 del Código de Trabajo
B12: Patrono cotizante[3]: Es el responsable del pago global de las cuotas propias y de la entrega de las descontadas a sus trabajadores, dentro del plazo reglamentario. | E12: [3] Artículo 4, Acuerdo 1118 de Junta Directiva del IGSS
B13: Afiliados Programa EMA[4]: Son aquellos trabajadores cotizantes que se encuentran bajo la protección de los Programas de Enfermedad, Maternidad y Accidentes; considerando, prestación en salud como subsidios por cada uno de los programas. | E13: [4] Acuerdos 410 y 1002 de Junta Directiva del Instituto Guatemalteco de Seguridad Social
B14: Afiliados Programa IVS[5]: Personas que tienen derecho a la protección relativa a Invalidez, Vejez y Sobrevivencia, de conformidad con las normas de cada uno de los riesgos. | E14: [5] Artículo 3, Acuerdo 1124 Reglamento sobre protección relativa a Invalidez, Vejez y Sobrevivencia.
B15: Afiliado Voluntario[6]: Persona individual que, sin estar legalmente obligada, contribuye de manera voluntaria con el Régimen de Seguridad Social, que haya cumplido con los requisitos establecidos en los reglamentos respectivos, inscrita en el IGSS a cambio de los servicios relativos al seguro social establecidos en la ley. | E15: [6] Artículo 2, Acuerdo 1269 de Junta Directiva del IGSS
B16: Programa PRECAPI[7]: Programa de cobertura especial con carácter progresivo y obligatorio para trabajadoras domésticas; con protección relativa a los riesgos de: a) Maternidad; b) Control de niño sano; y, c) Accidentes. | E16: [7] Artículo 1 y 2, Acuerdo 1235 de Junta Directiva del IGSS
B17: Afiliada PRECAPI: Trabajadora doméstica que se dedique en forma habitual y continua a labores de aseo, asistencia y demás propias de un hogar o de otro sitio de residencia o habitación particular, que no importe lucro o negocio para el empleador.
B18: Beneficiario PRECAPI[8]: Hijos de las trabajadoras domésticas afiliadas hasta los 5 años de edad. | E18: [8] Artículo 17, Acuerdo 1235 de Junta Directiva del IGSS
B19: Contribución[9]: Pago al Instituto de acuerdo al estatus del contribuyente (patrono, trabajador o Estado) sujeto a una prima de seguro fijada de conformidad a cada uno de los reglamentos de los programas de Seguridad Social que administra el Instituto. | E19: [9] Artículo 38, Ley Orgánica del IGSS; Acuerdos 410, 1002 y 1124 de Junta Directiva.
B20: Inscripciones[10]: Se denomina inscripción a la acción que realiza todo patrono, persona individual o jurídica que ocupe tres o más trabajadores, está obligado a inscribirse en el Régimen de Seguridad Social. | E20: [10] Artículo 2, Acuerdo 1123 Reglamento de inscripción de patronos en el Régimen de Seguridad Social.
B21: Cobertura: Protección relativa a servicios de salud y prestaciones pecuniarias, de acuerdo a los Programas que administra el Instituto; la obertura que se extiende a la población protegida, según los reglamentos vigentes. | E21: [11] Capitulo X, Acuerdo 40-2012 de Gerencia
B22: Beneficiario[11]: Toda persona a quien se extiende el derecho en el goce de los beneficios del Régimen de Seguridad Social, por razones de parentesco o dependencia económica con el trabajador afiliado o pensionado. | E22: [12] Beneficio otorgado en servicios de Salud, en el riesgo de Maternidad.
B23: Población Protegida: Grupo de personas que gozan de cobertura en los Servicios de Salud y Prestaciones Pecuniarias de conformidad con los Reglamentos que rigen los Programas del Instituto; se constituye por Afiliados Cotizantes; Esposas y compañeras[12]; hijos hasta 7 años[13]; pensionados de los programas IVS y Muerte por Accidente; Jubilados del Estado[14] y Población No Afiliada[15]. | E23: [13] Beneficio otorgado en servicios de Salud, en el riesgo de Enfermedad y Accidentes
B24: Salario[16]: Retribución o ganancia, sea cual fuere su denominación o método de cálculo, siempre que pueda evaluarse en moneda de curso legal, en virtud de un contrato o relación laboral vigente entre ambos. | E24: [14] Artículo 115 de la Constitución Política de la República de Guatemala con cobertura en salud
B25: Masa Salarial: Sumatoria de todas las retribuciones por concepto de salarios y complementos salariales, en un tiempo determinado. | E25: [15] Atendida en el servicio de Emergencia
B26: Salario Medio: Es una medida de retribución media; es decir, la cantidad de dinero promedio, que resulta de la división de la masa salarial y cantidad de trabajadores, que recibe un trabajador de una actividad, tiempo o lugar específico. | E26: [16] Artículo 4, Acuerdo 1421 de Junta Directiva
B27: Actividad Económica[17]: Es una actividad relacionada con la producción, intercambio y el consumo de bienes o servicios; constituida en una estructura de clasificación basada en un conjunto de normas que proporciona un marco general en que los datos económicos pueden reunirse y divulgarse; agrupado por sectores económicos. | E27: [17] Manual de Clasificación Industrial Internacional Uniforme de todas las actividades económicas (CIIU)
B39: Sección de Recursos Humanos
B40: Organigrama[18]: Representación gráfica de la estructura orgánica de una organización o de una de sus áreas u órgano, que refleja en forma esquemática la posición de las dependencias que la integran, sus respectivas relaciones, niveles jerárquicas, canales formales de comunicación, líneas de autoridad y asesoría. | E40: [18] Capítulo X, Acuerdo 40-2012 de Gerencia
B41: Estructura Orgánica[19]: Conjunto de dependencias que conforman la organización, establecidas legalmente mediante instrumentos técnicos emitidos por la máxima autoridad. | E41: [19] Capítulo X, Acuerdo 40-2012 de Gerencia
B42: Áreas de trabajo[20]: clasificación de puestos de trabajo del Instituto según áreas de trabajo: ejecutiva y mandos medios, salud, enfermería, administrativa, técnica, servicios de apoyo. | E42: [20] Artículo 9, Acuerdo 14-2007 de Gerencia
B43: Área Ejecutiva y Mandos Medios: Se constituye por lo puestos de trabajo que tienen a su cargo labores que implican delegación de funciones del Instituto como patrono. Son responsables de dirigir las dependencias técnicas, médicas y administrativas. Incluyen también los puestos de Superintendente de Enfermería, Secretario (a) de Gerencia, Secretario (a) de Junta Directiva y Asistentes de Dirección.
B44: Área de Salud: Se integra por los puestos asignados a la prestación de servicios de salud, como médicos, químicos biólogos, odontólogos, químicos farmacéuticos, psicólogos, nutricionistas y otras especialidades en las ramas de atención de la salud.
B45: Área de Enfermería: Esta área agrupa los puestos de ayudantes y auxiliares de enfermería, enfermeros graduados, supervisores de enfermería, jefes de servicio de enfermería, y otros puestos vinculados con labores de enfermería; se excluye al puesto de Superintendente de Enfermería que como se señaló pertenece al área ejecutiva.
B46: Área Administrativa: Esta área incluye los puestos asignados a profesionales y técnicos como ámbito administrativo, así como todos aquellos puestos que tienen asignadas funciones de soporte administrativo en cualquiera de las diferentes dependencias del Instituto.
B47: Área Técnica: Esta área comprende los puestos creados para brindar apoyo diagnóstico, como técnicos de laboratorio clínico, técnicos de banco de sangre, técnicos de patología, técnicos de prótesis y órtesis, técnicos de radiología, técnicos de necropsias, y otros técnicos de la rama paramédica, asimismo incluye puestos de seguridad e higiene, tecnología e informática, mantenimiento, trabajo social, comunicación social, y otros relacionados a la atención de los derechohabientes pero de forma indirecta.
B48: Área de Servicios de Apoyo: Esta área comprende los puestos que tienen asignados tareas de limpieza, mensajería, transporte, mantenimiento, seguridad de las instalaciones, impresión, cocina y otros servicios de apoyo al funcionamiento de las dependencias.
B49: Otras remuneraciones de personal temporal: En este renglón se incluyen honorarios por servicios técnicos y profesionales prestados por personal sin relación de dependencia, asignados al servicio de una unidad ejecutora del Estado, y que podrán ser dotados de los enseres y/o equipos para la realización de sus actividades, en periodos que no excedan un ejercicio fiscal.
B50: Subgrupo 18: Comprende gastos en concepto de honorarios por servicios técnicos, profesionales, consultoría y asesoría, relacionados con estudios, investigaciones, análisis, auditorías, servicios de traducción de documentos, servicios de intérpretes y traducción simultánea, actuaciones artísticas y deportivas, capacitación y sistemas computarizados, prestados al Estado con carácter estrictamente temporal y sin relación de dependencia.
B62: Sección de Prestaciones Pecuniarias
B63: Programa EMA: La Protección relativa en prestaciones en dinero del Programa EMA, consiste en el pago de Pensión Temporal por Incapacidad Temporal o Permanente para el desarrollo de sus actividades laborales y pago de Cuota Mortuoria por muerte del Afiliado Cotizante. A la vez se registran los pagos de Pensión Permanente del Programa Muerte por Accidente. | E63: Acuerdo 1124 de Junta Directiva. Reglamento sobre Protección Relativa a Invalidez, Vejez y Sobrevivencia.
B64: Programa IVS: Programa de Invalidez, Vejez y Sobrevivencia cuyo fin principal del seguro social es compensar el daño económico que resulta de la suspensión temporal o definitiva de la actividad laboral por Vejez e Invalidez. Además, cuando ocurre el fallecimiento del Pensionado o Afiliado Cotizante, el Instituto otorga Pensión Permanente a las personas que comprueben dependencia económica del fallecido. | E64: Acuerdo 410 de Junta Directiva. Reglamento sobre Protección Relativa a Enfermedad y Maternidad.
B65: Asegurado: La persona que tiene derecho a la protección relativa de Invalidez, Vejez o Sobrevivencia, de conformidad con los reglamentos establecidos. | E65: Acuerdo 1002 de Junta Directiva. Reglamento sobre Protección Relativa a Accidentes.
B66: Pensión: La prestación en dinero que se paga en frecuencia mensual vencida, al pensionado o a su sobreviviente. | E66: Acuerdo 97 de Junta Directiva. Reglamento de Protección Relativa de Muerte por Accidente.
B67: Pensionado: Persona que recibe Pensión temporal o Permanente de acuerdo al cumplimiento de los requisitos establecidos en los reglamentos para cada caso de pensión.
B68: Invalidez: Discapacidad que le impide a una persona realizar sus labores y actividades cotidianas, derivado de alguna enfermedad (física o mental) o de un accidente (común o de trabajo) y que se constituye en un caso de pensión para procurar ingresos económicos al asegurado, como asalariado, en las condiciones normales antes de la ocurrencia del accidente
B69: Vejez: Es el estado etario que le permite al asegurado convertirse en pensionado por vejez, al cumplir la edad que determina la normativa vigente.
B70: Sobrevivencia: Es el estado en que quedan los familiares con dependencia económica de un asegurado o pensionado fallecido.
B71: Beneficiario: Persona a quien se extiende el derecho en el goce de los beneficios del Régimen de Seguridad Social, por razones de parentesco o de dependencia económica con el asegurado.
B72: Asignación familiar: Prestación que se otorga al pensionado para el consumo de él y sus familiares dependientes como grupo familiar.
B73: Remuneración base: Cantidad de dinero que sirve de base para determinar el monto de la pensión en los riesgos de Invalidez, Vejez y Sobrevivencia.
B74: Accidente de Trabajo: Suceso eventual por consecuencia de las labores que ejecute un trabajador para su patrono, que resulta en daño involuntario para el asegurado.
B75: Accidente común: Suceso eventual de cualquier tipo que ocurre fuera de la actividad laboral y sin relación alguna con la misma; y que resulta en daño involuntario para el asegurado.
B76: Área Médico Social: Realiza orientación y diversidad de actividades en los programas de accidentes en general, enfermedad y maternidad, atención pediátrica y atención médica integral a pensionados.
B77: Caso de Pensión: Es la pensión o grupo de pensiones originadas por un asegurado/a, quien habiendo cumplido con los requisitos establecidos para el riesgo al que aplica, se hace acreedor para sí y sus beneficiarios, del derecho a gozar de ese beneficio.
B78: Derechohabiente: Familiar directo del asegurado en calidad de cónyuge o conviviente, hijo/hija o padre/madre.
B79: Diagnóstico Médico: Es el resultado de una evaluación médica que indica el tipo y grado de padecimiento que sufre un paciente.
B80: Dictamen Medico-Legal: Informe médico-legal emitido por el departamento de Medicina Legal en el cual se expresa el resultado de las evaluaciones practicadas a un asegurado.
B81: Evaluación Médica: Examen físico que se realiza a un paciente para determinar el grado de daño sufrido como consecuencia de enfermedad o accidente.
B82: Gran Invalidez: Incapacidad dictaminada por el Departamento de Medicina Legal. Se aplica cuando el asegurado/a esté incapacitado para obtener una remuneración y necesite permanentemente la ayuda de otra persona para efectuar los actos de la vida ordinaria.
B83: Incapacidad permanente: Incapacidad por mutilación, daño físico irreparable o trastorno funcional definitivo debido a accidente.
B84: Incapacidad temporal: Es la condición del asegurado que requiere tratamiento médico o asistencia hospitalaria por accidente, enfermedad o maternidad y que lo imposibilita para desempeñar su trabajo en condiciones normales.
B85: Invalidez Total: Incapacidad dictaminada por el Departamento de Medicina Legal. Se aplica al asegurado que esté incapacitado para obtener una remuneración mayor del 33% de la que percibe habitualmente en la misma región un trabajador sano, con capacidad, categoría y formación profesional análogas.
B86: Investigación Socioeconómica: Es la investigación que se realiza con el objeto de calificar los derechos de afiliados y beneficiarios del programa de invalidez, Vejez y Sobrevivencia; los programas de accidentes en general, maternidad y enfermedad para el pago de prestaciones laborales del personal al servicio del Instituto.
B87: Pensiones: Es la prestación en dinero que se paga en mensualidades vencidas al pensionado o beneficiario con derecho al programa sobre protección relativa a Invalidez, Vejez y Sobrevivencia.
B88: Pensiones vigentes: Son todas las pensiones que se otorgan a los pensionados vigentes.
B89: Prestación ulterior: Prestación en dinero que el IGSS otorga a un afiliado/a que ha quedado con incapacidad permanente por mutilación, daño físico irreparable o trastorno funcional definitivo debido a accidente.
B90: Prestaciones en dinero: Son beneficios dinerarios otorgados por el IGSS a sus afiliados al régimen de seguridad social.
B91: Prestaciones en servicio: Son los beneficios otorgados por el IGSS en asistencia médica, con el fin de conservar, mejorar o restaurar la salud y restablecer la capacidad de trabajo.
B92: Primera evaluación: Primer contacto que tiene un afiliado con el departamento de medicina legal y evaluación de incapacidades para iniciar el trámite de una prestación en dinero.
B93: Resolución: Es un dictamen final emitido por el IGSS para el otorgamiento de una pensión.
B94: Reevaluación: Son los exámenes físicos que se realizan a un afiliado para establecer la persistencia de una condición de invalidez o para confirmar un diagnóstico inicial con la ayuda de instrumentos de diagnósticos.
B95: Sobreviviente: Es la persona dependiente económica de un asegurado o pensionado/a que ha quedado en condición de orfandad o viudedad.
B96: Pensión por Incapacidad Temporal: Es la suma de dinero que el Instituto otorga a los afiliados durante el período que abarca la incapacidad temporal para el trabajo, producida por Enfermedad, Maternidad o Accidente, y tiene por objeto sustituir -en la proporción que los reglamentos establecen- el salario habitual que deja de percibir el trabajador por los días de ausencia laboral.
B97: Subsidio por Incapacidad permanente: Pago único que se hace al afiliado por por mutilación, daño físico irreparable o trastorno funcional definitivo debido a Accidente, este pago está sujeto a las Unidades de Beneficios Pecuniarios.
B98: Tiempo promedio: Resulta de la sumatoria de los tiempos consumidos para la emisión de las resoluciones de un periodo respecto del número de resoluciones emitidas en ese mismo período.
B99: Pago de Cuota Mortuoria IVS: Pago único que se otorga para gastos de entierro por la muerte de Pensionados vigentes por Invalidez, Vejez y Sobrevivencia; afiliado con derecho, cuyo trámite de la pensión esté pendiente de resolución y no tenga derecho a este beneficio en otro programa del Instituto; y Cargas familiares.
B100: Unidad de Beneficios Pecuniarios: Medida que sirve para establecer el valor monetario que se debe pagar en caso de incapacidad permanente, parcial, total o de muerte del afiliado.
B101: Nómina General: Rubro en el que se reflejan los pagos que se realizan mensualmente a los pensionados según el monto establecido en la resolución emitida.
B102: Nómina Adicional: Rubro en el que se reflejan aquellos pagos pendientes que se le otorgan al afiliado, derivado a que no presentó su sobrevivencia a tiempo o cualquier otra razón, pero que el mismo se hace efectivo en el mes que se informa.
B103: Nómina Acumulada: Rubro en el que se incluyen solo los casos nuevos y los pagos que se le efectúan a estos mismos de manera retroactiva.
B104: Pago de Cuota Mortuoria EMA: Pago único que se otorga en caso de muerte de un afiliado cotizante o de un familiar que acredite derechos en servicios de salud del Programa de Enfermedad, Maternidad y Accidentes, para gastos de entierro.
B118: Sección de Prestaciones en Salud
B119: Camas Disponibles: Son las camas habilitadas en las salas del establecimiento, en condiciones de uso inmediato, para la atención de los pacientes hospitalizados, independiente de que estén ocupadas o no. Tampoco se considera cama disponible la cuna del recién nacido normal. Para calcular indicadores de la actividad hospitalaria de un período, el número de Camas disponibles o Camas en trabajo se multiplica por los días de ese período y así se obtiene el número de días cama en trabajo. | E119: 1. Pericás, G. T., Prado, R. G., & Godel, N. J. (2021). Diccionario términos. Enciclopedía méida y terminología médica. Obtenido de http://www.diccionariomedico.net/diccionario-terminos
B120: Camas Censables: Cama disponible o cama ocupada que genera egresos hospitalarios, se utiliza en el servicio de hospitalización para el uso regular de los pacientes hospitalizados para observación, cuidado o tratamiento médico. | E120: 2. RAE. (2014). Diccionario Real Academia Española. Obtenido de https://dle.rae.es/accidente
B121: Camas No Censables: Cama disponible o cama ocupada que no genera egresos hospitalarios, se utiliza para atención transitoria de hospitalización para observación del paciente o cuidados intensivos, se incluyen camas de emergencia, de cuidados intensivos, camillas, entre otras. | E121: 3. Argentina, M. d. (1 de septiembre de 2016). www.argentina.gob.ar. Obtenido de www.argentina.gob.ar
B122: Consulta externa: Es un servicio ambulatorio para paciente con una cita asignada previamente que acceden a atenciones médicas para diferentes tipos de diagnósticos. 2. Es la atención médica ambulatoria que recibe el paciente para tratar una patología que tendrá seguimiento. Es un servicio ambulatorio para pacientes con una cita asignada previamente que acceden a atenciones médicas para diferentes tipos de diagnósticos. | E122: 4. Barrientos Gomez, C. M., & Guilá Reina, A. (eNERO de 2018). bilbioteca USAC. Obtenido de http://biblioteca.usac.edu.gt/tesis/05/05_10695.pdf
B123: Consulta Médica: es un proceso complejo y multidimensional, centrado en la relación médico-paciente, pero además es pieza clave para brindar el apoyo en cuanto a las necesidades de salud-enfermedad, sufrimiento e incertidumbre que tiene un sujeto cuando se ve afectada su integridad física, humana y emocional. | E123: 5. Ignacio, H. U. (s.f.). Servicios Asistenciales. Obtenido de www.husi.org.co.consulta-externa
B124: Consulta en Servicio de Primeros Auxilios: servicio en el que el médico o personal de enfermería brinda la atención médica de primeros auxilios al paciente y anota en el libro autorizado el número de afiliación, nombre del paciente, tipo de riesgo, diagnóstico, calidad de derechohabiente, edad, sexo, fecha de atención y cantidad de atenciones brindadas debidamente firmado. | E124: 6. IGSS. (6 de junio de 2016). Resolución 0054-SPD2016. Guatemala, Guatemala, Guatemala: Departamento de Organización y métodos.
B125: Día de Cama Ocupada: Es la permanencia de un paciente hospitalizado ocupando una cama de hospital, durante el período comprendido entre las 0 horas y las 24 horas de un mismo día. Para calcular indicadores de la actividad hospitalaria de un período se multiplica el número de Camas ocupadas de ese período y así se obtiene el número de días camas ocupadas. | E125: 7. mujeres, O. (31 de octubre de 2010). Centro virutal de Conocimiento para Pner fin a la violencia contra las Mujeres y Niñas. Obtenido de https://www.endvawnow.org/es/articles/336-indicadores.html#:~:text=Un%20indicador%20es%20una%20caracter%C3%ADstica,y%20ser%20claro%20y%20espec%C3%ADfico.
B126: Diagnóstico: Juicio médico sobre la naturaleza de la enfermedad o lesión de un paciente basado en la valoración de sus síntomas y signos. | E126: 8. Salud, S. d. (2015). Plan de Acción de Promoción de la salud en Enfermedade Crónico-Degemerativas. Obtenido de https://salud.michoacan.gob.mx/wp-content/uploads/2015/10/degenerativos.pdf
B127: Egreso: Es todo paciente que sale del hospital de un servicio de hospitalización o encamamiento (alta), en cualquier condición (curado, mejorado, mismo estado o fallecido).
B128: Egreso Hospitalario: Es el retiro de los servicios de hospitalización de un paciente que ha ocupado una cama del hospital. El egreso puede darse por alta médica, traslado a otro establecimiento, fallecimiento, retiro voluntario del paciente u otro. | E128: 9. Argentina, M. d. (1 de septiembre de 2016). www.argentina.gob.ar. Obtenido de www.argentina.gob.ar
B129: Emergencia: Situación de peligro o desastre que requiere una acción inmediata; 2. Atención médica que se recibe en la emergencia de un hospital. 3. Es la atención que se presta a pacientes que, por estar aquejados de un problema de salud crítico, ameritan una atención urgente. | E129: 10. Barrientos Gomez, C. M., & Guilá Reina, A. (eNERO de 2018). bilbioteca USAC. Obtenido de http://biblioteca.usac.edu.gt/tesis/05/05_10695.pdf
B130: Enfermedad: Alteración patológica de uno o varios órganos, que da lugar a un conjunto de síntomas característicos. | E130: 11. Ignacio, H. U. (s.f.). Servicios Asistenciales. Obtenido de www.husi.org.co.consulta-externa
B131: Enfermedades crónicas degenerativas: Son aquéllas que van degradando física y/o mentalmente a quienes las padecen, provocan un desequilibrio y afectan a los órganos y tejidos. Las enfermedades degenerativas pueden ser congénitas o hereditarias. Suelen manifestarse en edades avanzadas, aunque también pueden afectar a personas jóvenes de entre 20 y 40 años, dependiendo la enfermedad. Están relacionadas con los estilos de vida y con el envejecimiento de la población.
B132: Hospitalización: Acción y efecto de hospitalizar. | E132: 12. IGSS. (6 de junio de 2016). Resolución 0054-SPD2016. Guatemala, Guatemala, Guatemala: Departamento de Organización y métodos.
B133: Indicadores: es una característica específica, observable y medible que puede ser usada para mostrar los cambios y progresos que está haciendo un programa hacia el logro de un resultado específico.
B134: Índice de Rotación: Indicador relacionado con la producción de servicios, mide el número de pacientes que en promedio pasan por una cama en un período determinado de tiempo. Permite conocer la intensidad de la utilización de una cama disponible durante un período dado. Es una medida de afluencia de pacientes, ya que aumenta a medida que ingresan y egresan pacientes al establecimiento. Orienta sobre el rendimiento de la cama y permite, por lo tanto, una mejor distribución de las mismas. | E134: 14. mujeres, O. (31 de octubre de 2010). Centro virutal de Conocimiento para Pner fin a la violencia contra las Mujeres y Niñas. Obtenido de https://www.endvawnow.org/es/articles/336-indicadores.html#:~:text=Un%20indicador%20es%20una%20caracter%C3%ADstica,y%20ser%20claro%20y%20espec%C3%ADfico.
B135: Índice Ocupacional: El Porcentaje de ocupación de camas o relaciona los datos de producción de servicios (días camas ocupado) con la capacidad potencial de producción (días camas disponibles). Puede calcularse para el total del establecimiento o por servicio clínico y para el período de tiempo que se requiera. Este indicador indica el aprovechamiento del recurso cama en un determinado período. Si el resultado del cálculo es muy alto, puede significar que en ciertos momentos se han rechazado pacientes. -Es útil para determinar la cantidad de pacientes que en promedio han sido atendidos en un período, lo cual es muy importante para el cálculo de raciones diarias alimenticias y otros insumos-. | E135: 15. Salud, S. d. (2015). Plan de Acción de Promoción de la salud en Enfermedade Crónico-Degemerativas. Obtenido de https://salud.michoacan.gob.mx/wp-content/uploads/2015/10/degenerativos.pdf
B136: Ingreso Hospitalario: Es la aceptación formal de un paciente por el hospital para su atención médica, observación, tratamiento y recuperación. Todo ingreso al hospital involucra la ocupación de una cama hospitalaria y la mantención de una historia clínica para el registro de todas las atenciones otorgadas. Si un paciente ingresa desde otro servicio clínico del hospital constituye un Ingreso por Traslado en ese servicio clínico, pero no debe considerarse como un ingreso al establecimiento.
B137: Maternidad: Estado de la mujer que consigue tener hijos, aunque se refiere también al tiempo del embarazo y al de después del parto vínculo biológico, psicológico y espiritual de una madre con su hijo.
B138: Medicamento: Sustancia que, administrada interior o exterior mente a un organismo, sirve para prevenir, curar o aliviar la enfermedad y corregir o reparar las secuelas de esta.
B139: Paciente: Persona que padece física y corporalmente, y especialmente quién se halla bajo atención médica; 2. Persona que es o va a ser reconocida médicamente.
B140: Primeros auxilios: son aquellas medidas inmediatas que se toman en un apersona lesionada, inconsciente o súbitamente enferma, en el sitio donde ha ocurrido el incidente y hasta la llegada de la asistencia sanitaria.
B141: Producción: Es un determinado volumen o sea la cantidad total de atención de los derechohabientes. Este tiene que una variabilidad que se suma, que es la calidad de atención, aquí no se toma en cuenta las morbilidades, o sea solo persona.
B142: Promedio de días de estancia hospitalaria: Este indicador refleja el promedio del total de días que los pacientes permanecieron en el hospital. Es un indicador de eficiencia de la prestación de servicios, así como el uso del recurso de cama. Corresponde al número de días transcurridos entre la fecha de ingreso y la fecha de egreso. Puede indicar aplicación inadecuada de la capacidad resolutiva cuando los días de estancia son demasiado cortos o demasiado largos, lo que hace especialmente útil a este indicador cuando se analiza por afección principal. *El estándar de ocupación hospitalaria debe ser de 80 a 85% y si nuestro indicador se localiza fuera de este rango de ocupación, entonces traduce deficiente funcionalidad hospitalaria, ya sea por capacidad instalada de sobra (subutilización de recursos) cuando está por debajo de 80%, reflejando perdida de utilidades, o bien, se replantea la necesidad de crecimiento en instalaciones cuando se encuentra por arriba del estándar.
B143: Accidente: Suceso eventual que altera el orden regular de las cosas; 2. Suceso eventual o acción de que resulta daño involuntario para las personas o las cosas.
B157: Sección de Costos
B158: Centro de Costo: Es la descripción que se le da a un servicio final e intermedio donde se cuente con espacio físico, recurso humano, gastos por insumos consumidos y producción.
B159: Servicio Final: Son los servicios de Hospitalización, Consulta Externa, Emergencia y Primeros Auxilios por unidad médica.
B160: Costo Total: Es la sumatoria de todos los costos directos e indirectos y gastos administrativos por tipo de servicio (Egreso, Consulta Externa, Emergencias y Primeros Auxilios) y por departamento. Observaciones: Es importante mencionar que los costos, incluyen gastos administrativos tomando en consideración los montos de cada unidad ejecutora administrativa del IGSS. Boletines que no incluyen los montos de Asignaciones Globales y Reservas de Programas, los costos tambien incluyen los montos de las depreciaciones distribuidos por unidad médica, información que se obtiene de los estados financieros de los ejercicios de cada año, elaborados por el departamento de Contabilidad del Instituto, con la producción del Subsistema de Salud del año 2021,se incluyen los costos institucionales y contratados.
B161: Costo Unitario: Relaciona el Costo Total por tipo de servicio entre la producción final. Observaciones: El Costo Medio Unitario por servicios finales incluyen salarios, gastos de funcionamiento, insumos consumidos, aunado a las depreciaciones y gastos administrativos reflejados en los Estados Financieros.
B175: Sección Macrosituación Institucional
B176: Cuota Laboral: Contribución que realiza el afiliado cotizante sujeto a una prima de seguro fijada de conformidad a cada uno de los reglamentos de los programas de Seguridad Social que administra el Instituto. Actualmente la Cuota Laboral es el 4.83% sobre el salario del trabajador. | E176: Decreto 295. Ley Orgánica del Instituto Guatemalteco de Seguro Social. Artículos 42-49.
B177: Cuota patronal: Contribución que realiza el Patrono cotizante sujeto a una prima de seguro fijada de conformidad a cada uno de los reglamentos de los programas de Seguridad Social que administra el Instituto. Actualmente la Cuota Patronal es el 10.67% sobre el salario del trabajador. | E177: Acuerdo 1308 de JD. Reglamento de Política Inversionista de Fondos de los Programas de Cobertura del Régimen de Seguridad Social.
B178: Ingresos por contribución: Son los ingresos monetarios provenientes por contribuciones de tipo laboral y patronal, incluyendo las aportaciones del Estado.
B179: Gastos: Son las erogaciones realizadas por concepto de pagos de sueldos y salarios, bienes y servicios de los Programas de Instituto, reservas técnicas, entre otros.
B180: Primas de Contribución: Son las tasas de pago en fijadas sobre el salario del trabajador, establecidas de acuerdo a valuaciones de tipo actuarial que evalúan la sostenibilidad financiera de los Programas de Seguridad Social que administra el Instituto.
B181: Reserva Técnica: Constituida por los fondos que representan el valor actual compensatorio y comprende la cobertura actuarial de las obligaciones futuras contraídas con los asegurados y financian parcialmente el programa IVS con los rendimientos de la inversión de los fondos que la respaldan.
B182: Reserva Financiera: Son los fondos que respaldan los fastos por previsión y atención por enfermedad, maternidad y accidentes y para construcción de hospitales o realización de proyectos análogos y a otras reservas financieras contemporáneas.
B183: Portafolio de Inversiones: Es el conjunto de instrumentos financieros adquiridos por el instituto con los fondos pertenecientes a los programas EMA, IVS y PRECAPI.
B184: Inversión: Es la colocación de recursos en instrumentos financieros a un plazo determinado y a una tasa de interés o de rendimiento establecida conforme a las condiciones de mercado con el animo de obtener ingresos o rentas.
B185: Transferencias Corrientes: Son las erogaciones que no representan el compromiso de otorgar bienes y servicios o cuyos montos no son reintegrados por los beneficiarios, incluye aportes de carácter institucional y otros para financiar gastos corrientes de instituciones públicas y del sector externo.

Sheet Resumen Ind.
AA1: =+TODAY() -> 2022-06-08

Sheet Mapa
D4: Indicador | E4: Afiliación
B5: IGSS: Servicios brindados por el Instituto Guatemalteco de Seguridad Social, por Departamento de La República, año 2021. | J5: =+IF(E4="Afiliación","IGSS: Afiliados cotizantes, masa salarial y salario medio, por Departamento de la República, año 2021",IF($E$4="Recursos Humanos","IGSS: Recurso Humano al servicio del Instituto y salarios devengados, por Departamento de la República, año 2021",IF($E$4="Pensiones","IGSS: Número de pensionados y Montos pagados por tipo de riesgo, por Departamento de la República, año 2021",IF($E$4="Costos","IGSS: Costos unitarios por tipo de servicio y Departamento de la República, año 2021",IF($E$4="Atenciones médicas","IGSS: Cantidad de atenciones médicas brindadas, por tipo se servicio y Departamento de la República, año 2021"))))) -> IGSS: Afiliados cotizantes, masa salarial y salario medio, por Departamento de la República, año 2021
J6: Id. Depto. | K6: Departamento | L6: =+IF($E$4="Afiliación","Afiliados",IF($E$4="Recursos Humanos","Trabajadores",IF($E$4="Pensiones","Pensionados IVS",IF($E$4="Costos","Consulta Externa ",IF($E$4="Atenciones médicas","Consulta Externa"," "))))) -> Afiliados | M6: =+IF($E$4="Afiliación","Masa Salarial",IF($E$4="Recursos Humanos","Salarios",IF($E$4="Pensiones","Monto pagado por IVS",IF($E$4="Costos","Egresos",IF($E$4="Atenciones médicas","Egresos"," "))))) -> Masa Salarial | N6: =+IF($E$4="Afiliación","Salario Medio",IF($E$4="Pensiones","Pensionados Muerte por Accidente",IF($E$4="Costos","Emergencia",IF($E$4="Atenciones médicas","Emergencia"," ")))) -> Salario Medio | O6: =+IF($E$4="Afiliación","",IF($E$4="Recursos Humanos","",IF($E$4="Ejecución Presupuestaria"," ",IF($E$4="Pensiones","Monto pagado Muerte por Accidente",IF($E$4="Atenciones médicas","Primeros Auxilios"," "))))) -> 
J7: 1 | K7: Guatemala | L7: =IFERROR(IF($E$4="Afiliación",GETPIVOTDATA("Afiliados ",TD_Afil!$A$4,"Mes",13,"Departamento ",K7),IF($E$4="Recursos Humanos",GETPIVOTDATA("Trabajadores",TD_RRHH_!$A$4,"Mes",13,"Departamento",K7),IF($E$4="Costos",VLOOKUP(K7,Costos_fijos!C5:R27,12,0),IF($E$4="Atenciones médicas",GETPIVOTDATA("Consulta",'TD_Producción (2)'!$A$7,"Departamento",K7),IF($E$4="Pensiones",GETPIVOTDATA("Pensionados ",TD_Pens.mes!$A$4,"Mes",12,"Departamento ",Mapa!K7)," ")))))," ") -> 773646 | M7: =IFERROR(IF($E$4="Afiliación",GETPIVOTDATA("Salarios ",TD_Afil!$A$4,"Mes",13,"Departamento ",K7),IF($E$4="Recursos Humanos",GETPIVOTDATA("Salarios",TD_RRHH_!B4,"Departamento",K7),IF($E$4="Costos",VLOOKUP(K7,Costos_fijos!C5:R27,14,0),IF($E$4="Pensiones",GETPIVOTDATA("Pago",TD_Pension.2.ries!$A$144,"Departamento",Mapa!K7),IF($E$4="Atenciones médicas",GETPIVOTDATA("Emergencia",'TD_Producción (2)'!$A$40,"Departamento",K7)," ")))))," ") -> 50387189766 | N7: =IFERROR(IF($E$4="Afiliación",M7/L7/12,IF($E$4="Costos",VLOOKUP(K7,Costos_fijos!C5:R27,13,0),IF($E$4="Atenciones médicas",GETPIVOTDATA("Egresos",'TD_Producción (2)'!$A$72,"Departamento",K7),IF($E$4="Pensiones",GETPIVOTDATA("muerte por accidente",TD_Pens.mes!$A$136,"Mes",12,"Departamento",Mapa!K7)," "))))," ") -> 5427.459692 | O7: =IFERROR(IF($E$4="Pensiones",GETPIVOTDATA("Pago",TD_Pension.2.ries!$F$144,"Departamento",Mapa!K7),IF($E$4="Atenciones médicas",GETPIVOTDATA("Primeros Auxilios",'TD_Producción (2)'!$A$105,"Departamento",K7)," "))," ") -> 
J8: 2 | K8: El Progreso | L8: =IFERROR(IF($E$4="Afiliación",GETPIVOTDATA("Afiliados ",TD_Afil!$A$4,"Mes",13,"Departamento ",K8),IF($E$4="Recursos Humanos",GETPIVOTDATA("Trabajadores",TD_RRHH_!$A$4,"Mes",13,"Departamento",K8),IF($E$4="Costos",VLOOKUP(K8,Costos_fijos!C6:R28,12,0),IF($E$4="Atenciones médicas",GETPIVOTDATA("Consulta",'TD_Producción (2)'!$A$7,"Departamento",K8),IF($E$4="Pensiones",GETPIVOTDATA("Pensionados ",TD_Pens.mes!$A$4,"Mes",12,"Departamento ",Mapa!K8)," ")))))," ") -> 10019 | M8: =IFERROR(IF($E$4="Afiliación",GETPIVOTDATA("Salarios ",TD_Afil!$A$4,"Mes",13,"Departamento ",K8),IF($E$4="Recursos Humanos",GETPIVOTDATA("Salarios",TD_RRHH_!B5,"Departamento",K8),IF($E$4="Costos",VLOOKUP(K8,Costos_fijos!C6:R28,14,0),IF($E$4="Pensiones",GETPIVOTDATA("Pago",TD_Pension.2.ries!$A$144,"Departamento",Mapa!K8),IF($E$4="Atenciones médicas",GETPIVOTDATA("Emergencia",'TD_Producción (2)'!$A$40,"Departamento",K8)," ")))))," ") -> 563373079 | N8: =IFERROR(IF($E$4="Afiliación",M8/L8/12,IF($E$4="Costos",VLOOKUP(K8,Costos_fijos!C6:R28,13,0),IF($E$4="Atenciones médicas",GETPIVOTDATA("Egresos",'TD_Producción (2)'!$A$72,"Departamento",K8),IF($E$4="Pensiones",GETPIVOTDATA("muerte por accidente",TD_Pens.mes!$A$136,"Mes",12,"Departamento",Mapa!K8)," "))))," ") -> 4685.872501 | O8: =IFERROR(IF($E$4="Pensiones",GETPIVOTDATA("Pago",TD_Pension.2.ries!$F$144,"Departamento",Mapa!K8),IF($E$4="Atenciones médicas",GETPIVOTDATA("Primeros Auxilios",'TD_Producción (2)'!$A$105,"Departamento",K8)," "))," ") -> 
J9: 3 | K9: Sacatepéquez | L9: =IFERROR(IF($E$4="Afiliación",GETPIVOTDATA("Afiliados ",TD_Afil!$A$4,"Mes",13,"Departamento ",K9),IF($E$4="Recursos Humanos",GETPIVOTDATA("Trabajadores",TD_RRHH_!$A$4,"Mes",13,"Departamento",K9),IF($E$4="Costos",VLOOKUP(K9,Costos_fijos!C7:R29,12,0),IF($E$4="Atenciones médicas",GETPIVOTDATA("Consulta",'TD_Producción (2)'!$A$7,"Departamento",K9),IF($E$4="Pensiones",GETPIVOTDATA("Pensionados ",TD_Pens.mes!$A$4,"Mes",12,"Departamento ",Mapa!K9)," ")))))," ") -> 33132 | M9: =IFERROR(IF($E$4="Afiliación",GETPIVOTDATA("Salarios ",TD_Afil!$A$4,"Mes",13,"Departamento ",K9),IF($E$4="Recursos Humanos",GETPIVOTDATA("Salarios",TD_RRHH_!B6,"Departamento",K9),IF($E$4="Costos",VLOOKUP(K9,Costos_fijos!C7:R29,14,0),IF($E$4="Pensiones",GETPIVOTDATA("Pago",TD_Pension.2.ries!$A$144,"Departamento",Mapa!K9),IF($E$4="Atenciones médicas",GETPIVOTDATA("Emergencia",'TD_Producción (2)'!$A$40,"Departamento",K9)," ")))))," ") -> 1571971855 | N9: =IFERROR(IF($E$4="Afiliación",M9/L9/12,IF($E$4="Costos",VLOOKUP(K9,Costos_fijos!C7:R29,13,0),IF($E$4="Atenciones médicas",GETPIVOTDATA("Egresos",'TD_Producción (2)'!$A$72,"Departamento",K9),IF($E$4="Pensiones",GETPIVOTDATA("muerte por accidente",TD_Pens.mes!$A$136,"Mes",12,"Departamento",Mapa!K9)," "))))," ") -> 3953.810654 | O9: =IFERROR(IF($E$4="Pensiones",GETPIVOTDATA("Pago",TD_Pension.2.ries!$F$144,"Departamento",Mapa!K9),IF($E$4="Atenciones médicas",GETPIVOTDATA("Primeros Auxilios",'TD_Producción (2)'!$A$105,"Departamento",K9)," "))," ") ->  | W9: Afiliación
J10: 4 | K10: Chimaltenango | L10: =IFERROR(IF($E$4="Afiliación",GETPIVOTDATA("Afiliados ",TD_Afil!$A$4,"Mes",13,"Departamento ",K10),IF($E$4="Recursos Humanos",GETPIVOTDATA("Trabajadores",TD_RRHH_!$A$4,"Mes",13,"Departamento",K10),IF($E$4="Costos",VLOOKUP(K10,Costos_fijos!C8:R30,12,0),IF($E$4="Atenciones médicas",GETPIVOTDATA("Consulta",'TD_Producción (2)'!$A$7,"Departamento",K10),IF($E$4="Pensiones",GETPIVOTDATA("Pensionados ",TD_Pens.mes!$A$4,"Mes",12,"Departamento ",Mapa!K10)," ")))))," ") -> 25759 | M10: =IFERROR(IF($E$4="Afiliación",GETPIVOTDATA("Salarios ",TD_Afil!$A$4,"Mes",13,"Departamento ",K10),IF($E$4="Recursos Humanos",GETPIVOTDATA("Salarios",TD_RRHH_!B7,"Departamento",K10),IF($E$4="Costos",VLOOKUP(K10,Costos_fijos!C8:R30,14,0),IF($E$4="Pensiones",GETPIVOTDATA("Pago",TD_Pension.2.ries!$A$144,"Departamento",Mapa!K10),IF($E$4="Atenciones médicas",GETPIVOTDATA("Emergencia",'TD_Producción (2)'!$A$40,"Departamento",K10)," ")))))," ") -> 1415060183 | N10: =IFERROR(IF($E$4="Afiliación",M10/L10/12,IF($E$4="Costos",VLOOKUP(K10,Costos_fijos!C8:R30,13,0),IF($E$4="Atenciones médicas",GETPIVOTDATA("Egresos",'TD_Producción (2)'!$A$72,"Departamento",K10),IF($E$4="Pensiones",GETPIVOTDATA("muerte por accidente",TD_Pens.mes!$A$136,"Mes",12,"Departamento",Mapa!K10)," "))))," ") -> 4577.882756 | O10: =IFERROR(IF($E$4="Pensiones",GETPIVOTDATA("Pago",TD_Pension.2.ries!$F$144,"Departamento",Mapa!K10),IF($E$4="Atenciones médicas",GETPIVOTDATA("Primeros Auxilios",'TD_Producción (2)'!$A$105,"Departamento",K10)," "))," ") ->  | W10: Recursos Humanos
J11: 5 | K11: Escuintla | L11: =IFERROR(IF($E$4="Afiliación",GETPIVOTDATA("Afiliados ",TD_Afil!$A$4,"Mes",13,"Departamento ",K11),IF($E$4="Recursos Humanos",GETPIVOTDATA("Trabajadores",TD_RRHH_!$A$4,"Mes",13,"Departamento",K11),IF($E$4="Costos",VLOOKUP(K11,Costos_fijos!C9:R31,12,0),IF($E$4="Atenciones médicas",GETPIVOTDATA("Consulta",'TD_Producción (2)'!$A$7,"Departamento",K11),IF($E$4="Pensiones",GETPIVOTDATA("Pensionados ",TD_Pens.mes!$A$4,"Mes",12,"Departamento ",Mapa!K11)," ")))))," ") -> 131537 | M11: =IFERROR(IF($E$4="Afiliación",GETPIVOTDATA("Salarios ",TD_Afil!$A$4,"Mes",13,"Departamento ",K11),IF($E$4="Recursos Humanos",GETPIVOTDATA("Salarios",TD_RRHH_!B8,"Departamento",K11),IF($E$4="Costos",VLOOKUP(K11,Costos_fijos!C9:R31,14,0),IF($E$4="Pensiones",GETPIVOTDATA("Pago",TD_Pension.2.ries!$A$144,"Departamento",Mapa!K11),IF($E$4="Atenciones médicas",GETPIVOTDATA("Emergencia",'TD_Producción (2)'!$A$40,"Departamento",K11)," ")))))," ") -> 6175795142 | N11: =IFERROR(IF($E$4="Afiliación",M11/L11/12,IF($E$4="Costos",VLOOKUP(K11,Costos_fijos!C9:R31,13,0),IF($E$4="Atenciones médicas",GETPIVOTDATA("Egresos",'TD_Producción (2)'!$A$72,"Departamento",K11),IF($E$4="Pensiones",GETPIVOTDATA("muerte por accidente",TD_Pens.mes!$A$136,"Mes",12,"Departamento",Mapa!K11)," "))))," ") -> 3912.584255 | O11: =IFERROR(IF($E$4="Pensiones",GETPIVOTDATA("Pago",TD_Pension.2.ries!$F$144,"Departamento",Mapa!K11),IF($E$4="Atenciones médicas",GETPIVOTDATA("Primeros Auxilios",'TD_Producción (2)'!$A$105,"Departamento",K11)," "))," ") ->  | W11: Pensiones
J12: 6 | K12: Santa Rosa | L12: =IFERROR(IF($E$4="Afiliación",GETPIVOTDATA("Afiliados ",TD_Afil!$A$4,"Mes",13,"Departamento ",K12),IF($E$4="Recursos Humanos",GETPIVOTDATA("Trabajadores",TD_RRHH_!$A$4,"Mes",13,"Departamento",K12),IF($E$4="Costos",VLOOKUP(K12,Costos_fijos!C10:R32,12,0),IF($E$4="Atenciones médicas",GETPIVOTDATA("Consulta",'TD_Producción (2)'!$A$7,"Departamento",K12),IF($E$4="Pensiones",GETPIVOTDATA("Pensionados ",TD_Pens.mes!$A$4,"Mes",12,"Departamento ",Mapa!K12)," ")))))," ") -> 16891 | M12: =IFERROR(IF($E$4="Afiliación",GETPIVOTDATA("Salarios ",TD_Afil!$A$4,"Mes",13,"Departamento ",K12),IF($E$4="Recursos Humanos",GETPIVOTDATA("Salarios",TD_RRHH_!B9,"Departamento",K12),IF($E$4="Costos",VLOOKUP(K12,Costos_fijos!C10:R32,14,0),IF($E$4="Pensiones",GETPIVOTDATA("Pago",TD_Pension.2.ries!$A$144,"Departamento",Mapa!K12),IF($E$4="Atenciones médicas",GETPIVOTDATA("Emergencia",'TD_Producción (2)'!$A$40,"Departamento",K12)," ")))))," ") -> 928030451 | N12: =IFERROR(IF($E$4="Afiliación",M12/L12/12,IF($E$4="Costos",VLOOKUP(K12,Costos_fijos!C10:R32,13,0),IF($E$4="Atenciones médicas",GETPIVOTDATA("Egresos",'TD_Producción (2)'!$A$72,"Departamento",K12),IF($E$4="Pensiones",GETPIVOTDATA("muerte por accidente",TD_Pens.mes!$A$136,"Mes",12,"Departamento",Mapa!K12)," "))))," ") -> 4578.525304 | O12: =IFERROR(IF($E$4="Pensiones",GETPIVOTDATA("Pago",TD_Pension.2.ries!$F$144,"Departamento",Mapa!K12),IF($E$4="Atenciones médicas",GETPIVOTDATA("Primeros Auxilios",'TD_Producción (2)'!$A$105,"Departamento",K12)," "))," ") ->  | W12: Costos
J13: 7 | K13: Sololá | L13: =IFERROR(IF($E$4="Afiliación",GETPIVOTDATA("Afiliados ",TD_Afil!$A$4,"Mes",13,"Departamento ",K13),IF($E$4="Recursos Humanos",GETPIVOTDATA("Trabajadores",TD_RRHH_!$A$4,"Mes",13,"Departamento",K13),IF($E$4="Costos",VLOOKUP(K13,Costos_fijos!C11:R33,12,0),IF($E$4="Atenciones médicas",GETPIVOTDATA("Consulta",'TD_Producción (2)'!$A$7,"Departamento",K13),IF($E$4="Pensiones",GETPIVOTDATA("Pensionados ",TD_Pens.mes!$A$4,"Mes",12,"Departamento ",Mapa!K13)," ")))))," ") -> 12324 | M13: =IFERROR(IF($E$4="Afiliación",GETPIVOTDATA("Salarios ",TD_Afil!$A$4,"Mes",13,"Departamento ",K13),IF($E$4="Recursos Humanos",GETPIVOTDATA("Salarios",TD_RRHH_!B10,"Departamento",K13),IF($E$4="Costos",VLOOKUP(K13,Costos_fijos!C11:R33,14,0),IF($E$4="Pensiones",GETPIVOTDATA("Pago",TD_Pension.2.ries!$A$144,"Departamento",Mapa!K13),IF($E$4="Atenciones médicas",GETPIVOTDATA("Emergencia",'TD_Producción (2)'!$A$40,"Departamento",K13)," ")))))," ") -> 809215582 | N13: =IFERROR(IF($E$4="Afiliación",M13/L13/12,IF($E$4="Costos",VLOOKUP(K13,Costos_fijos!C11:R33,13,0),IF($E$4="Atenciones médicas",GETPIVOTDATA("Egresos",'TD_Producción (2)'!$A$72,"Departamento",K13),IF($E$4="Pensiones",GETPIVOTDATA("muerte por accidente",TD_Pens.mes!$A$136,"Mes",12,"Departamento",Mapa!K13)," "))))," ") -> 5471.813683 | O13: =IFERROR(IF($E$4="Pensiones",GETPIVOTDATA("Pago",TD_Pension.2.ries!$F$144,"Departamento",Mapa!K13),IF($E$4="Atenciones médicas",GETPIVOTDATA("Primeros Auxilios",'TD_Producción (2)'!$A$105,"Departamento",K13)," "))," ") ->  | W13: Atenciones médicas
J14: 8 | K14: Totonicapán | L14: =IFERROR(IF($E$4="Afiliación",GETPIVOTDATA("Afiliados ",TD_Afil!$A$4,"Mes",13,"Departamento ",K14),IF($E$4="Recursos Humanos",GETPIVOTDATA("Trabajadores",TD_RRHH_!$A$4,"Mes",13,"Departamento",K14),IF($E$4="Costos",VLOOKUP(K14,Costos_fijos!C12:R34,12,0),IF($E$4="Atenciones médicas",GETPIVOTDATA("Consulta",'TD_Producción (2)'!$A$7,"Departamento",K14),IF($E$4="Pensiones",GETPIVOTDATA("Pensionados ",TD_Pens.mes!$A$4,"Mes",12,"Departamento ",Mapa!K14)," ")))))," ") -> 8005 | M14: =IFERROR(IF($E$4="Afiliación",GETPIVOTDATA("Salarios ",TD_Afil!$A$4,"Mes",13,"Departamento ",K14),IF($E$4="Recursos Humanos",GETPIVOTDATA("Salarios",TD_RRHH_!B11,"Departamento",K14),IF($E$4="Costos",VLOOKUP(K14,Costos_fijos!C12:R34,14,0),IF($E$4="Pensiones",GETPIVOTDATA("Pago",TD_Pension.2.ries!$A$144,"Departamento",Mapa!K14),IF($E$4="Atenciones médicas",GETPIVOTDATA("Emergencia",'TD_Producción (2)'!$A$40,"Departamento",K14)," ")))))," ") -> 583211710 | N14: =IFERROR(IF($E$4="Afiliación",M14/L14/12,IF($E$4="Costos",VLOOKUP(K14,Costos_fijos!C12:R34,13,0),IF($E$4="Atenciones médicas",GETPIVOTDATA("Egresos",'TD_Producción (2)'!$A$72,"Departamento",K14),IF($E$4="Pensiones",GETPIVOTDATA("muerte por accidente",TD_Pens.mes!$A$136,"Mes",12,"Departamento",Mapa!K14)," "))))," ") -> 6071.3274 | O14: =IFERROR(IF($E$4="Pensiones",GETPIVOTDATA("Pago",TD_Pension.2.ries!$F$144,"Departamento",Mapa!K14),IF($E$4="Atenciones médicas",GETPIVOTDATA("Primeros Auxilios",'TD_Producción (2)'!$A$105,"Departamento",K14)," "))," ") -> 
J15: 9 | K15: Quetzaltenango | L15: =IFERROR(IF($E$4="Afiliación",GETPIVOTDATA("Afiliados ",TD_Afil!$A$4,"Mes",13,"Departamento ",K15),IF($E$4="Recursos Humanos",GETPIVOTDATA("Trabajadores",TD_RRHH_!$A$4,"Mes",13,"Departamento",K15),IF($E$4="Costos",VLOOKUP(K15,Costos_fijos!C13:R35,12,0),IF($E$4="Atenciones médicas",GETPIVOTDATA("Consulta",'TD_Producción (2)'!$A$7,"Departamento",K15),IF($E$4="Pensiones",GETPIVOTDATA("Pensionados ",TD_Pens.mes!$A$4,"Mes",12,"Departamento ",Mapa!K15)," ")))))," ") -> 55543 | M15: =IFERROR(IF($E$4="Afiliación",GETPIVOTDATA("Salarios ",TD_Afil!$A$4,"Mes",13,"Departamento ",K15),IF($E$4="Recursos Humanos",GETPIVOTDATA("Salarios",TD_RRHH_!B12,"Departamento",K15),IF($E$4="Costos",VLOOKUP(K15,Costos_fijos!C13:R35,14,0),IF($E$4="Pensiones",GETPIVOTDATA("Pago",TD_Pension.2.ries!$A$144,"Departamento",Mapa!K15),IF($E$4="Atenciones médicas",GETPIVOTDATA("Emergencia",'TD_Producción (2)'!$A$40,"Departamento",K15)," ")))))," ") -> 3093437771 | N15: =IFERROR(IF($E$4="Afiliación",M15/L15/12,IF($E$4="Costos",VLOOKUP(K15,Costos_fijos!C13:R35,13,0),IF($E$4="Atenciones médicas",GETPIVOTDATA("Egresos",'TD_Producción (2)'!$A$72,"Departamento",K15),IF($E$4="Pensiones",GETPIVOTDATA("muerte por accidente",TD_Pens.mes!$A$136,"Mes",12,"Departamento",Mapa!K15)," "))))," ") -> 4641.205569 | O15: =IFERROR(IF($E$4="Pensiones",GETPIVOTDATA("Pago",TD_Pension.2.ries!$F$144,"Departamento",Mapa!K15),IF($E$4="Atenciones médicas",GETPIVOTDATA("Primeros Auxilios",'TD_Producción (2)'!$A$105,"Departamento",K15)," "))," ") -> 
J16: 10 | K16: Suchitepéquez | L16: =IFERROR(IF($E$4="Afiliación",GETPIVOTDATA("Afiliados ",TD_Afil!$A$4,"Mes",13,"Departamento ",K16),IF($E$4="Recursos Humanos",GETPIVOTDATA("Trabajadores",TD_RRHH_!$A$4,"Mes",13,"Departamento",K16),IF($E$4="Costos",VLOOKUP(K16,Costos_fijos!C14:R36,12,0),IF($E$4="Atenciones médicas",GETPIVOTDATA("Consulta",'TD_Producción (2)'!$A$7,"Departamento",K16),IF($E$4="Pensiones",GETPIVOTDATA("Pensionados ",TD_Pens.mes!$A$4,"Mes",12,"Departamento ",Mapa!K16)," ")))))," ") -> 31019 | M16: =IFERROR(IF($E$4="Afiliación",GETPIVOTDATA("Salarios ",TD_Afil!$A$4,"Mes",13,"Departamento ",K16),IF($E$4="Recursos Humanos",GETPIVOTDATA("Salarios",TD_RRHH_!B13,"Departamento",K16),IF($E$4="Costos",VLOOKUP(K16,Costos_fijos!C14:R36,14,0),IF($E$4="Pensiones",GETPIVOTDATA("Pago",TD_Pension.2.ries!$A$144,"Departamento",Mapa!K16),IF($E$4="Atenciones médicas",GETPIVOTDATA("Emergencia",'TD_Producción (2)'!$A$40,"Departamento",K16)," ")))))," ") -> 1599530467 | N16: =IFERROR(IF($E$4="Afiliación",M16/L16/12,IF($E$4="Costos",VLOOKUP(K16,Costos_fijos!C14:R36,13,0),IF($E$4="Atenciones médicas",GETPIVOTDATA("Egresos",'TD_Producción (2)'!$A$72,"Departamento",K16),IF($E$4="Pensiones",GETPIVOTDATA("muerte por accidente",TD_Pens.mes!$A$136,"Mes",12,"Departamento",Mapa!K16)," "))))," ") -> 4297.179328 | O16: =IFERROR(IF($E$4="Pensiones",GETPIVOTDATA("Pago",TD_Pension.2.ries!$F$144,"Departamento",Mapa!K16),IF($E$4="Atenciones médicas",GETPIVOTDATA("Primeros Auxilios",'TD_Producción (2)'!$A$105,"Departamento",K16)," "))," ") -> 
J17: 11 | K17: Retalhuleu | L17: =IFERROR(IF($E$4="Afiliación",GETPIVOTDATA("Afiliados ",TD_Afil!$A$4,"Mes",13,"Departamento ",K17),IF($E$4="Recursos Humanos",GETPIVOTDATA("Trabajadores",TD_RRHH_!$A$4,"Mes",13,"Departamento",K17),IF($E$4="Costos",VLOOKUP(K17,Costos_fijos!C15:R37,12,0),IF($E$4="Atenciones médicas",GETPIVOTDATA("Consulta",'TD_Producción (2)'!$A$7,"Departamento",K17),IF($E$4="Pensiones",GETPIVOTDATA("Pensionados ",TD_Pens.mes!$A$4,"Mes",12,"Departamento ",Mapa!K17)," ")))))," ") -> 28471 | M17: =IFERROR(IF($E$4="Afiliación",GETPIVOTDATA("Salarios ",TD_Afil!$A$4,"Mes",13,"Departamento ",K17),IF($E$4="Recursos Humanos",GETPIVOTDATA("Salarios",TD_RRHH_!B14,"Departamento",K17),IF($E$4="Costos",VLOOKUP(K17,Costos_fijos!C15:R37,14,0),IF($E$4="Pensiones",GETPIVOTDATA("Pago",TD_Pension.2.ries!$A$144,"Departamento",Mapa!K17),IF($E$4="Atenciones médicas",GETPIVOTDATA("Emergencia",'TD_Producción (2)'!$A$40,"Departamento",K17)," ")))))," ") -> 1387677842 | N17: =IFERROR(IF($E$4="Afiliación",M17/L17/12,IF($E$4="Costos",VLOOKUP(K17,Costos_fijos!C15:R37,13,0),IF($E$4="Atenciones médicas",GETPIVOTDATA("Egresos",'TD_Producción (2)'!$A$72,"Departamento",K17),IF($E$4="Pensiones",GETPIVOTDATA("muerte por accidente",TD_Pens.mes!$A$136,"Mes",12,"Departamento",Mapa!K17)," "))))," ") -> 4061.670478 | O17: =IFERROR(IF($E$4="Pensiones",GETPIVOTDATA("Pago",TD_Pension.2.ries!$F$144,"Departamento",Mapa!K17),IF($E$4="Atenciones médicas",GETPIVOTDATA("Primeros Auxilios",'TD_Producción (2)'!$A$105,"Departamento",K17)," "))," ") -> 
J18: 12 | K18: San Marcos | L18: =IFERROR(IF($E$4="Afiliación",GETPIVOTDATA("Afiliados ",TD_Afil!$A$4,"Mes",13,"Departamento ",K18),IF($E$4="Recursos Humanos",GETPIVOTDATA("Trabajadores",TD_RRHH_!$A$4,"Mes",13,"Departamento",K18),IF($E$4="Costos",VLOOKUP(K18,Costos_fijos!C16:R38,12,0),IF($E$4="Atenciones médicas",GETPIVOTDATA("Consulta",'TD_Producción (2)'!$A$7,"Departamento",K18),IF($E$4="Pensiones",GETPIVOTDATA("Pensionados ",TD_Pens.mes!$A$4,"Mes",12,"Departamento ",Mapa!K18)," ")))))," ") -> 35417 | M18: =IFERROR(IF($E$4="Afiliación",GETPIVOTDATA("Salarios ",TD_Afil!$A$4,"Mes",13,"Departamento ",K18),IF($E$4="Recursos Humanos",GETPIVOTDATA("Salarios",TD_RRHH_!B15,"Departamento",K18),IF($E$4="Costos",VLOOKUP(K18,Costos_fijos!C16:R38,14,0),IF($E$4="Pensiones",GETPIVOTDATA("Pago",TD_Pension.2.ries!$A$144,"Departamento",Mapa!K18),IF($E$4="Atenciones médicas",GETPIVOTDATA("Emergencia",'TD_Producción (2)'!$A$40,"Departamento",K18)," ")))))," ") -> 1964344092 | N18: =IFERROR(IF($E$4="Afiliación",M18/L18/12,IF($E$4="Costos",VLOOKUP(K18,Costos_fijos!C16:R38,13,0),IF($E$4="Atenciones médicas",GETPIVOTDATA("Egresos",'TD_Producción (2)'!$A$72,"Departamento",K18),IF($E$4="Pensiones",GETPIVOTDATA("muerte por accidente",TD_Pens.mes!$A$136,"Mes",12,"Departamento",Mapa!K18)," "))))," ") -> 4621.942598 | O18: =IFERROR(IF($E$4="Pensiones",GETPIVOTDATA("Pago",TD_Pension.2.ries!$F$144,"Departamento",Mapa!K18),IF($E$4="Atenciones médicas",GETPIVOTDATA("Primeros Auxilios",'TD_Producción (2)'!$A$105,"Departamento",K18)," "))," ") -> 
J19: 13 | K19: Huehuetenango | L19: =IFERROR(IF($E$4="Afiliación",GETPIVOTDATA("Afiliados ",TD_Afil!$A$4,"Mes",13,"Departamento ",K19),IF($E$4="Recursos Humanos",GETPIVOTDATA("Trabajadores",TD_RRHH_!$A$4,"Mes",13,"Departamento",K19),IF($E$4="Costos",VLOOKUP(K19,Costos_fijos!C17:R39,12,0),IF($E$4="Atenciones médicas",GETPIVOTDATA("Consulta",'TD_Producción (2)'!$A$7,"Departamento",K19),IF($E$4="Pensiones",GETPIVOTDATA("Pensionados ",TD_Pens.mes!$A$4,"Mes",12,"Departamento ",Mapa!K19)," ")))))," ") -> 26326 | M19: =IFERROR(IF($E$4="Afiliación",GETPIVOTDATA("Salarios ",TD_Afil!$A$4,"Mes",13,"Departamento ",K19),IF($E$4="Recursos Humanos",GETPIVOTDATA("Salarios",TD_RRHH_!B16,"Departamento",K19),IF($E$4="Costos",VLOOKUP(K19,Costos_fijos!C17:R39,14,0),IF($E$4="Pensiones",GETPIVOTDATA("Pago",TD_Pension.2.ries!$A$144,"Departamento",Mapa!K19),IF($E$4="Atenciones médicas",GETPIVOTDATA("Emergencia",'TD_Producción (2)'!$A$40,"Departamento",K19)," ")))))," ") -> 1754663562 | N19: =IFERROR(IF($E$4="Afiliación",M19/L19/12,IF($E$4="Costos",VLOOKUP(K19,Costos_fijos!C17:R39,13,0),IF($E$4="Atenciones médicas",GETPIVOTDATA("Egresos",'TD_Producción (2)'!$A$72,"Departamento",K19),IF($E$4="Pensiones",GETPIVOTDATA("muerte por accidente",TD_Pens.mes!$A$136,"Mes",12,"Departamento",Mapa!K19)," "))))," ") -> 5554.279553 | O19: =IFERROR(IF($E$4="Pensiones",GETPIVOTDATA("Pago",TD_Pension.2.ries!$F$144,"Departamento",Mapa!K19),IF($E$4="Atenciones médicas",GETPIVOTDATA("Primeros Auxilios",'TD_Producción (2)'!$A$105,"Departamento",K19)," "))," ") -> 
J20: 14 | K20: Quiché | L20: =IFERROR(IF($E$4="Afiliación",GETPIVOTDATA("Afiliados ",TD_Afil!$A$4,"Mes",13,"Departamento ",K20),IF($E$4="Recursos Humanos",GETPIVOTDATA("Trabajadores",TD_RRHH_!$A$4,"Mes",13,"Departamento",K20),IF($E$4="Costos",VLOOKUP(K20,Costos_fijos!C18:R40,12,0),IF($E$4="Atenciones médicas",GETPIVOTDATA("Consulta",'TD_Producción (2)'!$A$7,"Departamento",K20),IF($E$4="Pensiones",GETPIVOTDATA("Pensionados ",TD_Pens.mes!$A$4,"Mes",12,"Departamento ",Mapa!K20)," ")))))," ") -> 19742 | M20: =IFERROR(IF($E$4="Afiliación",GETPIVOTDATA("Salarios ",TD_Afil!$A$4,"Mes",13,"Departamento ",K20),IF($E$4="Recursos Humanos",GETPIVOTDATA("Salarios",TD_RRHH_!B17,"Departamento",K20),IF($E$4="Costos",VLOOKUP(K20,Costos_fijos!C18:R40,14,0),IF($E$4="Pensiones",GETPIVOTDATA("Pago",TD_Pension.2.ries!$A$144,"Departamento",Mapa!K20),IF($E$4="Atenciones médicas",GETPIVOTDATA("Emergencia",'TD_Producción (2)'!$A$40,"Departamento",K20)," ")))))," ") -> 1378936987 | N20: =IFERROR(IF($E$4="Afiliación",M20/L20/12,IF($E$4="Costos",VLOOKUP(K20,Costos_fijos!C18:R40,13,0),IF($E$4="Atenciones médicas",GETPIVOTDATA("Egresos",'TD_Producción (2)'!$A$72,"Departamento",K20),IF($E$4="Pensiones",GETPIVOTDATA("muerte por accidente",TD_Pens.mes!$A$136,"Mes",12,"Departamento",Mapa!K20)," "))))," ") -> 5820.657258 | O20: =IFERROR(IF($E$4="Pensiones",GETPIVOTDATA("Pago",TD_Pension.2.ries!$F$144,"Departamento",Mapa!K20),IF($E$4="Atenciones médicas",GETPIVOTDATA("Primeros Auxilios",'TD_Producción (2)'!$A$105,"Departamento",K20)," "))," ") -> 
J21: 15 | K21: Baja Verapaz | L21: =IFERROR(IF($E$4="Afiliación",GETPIVOTDATA("Afiliados ",TD_Afil!$A$4,"Mes",13,"Departamento ",K21),IF($E$4="Recursos Humanos",GETPIVOTDATA("Trabajadores",TD_RRHH_!$A$4,"Mes",13,"Departamento",K21),IF($E$4="Costos",VLOOKUP(K21,Costos_fijos!C19:R41,12,0),IF($E$4="Atenciones médicas",GETPIVOTDATA("Consulta",'TD_Producción (2)'!$A$7,"Departamento",K21),IF($E$4="Pensiones",GETPIVOTDATA("Pensionados ",TD_Pens.mes!$A$4,"Mes",12,"Departamento ",Mapa!K21)," ")))))," ") -> 9070 | M21: =IFERROR(IF($E$4="Afiliación",GETPIVOTDATA("Salarios ",TD_Afil!$A$4,"Mes",13,"Departamento ",K21),IF($E$4="Recursos Humanos",GETPIVOTDATA("Salarios",TD_RRHH_!B18,"Departamento",K21),IF($E$4="Costos",VLOOKUP(K21,Costos_fijos!C19:R41,14,0),IF($E$4="Pensiones",GETPIVOTDATA("Pago",TD_Pension.2.ries!$A$144,"Departamento",Mapa!K21),IF($E$4="Atenciones médicas",GETPIVOTDATA("Emergencia",'TD_Producción (2)'!$A$40,"Departamento",K21)," ")))))," ") -> 589553842 | N21: =IFERROR(IF($E$4="Afiliación",M21/L21/12,IF($E$4="Costos",VLOOKUP(K21,Costos_fijos!C19:R41,13,0),IF($E$4="Atenciones médicas",GETPIVOTDATA("Egresos",'TD_Producción (2)'!$A$72,"Departamento",K21),IF($E$4="Pensiones",GETPIVOTDATA("muerte por accidente",TD_Pens.mes!$A$136,"Mes",12,"Departamento",Mapa!K21)," "))))," ") -> 5416.701966 | O21: =IFERROR(IF($E$4="Pensiones",GETPIVOTDATA("Pago",TD_Pension.2.ries!$F$144,"Departamento",Mapa!K21),IF($E$4="Atenciones médicas",GETPIVOTDATA("Primeros Auxilios",'TD_Producción (2)'!$A$105,"Departamento",K21)," "))," ") -> 
J22: 16 | K22: Alta Verapaz | L22: =IFERROR(IF($E$4="Afiliación",GETPIVOTDATA("Afiliados ",TD_Afil!$A$4,"Mes",13,"Departamento ",K22),IF($E$4="Recursos Humanos",GETPIVOTDATA("Trabajadores",TD_RRHH_!$A$4,"Mes",13,"Departamento",K22),IF($E$4="Costos",VLOOKUP(K22,Costos_fijos!C20:R42,12,0),IF($E$4="Atenciones médicas",GETPIVOTDATA("Consulta",'TD_Producción (2)'!$A$7,"Departamento",K22),IF($E$4="Pensiones",GETPIVOTDATA("Pensionados ",TD_Pens.mes!$A$4,"Mes",12,"Departamento ",Mapa!K22)," ")))))," ") -> 35358 | M22: =IFERROR(IF($E$4="Afiliación",GETPIVOTDATA("Salarios ",TD_Afil!$A$4,"Mes",13,"Departamento ",K22),IF($E$4="Recursos Humanos",GETPIVOTDATA("Salarios",TD_RRHH_!B19,"Departamento",K22),IF($E$4="Costos",VLOOKUP(K22,Costos_fijos!C20:R42,14,0),IF($E$4="Pensiones",GETPIVOTDATA("Pago",TD_Pension.2.ries!$A$144,"Departamento",Mapa!K22),IF($E$4="Atenciones médicas",GETPIVOTDATA("Emergencia",'TD_Producción (2)'!$A$40,"Departamento",K22)," ")))))," ") -> 1988505004 | N22: =IFERROR(IF($E$4="Afiliación",M22/L22/12,IF($E$4="Costos",VLOOKUP(K22,Costos_fijos!C20:R42,13,0),IF($E$4="Atenciones médicas",GETPIVOTDATA("Egresos",'TD_Producción (2)'!$A$72,"Departamento",K22),IF($E$4="Pensiones",GETPIVOTDATA("muerte por accidente",TD_Pens.mes!$A$136,"Mes",12,"Departamento",Mapa!K22)," "))))," ") -> 4686.598516 | O22: =IFERROR(IF($E$4="Pensiones",GETPIVOTDATA("Pago",TD_Pension.2.ries!$F$144,"Departamento",Mapa!K22),IF($E$4="Atenciones médicas",GETPIVOTDATA("Primeros Auxilios",'TD_Producción (2)'!$A$105,"Departamento",K22)," "))," ") -> 
J23: 17 | K23: Petén | L23: =IFERROR(IF($E$4="Afiliación",GETPIVOTDATA("Afiliados ",TD_Afil!$A$4,"Mes",13,"Departamento ",K23),IF($E$4="Recursos Humanos",GETPIVOTDATA("Trabajadores",TD_RRHH_!$A$4,"Mes",13,"Departamento",K23),IF($E$4="Costos",VLOOKUP(K23,Costos_fijos!C21:R43,12,0),IF($E$4="Atenciones médicas",GETPIVOTDATA("Consulta",'TD_Producción (2)'!$A$7,"Departamento",K23),IF($E$4="Pensiones",GETPIVOTDATA("Pensionados ",TD_Pens.mes!$A$4,"Mes",12,"Departamento ",Mapa!K23)," ")))))," ") -> 30418 | M23: =IFERROR(IF($E$4="Afiliación",GETPIVOTDATA("Salarios ",TD_Afil!$A$4,"Mes",13,"Departamento ",K23),IF($E$4="Recursos Humanos",GETPIVOTDATA("Salarios",TD_RRHH_!B20,"Departamento",K23),IF($E$4="Costos",VLOOKUP(K23,Costos_fijos!C21:R43,14,0),IF($E$4="Pensiones",GETPIVOTDATA("Pago",TD_Pension.2.ries!$A$144,"Departamento",Mapa!K23),IF($E$4="Atenciones médicas",GETPIVOTDATA("Emergencia",'TD_Producción (2)'!$A$40,"Departamento",K23)," ")))))," ") -> 1586837864 | N23: =IFERROR(IF($E$4="Afiliación",M23/L23/12,IF($E$4="Costos",VLOOKUP(K23,Costos_fijos!C21:R43,13,0),IF($E$4="Atenciones médicas",GETPIVOTDATA("Egresos",'TD_Producción (2)'!$A$72,"Departamento",K23),IF($E$4="Pensiones",GETPIVOTDATA("muerte por accidente",TD_Pens.mes!$A$136,"Mes",12,"Departamento",Mapa!K23)," "))))," ") -> 4347.31043 | O23: =IFERROR(IF($E$4="Pensiones",GETPIVOTDATA("Pago",TD_Pension.2.ries!$F$144,"Departamento",Mapa!K23),IF($E$4="Atenciones médicas",GETPIVOTDATA("Primeros Auxilios",'TD_Producción (2)'!$A$105,"Departamento",K23)," "))," ") -> 
J24: 18 | K24: Izabal | L24: =IFERROR(IF($E$4="Afiliación",GETPIVOTDATA("Afiliados ",TD_Afil!$A$4,"Mes",13,"Departamento ",K24),IF($E$4="Recursos Humanos",GETPIVOTDATA("Trabajadores",TD_RRHH_!$A$4,"Mes",13,"Departamento",K24),IF($E$4="Costos",VLOOKUP(K24,Costos_fijos!C22:R44,12,0),IF($E$4="Atenciones médicas",GETPIVOTDATA("Consulta",'TD_Producción (2)'!$A$7,"Departamento",K24),IF($E$4="Pensiones",GETPIVOTDATA("Pensionados ",TD_Pens.mes!$A$4,"Mes",12,"Departamento ",Mapa!K24)," ")))))," ") -> 39354 | M24: =IFERROR(IF($E$4="Afiliación",GETPIVOTDATA("Salarios ",TD_Afil!$A$4,"Mes",13,"Departamento ",K24),IF($E$4="Recursos Humanos",GETPIVOTDATA("Salarios",TD_RRHH_!B21,"Departamento",K24),IF($E$4="Costos",VLOOKUP(K24,Costos_fijos!C22:R44,14,0),IF($E$4="Pensiones",GETPIVOTDATA("Pago",TD_Pension.2.ries!$A$144,"Departamento",Mapa!K24),IF($E$4="Atenciones médicas",GETPIVOTDATA("Emergencia",'TD_Producción (2)'!$A$40,"Departamento",K24)," ")))))," ") -> 2170388006 | N24: =IFERROR(IF($E$4="Afiliación",M24/L24/12,IF($E$4="Costos",VLOOKUP(K24,Costos_fijos!C22:R44,13,0),IF($E$4="Atenciones médicas",GETPIVOTDATA("Egresos",'TD_Producción (2)'!$A$72,"Departamento",K24),IF($E$4="Pensiones",GETPIVOTDATA("muerte por accidente",TD_Pens.mes!$A$136,"Mes",12,"Departamento",Mapa!K24)," "))))," ") -> 4595.864897 | O24: =IFERROR(IF($E$4="Pensiones",GETPIVOTDATA("Pago",TD_Pension.2.ries!$F$144,"Departamento",Mapa!K24),IF($E$4="Atenciones médicas",GETPIVOTDATA("Primeros Auxilios",'TD_Producción (2)'!$A$105,"Departamento",K24)," "))," ") -> 
J25: 19 | K25: Zacapa | L25: =IFERROR(IF($E$4="Afiliación",GETPIVOTDATA("Afiliados ",TD_Afil!$A$4,"Mes",13,"Departamento ",K25),IF($E$4="Recursos Humanos",GETPIVOTDATA("Trabajadores",TD_RRHH_!$A$4,"Mes",13,"Departamento",K25),IF($E$4="Costos",VLOOKUP(K25,Costos_fijos!C23:R45,12,0),IF($E$4="Atenciones médicas",GETPIVOTDATA("Consulta",'TD_Producción (2)'!$A$7,"Departamento",K25),IF($E$4="Pensiones",GETPIVOTDATA("Pensionados ",TD_Pens.mes!$A$4,"Mes",12,"Departamento ",Mapa!K25)," ")))))," ") -> 23138 | M25: =IFERROR(IF($E$4="Afiliación",GETPIVOTDATA("Salarios ",TD_Afil!$A$4,"Mes",13,"Departamento ",K25),IF($E$4="Recursos Humanos",GETPIVOTDATA("Salarios",TD_RRHH_!B22,"Departamento",K25),IF($E$4="Costos",VLOOKUP(K25,Costos_fijos!C23:R45,14,0),IF($E$4="Pensiones",GETPIVOTDATA("Pago",TD_Pension.2.ries!$A$144,"Departamento",Mapa!K25),IF($E$4="Atenciones médicas",GETPIVOTDATA("Emergencia",'TD_Producción (2)'!$A$40,"Departamento",K25)," ")))))," ") -> 1229977114 | N25: =IFERROR(IF($E$4="Afiliación",M25/L25/12,IF($E$4="Costos",VLOOKUP(K25,Costos_fijos!C23:R45,13,0),IF($E$4="Atenciones médicas",GETPIVOTDATA("Egresos",'TD_Producción (2)'!$A$72,"Departamento",K25),IF($E$4="Pensiones",GETPIVOTDATA("muerte por accidente",TD_Pens.mes!$A$136,"Mes",12,"Departamento",Mapa!K25)," "))))," ") -> 4429.859661 | O25: =IFERROR(IF($E$4="Pensiones",GETPIVOTDATA("Pago",TD_Pension.2.ries!$F$144,"Departamento",Mapa!K25),IF($E$4="Atenciones médicas",GETPIVOTDATA("Primeros Auxilios",'TD_Producción (2)'!$A$105,"Departamento",K25)," "))," ") -> 
J26: 20 | K26: Chiquimula | L26: =IFERROR(IF($E$4="Afiliación",GETPIVOTDATA("Afiliados ",TD_Afil!$A$4,"Mes",13,"Departamento ",K26),IF($E$4="Recursos Humanos",GETPIVOTDATA("Trabajadores",TD_RRHH_!$A$4,"Mes",13,"Departamento",K26),IF($E$4="Costos",VLOOKUP(K26,Costos_fijos!C24:R46,12,0),IF($E$4="Atenciones médicas",GETPIVOTDATA("Consulta",'TD_Producción (2)'!$A$7,"Departamento",K26),IF($E$4="Pensiones",GETPIVOTDATA("Pensionados ",TD_Pens.mes!$A$4,"Mes",12,"Departamento ",Mapa!K26)," ")))))," ") -> 15879 | M26: =IFERROR(IF($E$4="Afiliación",GETPIVOTDATA("Salarios ",TD_Afil!$A$4,"Mes",13,"Departamento ",K26),IF($E$4="Recursos Humanos",GETPIVOTDATA("Salarios",TD_RRHH_!B23,"Departamento",K26),IF($E$4="Costos",VLOOKUP(K26,Costos_fijos!C24:R46,14,0),IF($E$4="Pensiones",GETPIVOTDATA("Pago",TD_Pension.2.ries!$A$144,"Departamento",Mapa!K26),IF($E$4="Atenciones médicas",GETPIVOTDATA("Emergencia",'TD_Producción (2)'!$A$40,"Departamento",K26)," ")))))," ") -> 969196273 | N26: =IFERROR(IF($E$4="Afiliación",M26/L26/12,IF($E$4="Costos",VLOOKUP(K26,Costos_fijos!C24:R46,13,0),IF($E$4="Atenciones médicas",GETPIVOTDATA("Egresos",'TD_Producción (2)'!$A$72,"Departamento",K26),IF($E$4="Pensiones",GETPIVOTDATA("muerte por accidente",TD_Pens.mes!$A$136,"Mes",12,"Departamento",Mapa!K26)," "))))," ") -> 5086.362874 | O26: =IFERROR(IF($E$4="Pensiones",GETPIVOTDATA("Pago",TD_Pension.2.ries!$F$144,"Departamento",Mapa!K26),IF($E$4="Atenciones médicas",GETPIVOTDATA("Primeros Auxilios",'TD_Producción (2)'!$A$105,"Departamento",K26)," "))," ") -> 
J27: 21 | K27: Jalapa | L27: =IFERROR(IF($E$4="Afiliación",GETPIVOTDATA("Afiliados ",TD_Afil!$A$4,"Mes",13,"Departamento ",K27),IF($E$4="Recursos Humanos",GETPIVOTDATA("Trabajadores",TD_RRHH_!$A$4,"Mes",13,"Departamento",K27),IF($E$4="Costos",VLOOKUP(K27,Costos_fijos!C25:R47,12,0),IF($E$4="Atenciones médicas",GETPIVOTDATA("Consulta",'TD_Producción (2)'!$A$7,"Departamento",K27),IF($E$4="Pensiones",GETPIVOTDATA("Pensionados ",TD_Pens.mes!$A$4,"Mes",12,"Departamento ",Mapa!K27)," ")))))," ") -> 11323 | M27: =IFERROR(IF($E$4="Afiliación",GETPIVOTDATA("Salarios ",TD_Afil!$A$4,"Mes",13,"Departamento ",K27),IF($E$4="Recursos Humanos",GETPIVOTDATA("Salarios",TD_RRHH_!B24,"Departamento",K27),IF($E$4="Costos",VLOOKUP(K27,Costos_fijos!C25:R47,14,0),IF($E$4="Pensiones",GETPIVOTDATA("Pago",TD_Pension.2.ries!$A$144,"Departamento",Mapa!K27),IF($E$4="Atenciones médicas",GETPIVOTDATA("Emergencia",'TD_Producción (2)'!$A$40,"Departamento",K27)," ")))))," ") -> 660237963 | N27: =IFERROR(IF($E$4="Afiliación",M27/L27/12,IF($E$4="Costos",VLOOKUP(K27,Costos_fijos!C25:R47,13,0),IF($E$4="Atenciones médicas",GETPIVOTDATA("Egresos",'TD_Producción (2)'!$A$72,"Departamento",K27),IF($E$4="Pensiones",GETPIVOTDATA("muerte por accidente",TD_Pens.mes!$A$136,"Mes",12,"Departamento",Mapa!K27)," "))))," ") -> 4859.12128 | O27: =IFERROR(IF($E$4="Pensiones",GETPIVOTDATA("Pago",TD_Pension.2.ries!$F$144,"Departamento",Mapa!K27),IF($E$4="Atenciones médicas",GETPIVOTDATA("Primeros Auxilios",'TD_Producción (2)'!$A$105,"Departamento",K27)," "))," ") -> 
J28: 22 | K28: Jutiapa | L28: =IFERROR(IF($E$4="Afiliación",GETPIVOTDATA("Afiliados ",TD_Afil!$A$4,"Mes",13,"Departamento ",K28),IF($E$4="Recursos Humanos",GETPIVOTDATA("Trabajadores",TD_RRHH_!$A$4,"Mes",13,"Departamento",K28),IF($E$4="Costos",VLOOKUP(K28,Costos_fijos!C26:R48,12,0),IF($E$4="Atenciones médicas",GETPIVOTDATA("Consulta",'TD_Producción (2)'!$A$7,"Departamento",K28),IF($E$4="Pensiones",GETPIVOTDATA("Pensionados ",TD_Pens.mes!$A$4,"Mes",12,"Departamento ",Mapa!K28)," ")))))," ") -> 15877 | M28: =IFERROR(IF($E$4="Afiliación",GETPIVOTDATA("Salarios ",TD_Afil!$A$4,"Mes",13,"Departamento ",K28),IF($E$4="Recursos Humanos",GETPIVOTDATA("Salarios",TD_RRHH_!B25,"Departamento",K28),IF($E$4="Costos",VLOOKUP(K28,Costos_fijos!C26:R48,14,0),IF($E$4="Pensiones",GETPIVOTDATA("Pago",TD_Pension.2.ries!$A$144,"Departamento",Mapa!K28),IF($E$4="Atenciones médicas",GETPIVOTDATA("Emergencia",'TD_Producción (2)'!$A$40,"Departamento",K28)," ")))))," ") -> 989878415 | N28: =IFERROR(IF($E$4="Afiliación",M28/L28/12,IF($E$4="Costos",VLOOKUP(K28,Costos_fijos!C26:R48,13,0),IF($E$4="Atenciones médicas",GETPIVOTDATA("Egresos",'TD_Producción (2)'!$A$72,"Departamento",K28),IF($E$4="Pensiones",GETPIVOTDATA("muerte por accidente",TD_Pens.mes!$A$136,"Mes",12,"Departamento",Mapa!K28)," "))))," ") -> 5195.557594 | O28: =IFERROR(IF($E$4="Pensiones",GETPIVOTDATA("Pago",TD_Pension.2.ries!$F$144,"Departamento",Mapa!K28),IF($E$4="Atenciones médicas",GETPIVOTDATA("Primeros Auxilios",'TD_Producción (2)'!$A$105,"Departamento",K28)," "))," ") -> 
K29: Total | L29: =IF($E$4="Costos",VLOOKUP(K29,Costos_fijos!C5:R28,12,0),SUM(L7:L28)) -> 1388248 | M29: =IF($E$4="Costos",VLOOKUP(K29,Costos_fijos!C5:R28,14,0),SUM(M7:M28)) -> 83797012970 | N29: =IF($E$4="Costos",VLOOKUP(K29,Costos_fijos!C5:R28,13,0),IF($E$4="Afiliación",M29/L29/12,SUM(N7:N28))) -> 5030.141887 | O29: =SUM(O7:O28) -> 0
J31: Nota: Este mapa solo se visualiza en la versión Office 2019 en adelante.
B36: Fuente: IGSS. Subgerencia de Planificación y Desarrollo. Departamento Actuarial y Estadístico, con base en datos proporcionados por los Subsistemas: Estadísticas Económicas y Financieras; Estadísticas de Salud; Estadísticas de Costos y Estadísticas de Prestaciones Pecuniarias.

Sheet Partic.
D4: Indicador | E4: Afiliación
B5: IGSS: Porcentaje de participación de los Servicios brindados por el IGSS, desagregado por Departamento de La República, año 2021.
B6: Id. Depto. | C6: Departamento | D6: =+IF($E$4="Afiliación","Afiliados",IF($E$4="Recursos Humanos","Trabajadores",IF($E$4="Pensiones","Pensionados",IF($E$4="Costos","Costo Total ",IF($E$4="Atenciones médicas","Atenciones"," "))))) -> Afiliados | E6: Participación
B7: 1 | C7: Guatemala | D7: =IFERROR(IF($E$4="Afiliación",GETPIVOTDATA("Afiliados ",TD_Afil!$A$4,"Mes",13,"Departamento ",C7),IF($E$4="Recursos Humanos",GETPIVOTDATA("Trabajadores",TD_RRHH_!$A$4,"Mes",13,"Departamento",C7),IF($E$4="Costos",VLOOKUP(C7,Costos_fijos!C5:R27,11,0),IF($E$4="Atenciones médicas",GETPIVOTDATA("Consultas",TD_Producción!$A$4,"Departamento ",C7),IF($E$4="Pensiones",GETPIVOTDATA("Pensionados ",TD_Pens.mes!$A$4,"Mes",12,"Departamento ",Partic.!C7)," ")))))," ") -> 773646 | E7: =+D7/$D$29 -> 0.5572822723
B8: 2 | C8: El Progreso | D8: =IFERROR(IF($E$4="Afiliación",GETPIVOTDATA("Afiliados ",TD_Afil!$A$4,"Mes",13,"Departamento ",C8),IF($E$4="Recursos Humanos",GETPIVOTDATA("Trabajadores",TD_RRHH_!$A$4,"Mes",13,"Departamento",C8),IF($E$4="Costos",VLOOKUP(C8,Costos_fijos!C6:R28,11,0),IF($E$4="Atenciones médicas",GETPIVOTDATA("Consultas",TD_Producción!$A$4,"Departamento ",C8),IF($E$4="Pensiones",GETPIVOTDATA("Pensionados ",TD_Pens.mes!$A$4,"Mes",12,"Departamento ",Partic.!C8)," ")))))," ") -> 10019 | E8: =+D8/$D$29 -> 0.007217010217
B9: 3 | C9: Sacatepéquez | D9: =IFERROR(IF($E$4="Afiliación",GETPIVOTDATA("Afiliados ",TD_Afil!$A$4,"Mes",13,"Departamento ",C9),IF($E$4="Recursos Humanos",GETPIVOTDATA("Trabajadores",TD_RRHH_!$A$4,"Mes",13,"Departamento",C9),IF($E$4="Costos",VLOOKUP(C9,Costos_fijos!C7:R29,11,0),IF($E$4="Atenciones médicas",GETPIVOTDATA("Consultas",TD_Producción!$A$4,"Departamento ",C9),IF($E$4="Pensiones",GETPIVOTDATA("Pensionados ",TD_Pens.mes!$A$4,"Mes",12,"Departamento ",Partic.!C9)," ")))))," ") -> 33132 | E9: 0.02386605275 | W9: Afiliación
B10: 4 | C10: Chimaltenango | D10: =IFERROR(IF($E$4="Afiliación",GETPIVOTDATA("Afiliados ",TD_Afil!$A$4,"Mes",13,"Departamento ",C10),IF($E$4="Recursos Humanos",GETPIVOTDATA("Trabajadores",TD_RRHH_!$A$4,"Mes",13,"Departamento",C10),IF($E$4="Costos",VLOOKUP(C10,Costos_fijos!C8:R30,11,0),IF($E$4="Atenciones médicas",GETPIVOTDATA("Consultas",TD_Producción!$A$4,"Departamento ",C10),IF($E$4="Pensiones",GETPIVOTDATA("Pensionados ",TD_Pens.mes!$A$4,"Mes",12,"Departamento ",Partic.!C10)," ")))))," ") -> 25759 | E10: 0.01855504204 | W10: Recursos Humanos
B11: 5 | C11: Escuintla | D11: =IFERROR(IF($E$4="Afiliación",GETPIVOTDATA("Afiliados ",TD_Afil!$A$4,"Mes",13,"Departamento ",C11),IF($E$4="Recursos Humanos",GETPIVOTDATA("Trabajadores",TD_RRHH_!$A$4,"Mes",13,"Departamento",C11),IF($E$4="Costos",VLOOKUP(C11,Costos_fijos!C9:R31,11,0),IF($E$4="Atenciones médicas",GETPIVOTDATA("Consultas",TD_Producción!$A$4,"Departamento ",C11),IF($E$4="Pensiones",GETPIVOTDATA("Pensionados ",TD_Pens.mes!$A$4,"Mes",12,"Departamento ",Partic.!C11)," ")))))," ") -> 131537 | E11: 0.09475036161 | W11: Pensiones
B12: 6 | C12: Santa Rosa | D12: =IFERROR(IF($E$4="Afiliación",GETPIVOTDATA("Afiliados ",TD_Afil!$A$4,"Mes",13,"Departamento ",C12),IF($E$4="Recursos Humanos",GETPIVOTDATA("Trabajadores",TD_RRHH_!$A$4,"Mes",13,"Departamento",C12),IF($E$4="Costos",VLOOKUP(C12,Costos_fijos!C10:R32,11,0),IF($E$4="Atenciones médicas",GETPIVOTDATA("Consultas",TD_Producción!$A$4,"Departamento ",C12),IF($E$4="Pensiones",GETPIVOTDATA("Pensionados ",TD_Pens.mes!$A$4,"Mes",12,"Departamento ",Partic.!C12)," ")))))," ") -> 16891 | E12: 0.0121671344 | W12: Costos
B13: 7 | C13: Sololá | D13: =IFERROR(IF($E$4="Afiliación",GETPIVOTDATA("Afiliados ",TD_Afil!$A$4,"Mes",13,"Departamento ",C13),IF($E$4="Recursos Humanos",GETPIVOTDATA("Trabajadores",TD_RRHH_!$A$4,"Mes",13,"Departamento",C13),IF($E$4="Costos",VLOOKUP(C13,Costos_fijos!C11:R33,11,0),IF($E$4="Atenciones médicas",GETPIVOTDATA("Consultas",TD_Producción!$A$4,"Departamento ",C13),IF($E$4="Pensiones",GETPIVOTDATA("Pensionados ",TD_Pens.mes!$A$4,"Mes",12,"Departamento ",Partic.!C13)," ")))))," ") -> 12324 | E13: 0.008877376377 | W13: Atenciones médicas
B14: 8 | C14: Totonicapán | D14: =IFERROR(IF($E$4="Afiliación",GETPIVOTDATA("Afiliados ",TD_Afil!$A$4,"Mes",13,"Departamento ",C14),IF($E$4="Recursos Humanos",GETPIVOTDATA("Trabajadores",TD_RRHH_!$A$4,"Mes",13,"Departamento",C14),IF($E$4="Costos",VLOOKUP(C14,Costos_fijos!C12:R34,11,0),IF($E$4="Atenciones médicas",GETPIVOTDATA("Consultas",TD_Producción!$A$4,"Departamento ",C14),IF($E$4="Pensiones",GETPIVOTDATA("Pensionados ",TD_Pens.mes!$A$4,"Mes",12,"Departamento ",Partic.!C14)," ")))))," ") -> 8005 | E14: 0.005766260783
B15: 9 | C15: Quetzaltenango | D15: =IFERROR(IF($E$4="Afiliación",GETPIVOTDATA("Afiliados ",TD_Afil!$A$4,"Mes",13,"Departamento ",C15),IF($E$4="Recursos Humanos",GETPIVOTDATA("Trabajadores",TD_RRHH_!$A$4,"Mes",13,"Departamento",C15),IF($E$4="Costos",VLOOKUP(C15,Costos_fijos!C13:R35,11,0),IF($E$4="Atenciones médicas",GETPIVOTDATA("Consultas",TD_Producción!$A$4,"Departamento ",C15),IF($E$4="Pensiones",GETPIVOTDATA("Pensionados ",TD_Pens.mes!$A$4,"Mes",12,"Departamento ",Partic.!C15)," ")))))," ") -> 55543 | E15: 0.04000942195
B16: 10 | C16: Suchitepéquez | D16: =IFERROR(IF($E$4="Afiliación",GETPIVOTDATA("Afiliados ",TD_Afil!$A$4,"Mes",13,"Departamento ",C16),IF($E$4="Recursos Humanos",GETPIVOTDATA("Trabajadores",TD_RRHH_!$A$4,"Mes",13,"Departamento",C16),IF($E$4="Costos",VLOOKUP(C16,Costos_fijos!C14:R36,11,0),IF($E$4="Atenciones médicas",GETPIVOTDATA("Consultas",TD_Producción!$A$4,"Departamento ",C16),IF($E$4="Pensiones",GETPIVOTDATA("Pensionados ",TD_Pens.mes!$A$4,"Mes",12,"Departamento ",Partic.!C16)," ")))))," ") -> 31019 | E16: 0.02234399041
B17: 11 | C17: Retalhuleu | D17: =IFERROR(IF($E$4="Afiliación",GETPIVOTDATA("Afiliados ",TD_Afil!$A$4,"Mes",13,"Departamento ",C17),IF($E$4="Recursos Humanos",GETPIVOTDATA("Trabajadores",TD_RRHH_!$A$4,"Mes",13,"Departamento",C17),IF($E$4="Costos",VLOOKUP(C17,Costos_fijos!C15:R37,11,0),IF($E$4="Atenciones médicas",GETPIVOTDATA("Consultas",TD_Producción!$A$4,"Departamento ",C17),IF($E$4="Pensiones",GETPIVOTDATA("Pensionados ",TD_Pens.mes!$A$4,"Mes",12,"Departamento ",Partic.!C17)," ")))))," ") -> 28471 | E17: 0.02050858348
B18: 12 | C18: San Marcos | D18: =IFERROR(IF($E$4="Afiliación",GETPIVOTDATA("Afiliados ",TD_Afil!$A$4,"Mes",13,"Departamento ",C18),IF($E$4="Recursos Humanos",GETPIVOTDATA("Trabajadores",TD_RRHH_!$A$4,"Mes",13,"Departamento",C18),IF($E$4="Costos",VLOOKUP(C18,Costos_fijos!C16:R38,11,0),IF($E$4="Atenciones médicas",GETPIVOTDATA("Consultas",TD_Producción!$A$4,"Departamento ",C18),IF($E$4="Pensiones",GETPIVOTDATA("Pensionados ",TD_Pens.mes!$A$4,"Mes",12,"Departamento ",Partic.!C18)," ")))))," ") -> 35417 | E18: 0.02551201226
B19: 13 | C19: Huehuetenango | D19: =IFERROR(IF($E$4="Afiliación",GETPIVOTDATA("Afiliados ",TD_Afil!$A$4,"Mes",13,"Departamento ",C19),IF($E$4="Recursos Humanos",GETPIVOTDATA("Trabajadores",TD_RRHH_!$A$4,"Mes",13,"Departamento",C19),IF($E$4="Costos",VLOOKUP(C19,Costos_fijos!C17:R39,11,0),IF($E$4="Atenciones médicas",GETPIVOTDATA("Consultas",TD_Producción!$A$4,"Departamento ",C19),IF($E$4="Pensiones",GETPIVOTDATA("Pensionados ",TD_Pens.mes!$A$4,"Mes",12,"Departamento ",Partic.!C19)," ")))))," ") -> 26326 | E19: 0.0189634705
B20: 14 | C20: Quiché | D20: =IFERROR(IF($E$4="Afiliación",GETPIVOTDATA("Afiliados ",TD_Afil!$A$4,"Mes",13,"Departamento ",C20),IF($E$4="Recursos Humanos",GETPIVOTDATA("Trabajadores",TD_RRHH_!$A$4,"Mes",13,"Departamento",C20),IF($E$4="Costos",VLOOKUP(C20,Costos_fijos!C18:R40,11,0),IF($E$4="Atenciones médicas",GETPIVOTDATA("Consultas",TD_Producción!$A$4,"Departamento ",C20),IF($E$4="Pensiones",GETPIVOTDATA("Pensionados ",TD_Pens.mes!$A$4,"Mes",12,"Departamento ",Partic.!C20)," ")))))," ") -> 19742 | E20: 0.01422080205
B21: 15 | C21: Baja Verapaz | D21: =IFERROR(IF($E$4="Afiliación",GETPIVOTDATA("Afiliados ",TD_Afil!$A$4,"Mes",13,"Departamento ",C21),IF($E$4="Recursos Humanos",GETPIVOTDATA("Trabajadores",TD_RRHH_!$A$4,"Mes",13,"Departamento",C21),IF($E$4="Costos",VLOOKUP(C21,Costos_fijos!C19:R41,11,0),IF($E$4="Atenciones médicas",GETPIVOTDATA("Consultas",TD_Producción!$A$4,"Departamento ",C21),IF($E$4="Pensiones",GETPIVOTDATA("Pensionados ",TD_Pens.mes!$A$4,"Mes",12,"Departamento ",Partic.!C21)," ")))))," ") -> 9070 | E21: 0.006533414779
B22: 16 | C22: Alta Verapaz | D22: =IFERROR(IF($E$4="Afiliación",GETPIVOTDATA("Afiliados ",TD_Afil!$A$4,"Mes",13,"Departamento ",C22),IF($E$4="Recursos Humanos",GETPIVOTDATA("Trabajadores",TD_RRHH_!$A$4,"Mes",13,"Departamento",C22),IF($E$4="Costos",VLOOKUP(C22,Costos_fijos!C20:R42,11,0),IF($E$4="Atenciones médicas",GETPIVOTDATA("Consultas",TD_Producción!$A$4,"Departamento ",C22),IF($E$4="Pensiones",GETPIVOTDATA("Pensionados ",TD_Pens.mes!$A$4,"Mes",12,"Departamento ",Partic.!C22)," ")))))," ") -> 35358 | E22: 0.02546951265
B23: 17 | C23: Petén | D23: =IFERROR(IF($E$4="Afiliación",GETPIVOTDATA("Afiliados ",TD_Afil!$A$4,"Mes",13,"Departamento ",C23),IF($E$4="Recursos Humanos",GETPIVOTDATA("Trabajadores",TD_RRHH_!$A$4,"Mes",13,"Departamento",C23),IF($E$4="Costos",VLOOKUP(C23,Costos_fijos!C21:R43,11,0),IF($E$4="Atenciones médicas",GETPIVOTDATA("Consultas",TD_Producción!$A$4,"Departamento ",C23),IF($E$4="Pensiones",GETPIVOTDATA("Pensionados ",TD_Pens.mes!$A$4,"Mes",12,"Departamento ",Partic.!C23)," ")))))," ") -> 30418 | E23: 0.02191107064
B24: 18 | C24: Izabal | D24: =IFERROR(IF($E$4="Afiliación",GETPIVOTDATA("Afiliados ",TD_Afil!$A$4,"Mes",13,"Departamento ",C24),IF($E$4="Recursos Humanos",GETPIVOTDATA("Trabajadores",TD_RRHH_!$A$4,"Mes",13,"Departamento",C24),IF($E$4="Costos",VLOOKUP(C24,Costos_fijos!C22:R44,11,0),IF($E$4="Atenciones médicas",GETPIVOTDATA("Consultas",TD_Producción!$A$4,"Departamento ",C24),IF($E$4="Pensiones",GETPIVOTDATA("Pensionados ",TD_Pens.mes!$A$4,"Mes",12,"Departamento ",Partic.!C24)," ")))))," ") -> 39354 | E24: 0.02834796088
B25: 19 | C25: Zacapa | D25: =IFERROR(IF($E$4="Afiliación",GETPIVOTDATA("Afiliados ",TD_Afil!$A$4,"Mes",13,"Departamento ",C25),IF($E$4="Recursos Humanos",GETPIVOTDATA("Trabajadores",TD_RRHH_!$A$4,"Mes",13,"Departamento",C25),IF($E$4="Costos",VLOOKUP(C25,Costos_fijos!C23:R45,11,0),IF($E$4="Atenciones médicas",GETPIVOTDATA("Consultas",TD_Producción!$A$4,"Departamento ",C25),IF($E$4="Pensiones",GETPIVOTDATA("Pensionados ",TD_Pens.mes!$A$4,"Mes",12,"Departamento ",Partic.!C25)," ")))))," ") -> 23138 | E25: 0.01666705084
B26: 20 | C26: Chiquimula | D26: =IFERROR(IF($E$4="Afiliación",GETPIVOTDATA("Afiliados ",TD_Afil!$A$4,"Mes",13,"Departamento ",C26),IF($E$4="Recursos Humanos",GETPIVOTDATA("Trabajadores",TD_RRHH_!$A$4,"Mes",13,"Departamento",C26),IF($E$4="Costos",VLOOKUP(C26,Costos_fijos!C24:R46,11,0),IF($E$4="Atenciones médicas",GETPIVOTDATA("Consultas",TD_Producción!$A$4,"Departamento ",C26),IF($E$4="Pensiones",GETPIVOTDATA("Pensionados ",TD_Pens.mes!$A$4,"Mes",12,"Departamento ",Partic.!C26)," ")))))," ") -> 15879 | E26: 0.01143815802
B27: 21 | C27: Jalapa | D27: =IFERROR(IF($E$4="Afiliación",GETPIVOTDATA("Afiliados ",TD_Afil!$A$4,"Mes",13,"Departamento ",C27),IF($E$4="Recursos Humanos",GETPIVOTDATA("Trabajadores",TD_RRHH_!$A$4,"Mes",13,"Departamento",C27),IF($E$4="Costos",VLOOKUP(C27,Costos_fijos!C25:R47,11,0),IF($E$4="Atenciones médicas",GETPIVOTDATA("Consultas",TD_Producción!$A$4,"Departamento ",C27),IF($E$4="Pensiones",GETPIVOTDATA("Pensionados ",TD_Pens.mes!$A$4,"Mes",12,"Departamento ",Partic.!C27)," ")))))," ") -> 11323 | E27: 0.008156323654
B28: 22 | C28: Jutiapa | D28: =IFERROR(IF($E$4="Afiliación",GETPIVOTDATA("Afiliados ",TD_Afil!$A$4,"Mes",13,"Departamento ",C28),IF($E$4="Recursos Humanos",GETPIVOTDATA("Trabajadores",TD_RRHH_!$A$4,"Mes",13,"Departamento",C28),IF($E$4="Costos",VLOOKUP(C28,Costos_fijos!C26:R48,11,0),IF($E$4="Atenciones médicas",GETPIVOTDATA("Consultas",TD_Producción!$A$4,"Departamento ",C28),IF($E$4="Pensiones",GETPIVOTDATA("Pensionados ",TD_Pens.mes!$A$4,"Mes",12,"Departamento ",Partic.!C28)," ")))))," ") -> 15877 | E28: 0.01143671736
C29: Total | D29: =SUM(D7:D28) -> 1388248 | E29: =SUM(E7:E28) -> 1
B30: Fuente: IGSS (2022). Subgerencia de Planificación y Desarrollo, Departamento Actuarial y Estadístico, Área Estadística, con información del año 2021.
B31: Nota: Este mapa solo se visualiza en la versión Office 2019 en adelante.

Sheet Estadísticas
C4: Mes | D4: Anual | E4: =Num_mes -> 13 | F4: =Num_mes -> 13
B6: Id | C6: Departamento | D6: AFILIACIÓN | G6: PRODUCCIÓN | K6: PENSIONES | S6: COSTOS | W6: RECURSO HUMANO
D7: Afiliados | E7: Salarios Q. | F7: Salario Medio Q. | G7: Consulta Externa | H7: Emergencia | I7: Egresos | J7: Primeros Auxilios | K7: Invalidez | L7: Pago Q. | M7: Vejez | N7: Pago Q. | O7: Sobrevi- vencia | P7: Pago Q. | Q7: Muerte por Accidente | R7: Pago Q. | S7: Consulta Externa Q. | T7: Egresos Q. | U7: Emergencia Q. | V7: Primeros Auxilios Q. | W7: Trabaja-dores | X7: Salarios Q.
B8: 1 | C8: Guatemala | D8: =+GETPIVOTDATA("Afiliados ",TD_Afil!$A$4,"Mes",$E$4,"Departamento ",C8) -> 773646 | E8: =+GETPIVOTDATA("Salarios ",TD_Afil!$A$4,"Mes",$E$4,"Departamento ",C8) -> 50387189766 | F8: =+IF($E$4="13",E8/D8/12,E8/D8) -> 5427.459692 | G8: =IF($D$4="Anual",GETPIVOTDATA("Consulta",'TD_Producción (2)'!$A$7,"Departamento",C8),GETPIVOTDATA("Consulta",'TD_Producción (2)'!$A$7,"Mes",$E$4,"Departamento",C8)) -> 2259973 | H8: =IF($D$4="Anual",GETPIVOTDATA("Emergencia",'TD_Producción (2)'!$A$40,"Departamento",C8),GETPIVOTDATA("Emergencia",'TD_Producción (2)'!$A$40,"Mes",$E$4,"Departamento",C8)) -> 503564 | I8: =IF($D$4="Anual",GETPIVOTDATA("Egresos",'TD_Producción (2)'!$A$72,"Departamento",C8),GETPIVOTDATA("Egresos",'TD_Producción (2)'!$A$72,"Mes",$E$4,"Departamento",C8)) -> 57728 | J8: =IF($D$4="Anual",GETPIVOTDATA("Primeros Auxilios",'TD_Producción (2)'!$A$105,"Departamento",C8),GETPIVOTDATA("Primeros Auxilios",'TD_Producción (2)'!$A$105,"Mes",$E$4,"Departamento",C8)) -> 4507 | K8: =IF($D$4="Anual",GETPIVOTDATA("Pensiones",TD_Pens.mes!$A$40,"Mes",12,"Departamento",C8),GETPIVOTDATA("Pensiones",TD_Pens.mes!$A$40,"Mes",$E$4,"departamento",C8)) -> 61537 | L8: =IF($D$4="Anual",GETPIVOTDATA("Pago",TD_Pens.mes!$A$40,"Departamento",C8),GETPIVOTDATA("Pago",TD_Pens.mes!$A$40,"Mes",$E$4,"departamento",C8)) -> 94394691.98 | M8: =IF($D$4="Anual",GETPIVOTDATA("Pensiones",TD_Pens.mes!$A$72,"Mes",12,"Departamento",C8),GETPIVOTDATA("Pensiones",TD_Pens.mes!$A$72,"Mes",$E$4,"Departamento",C8)) -> 737027 | N8: =IF($D$4="Anual",GETPIVOTDATA("Pago",TD_Pens.mes!$A$72,"Departamento",C8),GETPIVOTDATA("Pago",TD_Pens.mes!$A$72,"Mes",$E$4,"Departamento",C8)) -> 1886493991 | O8: =IF($D$4="Anual",GETPIVOTDATA("Pensiones",TD_Pens.mes!$A$104,"Mes",12,"Departamento",C8),GETPIVOTDATA("Pensiones",TD_Pens.mes!$A$104,"Mes",$E$4,"Departamento",C8)) -> 372155 | P8: =IF($D$4="Anual",GETPIVOTDATA("Pago",TD_Pens.mes!$A$104,"Departamento",C8),GETPIVOTDATA("Pago",TD_Pens.mes!$A$104,"Mes",$E$4,"Departamento",C8)) -> 310466932.9 | Q8: =IF($D$4="Anual",GETPIVOTDATA("Pensiones",TD_Pens.mes!$A$136,"Mes",12,"Departamento",C8),GETPIVOTDATA("Pensiones",TD_Pens.mes!$A$136,"Mes",$E$4,"Departamento",C8)) -> 14978 | R8: =IF($D$4="Anual",GETPIVOTDATA("Pago",TD_Pens.mes!$A$136,"Departamento",C8),GETPIVOTDATA("Pago",TD_Pens.mes!$A$136,"Mes",$E$4,"Departamento",C8)) -> 1597696.471 | S8: =IF($D$4="Anual",GETPIVOTDATA("Consulta",TD_Costos!A37,"Departamento",C8),GETPIVOTDATA("Consulta",TD_Costos!A37,"Mes",$E$4,"Departamento",C8)) -> 2344450614 | T8: =IF($D$4="Anual",GETPIVOTDATA("Egresos",TD_Costos!A69,"Departamento",C8),GETPIVOTDATA("Egresos",TD_Costos!A69,"Mes",$E$4,"Departamento",C8)) -> 695253268.9 | U8: =IF($D$4="Anual",GETPIVOTDATA("Emergencia",TD_Costos!A101,"Departamento",C8),GETPIVOTDATA("Emergencia",TD_Costos!A101,"Mes",$E$4,"Departamento",C8)) -> 182274834.3 | V8: =IF($D$4="Anual",GETPIVOTDATA("Emergencia",TD_Costos!$A$134,"Departamento",C8),GETPIVOTDATA("Emergencia",TD_Costos!$A$134,"Mes",$E$4,"Departamento",C8)) -> 2075627.48 | W8: =+GETPIVOTDATA("Trabajadores",TD_RRHH_!A4,"Mes",$E$4,"Departamento",C8) -> 13636 | X8: =IF($D$4="Anual",GETPIVOTDATA("Salarios",TD_RRHH_!B4,"Departamento",C8),GETPIVOTDATA("Salarios",TD_RRHH_!B4,"Mes",$E$4,"Departamento",C8)) -> 1029038958
B9: 2 | C9: El Progreso | D9: =+GETPIVOTDATA("Afiliados ",TD_Afil!$A$4,"Mes",$E$4,"Departamento ",C9) -> 10019 | E9: =+GETPIVOTDATA("Salarios ",TD_Afil!$A$4,"Mes",$E$4,"Departamento ",C9) -> 563373079 | F9: =+IF($E$4="13",E9/D9/12,E9/D9) -> 4685.872501 | G9: =IF($D$4="Anual",GETPIVOTDATA("Consulta",'TD_Producción (2)'!$A$7,"Departamento",C9),GETPIVOTDATA("Consulta",'TD_Producción (2)'!$A$7,"Mes",$E$4,"Departamento",C9)) -> 33724 | H9: =IF($D$4="Anual",GETPIVOTDATA("Emergencia",'TD_Producción (2)'!$A$40,"Departamento",C9),GETPIVOTDATA("Emergencia",'TD_Producción (2)'!$A$40,"Mes",$E$4,"Departamento",C9)) -> 14270 | I9: =IF($D$4="Anual",GETPIVOTDATA("Egresos",'TD_Producción (2)'!$A$72,"Departamento",C9),GETPIVOTDATA("Egresos",'TD_Producción (2)'!$A$72,"Mes",$E$4,"Departamento",C9)) -> 858 | J9: =IF($D$4="Anual",GETPIVOTDATA("Primeros Auxilios",'TD_Producción (2)'!$A$105,"Departamento",C9),GETPIVOTDATA("Primeros Auxilios",'TD_Producción (2)'!$A$105,"Mes",$E$4,"Departamento",C9)) -> 7 | K9: =IF($D$4="Anual",GETPIVOTDATA("Pensiones",TD_Pens.mes!$A$40,"Mes",12,"Departamento",C9),GETPIVOTDATA("Pensiones",TD_Pens.mes!$A$40,"Mes",$E$4,"departamento",C9)) -> 1684 | L9: =IF($D$4="Anual",GETPIVOTDATA("Pago",TD_Pens.mes!$A$40,"Departamento",C9),GETPIVOTDATA("Pago",TD_Pens.mes!$A$40,"Mes",$E$4,"departamento",C9)) -> 2554190.76 | M9: =IF($D$4="Anual",GETPIVOTDATA("Pensiones",TD_Pens.mes!$A$72,"Mes",12,"Departamento",C9),GETPIVOTDATA("Pensiones",TD_Pens.mes!$A$72,"Mes",$E$4,"Departamento",C9)) -> 12900 | N9: =IF($D$4="Anual",GETPIVOTDATA("Pago",TD_Pens.mes!$A$72,"Departamento",C9),GETPIVOTDATA("Pago",TD_Pens.mes!$A$72,"Mes",$E$4,"Departamento",C9)) -> 28345338.23 | O9: =IF($D$4="Anual",GETPIVOTDATA("Pensiones",TD_Pens.mes!$A$104,"Mes",12,"Departamento",C9),GETPIVOTDATA("Pensiones",TD_Pens.mes!$A$104,"Mes",$E$4,"Departamento",C9)) -> 14290 | P9: =IF($D$4="Anual",GETPIVOTDATA("Pago",TD_Pens.mes!$A$104,"Departamento",C9),GETPIVOTDATA("Pago",TD_Pens.mes!$A$104,"Mes",$E$4,"Departamento",C9)) -> 9633901.82 | Q9: =IF($D$4="Anual",GETPIVOTDATA("Pensiones",TD_Pens.mes!$A$136,"Mes",12,"Departamento",C9),GETPIVOTDATA("Pensiones",TD_Pens.mes!$A$136,"Mes",$E$4,"Departamento",C9)) -> 977 | R9: =IF($D$4="Anual",GETPIVOTDATA("Pago",TD_Pens.mes!$A$136,"Departamento",C9),GETPIVOTDATA("Pago",TD_Pens.mes!$A$136,"Mes",$E$4,"Departamento",C9)) -> 103081.9121 | S9: =IF($D$4="Anual",GETPIVOTDATA("Consulta",TD_Costos!A38,"Departamento",C9),GETPIVOTDATA("Consulta",TD_Costos!A38,"Mes",$E$4,"Departamento",C9)) -> 13809875.93 | T9: =IF($D$4="Anual",GETPIVOTDATA("Egresos",TD_Costos!A70,"Departamento",C9),GETPIVOTDATA("Egresos",TD_Costos!A70,"Mes",$E$4,"Departamento",C9)) -> 6464173.26 | U9: =IF($D$4="Anual",GETPIVOTDATA("Emergencia",TD_Costos!A102,"Departamento",C9),GETPIVOTDATA("Emergencia",TD_Costos!A102,"Mes",$E$4,"Departamento",C9)) -> 3382198.42 | V9: =IF($D$4="Anual",GETPIVOTDATA("Emergencia",TD_Costos!$A$134,"Departamento",C9),GETPIVOTDATA("Emergencia",TD_Costos!$A$134,"Mes",$E$4,"Departamento",C9)) -> 48273.13 | W9: =+GETPIVOTDATA("Trabajadores",TD_RRHH_!A5,"Mes",$E$4,"Departamento",C9) -> 84 | X9: =IF($D$4="Anual",GETPIVOTDATA("Salarios",TD_RRHH_!B5,"Departamento",C9),GETPIVOTDATA("Salarios",TD_RRHH_!B5,"Mes",$E$4,"Departamento",C9)) -> 5420644.94
B10: 3 | C10: Sacatepéquez | D10: =+GETPIVOTDATA("Afiliados ",TD_Afil!$A$4,"Mes",$E$4,"Departamento ",C10) -> 33132 | E10: =+GETPIVOTDATA("Salarios ",TD_Afil!$A$4,"Mes",$E$4,"Departamento ",C10) -> 1571971855 | F10: 3953.810654 | G10: =IF($D$4="Anual",GETPIVOTDATA("Consulta",'TD_Producción (2)'!$A$7,"Departamento",C10),GETPIVOTDATA("Consulta",'TD_Producción (2)'!$A$7,"Mes",$E$4,"Departamento",C10)) -> 83330 | H10: =IF($D$4="Anual",GETPIVOTDATA("Emergencia",'TD_Producción (2)'!$A$40,"Departamento",C10),GETPIVOTDATA("Emergencia",'TD_Producción (2)'!$A$40,"Mes",$E$4,"Departamento",C10)) -> 41335 | I10: =IF($D$4="Anual",GETPIVOTDATA("Egresos",'TD_Producción (2)'!$A$72,"Departamento",C10),GETPIVOTDATA("Egresos",'TD_Producción (2)'!$A$72,"Mes",$E$4,"Departamento",C10)) -> 13 | J10: =IF($D$4="Anual",GETPIVOTDATA("Primeros Auxilios",'TD_Producción (2)'!$A$105,"Departamento",C10),GETPIVOTDATA("Primeros Auxilios",'TD_Producción (2)'!$A$105,"Mes",$E$4,"Departamento",C10)) -> 0 | K10: =IF($D$4="Anual",GETPIVOTDATA("Pensiones",TD_Pens.mes!$A$40,"Mes",12,"Departamento",C10),GETPIVOTDATA("Pensiones",TD_Pens.mes!$A$40,"Mes",$E$4,"departamento",C10)) -> 5303 | L10: =IF($D$4="Anual",GETPIVOTDATA("Pago",TD_Pens.mes!$A$40,"Departamento",C10),GETPIVOTDATA("Pago",TD_Pens.mes!$A$40,"Mes",$E$4,"departamento",C10)) -> 7767932.16 | M10: =IF($D$4="Anual",GETPIVOTDATA("Pensiones",TD_Pens.mes!$A$72,"Mes",12,"Departamento",C10),GETPIVOTDATA("Pensiones",TD_Pens.mes!$A$72,"Mes",$E$4,"Departamento",C10)) -> 33469 | N10: =IF($D$4="Anual",GETPIVOTDATA("Pago",TD_Pens.mes!$A$72,"Departamento",C10),GETPIVOTDATA("Pago",TD_Pens.mes!$A$72,"Mes",$E$4,"Departamento",C10)) -> 75813889.91 | O10: =IF($D$4="Anual",GETPIVOTDATA("Pensiones",TD_Pens.mes!$A$104,"Mes",12,"Departamento",C10),GETPIVOTDATA("Pensiones",TD_Pens.mes!$A$104,"Mes",$E$4,"Departamento",C10)) -> 22600 | P10: =IF($D$4="Anual",GETPIVOTDATA("Pago",TD_Pens.mes!$A$104,"Departamento",C10),GETPIVOTDATA("Pago",TD_Pens.mes!$A$104,"Mes",$E$4,"Departamento",C10)) -> 17578769.71 | Q10: =IF($D$4="Anual",GETPIVOTDATA("Pensiones",TD_Pens.mes!$A$136,"Mes",12,"Departamento",C10),GETPIVOTDATA("Pensiones",TD_Pens.mes!$A$136,"Mes",$E$4,"Departamento",C10)) -> 607 | R10: =IF($D$4="Anual",GETPIVOTDATA("Pago",TD_Pens.mes!$A$136,"Departamento",C10),GETPIVOTDATA("Pago",TD_Pens.mes!$A$136,"Mes",$E$4,"Departamento",C10)) -> 64370.86004 | S10: =IF($D$4="Anual",GETPIVOTDATA("Consulta",TD_Costos!A39,"Departamento",C10),GETPIVOTDATA("Consulta",TD_Costos!A39,"Mes",$E$4,"Departamento",C10)) -> 56065659.18 | T10: =IF($D$4="Anual",GETPIVOTDATA("Egresos",TD_Costos!A71,"Departamento",C10),GETPIVOTDATA("Egresos",TD_Costos!A71,"Mes",$E$4,"Departamento",C10)) -> 141044.35 | U10: =IF($D$4="Anual",GETPIVOTDATA("Emergencia",TD_Costos!A103,"Departamento",C10),GETPIVOTDATA("Emergencia",TD_Costos!A103,"Mes",$E$4,"Departamento",C10)) -> 9904912.84 | V10: =IF($D$4="Anual",GETPIVOTDATA("Emergencia",TD_Costos!$A$134,"Departamento",C10),GETPIVOTDATA("Emergencia",TD_Costos!$A$134,"Mes",$E$4,"Departamento",C10)) -> 0 | W10: =+GETPIVOTDATA("Trabajadores",TD_RRHH_!A6,"Mes",$E$4,"Departamento",C10) -> 227 | X10: =IF($D$4="Anual",GETPIVOTDATA("Salarios",TD_RRHH_!B6,"Departamento",C10),GETPIVOTDATA("Salarios",TD_RRHH_!B6,"Mes",$E$4,"Departamento",C10)) -> 15817893.9
B11: 4 | C11: Chimaltenango | D11: =+GETPIVOTDATA("Afiliados ",TD_Afil!$A$4,"Mes",$E$4,"Departamento ",C11) -> 25759 | E11: =+GETPIVOTDATA("Salarios ",TD_Afil!$A$4,"Mes",$E$4,"Departamento ",C11) -> 1415060183 | F11: 4577.882756 | G11: =IF($D$4="Anual",GETPIVOTDATA("Consulta",'TD_Producción (2)'!$A$7,"Departamento",C11),GETPIVOTDATA("Consulta",'TD_Producción (2)'!$A$7,"Mes",$E$4,"Departamento",C11)) -> 89840 | H11: =IF($D$4="Anual",GETPIVOTDATA("Emergencia",'TD_Producción (2)'!$A$40,"Departamento",C11),GETPIVOTDATA("Emergencia",'TD_Producción (2)'!$A$40,"Mes",$E$4,"Departamento",C11)) -> 26639 | I11: =IF($D$4="Anual",GETPIVOTDATA("Egresos",'TD_Producción (2)'!$A$72,"Departamento",C11),GETPIVOTDATA("Egresos",'TD_Producción (2)'!$A$72,"Mes",$E$4,"Departamento",C11)) -> 1968 | J11: =IF($D$4="Anual",GETPIVOTDATA("Primeros Auxilios",'TD_Producción (2)'!$A$105,"Departamento",C11),GETPIVOTDATA("Primeros Auxilios",'TD_Producción (2)'!$A$105,"Mes",$E$4,"Departamento",C11)) -> 1320 | K11: =IF($D$4="Anual",GETPIVOTDATA("Pensiones",TD_Pens.mes!$A$40,"Mes",12,"Departamento",C11),GETPIVOTDATA("Pensiones",TD_Pens.mes!$A$40,"Mes",$E$4,"departamento",C11)) -> 1945 | L11: =IF($D$4="Anual",GETPIVOTDATA("Pago",TD_Pens.mes!$A$40,"Departamento",C11),GETPIVOTDATA("Pago",TD_Pens.mes!$A$40,"Mes",$E$4,"departamento",C11)) -> 2809269.63 | M11: =IF($D$4="Anual",GETPIVOTDATA("Pensiones",TD_Pens.mes!$A$72,"Mes",12,"Departamento",C11),GETPIVOTDATA("Pensiones",TD_Pens.mes!$A$72,"Mes",$E$4,"Departamento",C11)) -> 20717 | N11: =IF($D$4="Anual",GETPIVOTDATA("Pago",TD_Pens.mes!$A$72,"Departamento",C11),GETPIVOTDATA("Pago",TD_Pens.mes!$A$72,"Mes",$E$4,"Departamento",C11)) -> 37350694.58 | O11: =IF($D$4="Anual",GETPIVOTDATA("Pensiones",TD_Pens.mes!$A$104,"Mes",12,"Departamento",C11),GETPIVOTDATA("Pensiones",TD_Pens.mes!$A$104,"Mes",$E$4,"Departamento",C11)) -> 20318 | P11: =IF($D$4="Anual",GETPIVOTDATA("Pago",TD_Pens.mes!$A$104,"Departamento",C11),GETPIVOTDATA("Pago",TD_Pens.mes!$A$104,"Mes",$E$4,"Departamento",C11)) -> 14326878.12 | Q11: =IF($D$4="Anual",GETPIVOTDATA("Pensiones",TD_Pens.mes!$A$136,"Mes",12,"Departamento",C11),GETPIVOTDATA("Pensiones",TD_Pens.mes!$A$136,"Mes",$E$4,"Departamento",C11)) -> 981 | R11: =IF($D$4="Anual",GETPIVOTDATA("Pago",TD_Pens.mes!$A$136,"Departamento",C11),GETPIVOTDATA("Pago",TD_Pens.mes!$A$136,"Mes",$E$4,"Departamento",C11)) -> 103921.584 | S11: =IF($D$4="Anual",GETPIVOTDATA("Consulta",TD_Costos!A40,"Departamento",C11),GETPIVOTDATA("Consulta",TD_Costos!A40,"Mes",$E$4,"Departamento",C11)) -> 32972299.94 | T11: =IF($D$4="Anual",GETPIVOTDATA("Egresos",TD_Costos!A72,"Departamento",C11),GETPIVOTDATA("Egresos",TD_Costos!A72,"Mes",$E$4,"Departamento",C11)) -> 8577929.52 | U11: =IF($D$4="Anual",GETPIVOTDATA("Emergencia",TD_Costos!A104,"Departamento",C11),GETPIVOTDATA("Emergencia",TD_Costos!A104,"Mes",$E$4,"Departamento",C11)) -> 4444236.59 | V11: =IF($D$4="Anual",GETPIVOTDATA("Emergencia",TD_Costos!$A$134,"Departamento",C11),GETPIVOTDATA("Emergencia",TD_Costos!$A$134,"Mes",$E$4,"Departamento",C11)) -> 981252.6 | W11: =+GETPIVOTDATA("Trabajadores",TD_RRHH_!A7,"Mes",$E$4,"Departamento",C11) -> 226 | X11: =IF($D$4="Anual",GETPIVOTDATA("Salarios",TD_RRHH_!B7,"Departamento",C11),GETPIVOTDATA("Salarios",TD_RRHH_!B7,"Mes",$E$4,"Departamento",C11)) -> 15105943.17
B12: 5 | C12: Escuintla | D12: =+GETPIVOTDATA("Afiliados ",TD_Afil!$A$4,"Mes",$E$4,"Departamento ",C12) -> 131537 | E12: =+GETPIVOTDATA("Salarios ",TD_Afil!$A$4,"Mes",$E$4,"Departamento ",C12) -> 6175795142 | F12: 3912.584255 | G12: =IF($D$4="Anual",GETPIVOTDATA("Consulta",'TD_Producción (2)'!$A$7,"Departamento",C12),GETPIVOTDATA("Consulta",'TD_Producción (2)'!$A$7,"Mes",$E$4,"Departamento",C12)) -> 232155 | H12: =IF($D$4="Anual",GETPIVOTDATA("Emergencia",'TD_Producción (2)'!$A$40,"Departamento",C12),GETPIVOTDATA("Emergencia",'TD_Producción (2)'!$A$40,"Mes",$E$4,"Departamento",C12)) -> 185087 | I12: =IF($D$4="Anual",GETPIVOTDATA("Egresos",'TD_Producción (2)'!$A$72,"Departamento",C12),GETPIVOTDATA("Egresos",'TD_Producción (2)'!$A$72,"Mes",$E$4,"Departamento",C12)) -> 10961 | J12: =IF($D$4="Anual",GETPIVOTDATA("Primeros Auxilios",'TD_Producción (2)'!$A$105,"Departamento",C12),GETPIVOTDATA("Primeros Auxilios",'TD_Producción (2)'!$A$105,"Mes",$E$4,"Departamento",C12)) -> 0 | K12: =IF($D$4="Anual",GETPIVOTDATA("Pensiones",TD_Pens.mes!$A$40,"Mes",12,"Departamento",C12),GETPIVOTDATA("Pensiones",TD_Pens.mes!$A$40,"Mes",$E$4,"departamento",C12)) -> 11108 | L12: =IF($D$4="Anual",GETPIVOTDATA("Pago",TD_Pens.mes!$A$40,"Departamento",C12),GETPIVOTDATA("Pago",TD_Pens.mes!$A$40,"Mes",$E$4,"departamento",C12)) -> 16887823.05 | M12: =IF($D$4="Anual",GETPIVOTDATA("Pensiones",TD_Pens.mes!$A$72,"Mes",12,"Departamento",C12),GETPIVOTDATA("Pensiones",TD_Pens.mes!$A$72,"Mes",$E$4,"Departamento",C12)) -> 108498 | N12: =IF($D$4="Anual",GETPIVOTDATA("Pago",TD_Pens.mes!$A$72,"Departamento",C12),GETPIVOTDATA("Pago",TD_Pens.mes!$A$72,"Mes",$E$4,"Departamento",C12)) -> 214170229.1 | O12: =IF($D$4="Anual",GETPIVOTDATA("Pensiones",TD_Pens.mes!$A$104,"Mes",12,"Departamento",C12),GETPIVOTDATA("Pensiones",TD_Pens.mes!$A$104,"Mes",$E$4,"Departamento",C12)) -> 109654 | P12: =IF($D$4="Anual",GETPIVOTDATA("Pago",TD_Pens.mes!$A$104,"Departamento",C12),GETPIVOTDATA("Pago",TD_Pens.mes!$A$104,"Mes",$E$4,"Departamento",C12)) -> 80950380.3 | Q12: =IF($D$4="Anual",GETPIVOTDATA("Pensiones",TD_Pens.mes!$A$136,"Mes",12,"Departamento",C12),GETPIVOTDATA("Pensiones",TD_Pens.mes!$A$136,"Mes",$E$4,"Departamento",C12)) -> 1724 | R12: =IF($D$4="Anual",GETPIVOTDATA("Pago",TD_Pens.mes!$A$136,"Departamento",C12),GETPIVOTDATA("Pago",TD_Pens.mes!$A$136,"Mes",$E$4,"Departamento",C12)) -> 183500.4301 | S12: =IF($D$4="Anual",GETPIVOTDATA("Consulta",TD_Costos!A41,"Departamento",C12),GETPIVOTDATA("Consulta",TD_Costos!A41,"Mes",$E$4,"Departamento",C12)) -> 87631696.86 | T12: =IF($D$4="Anual",GETPIVOTDATA("Egresos",TD_Costos!A73,"Departamento",C12),GETPIVOTDATA("Egresos",TD_Costos!A73,"Mes",$E$4,"Departamento",C12)) -> 82429985.33 | U12: =IF($D$4="Anual",GETPIVOTDATA("Emergencia",TD_Costos!A105,"Departamento",C12),GETPIVOTDATA("Emergencia",TD_Costos!A105,"Mes",$E$4,"Departamento",C12)) -> 32654854.87 | V12: =IF($D$4="Anual",GETPIVOTDATA("Emergencia",TD_Costos!$A$134,"Departamento",C12),GETPIVOTDATA("Emergencia",TD_Costos!$A$134,"Mes",$E$4,"Departamento",C12)) -> 0 | W12: =+GETPIVOTDATA("Trabajadores",TD_RRHH_!A8,"Mes",$E$4,"Departamento",C12) -> 1442 | X12: =IF($D$4="Anual",GETPIVOTDATA("Salarios",TD_RRHH_!B8,"Departamento",C12),GETPIVOTDATA("Salarios",TD_RRHH_!B8,"Mes",$E$4,"Departamento",C12)) -> 96995113.14
B13: 6 | C13: Santa Rosa | D13: =+GETPIVOTDATA("Afiliados ",TD_Afil!$A$4,"Mes",$E$4,"Departamento ",C13) -> 16891 | E13: =+GETPIVOTDATA("Salarios ",TD_Afil!$A$4,"Mes",$E$4,"Departamento ",C13) -> 928030451 | F13: 4578.525304 | G13: =IF($D$4="Anual",GETPIVOTDATA("Consulta",'TD_Producción (2)'!$A$7,"Departamento",C13),GETPIVOTDATA("Consulta",'TD_Producción (2)'!$A$7,"Mes",$E$4,"Departamento",C13)) -> 38745 | H13: =IF($D$4="Anual",GETPIVOTDATA("Emergencia",'TD_Producción (2)'!$A$40,"Departamento",C13),GETPIVOTDATA("Emergencia",'TD_Producción (2)'!$A$40,"Mes",$E$4,"Departamento",C13)) -> 15728 | I13: =IF($D$4="Anual",GETPIVOTDATA("Egresos",'TD_Producción (2)'!$A$72,"Departamento",C13),GETPIVOTDATA("Egresos",'TD_Producción (2)'!$A$72,"Mes",$E$4,"Departamento",C13)) -> 76 | J13: =IF($D$4="Anual",GETPIVOTDATA("Primeros Auxilios",'TD_Producción (2)'!$A$105,"Departamento",C13),GETPIVOTDATA("Primeros Auxilios",'TD_Producción (2)'!$A$105,"Mes",$E$4,"Departamento",C13)) -> 3631 | K13: =IF($D$4="Anual",GETPIVOTDATA("Pensiones",TD_Pens.mes!$A$40,"Mes",12,"Departamento",C13),GETPIVOTDATA("Pensiones",TD_Pens.mes!$A$40,"Mes",$E$4,"departamento",C13)) -> 3275 | L13: =IF($D$4="Anual",GETPIVOTDATA("Pago",TD_Pens.mes!$A$40,"Departamento",C13),GETPIVOTDATA("Pago",TD_Pens.mes!$A$40,"Mes",$E$4,"departamento",C13)) -> 4397590.3 | M13: =IF($D$4="Anual",GETPIVOTDATA("Pensiones",TD_Pens.mes!$A$72,"Mes",12,"Departamento",C13),GETPIVOTDATA("Pensiones",TD_Pens.mes!$A$72,"Mes",$E$4,"Departamento",C13)) -> 24597 | N13: =IF($D$4="Anual",GETPIVOTDATA("Pago",TD_Pens.mes!$A$72,"Departamento",C13),GETPIVOTDATA("Pago",TD_Pens.mes!$A$72,"Mes",$E$4,"Departamento",C13)) -> 38216084.36 | O13: =IF($D$4="Anual",GETPIVOTDATA("Pensiones",TD_Pens.mes!$A$104,"Mes",12,"Departamento",C13),GETPIVOTDATA("Pensiones",TD_Pens.mes!$A$104,"Mes",$E$4,"Departamento",C13)) -> 26915 | P13: =IF($D$4="Anual",GETPIVOTDATA("Pago",TD_Pens.mes!$A$104,"Departamento",C13),GETPIVOTDATA("Pago",TD_Pens.mes!$A$104,"Mes",$E$4,"Departamento",C13)) -> 17589591.27 | Q13: =IF($D$4="Anual",GETPIVOTDATA("Pensiones",TD_Pens.mes!$A$136,"Mes",12,"Departamento",C13),GETPIVOTDATA("Pensiones",TD_Pens.mes!$A$136,"Mes",$E$4,"Departamento",C13)) -> 898 | R13: =IF($D$4="Anual",GETPIVOTDATA("Pago",TD_Pens.mes!$A$136,"Departamento",C13),GETPIVOTDATA("Pago",TD_Pens.mes!$A$136,"Mes",$E$4,"Departamento",C13)) -> 96514.11323 | S13: =IF($D$4="Anual",GETPIVOTDATA("Consulta",TD_Costos!A42,"Departamento",C13),GETPIVOTDATA("Consulta",TD_Costos!A42,"Mes",$E$4,"Departamento",C13)) -> 14868716.33 | T13: =IF($D$4="Anual",GETPIVOTDATA("Egresos",TD_Costos!A74,"Departamento",C13),GETPIVOTDATA("Egresos",TD_Costos!A74,"Mes",$E$4,"Departamento",C13)) -> 281603.71 | U13: =IF($D$4="Anual",GETPIVOTDATA("Emergencia",TD_Costos!A106,"Departamento",C13),GETPIVOTDATA("Emergencia",TD_Costos!A106,"Mes",$E$4,"Departamento",C13)) -> 2650683.26 | V13: =IF($D$4="Anual",GETPIVOTDATA("Emergencia",TD_Costos!$A$134,"Departamento",C13),GETPIVOTDATA("Emergencia",TD_Costos!$A$134,"Mes",$E$4,"Departamento",C13)) -> 857402.87 | W13: =+GETPIVOTDATA("Trabajadores",TD_RRHH_!A9,"Mes",$E$4,"Departamento",C13) -> 112 | X13: =IF($D$4="Anual",GETPIVOTDATA("Salarios",TD_RRHH_!B9,"Departamento",C13),GETPIVOTDATA("Salarios",TD_RRHH_!B9,"Mes",$E$4,"Departamento",C13)) -> 7390704.36
B14: 7 | C14: Sololá | D14: =+GETPIVOTDATA("Afiliados ",TD_Afil!$A$4,"Mes",$E$4,"Departamento ",C14) -> 12324 | E14: =+GETPIVOTDATA("Salarios ",TD_Afil!$A$4,"Mes",$E$4,"Departamento ",C14) -> 809215582 | F14: 5471.813683 | G14: =IF($D$4="Anual",GETPIVOTDATA("Consulta",'TD_Producción (2)'!$A$7,"Departamento",C14),GETPIVOTDATA("Consulta",'TD_Producción (2)'!$A$7,"Mes",$E$4,"Departamento",C14)) -> 33205 | H14: =IF($D$4="Anual",GETPIVOTDATA("Emergencia",'TD_Producción (2)'!$A$40,"Departamento",C14),GETPIVOTDATA("Emergencia",'TD_Producción (2)'!$A$40,"Mes",$E$4,"Departamento",C14)) -> 5837 | I14: =IF($D$4="Anual",GETPIVOTDATA("Egresos",'TD_Producción (2)'!$A$72,"Departamento",C14),GETPIVOTDATA("Egresos",'TD_Producción (2)'!$A$72,"Mes",$E$4,"Departamento",C14)) -> 837 | J14: =IF($D$4="Anual",GETPIVOTDATA("Primeros Auxilios",'TD_Producción (2)'!$A$105,"Departamento",C14),GETPIVOTDATA("Primeros Auxilios",'TD_Producción (2)'!$A$105,"Mes",$E$4,"Departamento",C14)) -> 1729 | K14: =IF($D$4="Anual",GETPIVOTDATA("Pensiones",TD_Pens.mes!$A$40,"Mes",12,"Departamento",C14),GETPIVOTDATA("Pensiones",TD_Pens.mes!$A$40,"Mes",$E$4,"departamento",C14)) -> 202 | L14: =IF($D$4="Anual",GETPIVOTDATA("Pago",TD_Pens.mes!$A$40,"Departamento",C14),GETPIVOTDATA("Pago",TD_Pens.mes!$A$40,"Mes",$E$4,"departamento",C14)) -> 185014.85 | M14: =IF($D$4="Anual",GETPIVOTDATA("Pensiones",TD_Pens.mes!$A$72,"Mes",12,"Departamento",C14),GETPIVOTDATA("Pensiones",TD_Pens.mes!$A$72,"Mes",$E$4,"Departamento",C14)) -> 6449 | N14: =IF($D$4="Anual",GETPIVOTDATA("Pago",TD_Pens.mes!$A$72,"Departamento",C14),GETPIVOTDATA("Pago",TD_Pens.mes!$A$72,"Mes",$E$4,"Departamento",C14)) -> 9893116.79 | O14: =IF($D$4="Anual",GETPIVOTDATA("Pensiones",TD_Pens.mes!$A$104,"Mes",12,"Departamento",C14),GETPIVOTDATA("Pensiones",TD_Pens.mes!$A$104,"Mes",$E$4,"Departamento",C14)) -> 4613 | P14: =IF($D$4="Anual",GETPIVOTDATA("Pago",TD_Pens.mes!$A$104,"Departamento",C14),GETPIVOTDATA("Pago",TD_Pens.mes!$A$104,"Mes",$E$4,"Departamento",C14)) -> 2764369.53 | Q14: =IF($D$4="Anual",GETPIVOTDATA("Pensiones",TD_Pens.mes!$A$136,"Mes",12,"Departamento",C14),GETPIVOTDATA("Pensiones",TD_Pens.mes!$A$136,"Mes",$E$4,"Departamento",C14)) -> 211 | R14: =IF($D$4="Anual",GETPIVOTDATA("Pago",TD_Pens.mes!$A$136,"Departamento",C14),GETPIVOTDATA("Pago",TD_Pens.mes!$A$136,"Mes",$E$4,"Departamento",C14)) -> 24364.35534 | S14: =IF($D$4="Anual",GETPIVOTDATA("Consulta",TD_Costos!A43,"Departamento",C14),GETPIVOTDATA("Consulta",TD_Costos!A43,"Mes",$E$4,"Departamento",C14)) -> 17972453.88 | T14: =IF($D$4="Anual",GETPIVOTDATA("Egresos",TD_Costos!A75,"Departamento",C14),GETPIVOTDATA("Egresos",TD_Costos!A75,"Mes",$E$4,"Departamento",C14)) -> 6692874.92 | U14: =IF($D$4="Anual",GETPIVOTDATA("Emergencia",TD_Costos!A107,"Departamento",C14),GETPIVOTDATA("Emergencia",TD_Costos!A107,"Mes",$E$4,"Departamento",C14)) -> 3511564.35 | V14: =IF($D$4="Anual",GETPIVOTDATA("Emergencia",TD_Costos!$A$134,"Departamento",C14),GETPIVOTDATA("Emergencia",TD_Costos!$A$134,"Mes",$E$4,"Departamento",C14)) -> 297644.19 | W14: =+GETPIVOTDATA("Trabajadores",TD_RRHH_!A10,"Mes",$E$4,"Departamento",C14) -> 126 | X14: =IF($D$4="Anual",GETPIVOTDATA("Salarios",TD_RRHH_!B10,"Departamento",C14),GETPIVOTDATA("Salarios",TD_RRHH_!B10,"Mes",$E$4,"Departamento",C14)) -> 8430064.1
B15: 8 | C15: Totonicapán | D15: =+GETPIVOTDATA("Afiliados ",TD_Afil!$A$4,"Mes",$E$4,"Departamento ",C15) -> 8005 | E15: =+GETPIVOTDATA("Salarios ",TD_Afil!$A$4,"Mes",$E$4,"Departamento ",C15) -> 583211710 | F15: 6071.3274 | G15: =IF($D$4="Anual",GETPIVOTDATA("Consulta",'TD_Producción (2)'!$A$7,"Departamento",C15),GETPIVOTDATA("Consulta",'TD_Producción (2)'!$A$7,"Mes",$E$4,"Departamento",C15)) -> 10121 | H15: =IF($D$4="Anual",GETPIVOTDATA("Emergencia",'TD_Producción (2)'!$A$40,"Departamento",C15),GETPIVOTDATA("Emergencia",'TD_Producción (2)'!$A$40,"Mes",$E$4,"Departamento",C15)) -> 4212 | I15: =IF($D$4="Anual",GETPIVOTDATA("Egresos",'TD_Producción (2)'!$A$72,"Departamento",C15),GETPIVOTDATA("Egresos",'TD_Producción (2)'!$A$72,"Mes",$E$4,"Departamento",C15)) -> 234 | J15: =IF($D$4="Anual",GETPIVOTDATA("Primeros Auxilios",'TD_Producción (2)'!$A$105,"Departamento",C15),GETPIVOTDATA("Primeros Auxilios",'TD_Producción (2)'!$A$105,"Mes",$E$4,"Departamento",C15)) -> 0 | K15: =IF($D$4="Anual",GETPIVOTDATA("Pensiones",TD_Pens.mes!$A$40,"Mes",12,"Departamento",C15),GETPIVOTDATA("Pensiones",TD_Pens.mes!$A$40,"Mes",$E$4,"departamento",C15)) -> 143 | L15: =IF($D$4="Anual",GETPIVOTDATA("Pago",TD_Pens.mes!$A$40,"Departamento",C15),GETPIVOTDATA("Pago",TD_Pens.mes!$A$40,"Mes",$E$4,"departamento",C15)) -> 301120.75 | M15: =IF($D$4="Anual",GETPIVOTDATA("Pensiones",TD_Pens.mes!$A$72,"Mes",12,"Departamento",C15),GETPIVOTDATA("Pensiones",TD_Pens.mes!$A$72,"Mes",$E$4,"Departamento",C15)) -> 2844 | N15: =IF($D$4="Anual",GETPIVOTDATA("Pago",TD_Pens.mes!$A$72,"Departamento",C15),GETPIVOTDATA("Pago",TD_Pens.mes!$A$72,"Mes",$E$4,"Departamento",C15)) -> 4985707.19 | O15: =IF($D$4="Anual",GETPIVOTDATA("Pensiones",TD_Pens.mes!$A$104,"Mes",12,"Departamento",C15),GETPIVOTDATA("Pensiones",TD_Pens.mes!$A$104,"Mes",$E$4,"Departamento",C15)) -> 2686 | P15: =IF($D$4="Anual",GETPIVOTDATA("Pago",TD_Pens.mes!$A$104,"Departamento",C15),GETPIVOTDATA("Pago",TD_Pens.mes!$A$104,"Mes",$E$4,"Departamento",C15)) -> 1897130.77 | Q15: =IF($D$4="Anual",GETPIVOTDATA("Pensiones",TD_Pens.mes!$A$136,"Mes",12,"Departamento",C15),GETPIVOTDATA("Pensiones",TD_Pens.mes!$A$136,"Mes",$E$4,"Departamento",C15)) -> 185 | R15: =IF($D$4="Anual",GETPIVOTDATA("Pago",TD_Pens.mes!$A$136,"Departamento",C15),GETPIVOTDATA("Pago",TD_Pens.mes!$A$136,"Mes",$E$4,"Departamento",C15)) -> 16162.25672 | S15: =IF($D$4="Anual",GETPIVOTDATA("Consulta",TD_Costos!A44,"Departamento",C15),GETPIVOTDATA("Consulta",TD_Costos!A44,"Mes",$E$4,"Departamento",C15)) -> 3044194.46 | T15: =IF($D$4="Anual",GETPIVOTDATA("Egresos",TD_Costos!A76,"Departamento",C15),GETPIVOTDATA("Egresos",TD_Costos!A76,"Mes",$E$4,"Departamento",C15)) -> 2772738.91 | U15: =IF($D$4="Anual",GETPIVOTDATA("Emergencia",TD_Costos!A108,"Departamento",C15),GETPIVOTDATA("Emergencia",TD_Costos!A108,"Mes",$E$4,"Departamento",C15)) -> 1642591.47 | V15: =IF($D$4="Anual",GETPIVOTDATA("Emergencia",TD_Costos!$A$134,"Departamento",C15),GETPIVOTDATA("Emergencia",TD_Costos!$A$134,"Mes",$E$4,"Departamento",C15)) -> 0 | W15: =+GETPIVOTDATA("Trabajadores",TD_RRHH_!A11,"Mes",$E$4,"Departamento",C15) -> 48 | X15: =IF($D$4="Anual",GETPIVOTDATA("Salarios",TD_RRHH_!B11,"Departamento",C15),GETPIVOTDATA("Salarios",TD_RRHH_!B11,"Mes",$E$4,"Departamento",C15)) -> 3075508.57
B16: 9 | C16: Quetzaltenango | D16: =+GETPIVOTDATA("Afiliados ",TD_Afil!$A$4,"Mes",$E$4,"Departamento ",C16) -> 55543 | E16: =+GETPIVOTDATA("Salarios ",TD_Afil!$A$4,"Mes",$E$4,"Departamento ",C16) -> 3093437771 | F16: 4641.205569 | G16: =IF($D$4="Anual",GETPIVOTDATA("Consulta",'TD_Producción (2)'!$A$7,"Departamento",C16),GETPIVOTDATA("Consulta",'TD_Producción (2)'!$A$7,"Mes",$E$4,"Departamento",C16)) -> 265639 | H16: =IF($D$4="Anual",GETPIVOTDATA("Emergencia",'TD_Producción (2)'!$A$40,"Departamento",C16),GETPIVOTDATA("Emergencia",'TD_Producción (2)'!$A$40,"Mes",$E$4,"Departamento",C16)) -> 80180 | I16: =IF($D$4="Anual",GETPIVOTDATA("Egresos",'TD_Producción (2)'!$A$72,"Departamento",C16),GETPIVOTDATA("Egresos",'TD_Producción (2)'!$A$72,"Mes",$E$4,"Departamento",C16)) -> 11388 | J16: =IF($D$4="Anual",GETPIVOTDATA("Primeros Auxilios",'TD_Producción (2)'!$A$105,"Departamento",C16),GETPIVOTDATA("Primeros Auxilios",'TD_Producción (2)'!$A$105,"Mes",$E$4,"Departamento",C16)) -> 1408 | K16: =IF($D$4="Anual",GETPIVOTDATA("Pensiones",TD_Pens.mes!$A$40,"Mes",12,"Departamento",C16),GETPIVOTDATA("Pensiones",TD_Pens.mes!$A$40,"Mes",$E$4,"departamento",C16)) -> 4983 | L16: =IF($D$4="Anual",GETPIVOTDATA("Pago",TD_Pens.mes!$A$40,"Departamento",C16),GETPIVOTDATA("Pago",TD_Pens.mes!$A$40,"Mes",$E$4,"departamento",C16)) -> 7045700.71 | M16: =IF($D$4="Anual",GETPIVOTDATA("Pensiones",TD_Pens.mes!$A$72,"Mes",12,"Departamento",C16),GETPIVOTDATA("Pensiones",TD_Pens.mes!$A$72,"Mes",$E$4,"Departamento",C16)) -> 73691 | N16: =IF($D$4="Anual",GETPIVOTDATA("Pago",TD_Pens.mes!$A$72,"Departamento",C16),GETPIVOTDATA("Pago",TD_Pens.mes!$A$72,"Mes",$E$4,"Departamento",C16)) -> 123782318.3 | O16: =IF($D$4="Anual",GETPIVOTDATA("Pensiones",TD_Pens.mes!$A$104,"Mes",12,"Departamento",C16),GETPIVOTDATA("Pensiones",TD_Pens.mes!$A$104,"Mes",$E$4,"Departamento",C16)) -> 51973 | P16: =IF($D$4="Anual",GETPIVOTDATA("Pago",TD_Pens.mes!$A$104,"Departamento",C16),GETPIVOTDATA("Pago",TD_Pens.mes!$A$104,"Mes",$E$4,"Departamento",C16)) -> 32232686.52 | Q16: =IF($D$4="Anual",GETPIVOTDATA("Pensiones",TD_Pens.mes!$A$136,"Mes",12,"Departamento",C16),GETPIVOTDATA("Pensiones",TD_Pens.mes!$A$136,"Mes",$E$4,"Departamento",C16)) -> 2059 | R16: =IF($D$4="Anual",GETPIVOTDATA("Pago",TD_Pens.mes!$A$136,"Departamento",C16),GETPIVOTDATA("Pago",TD_Pens.mes!$A$136,"Mes",$E$4,"Departamento",C16)) -> 212639.437 | S16: =IF($D$4="Anual",GETPIVOTDATA("Consulta",TD_Costos!A45,"Departamento",C16),GETPIVOTDATA("Consulta",TD_Costos!A45,"Mes",$E$4,"Departamento",C16)) -> 125540816.9 | T16: =IF($D$4="Anual",GETPIVOTDATA("Egresos",TD_Costos!A77,"Departamento",C16),GETPIVOTDATA("Egresos",TD_Costos!A77,"Mes",$E$4,"Departamento",C16)) -> 182856899.7 | U16: =IF($D$4="Anual",GETPIVOTDATA("Emergencia",TD_Costos!A109,"Departamento",C16),GETPIVOTDATA("Emergencia",TD_Costos!A109,"Mes",$E$4,"Departamento",C16)) -> 53594186.01 | V16: =IF($D$4="Anual",GETPIVOTDATA("Emergencia",TD_Costos!$A$134,"Departamento",C16),GETPIVOTDATA("Emergencia",TD_Costos!$A$134,"Mes",$E$4,"Departamento",C16)) -> 263435.8 | W16: =+GETPIVOTDATA("Trabajadores",TD_RRHH_!A12,"Mes",$E$4,"Departamento",C16) -> 2061 | X16: =IF($D$4="Anual",GETPIVOTDATA("Salarios",TD_RRHH_!B12,"Departamento",C16),GETPIVOTDATA("Salarios",TD_RRHH_!B12,"Mes",$E$4,"Departamento",C16)) -> 138726483.7
B17: 10 | C17: Suchitepéquez | D17: =+GETPIVOTDATA("Afiliados ",TD_Afil!$A$4,"Mes",$E$4,"Departamento ",C17) -> 31019 | E17: =+GETPIVOTDATA("Salarios ",TD_Afil!$A$4,"Mes",$E$4,"Departamento ",C17) -> 1599530467 | F17: 4297.179328 | G17: =IF($D$4="Anual",GETPIVOTDATA("Consulta",'TD_Producción (2)'!$A$7,"Departamento",C17),GETPIVOTDATA("Consulta",'TD_Producción (2)'!$A$7,"Mes",$E$4,"Departamento",C17)) -> 125724 | H17: =IF($D$4="Anual",GETPIVOTDATA("Emergencia",'TD_Producción (2)'!$A$40,"Departamento",C17),GETPIVOTDATA("Emergencia",'TD_Producción (2)'!$A$40,"Mes",$E$4,"Departamento",C17)) -> 78201 | I17: =IF($D$4="Anual",GETPIVOTDATA("Egresos",'TD_Producción (2)'!$A$72,"Departamento",C17),GETPIVOTDATA("Egresos",'TD_Producción (2)'!$A$72,"Mes",$E$4,"Departamento",C17)) -> 6676 | J17: =IF($D$4="Anual",GETPIVOTDATA("Primeros Auxilios",'TD_Producción (2)'!$A$105,"Departamento",C17),GETPIVOTDATA("Primeros Auxilios",'TD_Producción (2)'!$A$105,"Mes",$E$4,"Departamento",C17)) -> 7292 | K17: =IF($D$4="Anual",GETPIVOTDATA("Pensiones",TD_Pens.mes!$A$40,"Mes",12,"Departamento",C17),GETPIVOTDATA("Pensiones",TD_Pens.mes!$A$40,"Mes",$E$4,"departamento",C17)) -> 4094 | L17: =IF($D$4="Anual",GETPIVOTDATA("Pago",TD_Pens.mes!$A$40,"Departamento",C17),GETPIVOTDATA("Pago",TD_Pens.mes!$A$40,"Mes",$E$4,"departamento",C17)) -> 5150707.58 | M17: =IF($D$4="Anual",GETPIVOTDATA("Pensiones",TD_Pens.mes!$A$72,"Mes",12,"Departamento",C17),GETPIVOTDATA("Pensiones",TD_Pens.mes!$A$72,"Mes",$E$4,"Departamento",C17)) -> 63419 | N17: =IF($D$4="Anual",GETPIVOTDATA("Pago",TD_Pens.mes!$A$72,"Departamento",C17),GETPIVOTDATA("Pago",TD_Pens.mes!$A$72,"Mes",$E$4,"Departamento",C17)) -> 85603038.33 | O17: =IF($D$4="Anual",GETPIVOTDATA("Pensiones",TD_Pens.mes!$A$104,"Mes",12,"Departamento",C17),GETPIVOTDATA("Pensiones",TD_Pens.mes!$A$104,"Mes",$E$4,"Departamento",C17)) -> 56227 | P17: =IF($D$4="Anual",GETPIVOTDATA("Pago",TD_Pens.mes!$A$104,"Departamento",C17),GETPIVOTDATA("Pago",TD_Pens.mes!$A$104,"Mes",$E$4,"Departamento",C17)) -> 33361010.98 | Q17: =IF($D$4="Anual",GETPIVOTDATA("Pensiones",TD_Pens.mes!$A$136,"Mes",12,"Departamento",C17),GETPIVOTDATA("Pensiones",TD_Pens.mes!$A$136,"Mes",$E$4,"Departamento",C17)) -> 1136 | R17: =IF($D$4="Anual",GETPIVOTDATA("Pago",TD_Pens.mes!$A$136,"Departamento",C17),GETPIVOTDATA("Pago",TD_Pens.mes!$A$136,"Mes",$E$4,"Departamento",C17)) -> 125299.7744 | S17: =IF($D$4="Anual",GETPIVOTDATA("Consulta",TD_Costos!A46,"Departamento",C17),GETPIVOTDATA("Consulta",TD_Costos!A46,"Mes",$E$4,"Departamento",C17)) -> 49926997.29 | T17: =IF($D$4="Anual",GETPIVOTDATA("Egresos",TD_Costos!A78,"Departamento",C17),GETPIVOTDATA("Egresos",TD_Costos!A78,"Mes",$E$4,"Departamento",C17)) -> 81899116.64 | U17: =IF($D$4="Anual",GETPIVOTDATA("Emergencia",TD_Costos!A110,"Departamento",C17),GETPIVOTDATA("Emergencia",TD_Costos!A110,"Mes",$E$4,"Departamento",C17)) -> 36063222.72 | V17: =IF($D$4="Anual",GETPIVOTDATA("Emergencia",TD_Costos!$A$134,"Departamento",C17),GETPIVOTDATA("Emergencia",TD_Costos!$A$134,"Mes",$E$4,"Departamento",C17)) -> 694144.38 | W17: =+GETPIVOTDATA("Trabajadores",TD_RRHH_!A13,"Mes",$E$4,"Departamento",C17) -> 1014 | X17: =IF($D$4="Anual",GETPIVOTDATA("Salarios",TD_RRHH_!B13,"Departamento",C17),GETPIVOTDATA("Salarios",TD_RRHH_!B13,"Mes",$E$4,"Departamento",C17)) -> 65481105.26
B18: 11 | C18: Retalhuleu | D18: =+GETPIVOTDATA("Afiliados ",TD_Afil!$A$4,"Mes",$E$4,"Departamento ",C18) -> 28471 | E18: =+GETPIVOTDATA("Salarios ",TD_Afil!$A$4,"Mes",$E$4,"Departamento ",C18) -> 1387677842 | F18: 4061.670478 | G18: =IF($D$4="Anual",GETPIVOTDATA("Consulta",'TD_Producción (2)'!$A$7,"Departamento",C18),GETPIVOTDATA("Consulta",'TD_Producción (2)'!$A$7,"Mes",$E$4,"Departamento",C18)) -> 56205 | H18: =IF($D$4="Anual",GETPIVOTDATA("Emergencia",'TD_Producción (2)'!$A$40,"Departamento",C18),GETPIVOTDATA("Emergencia",'TD_Producción (2)'!$A$40,"Mes",$E$4,"Departamento",C18)) -> 40851 | I18: =IF($D$4="Anual",GETPIVOTDATA("Egresos",'TD_Producción (2)'!$A$72,"Departamento",C18),GETPIVOTDATA("Egresos",'TD_Producción (2)'!$A$72,"Mes",$E$4,"Departamento",C18)) -> 3646 | J18: =IF($D$4="Anual",GETPIVOTDATA("Primeros Auxilios",'TD_Producción (2)'!$A$105,"Departamento",C18),GETPIVOTDATA("Primeros Auxilios",'TD_Producción (2)'!$A$105,"Mes",$E$4,"Departamento",C18)) -> 0 | K18: =IF($D$4="Anual",GETPIVOTDATA("Pensiones",TD_Pens.mes!$A$40,"Mes",12,"Departamento",C18),GETPIVOTDATA("Pensiones",TD_Pens.mes!$A$40,"Mes",$E$4,"departamento",C18)) -> 2451 | L18: =IF($D$4="Anual",GETPIVOTDATA("Pago",TD_Pens.mes!$A$40,"Departamento",C18),GETPIVOTDATA("Pago",TD_Pens.mes!$A$40,"Mes",$E$4,"departamento",C18)) -> 3873191.7 | M18: =IF($D$4="Anual",GETPIVOTDATA("Pensiones",TD_Pens.mes!$A$72,"Mes",12,"Departamento",C18),GETPIVOTDATA("Pensiones",TD_Pens.mes!$A$72,"Mes",$E$4,"Departamento",C18)) -> 35267 | N18: =IF($D$4="Anual",GETPIVOTDATA("Pago",TD_Pens.mes!$A$72,"Departamento",C18),GETPIVOTDATA("Pago",TD_Pens.mes!$A$72,"Mes",$E$4,"Departamento",C18)) -> 54121058.58 | O18: =IF($D$4="Anual",GETPIVOTDATA("Pensiones",TD_Pens.mes!$A$104,"Mes",12,"Departamento",C18),GETPIVOTDATA("Pensiones",TD_Pens.mes!$A$104,"Mes",$E$4,"Departamento",C18)) -> 33444 | P18: =IF($D$4="Anual",GETPIVOTDATA("Pago",TD_Pens.mes!$A$104,"Departamento",C18),GETPIVOTDATA("Pago",TD_Pens.mes!$A$104,"Mes",$E$4,"Departamento",C18)) -> 20899900.37 | Q18: =IF($D$4="Anual",GETPIVOTDATA("Pensiones",TD_Pens.mes!$A$136,"Mes",12,"Departamento",C18),GETPIVOTDATA("Pensiones",TD_Pens.mes!$A$136,"Mes",$E$4,"Departamento",C18)) -> 814 | R18: =IF($D$4="Anual",GETPIVOTDATA("Pago",TD_Pens.mes!$A$136,"Departamento",C18),GETPIVOTDATA("Pago",TD_Pens.mes!$A$136,"Mes",$E$4,"Departamento",C18)) -> 89745.92379 | S18: =IF($D$4="Anual",GETPIVOTDATA("Consulta",TD_Costos!A47,"Departamento",C18),GETPIVOTDATA("Consulta",TD_Costos!A47,"Mes",$E$4,"Departamento",C18)) -> 22070844.12 | T18: =IF($D$4="Anual",GETPIVOTDATA("Egresos",TD_Costos!A79,"Departamento",C18),GETPIVOTDATA("Egresos",TD_Costos!A79,"Mes",$E$4,"Departamento",C18)) -> 21395786.06 | U18: =IF($D$4="Anual",GETPIVOTDATA("Emergencia",TD_Costos!A111,"Departamento",C18),GETPIVOTDATA("Emergencia",TD_Costos!A111,"Mes",$E$4,"Departamento",C18)) -> 16195048.9 | V18: =IF($D$4="Anual",GETPIVOTDATA("Emergencia",TD_Costos!$A$134,"Departamento",C18),GETPIVOTDATA("Emergencia",TD_Costos!$A$134,"Mes",$E$4,"Departamento",C18)) -> 0 | W18: =+GETPIVOTDATA("Trabajadores",TD_RRHH_!A14,"Mes",$E$4,"Departamento",C18) -> 381 | X18: =IF($D$4="Anual",GETPIVOTDATA("Salarios",TD_RRHH_!B14,"Departamento",C18),GETPIVOTDATA("Salarios",TD_RRHH_!B14,"Mes",$E$4,"Departamento",C18)) -> 25461529.8
B19: 12 | C19: San Marcos | D19: =+GETPIVOTDATA("Afiliados ",TD_Afil!$A$4,"Mes",$E$4,"Departamento ",C19) -> 35417 | E19: =+GETPIVOTDATA("Salarios ",TD_Afil!$A$4,"Mes",$E$4,"Departamento ",C19) -> 1964344092 | F19: 4621.942598 | G19: =IF($D$4="Anual",GETPIVOTDATA("Consulta",'TD_Producción (2)'!$A$7,"Departamento",C19),GETPIVOTDATA("Consulta",'TD_Producción (2)'!$A$7,"Mes",$E$4,"Departamento",C19)) -> 122374 | H19: =IF($D$4="Anual",GETPIVOTDATA("Emergencia",'TD_Producción (2)'!$A$40,"Departamento",C19),GETPIVOTDATA("Emergencia",'TD_Producción (2)'!$A$40,"Mes",$E$4,"Departamento",C19)) -> 21455 | I19: =IF($D$4="Anual",GETPIVOTDATA("Egresos",'TD_Producción (2)'!$A$72,"Departamento",C19),GETPIVOTDATA("Egresos",'TD_Producción (2)'!$A$72,"Mes",$E$4,"Departamento",C19)) -> 3474 | J19: =IF($D$4="Anual",GETPIVOTDATA("Primeros Auxilios",'TD_Producción (2)'!$A$105,"Departamento",C19),GETPIVOTDATA("Primeros Auxilios",'TD_Producción (2)'!$A$105,"Mes",$E$4,"Departamento",C19)) -> 3477 | K19: =IF($D$4="Anual",GETPIVOTDATA("Pensiones",TD_Pens.mes!$A$40,"Mes",12,"Departamento",C19),GETPIVOTDATA("Pensiones",TD_Pens.mes!$A$40,"Mes",$E$4,"departamento",C19)) -> 3225 | L19: =IF($D$4="Anual",GETPIVOTDATA("Pago",TD_Pens.mes!$A$40,"Departamento",C19),GETPIVOTDATA("Pago",TD_Pens.mes!$A$40,"Mes",$E$4,"departamento",C19)) -> 4410772.57 | M19: =IF($D$4="Anual",GETPIVOTDATA("Pensiones",TD_Pens.mes!$A$72,"Mes",12,"Departamento",C19),GETPIVOTDATA("Pensiones",TD_Pens.mes!$A$72,"Mes",$E$4,"Departamento",C19)) -> 42386 | N19: =IF($D$4="Anual",GETPIVOTDATA("Pago",TD_Pens.mes!$A$72,"Departamento",C19),GETPIVOTDATA("Pago",TD_Pens.mes!$A$72,"Mes",$E$4,"Departamento",C19)) -> 49036638.44 | O19: =IF($D$4="Anual",GETPIVOTDATA("Pensiones",TD_Pens.mes!$A$104,"Mes",12,"Departamento",C19),GETPIVOTDATA("Pensiones",TD_Pens.mes!$A$104,"Mes",$E$4,"Departamento",C19)) -> 33799 | P19: =IF($D$4="Anual",GETPIVOTDATA("Pago",TD_Pens.mes!$A$104,"Departamento",C19),GETPIVOTDATA("Pago",TD_Pens.mes!$A$104,"Mes",$E$4,"Departamento",C19)) -> 18045624.82 | Q19: =IF($D$4="Anual",GETPIVOTDATA("Pensiones",TD_Pens.mes!$A$136,"Mes",12,"Departamento",C19),GETPIVOTDATA("Pensiones",TD_Pens.mes!$A$136,"Mes",$E$4,"Departamento",C19)) -> 1204 | R19: =IF($D$4="Anual",GETPIVOTDATA("Pago",TD_Pens.mes!$A$136,"Departamento",C19),GETPIVOTDATA("Pago",TD_Pens.mes!$A$136,"Mes",$E$4,"Departamento",C19)) -> 121857.7425 | S19: =IF($D$4="Anual",GETPIVOTDATA("Consulta",TD_Costos!A48,"Departamento",C19),GETPIVOTDATA("Consulta",TD_Costos!A48,"Mes",$E$4,"Departamento",C19)) -> 36497612.14 | T19: =IF($D$4="Anual",GETPIVOTDATA("Egresos",TD_Costos!A80,"Departamento",C19),GETPIVOTDATA("Egresos",TD_Costos!A80,"Mes",$E$4,"Departamento",C19)) -> 17591625.02 | U19: =IF($D$4="Anual",GETPIVOTDATA("Emergencia",TD_Costos!A112,"Departamento",C19),GETPIVOTDATA("Emergencia",TD_Costos!A112,"Mes",$E$4,"Departamento",C19)) -> 8033312.11 | V19: =IF($D$4="Anual",GETPIVOTDATA("Emergencia",TD_Costos!$A$134,"Departamento",C19),GETPIVOTDATA("Emergencia",TD_Costos!$A$134,"Mes",$E$4,"Departamento",C19)) -> 451525.97 | W19: =+GETPIVOTDATA("Trabajadores",TD_RRHH_!A15,"Mes",$E$4,"Departamento",C19) -> 429 | X19: =IF($D$4="Anual",GETPIVOTDATA("Salarios",TD_RRHH_!B15,"Departamento",C19),GETPIVOTDATA("Salarios",TD_RRHH_!B15,"Mes",$E$4,"Departamento",C19)) -> 27334263.11
B20: 13 | C20: Huehuetenango | D20: =+GETPIVOTDATA("Afiliados ",TD_Afil!$A$4,"Mes",$E$4,"Departamento ",C20) -> 26326 | E20: =+GETPIVOTDATA("Salarios ",TD_Afil!$A$4,"Mes",$E$4,"Departamento ",C20) -> 1754663562 | F20: 5554.279553 | G20: =IF($D$4="Anual",GETPIVOTDATA("Consulta",'TD_Producción (2)'!$A$7,"Departamento",C20),GETPIVOTDATA("Consulta",'TD_Producción (2)'!$A$7,"Mes",$E$4,"Departamento",C20)) -> 53740 | H20: =IF($D$4="Anual",GETPIVOTDATA("Emergencia",'TD_Producción (2)'!$A$40,"Departamento",C20),GETPIVOTDATA("Emergencia",'TD_Producción (2)'!$A$40,"Mes",$E$4,"Departamento",C20)) -> 25331 | I20: =IF($D$4="Anual",GETPIVOTDATA("Egresos",'TD_Producción (2)'!$A$72,"Departamento",C20),GETPIVOTDATA("Egresos",'TD_Producción (2)'!$A$72,"Mes",$E$4,"Departamento",C20)) -> 1742 | J20: =IF($D$4="Anual",GETPIVOTDATA("Primeros Auxilios",'TD_Producción (2)'!$A$105,"Departamento",C20),GETPIVOTDATA("Primeros Auxilios",'TD_Producción (2)'!$A$105,"Mes",$E$4,"Departamento",C20)) -> 42 | K20: =IF($D$4="Anual",GETPIVOTDATA("Pensiones",TD_Pens.mes!$A$40,"Mes",12,"Departamento",C20),GETPIVOTDATA("Pensiones",TD_Pens.mes!$A$40,"Mes",$E$4,"departamento",C20)) -> 1157 | L20: =IF($D$4="Anual",GETPIVOTDATA("Pago",TD_Pens.mes!$A$40,"Departamento",C20),GETPIVOTDATA("Pago",TD_Pens.mes!$A$40,"Mes",$E$4,"departamento",C20)) -> 1598199.99 | M20: =IF($D$4="Anual",GETPIVOTDATA("Pensiones",TD_Pens.mes!$A$72,"Mes",12,"Departamento",C20),GETPIVOTDATA("Pensiones",TD_Pens.mes!$A$72,"Mes",$E$4,"Departamento",C20)) -> 10848 | N20: =IF($D$4="Anual",GETPIVOTDATA("Pago",TD_Pens.mes!$A$72,"Departamento",C20),GETPIVOTDATA("Pago",TD_Pens.mes!$A$72,"Mes",$E$4,"Departamento",C20)) -> 21983598 | O20: =IF($D$4="Anual",GETPIVOTDATA("Pensiones",TD_Pens.mes!$A$104,"Mes",12,"Departamento",C20),GETPIVOTDATA("Pensiones",TD_Pens.mes!$A$104,"Mes",$E$4,"Departamento",C20)) -> 10370 | P20: =IF($D$4="Anual",GETPIVOTDATA("Pago",TD_Pens.mes!$A$104,"Departamento",C20),GETPIVOTDATA("Pago",TD_Pens.mes!$A$104,"Mes",$E$4,"Departamento",C20)) -> 7018296.04 | Q20: =IF($D$4="Anual",GETPIVOTDATA("Pensiones",TD_Pens.mes!$A$136,"Mes",12,"Departamento",C20),GETPIVOTDATA("Pensiones",TD_Pens.mes!$A$136,"Mes",$E$4,"Departamento",C20)) -> 1349 | R20: =IF($D$4="Anual",GETPIVOTDATA("Pago",TD_Pens.mes!$A$136,"Departamento",C20),GETPIVOTDATA("Pago",TD_Pens.mes!$A$136,"Mes",$E$4,"Departamento",C20)) -> 133994.3706 | S20: =IF($D$4="Anual",GETPIVOTDATA("Consulta",TD_Costos!A49,"Departamento",C20),GETPIVOTDATA("Consulta",TD_Costos!A49,"Mes",$E$4,"Departamento",C20)) -> 20155662.48 | T20: =IF($D$4="Anual",GETPIVOTDATA("Egresos",TD_Costos!A81,"Departamento",C20),GETPIVOTDATA("Egresos",TD_Costos!A81,"Mes",$E$4,"Departamento",C20)) -> 11464944.43 | U20: =IF($D$4="Anual",GETPIVOTDATA("Emergencia",TD_Costos!A113,"Departamento",C20),GETPIVOTDATA("Emergencia",TD_Costos!A113,"Mes",$E$4,"Departamento",C20)) -> 8295943.65 | V20: =IF($D$4="Anual",GETPIVOTDATA("Emergencia",TD_Costos!$A$134,"Departamento",C20),GETPIVOTDATA("Emergencia",TD_Costos!$A$134,"Mes",$E$4,"Departamento",C20)) -> 0 | W20: =+GETPIVOTDATA("Trabajadores",TD_RRHH_!A16,"Mes",$E$4,"Departamento",C20) -> 225 | X20: =IF($D$4="Anual",GETPIVOTDATA("Salarios",TD_RRHH_!B16,"Departamento",C20),GETPIVOTDATA("Salarios",TD_RRHH_!B16,"Mes",$E$4,"Departamento",C20)) -> 14154051.71
B21: 14 | C21: Quiché | D21: =+GETPIVOTDATA("Afiliados ",TD_Afil!$A$4,"Mes",$E$4,"Departamento ",C21) -> 19742 | E21: =+GETPIVOTDATA("Salarios ",TD_Afil!$A$4,"Mes",$E$4,"Departamento ",C21) -> 1378936987 | F21: 5820.657258 | G21: =IF($D$4="Anual",GETPIVOTDATA("Consulta",'TD_Producción (2)'!$A$7,"Departamento",C21),GETPIVOTDATA("Consulta",'TD_Producción (2)'!$A$7,"Mes",$E$4,"Departamento",C21)) -> 26145 | H21: =IF($D$4="Anual",GETPIVOTDATA("Emergencia",'TD_Producción (2)'!$A$40,"Departamento",C21),GETPIVOTDATA("Emergencia",'TD_Producción (2)'!$A$40,"Mes",$E$4,"Departamento",C21)) -> 11388 | I21: =IF($D$4="Anual",GETPIVOTDATA("Egresos",'TD_Producción (2)'!$A$72,"Departamento",C21),GETPIVOTDATA("Egresos",'TD_Producción (2)'!$A$72,"Mes",$E$4,"Departamento",C21)) -> 661 | J21: =IF($D$4="Anual",GETPIVOTDATA("Primeros Auxilios",'TD_Producción (2)'!$A$105,"Departamento",C21),GETPIVOTDATA("Primeros Auxilios",'TD_Producción (2)'!$A$105,"Mes",$E$4,"Departamento",C21)) -> 36 | K21: =IF($D$4="Anual",GETPIVOTDATA("Pensiones",TD_Pens.mes!$A$40,"Mes",12,"Departamento",C21),GETPIVOTDATA("Pensiones",TD_Pens.mes!$A$40,"Mes",$E$4,"departamento",C21)) -> 763 | L21: =IF($D$4="Anual",GETPIVOTDATA("Pago",TD_Pens.mes!$A$40,"Departamento",C21),GETPIVOTDATA("Pago",TD_Pens.mes!$A$40,"Mes",$E$4,"departamento",C21)) -> 953621.04 | M21: =IF($D$4="Anual",GETPIVOTDATA("Pensiones",TD_Pens.mes!$A$72,"Mes",12,"Departamento",C21),GETPIVOTDATA("Pensiones",TD_Pens.mes!$A$72,"Mes",$E$4,"Departamento",C21)) -> 6371 | N21: =IF($D$4="Anual",GETPIVOTDATA("Pago",TD_Pens.mes!$A$72,"Departamento",C21),GETPIVOTDATA("Pago",TD_Pens.mes!$A$72,"Mes",$E$4,"Departamento",C21)) -> 11899008.21 | O21: =IF($D$4="Anual",GETPIVOTDATA("Pensiones",TD_Pens.mes!$A$104,"Mes",12,"Departamento",C21),GETPIVOTDATA("Pensiones",TD_Pens.mes!$A$104,"Mes",$E$4,"Departamento",C21)) -> 7178 | P21: =IF($D$4="Anual",GETPIVOTDATA("Pago",TD_Pens.mes!$A$104,"Departamento",C21),GETPIVOTDATA("Pago",TD_Pens.mes!$A$104,"Mes",$E$4,"Departamento",C21)) -> 4462145.57 | Q21: =IF($D$4="Anual",GETPIVOTDATA("Pensiones",TD_Pens.mes!$A$136,"Mes",12,"Departamento",C21),GETPIVOTDATA("Pensiones",TD_Pens.mes!$A$136,"Mes",$E$4,"Departamento",C21)) -> 950 | R21: =IF($D$4="Anual",GETPIVOTDATA("Pago",TD_Pens.mes!$A$136,"Departamento",C21),GETPIVOTDATA("Pago",TD_Pens.mes!$A$136,"Mes",$E$4,"Departamento",C21)) -> 95323.20781 | S21: =IF($D$4="Anual",GETPIVOTDATA("Consulta",TD_Costos!A50,"Departamento",C21),GETPIVOTDATA("Consulta",TD_Costos!A50,"Mes",$E$4,"Departamento",C21)) -> 12913726.12 | T21: =IF($D$4="Anual",GETPIVOTDATA("Egresos",TD_Costos!A82,"Departamento",C21),GETPIVOTDATA("Egresos",TD_Costos!A82,"Mes",$E$4,"Departamento",C21)) -> 5502662.96 | U21: =IF($D$4="Anual",GETPIVOTDATA("Emergencia",TD_Costos!A114,"Departamento",C21),GETPIVOTDATA("Emergencia",TD_Costos!A114,"Mes",$E$4,"Departamento",C21)) -> 2322893.48 | V21: =IF($D$4="Anual",GETPIVOTDATA("Emergencia",TD_Costos!$A$134,"Departamento",C21),GETPIVOTDATA("Emergencia",TD_Costos!$A$134,"Mes",$E$4,"Departamento",C21)) -> 0 | W21: =+GETPIVOTDATA("Trabajadores",TD_RRHH_!A17,"Mes",$E$4,"Departamento",C21) -> 107 | X21: =IF($D$4="Anual",GETPIVOTDATA("Salarios",TD_RRHH_!B17,"Departamento",C21),GETPIVOTDATA("Salarios",TD_RRHH_!B17,"Mes",$E$4,"Departamento",C21)) -> 6818396.73
B22: 15 | C22: Baja Verapaz | D22: =+GETPIVOTDATA("Afiliados ",TD_Afil!$A$4,"Mes",$E$4,"Departamento ",C22) -> 9070 | E22: =+GETPIVOTDATA("Salarios ",TD_Afil!$A$4,"Mes",$E$4,"Departamento ",C22) -> 589553842 | F22: 5416.701966 | G22: =IF($D$4="Anual",GETPIVOTDATA("Consulta",'TD_Producción (2)'!$A$7,"Departamento",C22),GETPIVOTDATA("Consulta",'TD_Producción (2)'!$A$7,"Mes",$E$4,"Departamento",C22)) -> 28187 | H22: =IF($D$4="Anual",GETPIVOTDATA("Emergencia",'TD_Producción (2)'!$A$40,"Departamento",C22),GETPIVOTDATA("Emergencia",'TD_Producción (2)'!$A$40,"Mes",$E$4,"Departamento",C22)) -> 17050 | I22: =IF($D$4="Anual",GETPIVOTDATA("Egresos",'TD_Producción (2)'!$A$72,"Departamento",C22),GETPIVOTDATA("Egresos",'TD_Producción (2)'!$A$72,"Mes",$E$4,"Departamento",C22)) -> 461 | J22: =IF($D$4="Anual",GETPIVOTDATA("Primeros Auxilios",'TD_Producción (2)'!$A$105,"Departamento",C22),GETPIVOTDATA("Primeros Auxilios",'TD_Producción (2)'!$A$105,"Mes",$E$4,"Departamento",C22)) -> 0 | K22: =IF($D$4="Anual",GETPIVOTDATA("Pensiones",TD_Pens.mes!$A$40,"Mes",12,"Departamento",C22),GETPIVOTDATA("Pensiones",TD_Pens.mes!$A$40,"Mes",$E$4,"departamento",C22)) -> 1170 | L22: =IF($D$4="Anual",GETPIVOTDATA("Pago",TD_Pens.mes!$A$40,"Departamento",C22),GETPIVOTDATA("Pago",TD_Pens.mes!$A$40,"Mes",$E$4,"departamento",C22)) -> 1683680.43 | M22: =IF($D$4="Anual",GETPIVOTDATA("Pensiones",TD_Pens.mes!$A$72,"Mes",12,"Departamento",C22),GETPIVOTDATA("Pensiones",TD_Pens.mes!$A$72,"Mes",$E$4,"Departamento",C22)) -> 5809 | N22: =IF($D$4="Anual",GETPIVOTDATA("Pago",TD_Pens.mes!$A$72,"Departamento",C22),GETPIVOTDATA("Pago",TD_Pens.mes!$A$72,"Mes",$E$4,"Departamento",C22)) -> 12629205.13 | O22: =IF($D$4="Anual",GETPIVOTDATA("Pensiones",TD_Pens.mes!$A$104,"Mes",12,"Departamento",C22),GETPIVOTDATA("Pensiones",TD_Pens.mes!$A$104,"Mes",$E$4,"Departamento",C22)) -> 7394 | P22: =IF($D$4="Anual",GETPIVOTDATA("Pago",TD_Pens.mes!$A$104,"Departamento",C22),GETPIVOTDATA("Pago",TD_Pens.mes!$A$104,"Mes",$E$4,"Departamento",C22)) -> 4990596.28 | Q22: =IF($D$4="Anual",GETPIVOTDATA("Pensiones",TD_Pens.mes!$A$136,"Mes",12,"Departamento",C22),GETPIVOTDATA("Pensiones",TD_Pens.mes!$A$136,"Mes",$E$4,"Departamento",C22)) -> 461 | R22: =IF($D$4="Anual",GETPIVOTDATA("Pago",TD_Pens.mes!$A$136,"Departamento",C22),GETPIVOTDATA("Pago",TD_Pens.mes!$A$136,"Mes",$E$4,"Departamento",C22)) -> 49293.54651 | S22: =IF($D$4="Anual",GETPIVOTDATA("Consulta",TD_Costos!A51,"Departamento",C22),GETPIVOTDATA("Consulta",TD_Costos!A51,"Mes",$E$4,"Departamento",C22)) -> 10434726.07 | T22: =IF($D$4="Anual",GETPIVOTDATA("Egresos",TD_Costos!A83,"Departamento",C22),GETPIVOTDATA("Egresos",TD_Costos!A83,"Mes",$E$4,"Departamento",C22)) -> 3099623.89 | U22: =IF($D$4="Anual",GETPIVOTDATA("Emergencia",TD_Costos!A115,"Departamento",C22),GETPIVOTDATA("Emergencia",TD_Costos!A115,"Mes",$E$4,"Departamento",C22)) -> 1537526.92 | V22: =IF($D$4="Anual",GETPIVOTDATA("Emergencia",TD_Costos!$A$134,"Departamento",C22),GETPIVOTDATA("Emergencia",TD_Costos!$A$134,"Mes",$E$4,"Departamento",C22)) -> 0 | W22: =+GETPIVOTDATA("Trabajadores",TD_RRHH_!A18,"Mes",$E$4,"Departamento",C22) -> 113 | X22: =IF($D$4="Anual",GETPIVOTDATA("Salarios",TD_RRHH_!B18,"Departamento",C22),GETPIVOTDATA("Salarios",TD_RRHH_!B18,"Mes",$E$4,"Departamento",C22)) -> 7627086.21
B23: 16 | C23: Alta Verapaz | D23: =+GETPIVOTDATA("Afiliados ",TD_Afil!$A$4,"Mes",$E$4,"Departamento ",C23) -> 35358 | E23: =+GETPIVOTDATA("Salarios ",TD_Afil!$A$4,"Mes",$E$4,"Departamento ",C23) -> 1988505004 | F23: 4686.598516 | G23: =IF($D$4="Anual",GETPIVOTDATA("Consulta",'TD_Producción (2)'!$A$7,"Departamento",C23),GETPIVOTDATA("Consulta",'TD_Producción (2)'!$A$7,"Mes",$E$4,"Departamento",C23)) -> 88813 | H23: =IF($D$4="Anual",GETPIVOTDATA("Emergencia",'TD_Producción (2)'!$A$40,"Departamento",C23),GETPIVOTDATA("Emergencia",'TD_Producción (2)'!$A$40,"Mes",$E$4,"Departamento",C23)) -> 18522 | I23: =IF($D$4="Anual",GETPIVOTDATA("Egresos",'TD_Producción (2)'!$A$72,"Departamento",C23),GETPIVOTDATA("Egresos",'TD_Producción (2)'!$A$72,"Mes",$E$4,"Departamento",C23)) -> 2766 | J23: =IF($D$4="Anual",GETPIVOTDATA("Primeros Auxilios",'TD_Producción (2)'!$A$105,"Departamento",C23),GETPIVOTDATA("Primeros Auxilios",'TD_Producción (2)'!$A$105,"Mes",$E$4,"Departamento",C23)) -> 0 | K23: =IF($D$4="Anual",GETPIVOTDATA("Pensiones",TD_Pens.mes!$A$40,"Mes",12,"Departamento",C23),GETPIVOTDATA("Pensiones",TD_Pens.mes!$A$40,"Mes",$E$4,"departamento",C23)) -> 1531 | L23: =IF($D$4="Anual",GETPIVOTDATA("Pago",TD_Pens.mes!$A$40,"Departamento",C23),GETPIVOTDATA("Pago",TD_Pens.mes!$A$40,"Mes",$E$4,"departamento",C23)) -> 2436524.94 | M23: =IF($D$4="Anual",GETPIVOTDATA("Pensiones",TD_Pens.mes!$A$72,"Mes",12,"Departamento",C23),GETPIVOTDATA("Pensiones",TD_Pens.mes!$A$72,"Mes",$E$4,"Departamento",C23)) -> 32741 | N23: =IF($D$4="Anual",GETPIVOTDATA("Pago",TD_Pens.mes!$A$72,"Departamento",C23),GETPIVOTDATA("Pago",TD_Pens.mes!$A$72,"Mes",$E$4,"Departamento",C23)) -> 49707476.59 | O23: =IF($D$4="Anual",GETPIVOTDATA("Pensiones",TD_Pens.mes!$A$104,"Mes",12,"Departamento",C23),GETPIVOTDATA("Pensiones",TD_Pens.mes!$A$104,"Mes",$E$4,"Departamento",C23)) -> 24155 | P23: =IF($D$4="Anual",GETPIVOTDATA("Pago",TD_Pens.mes!$A$104,"Departamento",C23),GETPIVOTDATA("Pago",TD_Pens.mes!$A$104,"Mes",$E$4,"Departamento",C23)) -> 15861619.48 | Q23: =IF($D$4="Anual",GETPIVOTDATA("Pensiones",TD_Pens.mes!$A$136,"Mes",12,"Departamento",C23),GETPIVOTDATA("Pensiones",TD_Pens.mes!$A$136,"Mes",$E$4,"Departamento",C23)) -> 845 | R23: =IF($D$4="Anual",GETPIVOTDATA("Pago",TD_Pens.mes!$A$136,"Departamento",C23),GETPIVOTDATA("Pago",TD_Pens.mes!$A$136,"Mes",$E$4,"Departamento",C23)) -> 92965.89946 | S23: =IF($D$4="Anual",GETPIVOTDATA("Consulta",TD_Costos!A52,"Departamento",C23),GETPIVOTDATA("Consulta",TD_Costos!A52,"Mes",$E$4,"Departamento",C23)) -> 25519149.71 | T23: =IF($D$4="Anual",GETPIVOTDATA("Egresos",TD_Costos!A84,"Departamento",C23),GETPIVOTDATA("Egresos",TD_Costos!A84,"Mes",$E$4,"Departamento",C23)) -> 11466036.26 | U23: =IF($D$4="Anual",GETPIVOTDATA("Emergencia",TD_Costos!A116,"Departamento",C23),GETPIVOTDATA("Emergencia",TD_Costos!A116,"Mes",$E$4,"Departamento",C23)) -> 3899741.62 | V23: =IF($D$4="Anual",GETPIVOTDATA("Emergencia",TD_Costos!$A$134,"Departamento",C23),GETPIVOTDATA("Emergencia",TD_Costos!$A$134,"Mes",$E$4,"Departamento",C23)) -> 0 | W23: =+GETPIVOTDATA("Trabajadores",TD_RRHH_!A19,"Mes",$E$4,"Departamento",C23) -> 232 | X23: =IF($D$4="Anual",GETPIVOTDATA("Salarios",TD_RRHH_!B19,"Departamento",C23),GETPIVOTDATA("Salarios",TD_RRHH_!B19,"Mes",$E$4,"Departamento",C23)) -> 14624384.25
B24: 17 | C24: Petén | D24: =+GETPIVOTDATA("Afiliados ",TD_Afil!$A$4,"Mes",$E$4,"Departamento ",C24) -> 30418 | E24: =+GETPIVOTDATA("Salarios ",TD_Afil!$A$4,"Mes",$E$4,"Departamento ",C24) -> 1586837864 | F24: 4347.31043 | G24: =IF($D$4="Anual",GETPIVOTDATA("Consulta",'TD_Producción (2)'!$A$7,"Departamento",C24),GETPIVOTDATA("Consulta",'TD_Producción (2)'!$A$7,"Mes",$E$4,"Departamento",C24)) -> 44481 | H24: =IF($D$4="Anual",GETPIVOTDATA("Emergencia",'TD_Producción (2)'!$A$40,"Departamento",C24),GETPIVOTDATA("Emergencia",'TD_Producción (2)'!$A$40,"Mes",$E$4,"Departamento",C24)) -> 369 | I24: =IF($D$4="Anual",GETPIVOTDATA("Egresos",'TD_Producción (2)'!$A$72,"Departamento",C24),GETPIVOTDATA("Egresos",'TD_Producción (2)'!$A$72,"Mes",$E$4,"Departamento",C24)) -> 200 | J24: =IF($D$4="Anual",GETPIVOTDATA("Primeros Auxilios",'TD_Producción (2)'!$A$105,"Departamento",C24),GETPIVOTDATA("Primeros Auxilios",'TD_Producción (2)'!$A$105,"Mes",$E$4,"Departamento",C24)) -> 0 | K24: =IF($D$4="Anual",GETPIVOTDATA("Pensiones",TD_Pens.mes!$A$40,"Mes",12,"Departamento",C24),GETPIVOTDATA("Pensiones",TD_Pens.mes!$A$40,"Mes",$E$4,"departamento",C24)) -> 517 | L24: =IF($D$4="Anual",GETPIVOTDATA("Pago",TD_Pens.mes!$A$40,"Departamento",C24),GETPIVOTDATA("Pago",TD_Pens.mes!$A$40,"Mes",$E$4,"departamento",C24)) -> 835628.91 | M24: =IF($D$4="Anual",GETPIVOTDATA("Pensiones",TD_Pens.mes!$A$72,"Mes",12,"Departamento",C24),GETPIVOTDATA("Pensiones",TD_Pens.mes!$A$72,"Mes",$E$4,"Departamento",C24)) -> 7334 | N24: =IF($D$4="Anual",GETPIVOTDATA("Pago",TD_Pens.mes!$A$72,"Departamento",C24),GETPIVOTDATA("Pago",TD_Pens.mes!$A$72,"Mes",$E$4,"Departamento",C24)) -> 14382567.55 | O24: =IF($D$4="Anual",GETPIVOTDATA("Pensiones",TD_Pens.mes!$A$104,"Mes",12,"Departamento",C24),GETPIVOTDATA("Pensiones",TD_Pens.mes!$A$104,"Mes",$E$4,"Departamento",C24)) -> 9930 | P24: =IF($D$4="Anual",GETPIVOTDATA("Pago",TD_Pens.mes!$A$104,"Departamento",C24),GETPIVOTDATA("Pago",TD_Pens.mes!$A$104,"Mes",$E$4,"Departamento",C24)) -> 7475791.05 | Q24: =IF($D$4="Anual",GETPIVOTDATA("Pensiones",TD_Pens.mes!$A$136,"Mes",12,"Departamento",C24),GETPIVOTDATA("Pensiones",TD_Pens.mes!$A$136,"Mes",$E$4,"Departamento",C24)) -> 361 | R24: =IF($D$4="Anual",GETPIVOTDATA("Pago",TD_Pens.mes!$A$136,"Departamento",C24),GETPIVOTDATA("Pago",TD_Pens.mes!$A$136,"Mes",$E$4,"Departamento",C24)) -> 40449.41445 | S24: =IF($D$4="Anual",GETPIVOTDATA("Consulta",TD_Costos!A53,"Departamento",C24),GETPIVOTDATA("Consulta",TD_Costos!A53,"Mes",$E$4,"Departamento",C24)) -> 7500319.39 | T24: =IF($D$4="Anual",GETPIVOTDATA("Egresos",TD_Costos!A85,"Departamento",C24),GETPIVOTDATA("Egresos",TD_Costos!A85,"Mes",$E$4,"Departamento",C24)) -> 867905.68 | U24: =IF($D$4="Anual",GETPIVOTDATA("Emergencia",TD_Costos!A117,"Departamento",C24),GETPIVOTDATA("Emergencia",TD_Costos!A117,"Mes",$E$4,"Departamento",C24)) -> 118793.75 | V24: =IF($D$4="Anual",GETPIVOTDATA("Emergencia",TD_Costos!$A$134,"Departamento",C24),GETPIVOTDATA("Emergencia",TD_Costos!$A$134,"Mes",$E$4,"Departamento",C24)) -> 0 | W24: =+GETPIVOTDATA("Trabajadores",TD_RRHH_!A20,"Mes",$E$4,"Departamento",C24) -> 89 | X24: =IF($D$4="Anual",GETPIVOTDATA("Salarios",TD_RRHH_!B20,"Departamento",C24),GETPIVOTDATA("Salarios",TD_RRHH_!B20,"Mes",$E$4,"Departamento",C24)) -> 6058587.37
B25: 18 | C25: Izabal | D25: =+GETPIVOTDATA("Afiliados ",TD_Afil!$A$4,"Mes",$E$4,"Departamento ",C25) -> 39354 | E25: =+GETPIVOTDATA("Salarios ",TD_Afil!$A$4,"Mes",$E$4,"Departamento ",C25) -> 2170388006 | F25: 4595.864897 | G25: =IF($D$4="Anual",GETPIVOTDATA("Consulta",'TD_Producción (2)'!$A$7,"Departamento",C25),GETPIVOTDATA("Consulta",'TD_Producción (2)'!$A$7,"Mes",$E$4,"Departamento",C25)) -> 126157 | H25: =IF($D$4="Anual",GETPIVOTDATA("Emergencia",'TD_Producción (2)'!$A$40,"Departamento",C25),GETPIVOTDATA("Emergencia",'TD_Producción (2)'!$A$40,"Mes",$E$4,"Departamento",C25)) -> 64624 | I25: =IF($D$4="Anual",GETPIVOTDATA("Egresos",'TD_Producción (2)'!$A$72,"Departamento",C25),GETPIVOTDATA("Egresos",'TD_Producción (2)'!$A$72,"Mes",$E$4,"Departamento",C25)) -> 6390 | J25: =IF($D$4="Anual",GETPIVOTDATA("Primeros Auxilios",'TD_Producción (2)'!$A$105,"Departamento",C25),GETPIVOTDATA("Primeros Auxilios",'TD_Producción (2)'!$A$105,"Mes",$E$4,"Departamento",C25)) -> 0 | K25: =IF($D$4="Anual",GETPIVOTDATA("Pensiones",TD_Pens.mes!$A$40,"Mes",12,"Departamento",C25),GETPIVOTDATA("Pensiones",TD_Pens.mes!$A$40,"Mes",$E$4,"departamento",C25)) -> 3764 | L25: =IF($D$4="Anual",GETPIVOTDATA("Pago",TD_Pens.mes!$A$40,"Departamento",C25),GETPIVOTDATA("Pago",TD_Pens.mes!$A$40,"Mes",$E$4,"departamento",C25)) -> 6647074.2 | M25: =IF($D$4="Anual",GETPIVOTDATA("Pensiones",TD_Pens.mes!$A$72,"Mes",12,"Departamento",C25),GETPIVOTDATA("Pensiones",TD_Pens.mes!$A$72,"Mes",$E$4,"Departamento",C25)) -> 46594 | N25: =IF($D$4="Anual",GETPIVOTDATA("Pago",TD_Pens.mes!$A$72,"Departamento",C25),GETPIVOTDATA("Pago",TD_Pens.mes!$A$72,"Mes",$E$4,"Departamento",C25)) -> 109164280.1 | O25: =IF($D$4="Anual",GETPIVOTDATA("Pensiones",TD_Pens.mes!$A$104,"Mes",12,"Departamento",C25),GETPIVOTDATA("Pensiones",TD_Pens.mes!$A$104,"Mes",$E$4,"Departamento",C25)) -> 40164 | P25: =IF($D$4="Anual",GETPIVOTDATA("Pago",TD_Pens.mes!$A$104,"Departamento",C25),GETPIVOTDATA("Pago",TD_Pens.mes!$A$104,"Mes",$E$4,"Departamento",C25)) -> 34865374.58 | Q25: =IF($D$4="Anual",GETPIVOTDATA("Pensiones",TD_Pens.mes!$A$136,"Mes",12,"Departamento",C25),GETPIVOTDATA("Pensiones",TD_Pens.mes!$A$136,"Mes",$E$4,"Departamento",C25)) -> 661 | R25: =IF($D$4="Anual",GETPIVOTDATA("Pago",TD_Pens.mes!$A$136,"Departamento",C25),GETPIVOTDATA("Pago",TD_Pens.mes!$A$136,"Mes",$E$4,"Departamento",C25)) -> 68912.26243 | S25: =IF($D$4="Anual",GETPIVOTDATA("Consulta",TD_Costos!A54,"Departamento",C25),GETPIVOTDATA("Consulta",TD_Costos!A54,"Mes",$E$4,"Departamento",C25)) -> 35565950.7 | T25: =IF($D$4="Anual",GETPIVOTDATA("Egresos",TD_Costos!A86,"Departamento",C25),GETPIVOTDATA("Egresos",TD_Costos!A86,"Mes",$E$4,"Departamento",C25)) -> 28616576.27 | U25: =IF($D$4="Anual",GETPIVOTDATA("Emergencia",TD_Costos!A118,"Departamento",C25),GETPIVOTDATA("Emergencia",TD_Costos!A118,"Mes",$E$4,"Departamento",C25)) -> 23168569.93 | V25: =IF($D$4="Anual",GETPIVOTDATA("Emergencia",TD_Costos!$A$134,"Departamento",C25),GETPIVOTDATA("Emergencia",TD_Costos!$A$134,"Mes",$E$4,"Departamento",C25)) -> 0 | W25: =+GETPIVOTDATA("Trabajadores",TD_RRHH_!A21,"Mes",$E$4,"Departamento",C25) -> 739 | X25: =IF($D$4="Anual",GETPIVOTDATA("Salarios",TD_RRHH_!B21,"Departamento",C25),GETPIVOTDATA("Salarios",TD_RRHH_!B21,"Mes",$E$4,"Departamento",C25)) -> 47688211.02
B26: 19 | C26: Zacapa | D26: =+GETPIVOTDATA("Afiliados ",TD_Afil!$A$4,"Mes",$E$4,"Departamento ",C26) -> 23138 | E26: =+GETPIVOTDATA("Salarios ",TD_Afil!$A$4,"Mes",$E$4,"Departamento ",C26) -> 1229977114 | F26: 4429.859661 | G26: =IF($D$4="Anual",GETPIVOTDATA("Consulta",'TD_Producción (2)'!$A$7,"Departamento",C26),GETPIVOTDATA("Consulta",'TD_Producción (2)'!$A$7,"Mes",$E$4,"Departamento",C26)) -> 58945 | H26: =IF($D$4="Anual",GETPIVOTDATA("Emergencia",'TD_Producción (2)'!$A$40,"Departamento",C26),GETPIVOTDATA("Emergencia",'TD_Producción (2)'!$A$40,"Mes",$E$4,"Departamento",C26)) -> 26925 | I26: =IF($D$4="Anual",GETPIVOTDATA("Egresos",'TD_Producción (2)'!$A$72,"Departamento",C26),GETPIVOTDATA("Egresos",'TD_Producción (2)'!$A$72,"Mes",$E$4,"Departamento",C26)) -> 1189 | J26: =IF($D$4="Anual",GETPIVOTDATA("Primeros Auxilios",'TD_Producción (2)'!$A$105,"Departamento",C26),GETPIVOTDATA("Primeros Auxilios",'TD_Producción (2)'!$A$105,"Mes",$E$4,"Departamento",C26)) -> 4033 | K26: =IF($D$4="Anual",GETPIVOTDATA("Pensiones",TD_Pens.mes!$A$40,"Mes",12,"Departamento",C26),GETPIVOTDATA("Pensiones",TD_Pens.mes!$A$40,"Mes",$E$4,"departamento",C26)) -> 5356 | L26: =IF($D$4="Anual",GETPIVOTDATA("Pago",TD_Pens.mes!$A$40,"Departamento",C26),GETPIVOTDATA("Pago",TD_Pens.mes!$A$40,"Mes",$E$4,"departamento",C26)) -> 7181980.57 | M26: =IF($D$4="Anual",GETPIVOTDATA("Pensiones",TD_Pens.mes!$A$72,"Mes",12,"Departamento",C26),GETPIVOTDATA("Pensiones",TD_Pens.mes!$A$72,"Mes",$E$4,"Departamento",C26)) -> 19825 | N26: =IF($D$4="Anual",GETPIVOTDATA("Pago",TD_Pens.mes!$A$72,"Departamento",C26),GETPIVOTDATA("Pago",TD_Pens.mes!$A$72,"Mes",$E$4,"Departamento",C26)) -> 37582945.81 | O26: =IF($D$4="Anual",GETPIVOTDATA("Pensiones",TD_Pens.mes!$A$104,"Mes",12,"Departamento",C26),GETPIVOTDATA("Pensiones",TD_Pens.mes!$A$104,"Mes",$E$4,"Departamento",C26)) -> 22245 | P26: =IF($D$4="Anual",GETPIVOTDATA("Pago",TD_Pens.mes!$A$104,"Departamento",C26),GETPIVOTDATA("Pago",TD_Pens.mes!$A$104,"Mes",$E$4,"Departamento",C26)) -> 15838279.22 | Q26: =IF($D$4="Anual",GETPIVOTDATA("Pensiones",TD_Pens.mes!$A$136,"Mes",12,"Departamento",C26),GETPIVOTDATA("Pensiones",TD_Pens.mes!$A$136,"Mes",$E$4,"Departamento",C26)) -> 1123 | R26: =IF($D$4="Anual",GETPIVOTDATA("Pago",TD_Pens.mes!$A$136,"Departamento",C26),GETPIVOTDATA("Pago",TD_Pens.mes!$A$136,"Mes",$E$4,"Departamento",C26)) -> 121048.9869 | S26: =IF($D$4="Anual",GETPIVOTDATA("Consulta",TD_Costos!A55,"Departamento",C26),GETPIVOTDATA("Consulta",TD_Costos!A55,"Mes",$E$4,"Departamento",C26)) -> 30197691.98 | T26: =IF($D$4="Anual",GETPIVOTDATA("Egresos",TD_Costos!A87,"Departamento",C26),GETPIVOTDATA("Egresos",TD_Costos!A87,"Mes",$E$4,"Departamento",C26)) -> 3713252.47 | U26: =IF($D$4="Anual",GETPIVOTDATA("Emergencia",TD_Costos!A119,"Departamento",C26),GETPIVOTDATA("Emergencia",TD_Costos!A119,"Mes",$E$4,"Departamento",C26)) -> 6097289.25 | V26: =IF($D$4="Anual",GETPIVOTDATA("Emergencia",TD_Costos!$A$134,"Departamento",C26),GETPIVOTDATA("Emergencia",TD_Costos!$A$134,"Mes",$E$4,"Departamento",C26)) -> 365703.98 | W26: =+GETPIVOTDATA("Trabajadores",TD_RRHH_!A22,"Mes",$E$4,"Departamento",C26) -> 242 | X26: =IF($D$4="Anual",GETPIVOTDATA("Salarios",TD_RRHH_!B22,"Departamento",C26),GETPIVOTDATA("Salarios",TD_RRHH_!B22,"Mes",$E$4,"Departamento",C26)) -> 16132502.63
B27: 20 | C27: Chiquimula | D27: =+GETPIVOTDATA("Afiliados ",TD_Afil!$A$4,"Mes",$E$4,"Departamento ",C27) -> 15879 | E27: =+GETPIVOTDATA("Salarios ",TD_Afil!$A$4,"Mes",$E$4,"Departamento ",C27) -> 969196273 | F27: 5086.362874 | G27: =IF($D$4="Anual",GETPIVOTDATA("Consulta",'TD_Producción (2)'!$A$7,"Departamento",C27),GETPIVOTDATA("Consulta",'TD_Producción (2)'!$A$7,"Mes",$E$4,"Departamento",C27)) -> 40942 | H27: =IF($D$4="Anual",GETPIVOTDATA("Emergencia",'TD_Producción (2)'!$A$40,"Departamento",C27),GETPIVOTDATA("Emergencia",'TD_Producción (2)'!$A$40,"Mes",$E$4,"Departamento",C27)) -> 11906 | I27: =IF($D$4="Anual",GETPIVOTDATA("Egresos",'TD_Producción (2)'!$A$72,"Departamento",C27),GETPIVOTDATA("Egresos",'TD_Producción (2)'!$A$72,"Mes",$E$4,"Departamento",C27)) -> 332 | J27: =IF($D$4="Anual",GETPIVOTDATA("Primeros Auxilios",'TD_Producción (2)'!$A$105,"Departamento",C27),GETPIVOTDATA("Primeros Auxilios",'TD_Producción (2)'!$A$105,"Mes",$E$4,"Departamento",C27)) -> 0 | K27: =IF($D$4="Anual",GETPIVOTDATA("Pensiones",TD_Pens.mes!$A$40,"Mes",12,"Departamento",C27),GETPIVOTDATA("Pensiones",TD_Pens.mes!$A$40,"Mes",$E$4,"departamento",C27)) -> 1730 | L27: =IF($D$4="Anual",GETPIVOTDATA("Pago",TD_Pens.mes!$A$40,"Departamento",C27),GETPIVOTDATA("Pago",TD_Pens.mes!$A$40,"Mes",$E$4,"departamento",C27)) -> 2186856.71 | M27: =IF($D$4="Anual",GETPIVOTDATA("Pensiones",TD_Pens.mes!$A$72,"Mes",12,"Departamento",C27),GETPIVOTDATA("Pensiones",TD_Pens.mes!$A$72,"Mes",$E$4,"Departamento",C27)) -> 13284 | N27: =IF($D$4="Anual",GETPIVOTDATA("Pago",TD_Pens.mes!$A$72,"Departamento",C27),GETPIVOTDATA("Pago",TD_Pens.mes!$A$72,"Mes",$E$4,"Departamento",C27)) -> 27268852.27 | O27: =IF($D$4="Anual",GETPIVOTDATA("Pensiones",TD_Pens.mes!$A$104,"Mes",12,"Departamento",C27),GETPIVOTDATA("Pensiones",TD_Pens.mes!$A$104,"Mes",$E$4,"Departamento",C27)) -> 13280 | P27: =IF($D$4="Anual",GETPIVOTDATA("Pago",TD_Pens.mes!$A$104,"Departamento",C27),GETPIVOTDATA("Pago",TD_Pens.mes!$A$104,"Mes",$E$4,"Departamento",C27)) -> 9639854.44 | Q27: =IF($D$4="Anual",GETPIVOTDATA("Pensiones",TD_Pens.mes!$A$136,"Mes",12,"Departamento",C27),GETPIVOTDATA("Pensiones",TD_Pens.mes!$A$136,"Mes",$E$4,"Departamento",C27)) -> 923 | R27: =IF($D$4="Anual",GETPIVOTDATA("Pago",TD_Pens.mes!$A$136,"Departamento",C27),GETPIVOTDATA("Pago",TD_Pens.mes!$A$136,"Mes",$E$4,"Departamento",C27)) -> 95649.77827 | S27: =IF($D$4="Anual",GETPIVOTDATA("Consulta",TD_Costos!A56,"Departamento",C27),GETPIVOTDATA("Consulta",TD_Costos!A56,"Mes",$E$4,"Departamento",C27)) -> 19366390.37 | T27: =IF($D$4="Anual",GETPIVOTDATA("Egresos",TD_Costos!A88,"Departamento",C27),GETPIVOTDATA("Egresos",TD_Costos!A88,"Mes",$E$4,"Departamento",C27)) -> 1931977.11 | U27: =IF($D$4="Anual",GETPIVOTDATA("Emergencia",TD_Costos!A120,"Departamento",C27),GETPIVOTDATA("Emergencia",TD_Costos!A120,"Mes",$E$4,"Departamento",C27)) -> 5026549.79 | V27: =IF($D$4="Anual",GETPIVOTDATA("Emergencia",TD_Costos!$A$134,"Departamento",C27),GETPIVOTDATA("Emergencia",TD_Costos!$A$134,"Mes",$E$4,"Departamento",C27)) -> 0 | W27: =+GETPIVOTDATA("Trabajadores",TD_RRHH_!A23,"Mes",$E$4,"Departamento",C27) -> 101 | X27: =IF($D$4="Anual",GETPIVOTDATA("Salarios",TD_RRHH_!B23,"Departamento",C27),GETPIVOTDATA("Salarios",TD_RRHH_!B23,"Mes",$E$4,"Departamento",C27)) -> 6864979.88
B28: 21 | C28: Jalapa | D28: =+GETPIVOTDATA("Afiliados ",TD_Afil!$A$4,"Mes",$E$4,"Departamento ",C28) -> 11323 | E28: =+GETPIVOTDATA("Salarios ",TD_Afil!$A$4,"Mes",$E$4,"Departamento ",C28) -> 660237963 | F28: 4859.12128 | G28: =IF($D$4="Anual",GETPIVOTDATA("Consulta",'TD_Producción (2)'!$A$7,"Departamento",C28),GETPIVOTDATA("Consulta",'TD_Producción (2)'!$A$7,"Mes",$E$4,"Departamento",C28)) -> 29533 | H28: =IF($D$4="Anual",GETPIVOTDATA("Emergencia",'TD_Producción (2)'!$A$40,"Departamento",C28),GETPIVOTDATA("Emergencia",'TD_Producción (2)'!$A$40,"Mes",$E$4,"Departamento",C28)) -> 13578 | I28: =IF($D$4="Anual",GETPIVOTDATA("Egresos",'TD_Producción (2)'!$A$72,"Departamento",C28),GETPIVOTDATA("Egresos",'TD_Producción (2)'!$A$72,"Mes",$E$4,"Departamento",C28)) -> 724 | J28: =IF($D$4="Anual",GETPIVOTDATA("Primeros Auxilios",'TD_Producción (2)'!$A$105,"Departamento",C28),GETPIVOTDATA("Primeros Auxilios",'TD_Producción (2)'!$A$105,"Mes",$E$4,"Departamento",C28)) -> 0 | K28: =IF($D$4="Anual",GETPIVOTDATA("Pensiones",TD_Pens.mes!$A$40,"Mes",12,"Departamento",C28),GETPIVOTDATA("Pensiones",TD_Pens.mes!$A$40,"Mes",$E$4,"departamento",C28)) -> 1243 | L28: =IF($D$4="Anual",GETPIVOTDATA("Pago",TD_Pens.mes!$A$40,"Departamento",C28),GETPIVOTDATA("Pago",TD_Pens.mes!$A$40,"Mes",$E$4,"departamento",C28)) -> 1558556.8 | M28: =IF($D$4="Anual",GETPIVOTDATA("Pensiones",TD_Pens.mes!$A$72,"Mes",12,"Departamento",C28),GETPIVOTDATA("Pensiones",TD_Pens.mes!$A$72,"Mes",$E$4,"Departamento",C28)) -> 4563 | N28: =IF($D$4="Anual",GETPIVOTDATA("Pago",TD_Pens.mes!$A$72,"Departamento",C28),GETPIVOTDATA("Pago",TD_Pens.mes!$A$72,"Mes",$E$4,"Departamento",C28)) -> 9474697.58 | O28: =IF($D$4="Anual",GETPIVOTDATA("Pensiones",TD_Pens.mes!$A$104,"Mes",12,"Departamento",C28),GETPIVOTDATA("Pensiones",TD_Pens.mes!$A$104,"Mes",$E$4,"Departamento",C28)) -> 7770 | P28: =IF($D$4="Anual",GETPIVOTDATA("Pago",TD_Pens.mes!$A$104,"Departamento",C28),GETPIVOTDATA("Pago",TD_Pens.mes!$A$104,"Mes",$E$4,"Departamento",C28)) -> 5401693.73 | Q28: =IF($D$4="Anual",GETPIVOTDATA("Pensiones",TD_Pens.mes!$A$136,"Mes",12,"Departamento",C28),GETPIVOTDATA("Pensiones",TD_Pens.mes!$A$136,"Mes",$E$4,"Departamento",C28)) -> 628 | R28: =IF($D$4="Anual",GETPIVOTDATA("Pago",TD_Pens.mes!$A$136,"Departamento",C28),GETPIVOTDATA("Pago",TD_Pens.mes!$A$136,"Mes",$E$4,"Departamento",C28)) -> 63855.11869 | S28: =IF($D$4="Anual",GETPIVOTDATA("Consulta",TD_Costos!A57,"Departamento",C28),GETPIVOTDATA("Consulta",TD_Costos!A57,"Mes",$E$4,"Departamento",C28)) -> 12736653.99 | T28: =IF($D$4="Anual",GETPIVOTDATA("Egresos",TD_Costos!A89,"Departamento",C28),GETPIVOTDATA("Egresos",TD_Costos!A89,"Mes",$E$4,"Departamento",C28)) -> 3109876.7 | U28: =IF($D$4="Anual",GETPIVOTDATA("Emergencia",TD_Costos!A121,"Departamento",C28),GETPIVOTDATA("Emergencia",TD_Costos!A121,"Mes",$E$4,"Departamento",C28)) -> 2695117.85 | V28: =IF($D$4="Anual",GETPIVOTDATA("Emergencia",TD_Costos!$A$134,"Departamento",C28),GETPIVOTDATA("Emergencia",TD_Costos!$A$134,"Mes",$E$4,"Departamento",C28)) -> 0 | W28: =+GETPIVOTDATA("Trabajadores",TD_RRHH_!A24,"Mes",$E$4,"Departamento",C28) -> 93 | X28: =IF($D$4="Anual",GETPIVOTDATA("Salarios",TD_RRHH_!B24,"Departamento",C28),GETPIVOTDATA("Salarios",TD_RRHH_!B24,"Mes",$E$4,"Departamento",C28)) -> 6217262.71
B29: 22 | C29: Jutiapa | D29: =+GETPIVOTDATA("Afiliados ",TD_Afil!$A$4,"Mes",$E$4,"Departamento ",C29) -> 15877 | E29: =+GETPIVOTDATA("Salarios ",TD_Afil!$A$4,"Mes",$E$4,"Departamento ",C29) -> 989878415 | F29: 5195.557594 | G29: =IF($D$4="Anual",GETPIVOTDATA("Consulta",'TD_Producción (2)'!$A$7,"Departamento",C29),GETPIVOTDATA("Consulta",'TD_Producción (2)'!$A$7,"Mes",$E$4,"Departamento",C29)) -> 76103 | H29: =IF($D$4="Anual",GETPIVOTDATA("Emergencia",'TD_Producción (2)'!$A$40,"Departamento",C29),GETPIVOTDATA("Emergencia",'TD_Producción (2)'!$A$40,"Mes",$E$4,"Departamento",C29)) -> 13309 | I29: =IF($D$4="Anual",GETPIVOTDATA("Egresos",'TD_Producción (2)'!$A$72,"Departamento",C29),GETPIVOTDATA("Egresos",'TD_Producción (2)'!$A$72,"Mes",$E$4,"Departamento",C29)) -> 897 | J29: =IF($D$4="Anual",GETPIVOTDATA("Primeros Auxilios",'TD_Producción (2)'!$A$105,"Departamento",C29),GETPIVOTDATA("Primeros Auxilios",'TD_Producción (2)'!$A$105,"Mes",$E$4,"Departamento",C29)) -> 0 | K29: =IF($D$4="Anual",GETPIVOTDATA("Pensiones",TD_Pens.mes!$A$40,"Mes",12,"Departamento",C29),GETPIVOTDATA("Pensiones",TD_Pens.mes!$A$40,"Mes",$E$4,"departamento",C29)) -> 1893 | L29: =IF($D$4="Anual",GETPIVOTDATA("Pago",TD_Pens.mes!$A$40,"Departamento",C29),GETPIVOTDATA("Pago",TD_Pens.mes!$A$40,"Mes",$E$4,"departamento",C29)) -> 2697579.63 | M29: =IF($D$4="Anual",GETPIVOTDATA("Pensiones",TD_Pens.mes!$A$72,"Mes",12,"Departamento",C29),GETPIVOTDATA("Pensiones",TD_Pens.mes!$A$72,"Mes",$E$4,"Departamento",C29)) -> 8900 | N29: =IF($D$4="Anual",GETPIVOTDATA("Pago",TD_Pens.mes!$A$72,"Departamento",C29),GETPIVOTDATA("Pago",TD_Pens.mes!$A$72,"Mes",$E$4,"Departamento",C29)) -> 17382366.11 | O29: =IF($D$4="Anual",GETPIVOTDATA("Pensiones",TD_Pens.mes!$A$104,"Mes",12,"Departamento",C29),GETPIVOTDATA("Pensiones",TD_Pens.mes!$A$104,"Mes",$E$4,"Departamento",C29)) -> 17588 | P29: =IF($D$4="Anual",GETPIVOTDATA("Pago",TD_Pens.mes!$A$104,"Departamento",C29),GETPIVOTDATA("Pago",TD_Pens.mes!$A$104,"Mes",$E$4,"Departamento",C29)) -> 11397779.96 | Q29: =IF($D$4="Anual",GETPIVOTDATA("Pensiones",TD_Pens.mes!$A$136,"Mes",12,"Departamento",C29),GETPIVOTDATA("Pensiones",TD_Pens.mes!$A$136,"Mes",$E$4,"Departamento",C29)) -> 1890 | R29: =IF($D$4="Anual",GETPIVOTDATA("Pago",TD_Pens.mes!$A$136,"Departamento",C29),GETPIVOTDATA("Pago",TD_Pens.mes!$A$136,"Mes",$E$4,"Departamento",C29)) -> 190802.0842 | S29: =IF($D$4="Anual",GETPIVOTDATA("Consulta",TD_Costos!A58,"Departamento",C29),GETPIVOTDATA("Consulta",TD_Costos!A58,"Mes",$E$4,"Departamento",C29)) -> 26005359.3 | T29: =IF($D$4="Anual",GETPIVOTDATA("Egresos",TD_Costos!A90,"Departamento",C29),GETPIVOTDATA("Egresos",TD_Costos!A90,"Mes",$E$4,"Departamento",C29)) -> 4718520.51 | U29: =IF($D$4="Anual",GETPIVOTDATA("Emergencia",TD_Costos!A122,"Departamento",C29),GETPIVOTDATA("Emergencia",TD_Costos!A122,"Mes",$E$4,"Departamento",C29)) -> 3266895.81 | V29: =IF($D$4="Anual",GETPIVOTDATA("Emergencia",TD_Costos!$A$134,"Departamento",C29),GETPIVOTDATA("Emergencia",TD_Costos!$A$134,"Mes",$E$4,"Departamento",C29)) -> 0 | W29: =+GETPIVOTDATA("Trabajadores",TD_RRHH_!A25,"Mes",$E$4,"Departamento",C29) -> 142 | X29: =IF($D$4="Anual",GETPIVOTDATA("Salarios",TD_RRHH_!B25,"Departamento",C29),GETPIVOTDATA("Salarios",TD_RRHH_!B25,"Mes",$E$4,"Departamento",C29)) -> 9582980.279
B30: Total | D30: =SUM(D8:D29) -> 1388248 | E30: =SUM(E8:E29) -> 83797012970 | F30: 5030.141887 | G30: 3924081 | H30: 1220361 | I30: 113221 | J30: 27482 | K30: 119074 | L30: 177557709.3 | M30: 1317533 | N30: 2919287102 | O30: 908748 | P30: 676698607.5 | Q30: 34965 | R30: 3691449.53 | S30: 3005247412 | T30: 1180848423 | U30: 410780967.9 | V30: 6035010.4 | W30: 21869 | X30: 1574046655
B31: Fuente: IGSS (2022). Subgerencia de Planificación y Desarrollo, Departamento Actuarial y Estadístico, Área Estadística, con información del año 2021.

Sheet Historico A.
B4: IGSS: Historial del número de Afiliados Cotizantes, período 1948 - 2021.
B47: Fuente: IGSS (2022). Subgerencia de Planificación y Desarrollo. Departamento Actuarial y Estadístico, Área Estadística, Subsistema de Estadísticas Económicas y Financieras, con información del año 2021.

Sheet Historico af. act_1
B4: IGSS: Historial de los Afiliados Cotizantes por Actividad Económica. Referencia CIIU-2 (1960 - 2019). Referencia CIIU-3 (A partir del año 2020). Período 1960 - 2021.
B5: Año | C5: Agricultura, ganadería, caza y silvicultura | D5: Pesca | E5: Explotación de minas y canteras | F5: Industrias manufactureras | G5: Suministro de electricidad, gas y agua | H5: Construcción | I5: Comercio | J5: Hoteles y Restaurantes | K5: Transporte, almacenamiento y comunicaciones | L5: Servicios | M5: Intermediación Financiera | N5: Actividades inmobiliarias, empresariales y de alquiler | O5: Administración pública y defensa; planes de seguridad social | P5: Enseñanza | Q5: Servicios sociales y de salud | R5: Actividades de servicios comunitarios, sociales y personales | S5: Hogares privados como empleadores | T5: Organizaciones y órganos extraterritoriales | U5: Total | W5: Año | X5: Agricultura | Y5: Minas y Canteras | Z5: Industrias manufactureras | AA5: Electricidad, gas y agua | AB5: Construcción | AC5: Comercio | AD5: Transportes, almacenamiento y comunicaciones | AE5: Servicios | AF5: Total
B6: 1960 | C6: =GETPIVOTDATA("Afiliados",'TD_Histor. Af. Act. Ec.'!$A$3,"Año",B6,"Actividad",$C$5) -> 135632 | D6: =GETPIVOTDATA("Afiliados",'TD_Histor. Af. Act. Ec.'!$A$3,"Año",B6,"Actividad",$D$5) -> 0 | E6: =GETPIVOTDATA("Afiliados",'TD_Histor. Af. Act. Ec.'!$A$3,"Año",B6,"Actividad",$E$5) -> 1517 | F6: =GETPIVOTDATA("Afiliados",'TD_Histor. Af. Act. Ec.'!$A$3,"Año",B6,"Actividad",$F$5) -> 26225 | G6: =GETPIVOTDATA("Afiliados",'TD_Histor. Af. Act. Ec.'!$A$3,"Año",B6,"Actividad",$G$5) -> 1327 | H6: =GETPIVOTDATA("Afiliados",'TD_Histor. Af. Act. Ec.'!$A$3,"Año",B6,"Actividad",$H$5) -> 23517 | I6: =GETPIVOTDATA("Afiliados",'TD_Histor. Af. Act. Ec.'!$A$3,"Año",B6,"Actividad",$I$5) -> 15927 | J6: =GETPIVOTDATA("Afiliados",'TD_Histor. Af. Act. Ec.'!$A$3,"Año",B6,"Actividad",$J$5) -> 0 | K6: =GETPIVOTDATA("Afiliados",'TD_Histor. Af. Act. Ec.'!$A$3,"Año",B6,"Actividad",$K$5) -> 9480 | L6: =GETPIVOTDATA("Afiliados",'TD_Histor. Af. Act. Ec.'!$A$3,"Año",B6,"Actividad",$L$5) -> 50475 | M6: =GETPIVOTDATA("Afiliados",'TD_Histor. Af. Act. Ec.'!$A$3,"Año",B6,"Actividad",$M$5) -> 0 | N6: =GETPIVOTDATA("Afiliados",'TD_Histor. Af. Act. Ec.'!$A$3,"Año",B6,"Actividad",$N$5) -> 0 | O6: =GETPIVOTDATA("Afiliados",'TD_Histor. Af. Act. Ec.'!$A$3,"Año",B6,"Actividad",$O$5) -> 0 | P6: =GETPIVOTDATA("Afiliados",'TD_Histor. Af. Act. Ec.'!$A$3,"Año",B6,"Actividad",$P$5) -> 0 | Q6: =GETPIVOTDATA("Afiliados",'TD_Histor. Af. Act. Ec.'!$A$3,"Año",B6,"Actividad",$Q$5) -> 0 | R6: =GETPIVOTDATA("Afiliados",'TD_Histor. Af. Act. Ec.'!$A$3,"Año",B6,"Actividad",$R$5) -> 0 | S6: =GETPIVOTDATA("Afiliados",'TD_Histor. Af. Act. Ec.'!$A$3,"Año",B6,"Actividad",$S$5) -> 0 | T6: =GETPIVOTDATA("Afiliados",'TD_Histor. Af. Act. Ec.'!$A$3,"Año",B6,"Actividad",$T$5) -> 0 | U6: =SUM(C6:T6) -> 264100 | W6: 1960 | X6: =+C6+D6 -> 135632 | Y6: =+E6 -> 1517 | Z6: =+F6 -> 26225 | AA6: 1327 | AB6: 23517 | AC6: =+I6+N6+M6 -> 15927 | AD6: =+K6 -> 9480 | AE6: =+L6+J6+O6+P6+Q6+R6+S6+T6 -> 50475 | AF6: =SUM(X6:AE6) -> 264100
B7: 1961 | C7: =GETPIVOTDATA("Afiliados",'TD_Histor. Af. Act. Ec.'!$A$3,"Año",B7,"Actividad",$C$5) -> 135498 | D7: =GETPIVOTDATA("Afiliados",'TD_Histor. Af. Act. Ec.'!$A$3,"Año",B7,"Actividad",$D$5) -> 0 | E7: =GETPIVOTDATA("Afiliados",'TD_Histor. Af. Act. Ec.'!$A$3,"Año",B7,"Actividad",$E$5) -> 1411 | F7: =GETPIVOTDATA("Afiliados",'TD_Histor. Af. Act. Ec.'!$A$3,"Año",B7,"Actividad",$F$5) -> 27597 | G7: =GETPIVOTDATA("Afiliados",'TD_Histor. Af. Act. Ec.'!$A$3,"Año",B7,"Actividad",$G$5) -> 1368 | H7: =GETPIVOTDATA("Afiliados",'TD_Histor. Af. Act. Ec.'!$A$3,"Año",B7,"Actividad",$H$5) -> 10439 | I7: =GETPIVOTDATA("Afiliados",'TD_Histor. Af. Act. Ec.'!$A$3,"Año",B7,"Actividad",$I$5) -> 18008 | J7: =GETPIVOTDATA("Afiliados",'TD_Histor. Af. Act. Ec.'!$A$3,"Año",B7,"Actividad",$J$5) -> 0 | K7: =GETPIVOTDATA("Afiliados",'TD_Histor. Af. Act. Ec.'!$A$3,"Año",B7,"Actividad",$K$5) -> 9176 | L7: =GETPIVOTDATA("Afiliados",'TD_Histor. Af. Act. Ec.'!$A$3,"Año",B7,"Actividad",$L$5) -> 65568 | M7: =GETPIVOTDATA("Afiliados",'TD_Histor. Af. Act. Ec.'!$A$3,"Año",B7,"Actividad",$M$5) -> 0 | N7: =GETPIVOTDATA("Afiliados",'TD_Histor. Af. Act. Ec.'!$A$3,"Año",B7,"Actividad",$N$5) -> 0 | O7: =GETPIVOTDATA("Afiliados",'TD_Histor. Af. Act. Ec.'!$A$3,"Año",B7,"Actividad",$O$5) -> 0 | P7: =GETPIVOTDATA("Afiliados",'TD_Histor. Af. Act. Ec.'!$A$3,"Año",B7,"Actividad",$P$5) -> 0 | Q7: =GETPIVOTDATA("Afiliados",'TD_Histor. Af. Act. Ec.'!$A$3,"Año",B7,"Actividad",$Q$5) -> 0 | R7: =GETPIVOTDATA("Afiliados",'TD_Histor. Af. Act. Ec.'!$A$3,"Año",B7,"Actividad",$R$5) -> 0 | S7: =GETPIVOTDATA("Afiliados",'TD_Histor. Af. Act. Ec.'!$A$3,"Año",B7,"Actividad",$S$5) -> 0 | T7: =GETPIVOTDATA("Afiliados",'TD_Histor. Af. Act. Ec.'!$A$3,"Año",B7,"Actividad",$T$5) -> 0 | U7: =SUM(C7:T7) -> 269065 | W7: 1961 | X7: =+C7+D7 -> 135498 | Y7: =+E7 -> 1411 | Z7: =+F7 -> 27597 | AA7: =+G7 -> 1368 | AB7: =+H7 -> 10439 | AC7: =+I7+N7+M7 -> 18008 | AD7: =+K7 -> 9176 | AE7: =+L7+J7+O7+P7+Q7+R7+S7+T7 -> 65568 | AF7: 269065
B8: 1962 | C8: =GETPIVOTDATA("Afiliados",'TD_Histor. Af. Act. Ec.'!$A$3,"Año",B8,"Actividad",$C$5) -> 132973 | D8: =GETPIVOTDATA("Afiliados",'TD_Histor. Af. Act. Ec.'!$A$3,"Año",B8,"Actividad",$D$5) -> 0 | E8: =GETPIVOTDATA("Afiliados",'TD_Histor. Af. Act. Ec.'!$A$3,"Año",B8,"Actividad",$E$5) -> 1237 | F8: =GETPIVOTDATA("Afiliados",'TD_Histor. Af. Act. Ec.'!$A$3,"Año",B8,"Actividad",$F$5) -> 26695 | G8: =GETPIVOTDATA("Afiliados",'TD_Histor. Af. Act. Ec.'!$A$3,"Año",B8,"Actividad",$G$5) -> 1988 | H8: =GETPIVOTDATA("Afiliados",'TD_Histor. Af. Act. Ec.'!$A$3,"Año",B8,"Actividad",$H$5) -> 7571 | I8: =GETPIVOTDATA("Afiliados",'TD_Histor. Af. Act. Ec.'!$A$3,"Año",B8,"Actividad",$I$5) -> 20576 | J8: =GETPIVOTDATA("Afiliados",'TD_Histor. Af. Act. Ec.'!$A$3,"Año",B8,"Actividad",$J$5) -> 0 | K8: =GETPIVOTDATA("Afiliados",'TD_Histor. Af. Act. Ec.'!$A$3,"Año",B8,"Actividad",$K$5) -> 9330 | L8: =GETPIVOTDATA("Afiliados",'TD_Histor. Af. Act. Ec.'!$A$3,"Año",B8,"Actividad",$L$5) -> 64514 | M8: =GETPIVOTDATA("Afiliados",'TD_Histor. Af. Act. Ec.'!$A$3,"Año",B8,"Actividad",$M$5) -> 0 | N8: =GETPIVOTDATA("Afiliados",'TD_Histor. Af. Act. Ec.'!$A$3,"Año",B8,"Actividad",$N$5) -> 0 | O8: =GETPIVOTDATA("Afiliados",'TD_Histor. Af. Act. Ec.'!$A$3,"Año",B8,"Actividad",$O$5) -> 0 | P8: =GETPIVOTDATA("Afiliados",'TD_Histor. Af. Act. Ec.'!$A$3,"Año",B8,"Actividad",$P$5) -> 0 | Q8: =GETPIVOTDATA("Afiliados",'TD_Histor. Af. Act. Ec.'!$A$3,"Año",B8,"Actividad",$Q$5) -> 0 | R8: =GETPIVOTDATA("Afiliados",'TD_Histor. Af. Act. Ec.'!$A$3,"Año",B8,"Actividad",$R$5) -> 0 | S8: =GETPIVOTDATA("Afiliados",'TD_Histor. Af. Act. Ec.'!$A$3,"Año",B8,"Actividad",$S$5) -> 0 | T8: =GETPIVOTDATA("Afiliados",'TD_Histor. Af. Act. Ec.'!$A$3,"Año",B8,"Actividad",$T$5) -> 0 | U8: 264884 | W8: 1962 | X8: 132973 | Y8: 1237 | Z8: 26695 | AA8: 1988 | AB8: 7571 | AC8: 20576 | AD8: 9330 | AE8: 64514 | AF8: 264884
B9: 1963 | C9: =GETPIVOTDATA("Afiliados",'TD_Histor. Af. Act. Ec.'!$A$3,"Año",B9,"Actividad",$C$5) -> 137796 | D9: =GETPIVOTDATA("Afiliados",'TD_Histor. Af. Act. Ec.'!$A$3,"Año",B9,"Actividad",$D$5) -> 0 | E9: =GETPIVOTDATA("Afiliados",'TD_Histor. Af. Act. Ec.'!$A$3,"Año",B9,"Actividad",$E$5) -> 842 | F9: =GETPIVOTDATA("Afiliados",'TD_Histor. Af. Act. Ec.'!$A$3,"Año",B9,"Actividad",$F$5) -> 28666 | G9: =GETPIVOTDATA("Afiliados",'TD_Histor. Af. Act. Ec.'!$A$3,"Año",B9,"Actividad",$G$5) -> 1931 | H9: =GETPIVOTDATA("Afiliados",'TD_Histor. Af. Act. Ec.'!$A$3,"Año",B9,"Actividad",$H$5) -> 12271 | I9: =GETPIVOTDATA("Afiliados",'TD_Histor. Af. Act. Ec.'!$A$3,"Año",B9,"Actividad",$I$5) -> 16172 | J9: =GETPIVOTDATA("Afiliados",'TD_Histor. Af. Act. Ec.'!$A$3,"Año",B9,"Actividad",$J$5) -> 0 | K9: =GETPIVOTDATA("Afiliados",'TD_Histor. Af. Act. Ec.'!$A$3,"Año",B9,"Actividad",$K$5) -> 9772 | L9: =GETPIVOTDATA("Afiliados",'TD_Histor. Af. Act. Ec.'!$A$3,"Año",B9,"Actividad",$L$5) -> 67388 | M9: =GETPIVOTDATA("Afiliados",'TD_Histor. Af. Act. Ec.'!$A$3,"Año",B9,"Actividad",$M$5) -> 0 | N9: =GETPIVOTDATA("Afiliados",'TD_Histor. Af. Act. Ec.'!$A$3,"Año",B9,"Actividad",$N$5) -> 0 | O9: =GETPIVOTDATA("Afiliados",'TD_Histor. Af. Act. Ec.'!$A$3,"Año",B9,"Actividad",$O$5) -> 0 | P9: =GETPIVOTDATA("Afiliados",'TD_Histor. Af. Act. Ec.'!$A$3,"Año",B9,"Actividad",$P$5) -> 0 | Q9: =GETPIVOTDATA("Afiliados",'TD_Histor. Af. Act. Ec.'!$A$3,"Año",B9,"Actividad",$Q$5) -> 0 | R9: =GETPIVOTDATA("Afiliados",'TD_Histor. Af. Act. Ec.'!$A$3,"Año",B9,"Actividad",$R$5) -> 0 | S9: =GETPIVOTDATA("Afiliados",'TD_Histor. Af. Act. Ec.'!$A$3,"Año",B9,"Actividad",$S$5) -> 0 | T9: =GETPIVOTDATA("Afiliados",'TD_Histor. Af. Act. Ec.'!$A$3,"Año",B9,"Actividad",$T$5) -> 0 | U9: 274838 | W9: 1963 | X9: 137796 | Y9: 842 | Z9: 28666 | AA9: 1931 | AB9: 12271 | AC9: 16172 | AD9: 9772 | AE9: 67388 | AF9: 274838
B10: 1964 | C10: =GETPIVOTDATA("Afiliados",'TD_Histor. Af. Act. Ec.'!$A$3,"Año",B10,"Actividad",$C$5) -> 173291 | D10: =GETPIVOTDATA("Afiliados",'TD_Histor. Af. Act. Ec.'!$A$3,"Año",B10,"Actividad",$D$5) -> 0 | E10: =GETPIVOTDATA("Afiliados",'TD_Histor. Af. Act. Ec.'!$A$3,"Año",B10,"Actividad",$E$5) -> 813 | F10: =GETPIVOTDATA("Afiliados",'TD_Histor. Af. Act. Ec.'!$A$3,"Año",B10,"Actividad",$F$5) -> 30566 | G10: =GETPIVOTDATA("Afiliados",'TD_Histor. Af. Act. Ec.'!$A$3,"Año",B10,"Actividad",$G$5) -> 1744 | H10: =GETPIVOTDATA("Afiliados",'TD_Histor. Af. Act. Ec.'!$A$3,"Año",B10,"Actividad",$H$5) -> 13726 | I10: =GETPIVOTDATA("Afiliados",'TD_Histor. Af. Act. Ec.'!$A$3,"Año",B10,"Actividad",$I$5) -> 19433 | J10: =GETPIVOTDATA("Afiliados",'TD_Histor. Af. Act. Ec.'!$A$3,"Año",B10,"Actividad",$J$5) -> 0 | K10: =GETPIVOTDATA("Afiliados",'TD_Histor. Af. Act. Ec.'!$A$3,"Año",B10,"Actividad",$K$5) -> 9876 | L10: =GETPIVOTDATA("Afiliados",'TD_Histor. Af. Act. Ec.'!$A$3,"Año",B10,"Actividad",$L$5) -> 72840 | M10: =GETPIVOTDATA("Afiliados",'TD_Histor. Af. Act. Ec.'!$A$3,"Año",B10,"Actividad",$M$5) -> 0 | N10: =GETPIVOTDATA("Afiliados",'TD_Histor. Af. Act. Ec.'!$A$3,"Año",B10,"Actividad",$N$5) -> 0 | O10: =GETPIVOTDATA("Afiliados",'TD_Histor. Af. Act. Ec.'!$A$3,"Año",B10,"Actividad",$O$5) -> 0 | P10: =GETPIVOTDATA("Afiliados",'TD_Histor. Af. Act. Ec.'!$A$3,"Año",B10,"Actividad",$P$5) -> 0 | Q10: =GETPIVOTDATA("Afiliados",'TD_Histor. Af. Act. Ec.'!$A$3,"Año",B10,"Actividad",$Q$5) -> 0 | R10: =GETPIVOTDATA("Afiliados",'TD_Histor. Af. Act. Ec.'!$A$3,"Año",B10,"Actividad",$R$5) -> 0 | S10: =GETPIVOTDATA("Afiliados",'TD_Histor. Af. Act. Ec.'!$A$3,"Año",B10,"Actividad",$S$5) -> 0 | T10: =GETPIVOTDATA("Afiliados",'TD_Histor. Af. Act. Ec.'!$A$3,"Año",B10,"Actividad",$T$5) -> 0 | U10: 322289 | W10: 1964 | X10: 173291 | Y10: 813 | Z10: 30566 | AA10: 1744 | AB10: 13726 | AC10: 19433 | AD10: 9876 | AE10: 72840 | AF10: 322289
B11: 1965 | C11: =GETPIVOTDATA("Afiliados",'TD_Histor. Af. Act. Ec.'!$A$3,"Año",B11,"Actividad",$C$5) -> 171916 | D11: =GETPIVOTDATA("Afiliados",'TD_Histor. Af. Act. Ec.'!$A$3,"Año",B11,"Actividad",$D$5) -> 0 | E11: =GETPIVOTDATA("Afiliados",'TD_Histor. Af. Act. Ec.'!$A$3,"Año",B11,"Actividad",$E$5) -> 1189 | F11: =GETPIVOTDATA("Afiliados",'TD_Histor. Af. Act. Ec.'!$A$3,"Año",B11,"Actividad",$F$5) -> 33433 | G11: =GETPIVOTDATA("Afiliados",'TD_Histor. Af. Act. Ec.'!$A$3,"Año",B11,"Actividad",$G$5) -> 2605 | H11: =GETPIVOTDATA("Afiliados",'TD_Histor. Af. Act. Ec.'!$A$3,"Año",B11,"Actividad",$H$5) -> 16851 | I11: =GETPIVOTDATA("Afiliados",'TD_Histor. Af. Act. Ec.'!$A$3,"Año",B11,"Actividad",$I$5) -> 20494 | J11: =GETPIVOTDATA("Afiliados",'TD_Histor. Af. Act. Ec.'!$A$3,"Año",B11,"Actividad",$J$5) -> 0 | K11: =GETPIVOTDATA("Afiliados",'TD_Histor. Af. Act. Ec.'!$A$3,"Año",B11,"Actividad",$K$5) -> 10204 | L11: =GETPIVOTDATA("Afiliados",'TD_Histor. Af. Act. Ec.'!$A$3,"Año",B11,"Actividad",$L$5) -> 88877 | M11: =GETPIVOTDATA("Afiliados",'TD_Histor. Af. Act. Ec.'!$A$3,"Año",B11,"Actividad",$M$5) -> 0 | N11: =GETPIVOTDATA("Afiliados",'TD_Histor. Af. Act. Ec.'!$A$3,"Año",B11,"Actividad",$N$5) -> 0 | O11: =GETPIVOTDATA("Afiliados",'TD_Histor. Af. Act. Ec.'!$A$3,"Año",B11,"Actividad",$O$5) -> 0 | P11: =GETPIVOTDATA("Afiliados",'TD_Histor. Af. Act. Ec.'!$A$3,"Año",B11,"Actividad",$P$5) -> 0 | Q11: =GETPIVOTDATA("Afiliados",'TD_Histor. Af. Act. Ec.'!$A$3,"Año",B11,"Actividad",$Q$5) -> 0 | R11: =GETPIVOTDATA("Afiliados",'TD_Histor. Af. Act. Ec.'!$A$3,"Año",B11,"Actividad",$R$5) -> 0 | S11: =GETPIVOTDATA("Afiliados",'TD_Histor. Af. Act. Ec.'!$A$3,"Año",B11,"Actividad",$S$5) -> 0 | T11: =GETPIVOTDATA("Afiliados",'TD_Histor. Af. Act. Ec.'!$A$3,"Año",B11,"Actividad",$T$5) -> 0 | U11: 345569 | W11: 1965 | X11: 171916 | Y11: 1189 | Z11: 33433 | AA11: 2605 | AB11: 16851 | AC11: 20494 | AD11: 10204 | AE11: 88877 | AF11: 345569
B12: 1966 | C12: =GETPIVOTDATA("Afiliados",'TD_Histor. Af. Act. Ec.'!$A$3,"Año",B12,"Actividad",$C$5) -> 193856 | D12: =GETPIVOTDATA("Afiliados",'TD_Histor. Af. Act. Ec.'!$A$3,"Año",B12,"Actividad",$D$5) -> 0 | E12: =GETPIVOTDATA("Afiliados",'TD_Histor. Af. Act. Ec.'!$A$3,"Año",B12,"Actividad",$E$5) -> 1161 | F12: =GETPIVOTDATA("Afiliados",'TD_Histor. Af. Act. Ec.'!$A$3,"Año",B12,"Actividad",$F$5) -> 37773 | G12: =GETPIVOTDATA("Afiliados",'TD_Histor. Af. Act. Ec.'!$A$3,"Año",B12,"Actividad",$G$5) -> 1351 | H12: =GETPIVOTDATA("Afiliados",'TD_Histor. Af. Act. Ec.'!$A$3,"Año",B12,"Actividad",$H$5) -> 12893 | I12: =GETPIVOTDATA("Afiliados",'TD_Histor. Af. Act. Ec.'!$A$3,"Año",B12,"Actividad",$I$5) -> 22269 | J12: =GETPIVOTDATA("Afiliados",'TD_Histor. Af. Act. Ec.'!$A$3,"Año",B12,"Actividad",$J$5) -> 0 | K12: =GETPIVOTDATA("Afiliados",'TD_Histor. Af. Act. Ec.'!$A$3,"Año",B12,"Actividad",$K$5) -> 11084 | L12: =GETPIVOTDATA("Afiliados",'TD_Histor. Af. Act. Ec.'!$A$3,"Año",B12,"Actividad",$L$5) -> 86559 | M12: =GETPIVOTDATA("Afiliados",'TD_Histor. Af. Act. Ec.'!$A$3,"Año",B12,"Actividad",$M$5) -> 0 | N12: =GETPIVOTDATA("Afiliados",'TD_Histor. Af. Act. Ec.'!$A$3,"Año",B12,"Actividad",$N$5) -> 0 | O12: =GETPIVOTDATA("Afiliados",'TD_Histor. Af. Act. Ec.'!$A$3,"Año",B12,"Actividad",$O$5) -> 0 | P12: =GETPIVOTDATA("Afiliados",'TD_Histor. Af. Act. Ec.'!$A$3,"Año",B12,"Actividad",$P$5) -> 0 | Q12: =GETPIVOTDATA("Afiliados",'TD_Histor. Af. Act. Ec.'!$A$3,"Año",B12,"Actividad",$Q$5) -> 0 | R12: =GETPIVOTDATA("Afiliados",'TD_Histor. Af. Act. Ec.'!$A$3,"Año",B12,"Actividad",$R$5) -> 0 | S12: =GETPIVOTDATA("Afiliados",'TD_Histor. Af. Act. Ec.'!$A$3,"Año",B12,"Actividad",$S$5) -> 0 | T12: =GETPIVOTDATA("Afiliados",'TD_Histor. Af. Act. Ec.'!$A$3,"Año",B12,"Actividad",$T$5) -> 0 | U12: 366946 | W12: 1966 | X12: 193856 | Y12: 1161 | Z12: 37773 | AA12: 1351 | AB12: 12893 | AC12: 22269 | AD12: 11084 | AE12: 86559 | AF12: 366946
B13: 1967 | C13: =GETPIVOTDATA("Afiliados",'TD_Histor. Af. Act. Ec.'!$A$3,"Año",B13,"Actividad",$C$5) -> 188915 | D13: =GETPIVOTDATA("Afiliados",'TD_Histor. Af. Act. Ec.'!$A$3,"Año",B13,"Actividad",$D$5) -> 0 | E13: =GETPIVOTDATA("Afiliados",'TD_Histor. Af. Act. Ec.'!$A$3,"Año",B13,"Actividad",$E$5) -> 1006 | F13: =GETPIVOTDATA("Afiliados",'TD_Histor. Af. Act. Ec.'!$A$3,"Año",B13,"Actividad",$F$5) -> 39947 | G13: =GETPIVOTDATA("Afiliados",'TD_Histor. Af. Act. Ec.'!$A$3,"Año",B13,"Actividad",$G$5) -> 1759 | H13: =GETPIVOTDATA("Afiliados",'TD_Histor. Af. Act. Ec.'!$A$3,"Año",B13,"Actividad",$H$5) -> 12679 | I13: =GETPIVOTDATA("Afiliados",'TD_Histor. Af. Act. Ec.'!$A$3,"Año",B13,"Actividad",$I$5) -> 23398 | J13: =GETPIVOTDATA("Afiliados",'TD_Histor. Af. Act. Ec.'!$A$3,"Año",B13,"Actividad",$J$5) -> 0 | K13: =GETPIVOTDATA("Afiliados",'TD_Histor. Af. Act. Ec.'!$A$3,"Año",B13,"Actividad",$K$5) -> 9047 | L13: =GETPIVOTDATA("Afiliados",'TD_Histor. Af. Act. Ec.'!$A$3,"Año",B13,"Actividad",$L$5) -> 90650 | M13: =GETPIVOTDATA("Afiliados",'TD_Histor. Af. Act. Ec.'!$A$3,"Año",B13,"Actividad",$M$5) -> 0 | N13: =GETPIVOTDATA("Afiliados",'TD_Histor. Af. Act. Ec.'!$A$3,"Año",B13,"Actividad",$N$5) -> 0 | O13: =GETPIVOTDATA("Afiliados",'TD_Histor. Af. Act. Ec.'!$A$3,"Año",B13,"Actividad",$O$5) -> 0 | P13: =GETPIVOTDATA("Afiliados",'TD_Histor. Af. Act. Ec.'!$A$3,"Año",B13,"Actividad",$P$5) -> 0 | Q13: =GETPIVOTDATA("Afiliados",'TD_Histor. Af. Act. Ec.'!$A$3,"Año",B13,"Actividad",$Q$5) -> 0 | R13: =GETPIVOTDATA("Afiliados",'TD_Histor. Af. Act. Ec.'!$A$3,"Año",B13,"Actividad",$R$5) -> 0 | S13: =GETPIVOTDATA("Afiliados",'TD_Histor. Af. Act. Ec.'!$A$3,"Año",B13,"Actividad",$S$5) -> 0 | T13: =GETPIVOTDATA("Afiliados",'TD_Histor. Af. Act. Ec.'!$A$3,"Año",B13,"Actividad",$T$5) -> 0 | U13: 367401 | W13: 1967 | X13: 188915 | Y13: 1006 | Z13: 39947 | AA13: 1759 | AB13: 12679 | AC13: 23398 | AD13: 9047 | AE13: 90650 | AF13: 367401
B14: 1968 | C14: =GETPIVOTDATA("Afiliados",'TD_Histor. Af. Act. Ec.'!$A$3,"Año",B14,"Actividad",$C$5) -> 227973 | D14: =GETPIVOTDATA("Afiliados",'TD_Histor. Af. Act. Ec.'!$A$3,"Año",B14,"Actividad",$D$5) -> 0 | E14: =GETPIVOTDATA("Afiliados",'TD_Histor. Af. Act. Ec.'!$A$3,"Año",B14,"Actividad",$E$5) -> 1448 | F14: =GETPIVOTDATA("Afiliados",'TD_Histor. Af. Act. Ec.'!$A$3,"Año",B14,"Actividad",$F$5) -> 39487 | G14: =GETPIVOTDATA("Afiliados",'TD_Histor. Af. Act. Ec.'!$A$3,"Año",B14,"Actividad",$G$5) -> 3564 | H14: =GETPIVOTDATA("Afiliados",'TD_Histor. Af. Act. Ec.'!$A$3,"Año",B14,"Actividad",$H$5) -> 11312 | I14: =GETPIVOTDATA("Afiliados",'TD_Histor. Af. Act. Ec.'!$A$3,"Año",B14,"Actividad",$I$5) -> 20617 | J14: =GETPIVOTDATA("Afiliados",'TD_Histor. Af. Act. Ec.'!$A$3,"Año",B14,"Actividad",$J$5) -> 0 | K14: =GETPIVOTDATA("Afiliados",'TD_Histor. Af. Act. Ec.'!$A$3,"Año",B14,"Actividad",$K$5) -> 11357 | L14: =GETPIVOTDATA("Afiliados",'TD_Histor. Af. Act. Ec.'!$A$3,"Año",B14,"Actividad",$L$5) -> 80050 | M14: =GETPIVOTDATA("Afiliados",'TD_Histor. Af. Act. Ec.'!$A$3,"Año",B14,"Actividad",$M$5) -> 0 | N14: =GETPIVOTDATA("Afiliados",'TD_Histor. Af. Act. Ec.'!$A$3,"Año",B14,"Actividad",$N$5) -> 0 | O14: =GETPIVOTDATA("Afiliados",'TD_Histor. Af. Act. Ec.'!$A$3,"Año",B14,"Actividad",$O$5) -> 0 | P14: =GETPIVOTDATA("Afiliados",'TD_Histor. Af. Act. Ec.'!$A$3,"Año",B14,"Actividad",$P$5) -> 0 | Q14: =GETPIVOTDATA("Afiliados",'TD_Histor. Af. Act. Ec.'!$A$3,"Año",B14,"Actividad",$Q$5) -> 0 | R14: =GETPIVOTDATA("Afiliados",'TD_Histor. Af. Act. Ec.'!$A$3,"Año",B14,"Actividad",$R$5) -> 0 | S14: =GETPIVOTDATA("Afiliados",'TD_Histor. Af. Act. Ec.'!$A$3,"Año",B14,"Actividad",$S$5) -> 0 | T14: =GETPIVOTDATA("Afiliados",'TD_Histor. Af. Act. Ec.'!$A$3,"Año",B14,"Actividad",$T$5) -> 0 | U14: 395808 | W14: 1968 | X14: 227973 | Y14: 1448 | Z14: 39487 | AA14: 3564 | AB14: 11312 | AC14: 20617 | AD14: 11357 | AE14: 80050 | AF14: 395808
B15: 1969 | C15: =GETPIVOTDATA("Afiliados",'TD_Histor. Af. Act. Ec.'!$A$3,"Año",B15,"Actividad",$C$5) -> 269079 | D15: =GETPIVOTDATA("Afiliados",'TD_Histor. Af. Act. Ec.'!$A$3,"Año",B15,"Actividad",$D$5) -> 0 | E15: =GETPIVOTDATA("Afiliados",'TD_Histor. Af. Act. Ec.'!$A$3,"Año",B15,"Actividad",$E$5) -> 1618 | F15: =GETPIVOTDATA("Afiliados",'TD_Histor. Af. Act. Ec.'!$A$3,"Año",B15,"Actividad",$F$5) -> 38169 | G15: =GETPIVOTDATA("Afiliados",'TD_Histor. Af. Act. Ec.'!$A$3,"Año",B15,"Actividad",$G$5) -> 3763 | H15: =GETPIVOTDATA("Afiliados",'TD_Histor. Af. Act. Ec.'!$A$3,"Año",B15,"Actividad",$H$5) -> 14337 | I15: =GETPIVOTDATA("Afiliados",'TD_Histor. Af. Act. Ec.'!$A$3,"Año",B15,"Actividad",$I$5) -> 22442 | J15: =GETPIVOTDATA("Afiliados",'TD_Histor. Af. Act. Ec.'!$A$3,"Año",B15,"Actividad",$J$5) -> 0 | K15: =GETPIVOTDATA("Afiliados",'TD_Histor. Af. Act. Ec.'!$A$3,"Año",B15,"Actividad",$K$5) -> 10404 | L15: =GETPIVOTDATA("Afiliados",'TD_Histor. Af. Act. Ec.'!$A$3,"Año",B15,"Actividad",$L$5) -> 86728 | M15: =GETPIVOTDATA("Afiliados",'TD_Histor. Af. Act. Ec.'!$A$3,"Año",B15,"Actividad",$M$5) -> 0 | N15: =GETPIVOTDATA("Afiliados",'TD_Histor. Af. Act. Ec.'!$A$3,"Año",B15,"Actividad",$N$5) -> 0 | O15: =GETPIVOTDATA("Afiliados",'TD_Histor. Af. Act. Ec.'!$A$3,"Año",B15,"Actividad",$O$5) -> 0 | P15: =GETPIVOTDATA("Afiliados",'TD_Histor. Af. Act. Ec.'!$A$3,"Año",B15,"Actividad",$P$5) -> 0 | Q15: =GETPIVOTDATA("Afiliados",'TD_Histor. Af. Act. Ec.'!$A$3,"Año",B15,"Actividad",$Q$5) -> 0 | R15: =GETPIVOTDATA("Afiliados",'TD_Histor. Af. Act. Ec.'!$A$3,"Año",B15,"Actividad",$R$5) -> 0 | S15: =GETPIVOTDATA("Afiliados",'TD_Histor. Af. Act. Ec.'!$A$3,"Año",B15,"Actividad",$S$5) -> 0 | T15: =GETPIVOTDATA("Afiliados",'TD_Histor. Af. Act. Ec.'!$A$3,"Año",B15,"Actividad",$T$5) -> 0 | U15: 446540 | W15: 1969 | X15: 269079 | Y15: 1618 | Z15: 38169 | AA15: 3763 | AB15: 14337 | AC15: 22442 | AD15: 10404 | AE15: 86728 | AF15: 446540
B16: 1970 | C16: =GETPIVOTDATA("Afiliados",'TD_Histor. Af. Act. Ec.'!$A$3,"Año",B16,"Actividad",$C$5) -> 207055 | D16: =GETPIVOTDATA("Afiliados",'TD_Histor. Af. Act. Ec.'!$A$3,"Año",B16,"Actividad",$D$5) -> 0 | E16: =GETPIVOTDATA("Afiliados",'TD_Histor. Af. Act. Ec.'!$A$3,"Año",B16,"Actividad",$E$5) -> 3417 | F16: =GETPIVOTDATA("Afiliados",'TD_Histor. Af. Act. Ec.'!$A$3,"Año",B16,"Actividad",$F$5) -> 69325 | G16: =GETPIVOTDATA("Afiliados",'TD_Histor. Af. Act. Ec.'!$A$3,"Año",B16,"Actividad",$G$5) -> 4827 | H16: =GETPIVOTDATA("Afiliados",'TD_Histor. Af. Act. Ec.'!$A$3,"Año",B16,"Actividad",$H$5) -> 21585 | I16: =GETPIVOTDATA("Afiliados",'TD_Histor. Af. Act. Ec.'!$A$3,"Año",B16,"Actividad",$I$5) -> 36649 | J16: =GETPIVOTDATA("Afiliados",'TD_Histor. Af. Act. Ec.'!$A$3,"Año",B16,"Actividad",$J$5) -> 0 | K16: =GETPIVOTDATA("Afiliados",'TD_Histor. Af. Act. Ec.'!$A$3,"Año",B16,"Actividad",$K$5) -> 8833 | L16: =GETPIVOTDATA("Afiliados",'TD_Histor. Af. Act. Ec.'!$A$3,"Año",B16,"Actividad",$L$5) -> 96585 | M16: =GETPIVOTDATA("Afiliados",'TD_Histor. Af. Act. Ec.'!$A$3,"Año",B16,"Actividad",$M$5) -> 0 | N16: =GETPIVOTDATA("Afiliados",'TD_Histor. Af. Act. Ec.'!$A$3,"Año",B16,"Actividad",$N$5) -> 0 | O16: =GETPIVOTDATA("Afiliados",'TD_Histor. Af. Act. Ec.'!$A$3,"Año",B16,"Actividad",$O$5) -> 0 | P16: =GETPIVOTDATA("Afiliados",'TD_Histor. Af. Act. Ec.'!$A$3,"Año",B16,"Actividad",$P$5) -> 0 | Q16: =GETPIVOTDATA("Afiliados",'TD_Histor. Af. Act. Ec.'!$A$3,"Año",B16,"Actividad",$Q$5) -> 0 | R16: =GETPIVOTDATA("Afiliados",'TD_Histor. Af. Act. Ec.'!$A$3,"Año",B16,"Actividad",$R$5) -> 0 | S16: =GETPIVOTDATA("Afiliados",'TD_Histor. Af. Act. Ec.'!$A$3,"Año",B16,"Actividad",$S$5) -> 0 | T16: =GETPIVOTDATA("Afiliados",'TD_Histor. Af. Act. Ec.'!$A$3,"Año",B16,"Actividad",$T$5) -> 0 | U16: 448276 | W16: 1970 | X16: 207055 | Y16: 3417 | Z16: 69325 | AA16: 4827 | AB16: 21585 | AC16: 36649 | AD16: 8833 | AE16: 96585 | AF16: 448276
B17: 1971 | C17: =GETPIVOTDATA("Afiliados",'TD_Histor. Af. Act. Ec.'!$A$3,"Año",B17,"Actividad",$C$5) -> 246702 | D17: =GETPIVOTDATA("Afiliados",'TD_Histor. Af. Act. Ec.'!$A$3,"Año",B17,"Actividad",$D$5) -> 0 | E17: =GETPIVOTDATA("Afiliados",'TD_Histor. Af. Act. Ec.'!$A$3,"Año",B17,"Actividad",$E$5) -> 1733 | F17: =GETPIVOTDATA("Afiliados",'TD_Histor. Af. Act. Ec.'!$A$3,"Año",B17,"Actividad",$F$5) -> 46864 | G17: =GETPIVOTDATA("Afiliados",'TD_Histor. Af. Act. Ec.'!$A$3,"Año",B17,"Actividad",$G$5) -> 4649 | H17: =GETPIVOTDATA("Afiliados",'TD_Histor. Af. Act. Ec.'!$A$3,"Año",B17,"Actividad",$H$5) -> 14968 | I17: =GETPIVOTDATA("Afiliados",'TD_Histor. Af. Act. Ec.'!$A$3,"Año",B17,"Actividad",$I$5) -> 30931 | J17: =GETPIVOTDATA("Afiliados",'TD_Histor. Af. Act. Ec.'!$A$3,"Año",B17,"Actividad",$J$5) -> 0 | K17: =GETPIVOTDATA("Afiliados",'TD_Histor. Af. Act. Ec.'!$A$3,"Año",B17,"Actividad",$K$5) -> 9860 | L17: =GETPIVOTDATA("Afiliados",'TD_Histor. Af. Act. Ec.'!$A$3,"Año",B17,"Actividad",$L$5) -> 87135 | M17: =GETPIVOTDATA("Afiliados",'TD_Histor. Af. Act. Ec.'!$A$3,"Año",B17,"Actividad",$M$5) -> 0 | N17: =GETPIVOTDATA("Afiliados",'TD_Histor. Af. Act. Ec.'!$A$3,"Año",B17,"Actividad",$N$5) -> 0 | O17: =GETPIVOTDATA("Afiliados",'TD_Histor. Af. Act. Ec.'!$A$3,"Año",B17,"Actividad",$O$5) -> 0 | P17: =GETPIVOTDATA("Afiliados",'TD_Histor. Af. Act. Ec.'!$A$3,"Año",B17,"Actividad",$P$5) -> 0 | Q17: =GETPIVOTDATA("Afiliados",'TD_Histor. Af. Act. Ec.'!$A$3,"Año",B17,"Actividad",$Q$5) -> 0 | R17: =GETPIVOTDATA("Afiliados",'TD_Histor. Af. Act. Ec.'!$A$3,"Año",B17,"Actividad",$R$5) -> 0 | S17: =GETPIVOTDATA("Afiliados",'TD_Histor. Af. Act. Ec.'!$A$3,"Año",B17,"Actividad",$S$5) -> 0 | T17: =GETPIVOTDATA("Afiliados",'TD_Histor. Af. Act. Ec.'!$A$3,"Año",B17,"Actividad",$T$5) -> 0 | U17: 442842 | W17: 1971 | X17: 246702 | Y17: 1733 | Z17: 46864 | AA17: 4649 | AB17: 14968 | AC17: 30931 | AD17: 9860 | AE17: 87135 | AF17: 442842
B18: 1972 | C18: =GETPIVOTDATA("Afiliados",'TD_Histor. Af. Act. Ec.'!$A$3,"Año",B18,"Actividad",$C$5) -> 251277 | D18: =GETPIVOTDATA("Afiliados",'TD_Histor. Af. Act. Ec.'!$A$3,"Año",B18,"Actividad",$D$5) -> 0 | E18: =GETPIVOTDATA("Afiliados",'TD_Histor. Af. Act. Ec.'!$A$3,"Año",B18,"Actividad",$E$5) -> 1346 | F18: =GETPIVOTDATA("Afiliados",'TD_Histor. Af. Act. Ec.'!$A$3,"Año",B18,"Actividad",$F$5) -> 40694 | G18: =GETPIVOTDATA("Afiliados",'TD_Histor. Af. Act. Ec.'!$A$3,"Año",B18,"Actividad",$G$5) -> 4728 | H18: =GETPIVOTDATA("Afiliados",'TD_Histor. Af. Act. Ec.'!$A$3,"Año",B18,"Actividad",$H$5) -> 12239 | I18: =GETPIVOTDATA("Afiliados",'TD_Histor. Af. Act. Ec.'!$A$3,"Año",B18,"Actividad",$I$5) -> 28627 | J18: =GETPIVOTDATA("Afiliados",'TD_Histor. Af. Act. Ec.'!$A$3,"Año",B18,"Actividad",$J$5) -> 0 | K18: =GETPIVOTDATA("Afiliados",'TD_Histor. Af. Act. Ec.'!$A$3,"Año",B18,"Actividad",$K$5) -> 10556 | L18: =GETPIVOTDATA("Afiliados",'TD_Histor. Af. Act. Ec.'!$A$3,"Año",B18,"Actividad",$L$5) -> 98911 | M18: =GETPIVOTDATA("Afiliados",'TD_Histor. Af. Act. Ec.'!$A$3,"Año",B18,"Actividad",$M$5) -> 0 | N18: =GETPIVOTDATA("Afiliados",'TD_Histor. Af. Act. Ec.'!$A$3,"Año",B18,"Actividad",$N$5) -> 0 | O18: =GETPIVOTDATA("Afiliados",'TD_Histor. Af. Act. Ec.'!$A$3,"Año",B18,"Actividad",$O$5) -> 0 | P18: =GETPIVOTDATA("Afiliados",'TD_Histor. Af. Act. Ec.'!$A$3,"Año",B18,"Actividad",$P$5) -> 0 | Q18: =GETPIVOTDATA("Afiliados",'TD_Histor. Af. Act. Ec.'!$A$3,"Año",B18,"Actividad",$Q$5) -> 0 | R18: =GETPIVOTDATA("Afiliados",'TD_Histor. Af. Act. Ec.'!$A$3,"Año",B18,"Actividad",$R$5) -> 0 | S18: =GETPIVOTDATA("Afiliados",'TD_Histor. Af. Act. Ec.'!$A$3,"Año",B18,"Actividad",$S$5) -> 0 | T18: =GETPIVOTDATA("Afiliados",'TD_Histor. Af. Act. Ec.'!$A$3,"Año",B18,"Actividad",$T$5) -> 0 | U18: 448378 | W18: 1972 | X18: 251277 | Y18: 1346 | Z18: 40694 | AA18: 4728 | AB18: 12239 | AC18: 28627 | AD18: 10556 | AE18: 98911 | AF18: 448378
B19: 1973 | C19: =GETPIVOTDATA("Afiliados",'TD_Histor. Af. Act. Ec.'!$A$3,"Año",B19,"Actividad",$C$5) -> 249105 | D19: =GETPIVOTDATA("Afiliados",'TD_Histor. Af. Act. Ec.'!$A$3,"Año",B19,"Actividad",$D$5) -> 0 | E19: =GETPIVOTDATA("Afiliados",'TD_Histor. Af. Act. Ec.'!$A$3,"Año",B19,"Actividad",$E$5) -> 1375 | F19: =GETPIVOTDATA("Afiliados",'TD_Histor. Af. Act. Ec.'!$A$3,"Año",B19,"Actividad",$F$5) -> 49749 | G19: =GETPIVOTDATA("Afiliados",'TD_Histor. Af. Act. Ec.'!$A$3,"Año",B19,"Actividad",$G$5) -> 3970 | H19: =GETPIVOTDATA("Afiliados",'TD_Histor. Af. Act. Ec.'!$A$3,"Año",B19,"Actividad",$H$5) -> 16947 | I19: =GETPIVOTDATA("Afiliados",'TD_Histor. Af. Act. Ec.'!$A$3,"Año",B19,"Actividad",$I$5) -> 32757 | J19: =GETPIVOTDATA("Afiliados",'TD_Histor. Af. Act. Ec.'!$A$3,"Año",B19,"Actividad",$J$5) -> 0 | K19: =GETPIVOTDATA("Afiliados",'TD_Histor. Af. Act. Ec.'!$A$3,"Año",B19,"Actividad",$K$5) -> 10510 | L19: =GETPIVOTDATA("Afiliados",'TD_Histor. Af. Act. Ec.'!$A$3,"Año",B19,"Actividad",$L$5) -> 104450 | M19: =GETPIVOTDATA("Afiliados",'TD_Histor. Af. Act. Ec.'!$A$3,"Año",B19,"Actividad",$M$5) -> 0 | N19: =GETPIVOTDATA("Afiliados",'TD_Histor. Af. Act. Ec.'!$A$3,"Año",B19,"Actividad",$N$5) -> 0 | O19: =GETPIVOTDATA("Afiliados",'TD_Histor. Af. Act. Ec.'!$A$3,"Año",B19,"Actividad",$O$5) -> 0 | P19: =GETPIVOTDATA("Afiliados",'TD_Histor. Af. Act. Ec.'!$A$3,"Año",B19,"Actividad",$P$5) -> 0 | Q19: =GETPIVOTDATA("Afiliados",'TD_Histor. Af. Act. Ec.'!$A$3,"Año",B19,"Actividad",$Q$5) -> 0 | R19: =GETPIVOTDATA("Afiliados",'TD_Histor. Af. Act. Ec.'!$A$3,"Año",B19,"Actividad",$R$5) -> 0 | S19: =GETPIVOTDATA("Afiliados",'TD_Histor. Af. Act. Ec.'!$A$3,"Año",B19,"Actividad",$S$5) -> 0 | T19: =GETPIVOTDATA("Afiliados",'TD_Histor. Af. Act. Ec.'!$A$3,"Año",B19,"Actividad",$T$5) -> 0 | U19: 468863 | W19: 1973 | X19: 249105 | Y19: 1375 | Z19: 49749 | AA19: 3970 | AB19: 16947 | AC19: 32757 | AD19: 10510 | AE19: 104450 | AF19: 468863
B20: 1974 | C20: =GETPIVOTDATA("Afiliados",'TD_Histor. Af. Act. Ec.'!$A$3,"Año",B20,"Actividad",$C$5) -> 271437 | D20: =GETPIVOTDATA("Afiliados",'TD_Histor. Af. Act. Ec.'!$A$3,"Año",B20,"Actividad",$D$5) -> 0 | E20: =GETPIVOTDATA("Afiliados",'TD_Histor. Af. Act. Ec.'!$A$3,"Año",B20,"Actividad",$E$5) -> 4016 | F20: =GETPIVOTDATA("Afiliados",'TD_Histor. Af. Act. Ec.'!$A$3,"Año",B20,"Actividad",$F$5) -> 58117 | G20: =GETPIVOTDATA("Afiliados",'TD_Histor. Af. Act. Ec.'!$A$3,"Año",B20,"Actividad",$G$5) -> 6717 | H20: =GETPIVOTDATA("Afiliados",'TD_Histor. Af. Act. Ec.'!$A$3,"Año",B20,"Actividad",$H$5) -> 22439 | I20: =GETPIVOTDATA("Afiliados",'TD_Histor. Af. Act. Ec.'!$A$3,"Año",B20,"Actividad",$I$5) -> 45184 | J20: =GETPIVOTDATA("Afiliados",'TD_Histor. Af. Act. Ec.'!$A$3,"Año",B20,"Actividad",$J$5) -> 0 | K20: =GETPIVOTDATA("Afiliados",'TD_Histor. Af. Act. Ec.'!$A$3,"Año",B20,"Actividad",$K$5) -> 12452 | L20: =GETPIVOTDATA("Afiliados",'TD_Histor. Af. Act. Ec.'!$A$3,"Año",B20,"Actividad",$L$5) -> 119430 | M20: =GETPIVOTDATA("Afiliados",'TD_Histor. Af. Act. Ec.'!$A$3,"Año",B20,"Actividad",$M$5) -> 0 | N20: =GETPIVOTDATA("Afiliados",'TD_Histor. Af. Act. Ec.'!$A$3,"Año",B20,"Actividad",$N$5) -> 0 | O20: =GETPIVOTDATA("Afiliados",'TD_Histor. Af. Act. Ec.'!$A$3,"Año",B20,"Actividad",$O$5) -> 0 | P20: =GETPIVOTDATA("Afiliados",'TD_Histor. Af. Act. Ec.'!$A$3,"Año",B20,"Actividad",$P$5) -> 0 | Q20: =GETPIVOTDATA("Afiliados",'TD_Histor. Af. Act. Ec.'!$A$3,"Año",B20,"Actividad",$Q$5) -> 0 | R20: =GETPIVOTDATA("Afiliados",'TD_Histor. Af. Act. Ec.'!$A$3,"Año",B20,"Actividad",$R$5) -> 0 | S20: =GETPIVOTDATA("Afiliados",'TD_Histor. Af. Act. Ec.'!$A$3,"Año",B20,"Actividad",$S$5) -> 0 | T20: =GETPIVOTDATA("Afiliados",'TD_Histor. Af. Act. Ec.'!$A$3,"Año",B20,"Actividad",$T$5) -> 0 | U20: 539792 | W20: 1974 | X20: 271437 | Y20: 4016 | Z20: 58117 | AA20: 6717 | AB20: 22439 | AC20: 45184 | AD20: 12452 | AE20: 119430 | AF20: 539792
B21: 1975 | C21: =GETPIVOTDATA("Afiliados",'TD_Histor. Af. Act. Ec.'!$A$3,"Año",B21,"Actividad",$C$5) -> 260065 | D21: =GETPIVOTDATA("Afiliados",'TD_Histor. Af. Act. Ec.'!$A$3,"Año",B21,"Actividad",$D$5) -> 0 | E21: =GETPIVOTDATA("Afiliados",'TD_Histor. Af. Act. Ec.'!$A$3,"Año",B21,"Actividad",$E$5) -> 2733 | F21: =GETPIVOTDATA("Afiliados",'TD_Histor. Af. Act. Ec.'!$A$3,"Año",B21,"Actividad",$F$5) -> 61796 | G21: =GETPIVOTDATA("Afiliados",'TD_Histor. Af. Act. Ec.'!$A$3,"Año",B21,"Actividad",$G$5) -> 5788 | H21: =GETPIVOTDATA("Afiliados",'TD_Histor. Af. Act. Ec.'!$A$3,"Año",B21,"Actividad",$H$5) -> 20865 | I21: =GETPIVOTDATA("Afiliados",'TD_Histor. Af. Act. Ec.'!$A$3,"Año",B21,"Actividad",$I$5) -> 38233 | J21: =GETPIVOTDATA("Afiliados",'TD_Histor. Af. Act. Ec.'!$A$3,"Año",B21,"Actividad",$J$5) -> 0 | K21: =GETPIVOTDATA("Afiliados",'TD_Histor. Af. Act. Ec.'!$A$3,"Año",B21,"Actividad",$K$5) -> 10844 | L21: =GETPIVOTDATA("Afiliados",'TD_Histor. Af. Act. Ec.'!$A$3,"Año",B21,"Actividad",$L$5) -> 120372 | M21: =GETPIVOTDATA("Afiliados",'TD_Histor. Af. Act. Ec.'!$A$3,"Año",B21,"Actividad",$M$5) -> 0 | N21: =GETPIVOTDATA("Afiliados",'TD_Histor. Af. Act. Ec.'!$A$3,"Año",B21,"Actividad",$N$5) -> 0 | O21: =GETPIVOTDATA("Afiliados",'TD_Histor. Af. Act. Ec.'!$A$3,"Año",B21,"Actividad",$O$5) -> 0 | P21: =GETPIVOTDATA("Afiliados",'TD_Histor. Af. Act. Ec.'!$A$3,"Año",B21,"Actividad",$P$5) -> 0 | Q21: =GETPIVOTDATA("Afiliados",'TD_Histor. Af. Act. Ec.'!$A$3,"Año",B21,"Actividad",$Q$5) -> 0 | R21: =GETPIVOTDATA("Afiliados",'TD_Histor. Af. Act. Ec.'!$A$3,"Año",B21,"Actividad",$R$5) -> 0 | S21: =GETPIVOTDATA("Afiliados",'TD_Histor. Af. Act. Ec.'!$A$3,"Año",B21,"Actividad",$S$5) -> 0 | T21: =GETPIVOTDATA("Afiliados",'TD_Histor. Af. Act. Ec.'!$A$3,"Año",B21,"Actividad",$T$5) -> 0 | U21: 520696 | W21: 1975 | X21: 260065 | Y21: 2733 | Z21: 61796 | AA21: 5788 | AB21: 20865 | AC21: 38233 | AD21: 10844 | AE21: 120372 | AF21: 520696
B22: 1976 | C22: =GETPIVOTDATA("Afiliados",'TD_Histor. Af. Act. Ec.'!$A$3,"Año",B22,"Actividad",$C$5) -> 283904 | D22: =GETPIVOTDATA("Afiliados",'TD_Histor. Af. Act. Ec.'!$A$3,"Año",B22,"Actividad",$D$5) -> 0 | E22: =GETPIVOTDATA("Afiliados",'TD_Histor. Af. Act. Ec.'!$A$3,"Año",B22,"Actividad",$E$5) -> 1907 | F22: =GETPIVOTDATA("Afiliados",'TD_Histor. Af. Act. Ec.'!$A$3,"Año",B22,"Actividad",$F$5) -> 73279 | G22: =GETPIVOTDATA("Afiliados",'TD_Histor. Af. Act. Ec.'!$A$3,"Año",B22,"Actividad",$G$5) -> 5685 | H22: =GETPIVOTDATA("Afiliados",'TD_Histor. Af. Act. Ec.'!$A$3,"Año",B22,"Actividad",$H$5) -> 22156 | I22: =GETPIVOTDATA("Afiliados",'TD_Histor. Af. Act. Ec.'!$A$3,"Año",B22,"Actividad",$I$5) -> 36893 | J22: =GETPIVOTDATA("Afiliados",'TD_Histor. Af. Act. Ec.'!$A$3,"Año",B22,"Actividad",$J$5) -> 0 | K22: =GETPIVOTDATA("Afiliados",'TD_Histor. Af. Act. Ec.'!$A$3,"Año",B22,"Actividad",$K$5) -> 10770 | L22: =GETPIVOTDATA("Afiliados",'TD_Histor. Af. Act. Ec.'!$A$3,"Año",B22,"Actividad",$L$5) -> 143326 | M22: =GETPIVOTDATA("Afiliados",'TD_Histor. Af. Act. Ec.'!$A$3,"Año",B22,"Actividad",$M$5) -> 0 | N22: =GETPIVOTDATA("Afiliados",'TD_Histor. Af. Act. Ec.'!$A$3,"Año",B22,"Actividad",$N$5) -> 0 | O22: =GETPIVOTDATA("Afiliados",'TD_Histor. Af. Act. Ec.'!$A$3,"Año",B22,"Actividad",$O$5) -> 0 | P22: =GETPIVOTDATA("Afiliados",'TD_Histor. Af. Act. Ec.'!$A$3,"Año",B22,"Actividad",$P$5) -> 0 | Q22: =GETPIVOTDATA("Afiliados",'TD_Histor. Af. Act. Ec.'!$A$3,"Año",B22,"Actividad",$Q$5) -> 0 | R22: =GETPIVOTDATA("Afiliados",'TD_Histor. Af. Act. Ec.'!$A$3,"Año",B22,"Actividad",$R$5) -> 0 | S22: =GETPIVOTDATA("Afiliados",'TD_Histor. Af. Act. Ec.'!$A$3,"Año",B22,"Actividad",$S$5) -> 0 | T22: =GETPIVOTDATA("Afiliados",'TD_Histor. Af. Act. Ec.'!$A$3,"Año",B22,"Actividad",$T$5) -> 0 | U22: 577920 | W22: 1976 | X22: 283904 | Y22: 1907 | Z22: 73279 | AA22: 5685 | AB22: 22156 | AC22: 36893 | AD22: 10770 | AE22: 143326 | AF22: 577920
B23: 1977 | C23: =GETPIVOTDATA("Afiliados",'TD_Histor. Af. Act. Ec.'!$A$3,"Año",B23,"Actividad",$C$5) -> 368342 | D23: =GETPIVOTDATA("Afiliados",'TD_Histor. Af. Act. Ec.'!$A$3,"Año",B23,"Actividad",$D$5) -> 0 | E23: =GETPIVOTDATA("Afiliados",'TD_Histor. Af. Act. Ec.'!$A$3,"Año",B23,"Actividad",$E$5) -> 3960 | F23: =GETPIVOTDATA("Afiliados",'TD_Histor. Af. Act. Ec.'!$A$3,"Año",B23,"Actividad",$F$5) -> 84529 | G23: =GETPIVOTDATA("Afiliados",'TD_Histor. Af. Act. Ec.'!$A$3,"Año",B23,"Actividad",$G$5) -> 9204 | H23: =GETPIVOTDATA("Afiliados",'TD_Histor. Af. Act. Ec.'!$A$3,"Año",B23,"Actividad",$H$5) -> 24177 | I23: =GETPIVOTDATA("Afiliados",'TD_Histor. Af. Act. Ec.'!$A$3,"Año",B23,"Actividad",$I$5) -> 51062 | J23: =GETPIVOTDATA("Afiliados",'TD_Histor. Af. Act. Ec.'!$A$3,"Año",B23,"Actividad",$J$5) -> 0 | K23: =GETPIVOTDATA("Afiliados",'TD_Histor. Af. Act. Ec.'!$A$3,"Año",B23,"Actividad",$K$5) -> 14318 | L23: =GETPIVOTDATA("Afiliados",'TD_Histor. Af. Act. Ec.'!$A$3,"Año",B23,"Actividad",$L$5) -> 153223 | M23: =GETPIVOTDATA("Afiliados",'TD_Histor. Af. Act. Ec.'!$A$3,"Año",B23,"Actividad",$M$5) -> 0 | N23: =GETPIVOTDATA("Afiliados",'TD_Histor. Af. Act. Ec.'!$A$3,"Año",B23,"Actividad",$N$5) -> 0 | O23: =GETPIVOTDATA("Afiliados",'TD_Histor. Af. Act. Ec.'!$A$3,"Año",B23,"Actividad",$O$5) -> 0 | P23: =GETPIVOTDATA("Afiliados",'TD_Histor. Af. Act. Ec.'!$A$3,"Año",B23,"Actividad",$P$5) -> 0 | Q23: =GETPIVOTDATA("Afiliados",'TD_Histor. Af. Act. Ec.'!$A$3,"Año",B23,"Actividad",$Q$5) -> 0 | R23: =GETPIVOTDATA("Afiliados",'TD_Histor. Af. Act. Ec.'!$A$3,"Año",B23,"Actividad",$R$5) -> 0 | S23: =GETPIVOTDATA("Afiliados",'TD_Histor. Af. Act. Ec.'!$A$3,"Año",B23,"Actividad",$S$5) -> 0 | T23: =GETPIVOTDATA("Afiliados",'TD_Histor. Af. Act. Ec.'!$A$3,"Año",B23,"Actividad",$T$5) -> 0 | U23: 708815 | W23: 1977 | X23: 368342 | Y23: 3960 | Z23: 84529 | AA23: 9204 | AB23: 24177 | AC23: 51062 | AD23: 14318 | AE23: 153223 | AF23: 708815
B24: 1978 | C24: =GETPIVOTDATA("Afiliados",'TD_Histor. Af. Act. Ec.'!$A$3,"Año",B24,"Actividad",$C$5) -> 395305 | D24: =GETPIVOTDATA("Afiliados",'TD_Histor. Af. Act. Ec.'!$A$3,"Año",B24,"Actividad",$D$5) -> 0 | E24: =GETPIVOTDATA("Afiliados",'TD_Histor. Af. Act. Ec.'!$A$3,"Año",B24,"Actividad",$E$5) -> 3649 | F24: =GETPIVOTDATA("Afiliados",'TD_Histor. Af. Act. Ec.'!$A$3,"Año",B24,"Actividad",$F$5) -> 91701 | G24: =GETPIVOTDATA("Afiliados",'TD_Histor. Af. Act. Ec.'!$A$3,"Año",B24,"Actividad",$G$5) -> 10572 | H24: =GETPIVOTDATA("Afiliados",'TD_Histor. Af. Act. Ec.'!$A$3,"Año",B24,"Actividad",$H$5) -> 37215 | I24: =GETPIVOTDATA("Afiliados",'TD_Histor. Af. Act. Ec.'!$A$3,"Año",B24,"Actividad",$I$5) -> 56616 | J24: =GETPIVOTDATA("Afiliados",'TD_Histor. Af. Act. Ec.'!$A$3,"Año",B24,"Actividad",$J$5) -> 0 | K24: =GETPIVOTDATA("Afiliados",'TD_Histor. Af. Act. Ec.'!$A$3,"Año",B24,"Actividad",$K$5) -> 15073 | L24: =GETPIVOTDATA("Afiliados",'TD_Histor. Af. Act. Ec.'!$A$3,"Año",B24,"Actividad",$L$5) -> 158914 | M24: =GETPIVOTDATA("Afiliados",'TD_Histor. Af. Act. Ec.'!$A$3,"Año",B24,"Actividad",$M$5) -> 0 | N24: =GETPIVOTDATA("Afiliados",'TD_Histor. Af. Act. Ec.'!$A$3,"Año",B24,"Actividad",$N$5) -> 0 | O24: =GETPIVOTDATA("Afiliados",'TD_Histor. Af. Act. Ec.'!$A$3,"Año",B24,"Actividad",$O$5) -> 0 | P24: =GETPIVOTDATA("Afiliados",'TD_Histor. Af. Act. Ec.'!$A$3,"Año",B24,"Actividad",$P$5) -> 0 | Q24: =GETPIVOTDATA("Afiliados",'TD_Histor. Af. Act. Ec.'!$A$3,"Año",B24,"Actividad",$Q$5) -> 0 | R24: =GETPIVOTDATA("Afiliados",'TD_Histor. Af. Act. Ec.'!$A$3,"Año",B24,"Actividad",$R$5) -> 0 | S24: =GETPIVOTDATA("Afiliados",'TD_Histor. Af. Act. Ec.'!$A$3,"Año",B24,"Actividad",$S$5) -> 0 | T24: =GETPIVOTDATA("Afiliados",'TD_Histor. Af. Act. Ec.'!$A$3,"Año",B24,"Actividad",$T$5) -> 0 | U24: 769045 | W24: 1978 | X24: 395305 | Y24: 3649 | Z24: 91701 | AA24: 10572 | AB24: 37215 | AC24: 56616 | AD24: 15073 | AE24: 158914 | AF24: 769045
B25: 1979 | C25: =GETPIVOTDATA("Afiliados",'TD_Histor. Af. Act. Ec.'!$A$3,"Año",B25,"Actividad",$C$5) -> 374609 | D25: =GETPIVOTDATA("Afiliados",'TD_Histor. Af. Act. Ec.'!$A$3,"Año",B25,"Actividad",$D$5) -> 0 | E25: =GETPIVOTDATA("Afiliados",'TD_Histor. Af. Act. Ec.'!$A$3,"Año",B25,"Actividad",$E$5) -> 2662 | F25: =GETPIVOTDATA("Afiliados",'TD_Histor. Af. Act. Ec.'!$A$3,"Año",B25,"Actividad",$F$5) -> 81774 | G25: =GETPIVOTDATA("Afiliados",'TD_Histor. Af. Act. Ec.'!$A$3,"Año",B25,"Actividad",$G$5) -> 10161 | H25: =GETPIVOTDATA("Afiliados",'TD_Histor. Af. Act. Ec.'!$A$3,"Año",B25,"Actividad",$H$5) -> 42252 | I25: =GETPIVOTDATA("Afiliados",'TD_Histor. Af. Act. Ec.'!$A$3,"Año",B25,"Actividad",$I$5) -> 58540 | J25: =GETPIVOTDATA("Afiliados",'TD_Histor. Af. Act. Ec.'!$A$3,"Año",B25,"Actividad",$J$5) -> 0 | K25: =GETPIVOTDATA("Afiliados",'TD_Histor. Af. Act. Ec.'!$A$3,"Año",B25,"Actividad",$K$5) -> 17139 | L25: =GETPIVOTDATA("Afiliados",'TD_Histor. Af. Act. Ec.'!$A$3,"Año",B25,"Actividad",$L$5) -> 169034 | M25: =GETPIVOTDATA("Afiliados",'TD_Histor. Af. Act. Ec.'!$A$3,"Año",B25,"Actividad",$M$5) -> 0 | N25: =GETPIVOTDATA("Afiliados",'TD_Histor. Af. Act. Ec.'!$A$3,"Año",B25,"Actividad",$N$5) -> 0 | O25: =GETPIVOTDATA("Afiliados",'TD_Histor. Af. Act. Ec.'!$A$3,"Año",B25,"Actividad",$O$5) -> 0 | P25: =GETPIVOTDATA("Afiliados",'TD_Histor. Af. Act. Ec.'!$A$3,"Año",B25,"Actividad",$P$5) -> 0 | Q25: =GETPIVOTDATA("Afiliados",'TD_Histor. Af. Act. Ec.'!$A$3,"Año",B25,"Actividad",$Q$5) -> 0 | R25: =GETPIVOTDATA("Afiliados",'TD_Histor. Af. Act. Ec.'!$A$3,"Año",B25,"Actividad",$R$5) -> 0 | S25: =GETPIVOTDATA("Afiliados",'TD_Histor. Af. Act. Ec.'!$A$3,"Año",B25,"Actividad",$S$5) -> 0 | T25: =GETPIVOTDATA("Afiliados",'TD_Histor. Af. Act. Ec.'!$A$3,"Año",B25,"Actividad",$T$5) -> 0 | U25: 756171 | W25: 1979 | X25: 374609 | Y25: 2662 | Z25: 81774 | AA25: 10161 | AB25: 42252 | AC25: 58540 | AD25: 17139 | AE25: 169034 | AF25: 756171
B26: 1980 | C26: =GETPIVOTDATA("Afiliados",'TD_Histor. Af. Act. Ec.'!$A$3,"Año",B26,"Actividad",$C$5) -> 373469 | D26: =GETPIVOTDATA("Afiliados",'TD_Histor. Af. Act. Ec.'!$A$3,"Año",B26,"Actividad",$D$5) -> 0 | E26: =GETPIVOTDATA("Afiliados",'TD_Histor. Af. Act. Ec.'!$A$3,"Año",B26,"Actividad",$E$5) -> 3744 | F26: =GETPIVOTDATA("Afiliados",'TD_Histor. Af. Act. Ec.'!$A$3,"Año",B26,"Actividad",$F$5) -> 83066 | G26: =GETPIVOTDATA("Afiliados",'TD_Histor. Af. Act. Ec.'!$A$3,"Año",B26,"Actividad",$G$5) -> 13480 | H26: =GETPIVOTDATA("Afiliados",'TD_Histor. Af. Act. Ec.'!$A$3,"Año",B26,"Actividad",$H$5) -> 27738 | I26: =GETPIVOTDATA("Afiliados",'TD_Histor. Af. Act. Ec.'!$A$3,"Año",B26,"Actividad",$I$5) -> 58913 | J26: =GETPIVOTDATA("Afiliados",'TD_Histor. Af. Act. Ec.'!$A$3,"Año",B26,"Actividad",$J$5) -> 0 | K26: =GETPIVOTDATA("Afiliados",'TD_Histor. Af. Act. Ec.'!$A$3,"Año",B26,"Actividad",$K$5) -> 21634 | L26: =GETPIVOTDATA("Afiliados",'TD_Histor. Af. Act. Ec.'!$A$3,"Año",B26,"Actividad",$L$5) -> 173498 | M26: =GETPIVOTDATA("Afiliados",'TD_Histor. Af. Act. Ec.'!$A$3,"Año",B26,"Actividad",$M$5) -> 0 | N26: =GETPIVOTDATA("Afiliados",'TD_Histor. Af. Act. Ec.'!$A$3,"Año",B26,"Actividad",$N$5) -> 0 | O26: =GETPIVOTDATA("Afiliados",'TD_Histor. Af. Act. Ec.'!$A$3,"Año",B26,"Actividad",$O$5) -> 0 | P26: =GETPIVOTDATA("Afiliados",'TD_Histor. Af. Act. Ec.'!$A$3,"Año",B26,"Actividad",$P$5) -> 0 | Q26: =GETPIVOTDATA("Afiliados",'TD_Histor. Af. Act. Ec.'!$A$3,"Año",B26,"Actividad",$Q$5) -> 0 | R26: =GETPIVOTDATA("Afiliados",'TD_Histor. Af. Act. Ec.'!$A$3,"Año",B26,"Actividad",$R$5) -> 0 | S26: =GETPIVOTDATA("Afiliados",'TD_Histor. Af. Act. Ec.'!$A$3,"Año",B26,"Actividad",$S$5) -> 0 | T26: =GETPIVOTDATA("Afiliados",'TD_Histor. Af. Act. Ec.'!$A$3,"Año",B26,"Actividad",$T$5) -> 0 | U26: 755542 | W26: 1980 | X26: 373469 | Y26: 3744 | Z26: 83066 | AA26: 13480 | AB26: 27738 | AC26: 58913 | AD26: 21634 | AE26: 173498 | AF26: 755542
B27: 1981 | C27: =GETPIVOTDATA("Afiliados",'TD_Histor. Af. Act. Ec.'!$A$3,"Año",B27,"Actividad",$C$5) -> 225688 | D27: =GETPIVOTDATA("Afiliados",'TD_Histor. Af. Act. Ec.'!$A$3,"Año",B27,"Actividad",$D$5) -> 0 | E27: =GETPIVOTDATA("Afiliados",'TD_Histor. Af. Act. Ec.'!$A$3,"Año",B27,"Actividad",$E$5) -> 3462 | F27: =GETPIVOTDATA("Afiliados",'TD_Histor. Af. Act. Ec.'!$A$3,"Año",B27,"Actividad",$F$5) -> 73683 | G27: =GETPIVOTDATA("Afiliados",'TD_Histor. Af. Act. Ec.'!$A$3,"Año",B27,"Actividad",$G$5) -> 11673 | H27: =GETPIVOTDATA("Afiliados",'TD_Histor. Af. Act. Ec.'!$A$3,"Año",B27,"Actividad",$H$5) -> 23440 | I27: =GETPIVOTDATA("Afiliados",'TD_Histor. Af. Act. Ec.'!$A$3,"Año",B27,"Actividad",$I$5) -> 58925 | J27: =GETPIVOTDATA("Afiliados",'TD_Histor. Af. Act. Ec.'!$A$3,"Año",B27,"Actividad",$J$5) -> 0 | K27: =GETPIVOTDATA("Afiliados",'TD_Histor. Af. Act. Ec.'!$A$3,"Año",B27,"Actividad",$K$5) -> 18685 | L27: =GETPIVOTDATA("Afiliados",'TD_Histor. Af. Act. Ec.'!$A$3,"Año",B27,"Actividad",$L$5) -> 175463 | M27: =GETPIVOTDATA("Afiliados",'TD_Histor. Af. Act. Ec.'!$A$3,"Año",B27,"Actividad",$M$5) -> 0 | N27: =GETPIVOTDATA("Afiliados",'TD_Histor. Af. Act. Ec.'!$A$3,"Año",B27,"Actividad",$N$5) -> 0 | O27: =GETPIVOTDATA("Afiliados",'TD_Histor. Af. Act. Ec.'!$A$3,"Año",B27,"Actividad",$O$5) -> 0 | P27: =GETPIVOTDATA("Afiliados",'TD_Histor. Af. Act. Ec.'!$A$3,"Año",B27,"Actividad",$P$5) -> 0 | Q27: =GETPIVOTDATA("Afiliados",'TD_Histor. Af. Act. Ec.'!$A$3,"Año",B27,"Actividad",$Q$5) -> 0 | R27: =GETPIVOTDATA("Afiliados",'TD_Histor. Af. Act. Ec.'!$A$3,"Año",B27,"Actividad",$R$5) -> 0 | S27: =GETPIVOTDATA("Afiliados",'TD_Histor. Af. Act. Ec.'!$A$3,"Año",B27,"Actividad",$S$5) -> 0 | T27: =GETPIVOTDATA("Afiliados",'TD_Histor. Af. Act. Ec.'!$A$3,"Año",B27,"Actividad",$T$5) -> 0 | U27: 591019 | W27: 1981 | X27: 225688 | Y27: 3462 | Z27: 73683 | AA27: 11673 | AB27: 23440 | AC27: 58925 | AD27: 18685 | AE27: 175463 | AF27: 591019
B28: 1982 | C28: =GETPIVOTDATA("Afiliados",'TD_Histor. Af. Act. Ec.'!$A$3,"Año",B28,"Actividad",$C$5) -> 215709 | D28: =GETPIVOTDATA("Afiliados",'TD_Histor. Af. Act. Ec.'!$A$3,"Año",B28,"Actividad",$D$5) -> 0 | E28: =GETPIVOTDATA("Afiliados",'TD_Histor. Af. Act. Ec.'!$A$3,"Año",B28,"Actividad",$E$5) -> 3099 | F28: =GETPIVOTDATA("Afiliados",'TD_Histor. Af. Act. Ec.'!$A$3,"Año",B28,"Actividad",$F$5) -> 73851 | G28: =GETPIVOTDATA("Afiliados",'TD_Histor. Af. Act. Ec.'!$A$3,"Año",B28,"Actividad",$G$5) -> 14810 | H28: =GETPIVOTDATA("Afiliados",'TD_Histor. Af. Act. Ec.'!$A$3,"Año",B28,"Actividad",$H$5) -> 26894 | I28: =GETPIVOTDATA("Afiliados",'TD_Histor. Af. Act. Ec.'!$A$3,"Año",B28,"Actividad",$I$5) -> 61314 | J28: =GETPIVOTDATA("Afiliados",'TD_Histor. Af. Act. Ec.'!$A$3,"Año",B28,"Actividad",$J$5) -> 0 | K28: =GETPIVOTDATA("Afiliados",'TD_Histor. Af. Act. Ec.'!$A$3,"Año",B28,"Actividad",$K$5) -> 19951 | L28: =GETPIVOTDATA("Afiliados",'TD_Histor. Af. Act. Ec.'!$A$3,"Año",B28,"Actividad",$L$5) -> 193516 | M28: =GETPIVOTDATA("Afiliados",'TD_Histor. Af. Act. Ec.'!$A$3,"Año",B28,"Actividad",$M$5) -> 0 | N28: =GETPIVOTDATA("Afiliados",'TD_Histor. Af. Act. Ec.'!$A$3,"Año",B28,"Actividad",$N$5) -> 0 | O28: =GETPIVOTDATA("Afiliados",'TD_Histor. Af. Act. Ec.'!$A$3,"Año",B28,"Actividad",$O$5) -> 0 | P28: =GETPIVOTDATA("Afiliados",'TD_Histor. Af. Act. Ec.'!$A$3,"Año",B28,"Actividad",$P$5) -> 0 | Q28: =GETPIVOTDATA("Afiliados",'TD_Histor. Af. Act. Ec.'!$A$3,"Año",B28,"Actividad",$Q$5) -> 0 | R28: =GETPIVOTDATA("Afiliados",'TD_Histor. Af. Act. Ec.'!$A$3,"Año",B28,"Actividad",$R$5) -> 0 | S28: =GETPIVOTDATA("Afiliados",'TD_Histor. Af. Act. Ec.'!$A$3,"Año",B28,"Actividad",$S$5) -> 0 | T28: =GETPIVOTDATA("Afiliados",'TD_Histor. Af. Act. Ec.'!$A$3,"Año",B28,"Actividad",$T$5) -> 0 | U28: 609144 | W28: 1982 | X28: 215709 | Y28: 3099 | Z28: 73851 | AA28: 14810 | AB28: 26894 | AC28: 61314 | AD28: 19951 | AE28: 193516 | AF28: 609144
B29: 1983 | C29: =GETPIVOTDATA("Afiliados",'TD_Histor. Af. Act. Ec.'!$A$3,"Año",B29,"Actividad",$C$5) -> 199847 | D29: =GETPIVOTDATA("Afiliados",'TD_Histor. Af. Act. Ec.'!$A$3,"Año",B29,"Actividad",$D$5) -> 0 | E29: =GETPIVOTDATA("Afiliados",'TD_Histor. Af. Act. Ec.'!$A$3,"Año",B29,"Actividad",$E$5) -> 3388 | F29: =GETPIVOTDATA("Afiliados",'TD_Histor. Af. Act. Ec.'!$A$3,"Año",B29,"Actividad",$F$5) -> 77842 | G29: =GETPIVOTDATA("Afiliados",'TD_Histor. Af. Act. Ec.'!$A$3,"Año",B29,"Actividad",$G$5) -> 14230 | H29: =GETPIVOTDATA("Afiliados",'TD_Histor. Af. Act. Ec.'!$A$3,"Año",B29,"Actividad",$H$5) -> 17817 | I29: =GETPIVOTDATA("Afiliados",'TD_Histor. Af. Act. Ec.'!$A$3,"Año",B29,"Actividad",$I$5) -> 63446 | J29: =GETPIVOTDATA("Afiliados",'TD_Histor. Af. Act. Ec.'!$A$3,"Año",B29,"Actividad",$J$5) -> 0 | K29: =GETPIVOTDATA("Afiliados",'TD_Histor. Af. Act. Ec.'!$A$3,"Año",B29,"Actividad",$K$5) -> 15990 | L29: =GETPIVOTDATA("Afiliados",'TD_Histor. Af. Act. Ec.'!$A$3,"Año",B29,"Actividad",$L$5) -> 190988 | M29: =GETPIVOTDATA("Afiliados",'TD_Histor. Af. Act. Ec.'!$A$3,"Año",B29,"Actividad",$M$5) -> 0 | N29: =GETPIVOTDATA("Afiliados",'TD_Histor. Af. Act. Ec.'!$A$3,"Año",B29,"Actividad",$N$5) -> 0 | O29: =GETPIVOTDATA("Afiliados",'TD_Histor. Af. Act. Ec.'!$A$3,"Año",B29,"Actividad",$O$5) -> 0 | P29: =GETPIVOTDATA("Afiliados",'TD_Histor. Af. Act. Ec.'!$A$3,"Año",B29,"Actividad",$P$5) -> 0 | Q29: =GETPIVOTDATA("Afiliados",'TD_Histor. Af. Act. Ec.'!$A$3,"Año",B29,"Actividad",$Q$5) -> 0 | R29: =GETPIVOTDATA("Afiliados",'TD_Histor. Af. Act. Ec.'!$A$3,"Año",B29,"Actividad",$R$5) -> 0 | S29: =GETPIVOTDATA("Afiliados",'TD_Histor. Af. Act. Ec.'!$A$3,"Año",B29,"Actividad",$S$5) -> 0 | T29: =GETPIVOTDATA("Afiliados",'TD_Histor. Af. Act. Ec.'!$A$3,"Año",B29,"Actividad",$T$5) -> 0 | U29: 583548 | W29: 1983 | X29: 199847 | Y29: 3388 | Z29: 77842 | AA29: 14230 | AB29: 17817 | AC29: 63446 | AD29: 15990 | AE29: 190988 | AF29: 583548
B30: 1984 | C30: =GETPIVOTDATA("Afiliados",'TD_Histor. Af. Act. Ec.'!$A$3,"Año",B30,"Actividad",$C$5) -> 205514 | D30: =GETPIVOTDATA("Afiliados",'TD_Histor. Af. Act. Ec.'!$A$3,"Año",B30,"Actividad",$D$5) -> 0 | E30: =GETPIVOTDATA("Afiliados",'TD_Histor. Af. Act. Ec.'!$A$3,"Año",B30,"Actividad",$E$5) -> 2146 | F30: =GETPIVOTDATA("Afiliados",'TD_Histor. Af. Act. Ec.'!$A$3,"Año",B30,"Actividad",$F$5) -> 69506 | G30: =GETPIVOTDATA("Afiliados",'TD_Histor. Af. Act. Ec.'!$A$3,"Año",B30,"Actividad",$G$5) -> 13579 | H30: =GETPIVOTDATA("Afiliados",'TD_Histor. Af. Act. Ec.'!$A$3,"Año",B30,"Actividad",$H$5) -> 13041 | I30: =GETPIVOTDATA("Afiliados",'TD_Histor. Af. Act. Ec.'!$A$3,"Año",B30,"Actividad",$I$5) -> 59395 | J30: =GETPIVOTDATA("Afiliados",'TD_Histor. Af. Act. Ec.'!$A$3,"Año",B30,"Actividad",$J$5) -> 0 | K30: =GETPIVOTDATA("Afiliados",'TD_Histor. Af. Act. Ec.'!$A$3,"Año",B30,"Actividad",$K$5) -> 19755 | L30: =GETPIVOTDATA("Afiliados",'TD_Histor. Af. Act. Ec.'!$A$3,"Año",B30,"Actividad",$L$5) -> 212000 | M30: =GETPIVOTDATA("Afiliados",'TD_Histor. Af. Act. Ec.'!$A$3,"Año",B30,"Actividad",$M$5) -> 0 | N30: =GETPIVOTDATA("Afiliados",'TD_Histor. Af. Act. Ec.'!$A$3,"Año",B30,"Actividad",$N$5) -> 0 | O30: =GETPIVOTDATA("Afiliados",'TD_Histor. Af. Act. Ec.'!$A$3,"Año",B30,"Actividad",$O$5) -> 0 | P30: =GETPIVOTDATA("Afiliados",'TD_Histor. Af. Act. Ec.'!$A$3,"Año",B30,"Actividad",$P$5) -> 0 | Q30: =GETPIVOTDATA("Afiliados",'TD_Histor. Af. Act. Ec.'!$A$3,"Año",B30,"Actividad",$Q$5) -> 0 | R30: =GETPIVOTDATA("Afiliados",'TD_Histor. Af. Act. Ec.'!$A$3,"Año",B30,"Actividad",$R$5) -> 0 | S30: =GETPIVOTDATA("Afiliados",'TD_Histor. Af. Act. Ec.'!$A$3,"Año",B30,"Actividad",$S$5) -> 0 | T30: =GETPIVOTDATA("Afiliados",'TD_Histor. Af. Act. Ec.'!$A$3,"Año",B30,"Actividad",$T$5) -> 0 | U30: 594936 | W30: 1984 | X30: 205514 | Y30: 2146 | Z30: 69506 | AA30: 13579 | AB30: 13041 | AC30: 59395 | AD30: 19755 | AE30: 212000 | AF30: 594936
B31: 1985 | C31: =GETPIVOTDATA("Afiliados",'TD_Histor. Af. Act. Ec.'!$A$3,"Año",B31,"Actividad",$C$5) -> 233572 | D31: =GETPIVOTDATA("Afiliados",'TD_Histor. Af. Act. Ec.'!$A$3,"Año",B31,"Actividad",$D$5) -> 0 | E31: =GETPIVOTDATA("Afiliados",'TD_Histor. Af. Act. Ec.'!$A$3,"Año",B31,"Actividad",$E$5) -> 2085 | F31: =GETPIVOTDATA("Afiliados",'TD_Histor. Af. Act. Ec.'!$A$3,"Año",B31,"Actividad",$F$5) -> 78205 | G31: =GETPIVOTDATA("Afiliados",'TD_Histor. Af. Act. Ec.'!$A$3,"Año",B31,"Actividad",$G$5) -> 13034 | H31: =GETPIVOTDATA("Afiliados",'TD_Histor. Af. Act. Ec.'!$A$3,"Año",B31,"Actividad",$H$5) -> 14077 | I31: =GETPIVOTDATA("Afiliados",'TD_Histor. Af. Act. Ec.'!$A$3,"Año",B31,"Actividad",$I$5) -> 58393 | J31: =GETPIVOTDATA("Afiliados",'TD_Histor. Af. Act. Ec.'!$A$3,"Año",B31,"Actividad",$J$5) -> 0 | K31: =GETPIVOTDATA("Afiliados",'TD_Histor. Af. Act. Ec.'!$A$3,"Año",B31,"Actividad",$K$5) -> 20333 | L31: =GETPIVOTDATA("Afiliados",'TD_Histor. Af. Act. Ec.'!$A$3,"Año",B31,"Actividad",$L$5) -> 211955 | M31: =GETPIVOTDATA("Afiliados",'TD_Histor. Af. Act. Ec.'!$A$3,"Año",B31,"Actividad",$M$5) -> 0 | N31: =GETPIVOTDATA("Afiliados",'TD_Histor. Af. Act. Ec.'!$A$3,"Año",B31,"Actividad",$N$5) -> 0 | O31: =GETPIVOTDATA("Afiliados",'TD_Histor. Af. Act. Ec.'!$A$3,"Año",B31,"Actividad",$O$5) -> 0 | P31: =GETPIVOTDATA("Afiliados",'TD_Histor. Af. Act. Ec.'!$A$3,"Año",B31,"Actividad",$P$5) -> 0 | Q31: =GETPIVOTDATA("Afiliados",'TD_Histor. Af. Act. Ec.'!$A$3,"Año",B31,"Actividad",$Q$5) -> 0 | R31: =GETPIVOTDATA("Afiliados",'TD_Histor. Af. Act. Ec.'!$A$3,"Año",B31,"Actividad",$R$5) -> 0 | S31: =GETPIVOTDATA("Afiliados",'TD_Histor. Af. Act. Ec.'!$A$3,"Año",B31,"Actividad",$S$5) -> 0 | T31: =GETPIVOTDATA("Afiliados",'TD_Histor. Af. Act. Ec.'!$A$3,"Año",B31,"Actividad",$T$5) -> 0 | U31: 631654 | W31: 1985 | X31: 233572 | Y31: 2085 | Z31: 78205 | AA31: 13034 | AB31: 14077 | AC31: 58393 | AD31: 20333 | AE31: 211955 | AF31: 631654
B32: 1986 | C32: =GETPIVOTDATA("Afiliados",'TD_Histor. Af. Act. Ec.'!$A$3,"Año",B32,"Actividad",$C$5) -> 239107 | D32: =GETPIVOTDATA("Afiliados",'TD_Histor. Af. Act. Ec.'!$A$3,"Año",B32,"Actividad",$D$5) -> 0 | E32: =GETPIVOTDATA("Afiliados",'TD_Histor. Af. Act. Ec.'!$A$3,"Año",B32,"Actividad",$E$5) -> 2518 | F32: =GETPIVOTDATA("Afiliados",'TD_Histor. Af. Act. Ec.'!$A$3,"Año",B32,"Actividad",$F$5) -> 78251 | G32: =GETPIVOTDATA("Afiliados",'TD_Histor. Af. Act. Ec.'!$A$3,"Año",B32,"Actividad",$G$5) -> 11435 | H32: =GETPIVOTDATA("Afiliados",'TD_Histor. Af. Act. Ec.'!$A$3,"Año",B32,"Actividad",$H$5) -> 15702 | I32: =GETPIVOTDATA("Afiliados",'TD_Histor. Af. Act. Ec.'!$A$3,"Año",B32,"Actividad",$I$5) -> 61763 | J32: =GETPIVOTDATA("Afiliados",'TD_Histor. Af. Act. Ec.'!$A$3,"Año",B32,"Actividad",$J$5) -> 0 | K32: =GETPIVOTDATA("Afiliados",'TD_Histor. Af. Act. Ec.'!$A$3,"Año",B32,"Actividad",$K$5) -> 21730 | L32: =GETPIVOTDATA("Afiliados",'TD_Histor. Af. Act. Ec.'!$A$3,"Año",B32,"Actividad",$L$5) -> 229938 | M32: =GETPIVOTDATA("Afiliados",'TD_Histor. Af. Act. Ec.'!$A$3,"Año",B32,"Actividad",$M$5) -> 0 | N32: =GETPIVOTDATA("Afiliados",'TD_Histor. Af. Act. Ec.'!$A$3,"Año",B32,"Actividad",$N$5) -> 0 | O32: =GETPIVOTDATA("Afiliados",'TD_Histor. Af. Act. Ec.'!$A$3,"Año",B32,"Actividad",$O$5) -> 0 | P32: =GETPIVOTDATA("Afiliados",'TD_Histor. Af. Act. Ec.'!$A$3,"Año",B32,"Actividad",$P$5) -> 0 | Q32: =GETPIVOTDATA("Afiliados",'TD_Histor. Af. Act. Ec.'!$A$3,"Año",B32,"Actividad",$Q$5) -> 0 | R32: =GETPIVOTDATA("Afiliados",'TD_Histor. Af. Act. Ec.'!$A$3,"Año",B32,"Actividad",$R$5) -> 0 | S32: =GETPIVOTDATA("Afiliados",'TD_Histor. Af. Act. Ec.'!$A$3,"Año",B32,"Actividad",$S$5) -> 0 | T32: =GETPIVOTDATA("Afiliados",'TD_Histor. Af. Act. Ec.'!$A$3,"Año",B32,"Actividad",$T$5) -> 0 | U32: 660444 | W32: 1986 | X32: 239107 | Y32: 2518 | Z32: 78251 | AA32: 11435 | AB32: 15702 | AC32: 61763 | AD32: 21730 | AE32: 229938 | AF32: 660444
B33: 1987 | C33: =GETPIVOTDATA("Afiliados",'TD_Histor. Af. Act. Ec.'!$A$3,"Año",B33,"Actividad",$C$5) -> 254220 | D33: =GETPIVOTDATA("Afiliados",'TD_Histor. Af. Act. Ec.'!$A$3,"Año",B33,"Actividad",$D$5) -> 0 | E33: =GETPIVOTDATA("Afiliados",'TD_Histor. Af. Act. Ec.'!$A$3,"Año",B33,"Actividad",$E$5) -> 2201 | F33: =GETPIVOTDATA("Afiliados",'TD_Histor. Af. Act. Ec.'!$A$3,"Año",B33,"Actividad",$F$5) -> 78425 | G33: =GETPIVOTDATA("Afiliados",'TD_Histor. Af. Act. Ec.'!$A$3,"Año",B33,"Actividad",$G$5) -> 10986 | H33: =GETPIVOTDATA("Afiliados",'TD_Histor. Af. Act. Ec.'!$A$3,"Año",B33,"Actividad",$H$5) -> 12992 | I33: =GETPIVOTDATA("Afiliados",'TD_Histor. Af. Act. Ec.'!$A$3,"Año",B33,"Actividad",$I$5) -> 62118 | J33: =GETPIVOTDATA("Afiliados",'TD_Histor. Af. Act. Ec.'!$A$3,"Año",B33,"Actividad",$J$5) -> 0 | K33: =GETPIVOTDATA("Afiliados",'TD_Histor. Af. Act. Ec.'!$A$3,"Año",B33,"Actividad",$K$5) -> 21694 | L33: =GETPIVOTDATA("Afiliados",'TD_Histor. Af. Act. Ec.'!$A$3,"Año",B33,"Actividad",$L$5) -> 236359 | M33: =GETPIVOTDATA("Afiliados",'TD_Histor. Af. Act. Ec.'!$A$3,"Año",B33,"Actividad",$M$5) -> 0 | N33: =GETPIVOTDATA("Afiliados",'TD_Histor. Af. Act. Ec.'!$A$3,"Año",B33,"Actividad",$N$5) -> 0 | O33: =GETPIVOTDATA("Afiliados",'TD_Histor. Af. Act. Ec.'!$A$3,"Año",B33,"Actividad",$O$5) -> 0 | P33: =GETPIVOTDATA("Afiliados",'TD_Histor. Af. Act. Ec.'!$A$3,"Año",B33,"Actividad",$P$5) -> 0 | Q33: =GETPIVOTDATA("Afiliados",'TD_Histor. Af. Act. Ec.'!$A$3,"Año",B33,"Actividad",$Q$5) -> 0 | R33: =GETPIVOTDATA("Afiliados",'TD_Histor. Af. Act. Ec.'!$A$3,"Año",B33,"Actividad",$R$5) -> 0 | S33: =GETPIVOTDATA("Afiliados",'TD_Histor. Af. Act. Ec.'!$A$3,"Año",B33,"Actividad",$S$5) -> 0 | T33: =GETPIVOTDATA("Afiliados",'TD_Histor. Af. Act. Ec.'!$A$3,"Año",B33,"Actividad",$T$5) -> 0 | U33: 678995 | W33: 1987 | X33: 254220 | Y33: 2201 | Z33: 78425 | AA33: 10986 | AB33: 12992 | AC33: 62118 | AD33: 21694 | AE33: 236359 | AF33: 678995
B34: 1988 | C34: =GETPIVOTDATA("Afiliados",'TD_Histor. Af. Act. Ec.'!$A$3,"Año",B34,"Actividad",$C$5) -> 259038 | D34: =GETPIVOTDATA("Afiliados",'TD_Histor. Af. Act. Ec.'!$A$3,"Año",B34,"Actividad",$D$5) -> 0 | E34: =GETPIVOTDATA("Afiliados",'TD_Histor. Af. Act. Ec.'!$A$3,"Año",B34,"Actividad",$E$5) -> 3793 | F34: =GETPIVOTDATA("Afiliados",'TD_Histor. Af. Act. Ec.'!$A$3,"Año",B34,"Actividad",$F$5) -> 103438 | G34: =GETPIVOTDATA("Afiliados",'TD_Histor. Af. Act. Ec.'!$A$3,"Año",B34,"Actividad",$G$5) -> 13358 | H34: =GETPIVOTDATA("Afiliados",'TD_Histor. Af. Act. Ec.'!$A$3,"Año",B34,"Actividad",$H$5) -> 15783 | I34: =GETPIVOTDATA("Afiliados",'TD_Histor. Af. Act. Ec.'!$A$3,"Año",B34,"Actividad",$I$5) -> 77328 | J34: =GETPIVOTDATA("Afiliados",'TD_Histor. Af. Act. Ec.'!$A$3,"Año",B34,"Actividad",$J$5) -> 0 | K34: =GETPIVOTDATA("Afiliados",'TD_Histor. Af. Act. Ec.'!$A$3,"Año",B34,"Actividad",$K$5) -> 24234 | L34: =GETPIVOTDATA("Afiliados",'TD_Histor. Af. Act. Ec.'!$A$3,"Año",B34,"Actividad",$L$5) -> 282588 | M34: =GETPIVOTDATA("Afiliados",'TD_Histor. Af. Act. Ec.'!$A$3,"Año",B34,"Actividad",$M$5) -> 0 | N34: =GETPIVOTDATA("Afiliados",'TD_Histor. Af. Act. Ec.'!$A$3,"Año",B34,"Actividad",$N$5) -> 0 | O34: =GETPIVOTDATA("Afiliados",'TD_Histor. Af. Act. Ec.'!$A$3,"Año",B34,"Actividad",$O$5) -> 0 | P34: =GETPIVOTDATA("Afiliados",'TD_Histor. Af. Act. Ec.'!$A$3,"Año",B34,"Actividad",$P$5) -> 0 | Q34: =GETPIVOTDATA("Afiliados",'TD_Histor. Af. Act. Ec.'!$A$3,"Año",B34,"Actividad",$Q$5) -> 0 | R34: =GETPIVOTDATA("Afiliados",'TD_Histor. Af. Act. Ec.'!$A$3,"Año",B34,"Actividad",$R$5) -> 0 | S34: =GETPIVOTDATA("Afiliados",'TD_Histor. Af. Act. Ec.'!$A$3,"Año",B34,"Actividad",$S$5) -> 0 | T34: =GETPIVOTDATA("Afiliados",'TD_Histor. Af. Act. Ec.'!$A$3,"Año",B34,"Actividad",$T$5) -> 0 | U34: 779560 | W34: 1988 | X34: 259038 | Y34: 3793 | Z34: 103438 | AA34: 13358 | AB34: 15783 | AC34: 77328 | AD34: 24234 | AE34: 282588 | AF34: 779560
B35: 1989 | C35: =GETPIVOTDATA("Afiliados",'TD_Histor. Af. Act. Ec.'!$A$3,"Año",B35,"Actividad",$C$5) -> 291467 | D35: =GETPIVOTDATA("Afiliados",'TD_Histor. Af. Act. Ec.'!$A$3,"Año",B35,"Actividad",$D$5) -> 0 | E35: =GETPIVOTDATA("Afiliados",'TD_Histor. Af. Act. Ec.'!$A$3,"Año",B35,"Actividad",$E$5) -> 2895 | F35: =GETPIVOTDATA("Afiliados",'TD_Histor. Af. Act. Ec.'!$A$3,"Año",B35,"Actividad",$F$5) -> 101250 | G35: =GETPIVOTDATA("Afiliados",'TD_Histor. Af. Act. Ec.'!$A$3,"Año",B35,"Actividad",$G$5) -> 14002 | H35: =GETPIVOTDATA("Afiliados",'TD_Histor. Af. Act. Ec.'!$A$3,"Año",B35,"Actividad",$H$5) -> 18186 | I35: =GETPIVOTDATA("Afiliados",'TD_Histor. Af. Act. Ec.'!$A$3,"Año",B35,"Actividad",$I$5) -> 84846 | J35: =GETPIVOTDATA("Afiliados",'TD_Histor. Af. Act. Ec.'!$A$3,"Año",B35,"Actividad",$J$5) -> 0 | K35: =GETPIVOTDATA("Afiliados",'TD_Histor. Af. Act. Ec.'!$A$3,"Año",B35,"Actividad",$K$5) -> 22815 | L35: =GETPIVOTDATA("Afiliados",'TD_Histor. Af. Act. Ec.'!$A$3,"Año",B35,"Actividad",$L$5) -> 252906 | M35: =GETPIVOTDATA("Afiliados",'TD_Histor. Af. Act. Ec.'!$A$3,"Año",B35,"Actividad",$M$5) -> 0 | N35: =GETPIVOTDATA("Afiliados",'TD_Histor. Af. Act. Ec.'!$A$3,"Año",B35,"Actividad",$N$5) -> 0 | O35: =GETPIVOTDATA("Afiliados",'TD_Histor. Af. Act. Ec.'!$A$3,"Año",B35,"Actividad",$O$5) -> 0 | P35: =GETPIVOTDATA("Afiliados",'TD_Histor. Af. Act. Ec.'!$A$3,"Año",B35,"Actividad",$P$5) -> 0 | Q35: =GETPIVOTDATA("Afiliados",'TD_Histor. Af. Act. Ec.'!$A$3,"Año",B35,"Actividad",$Q$5) -> 0 | R35: =GETPIVOTDATA("Afiliados",'TD_Histor. Af. Act. Ec.'!$A$3,"Año",B35,"Actividad",$R$5) -> 0 | S35: =GETPIVOTDATA("Afiliados",'TD_Histor. Af. Act. Ec.'!$A$3,"Año",B35,"Actividad",$S$5) -> 0 | T35: =GETPIVOTDATA("Afiliados",'TD_Histor. Af. Act. Ec.'!$A$3,"Año",B35,"Actividad",$T$5) -> 0 | U35: 788367 | W35: 1989 | X35: 291467 | Y35: 2895 | Z35: 101250 | AA35: 14002 | AB35: 18186 | AC35: 84846 | AD35: 22815 | AE35: 252906 | AF35: 788367
B36: 1990 | C36: =GETPIVOTDATA("Afiliados",'TD_Histor. Af. Act. Ec.'!$A$3,"Año",B36,"Actividad",$C$5) -> 279234 | D36: =GETPIVOTDATA("Afiliados",'TD_Histor. Af. Act. Ec.'!$A$3,"Año",B36,"Actividad",$D$5) -> 0 | E36: =GETPIVOTDATA("Afiliados",'TD_Histor. Af. Act. Ec.'!$A$3,"Año",B36,"Actividad",$E$5) -> 3216 | F36: =GETPIVOTDATA("Afiliados",'TD_Histor. Af. Act. Ec.'!$A$3,"Año",B36,"Actividad",$F$5) -> 103327 | G36: =GETPIVOTDATA("Afiliados",'TD_Histor. Af. Act. Ec.'!$A$3,"Año",B36,"Actividad",$G$5) -> 12716 | H36: =GETPIVOTDATA("Afiliados",'TD_Histor. Af. Act. Ec.'!$A$3,"Año",B36,"Actividad",$H$5) -> 18357 | I36: =GETPIVOTDATA("Afiliados",'TD_Histor. Af. Act. Ec.'!$A$3,"Año",B36,"Actividad",$I$5) -> 84389 | J36: =GETPIVOTDATA("Afiliados",'TD_Histor. Af. Act. Ec.'!$A$3,"Año",B36,"Actividad",$J$5) -> 0 | K36: =GETPIVOTDATA("Afiliados",'TD_Histor. Af. Act. Ec.'!$A$3,"Año",B36,"Actividad",$K$5) -> 21502 | L36: =GETPIVOTDATA("Afiliados",'TD_Histor. Af. Act. Ec.'!$A$3,"Año",B36,"Actividad",$L$5) -> 263012 | M36: =GETPIVOTDATA("Afiliados",'TD_Histor. Af. Act. Ec.'!$A$3,"Año",B36,"Actividad",$M$5) -> 0 | N36: =GETPIVOTDATA("Afiliados",'TD_Histor. Af. Act. Ec.'!$A$3,"Año",B36,"Actividad",$N$5) -> 0 | O36: =GETPIVOTDATA("Afiliados",'TD_Histor. Af. Act. Ec.'!$A$3,"Año",B36,"Actividad",$O$5) -> 0 | P36: =GETPIVOTDATA("Afiliados",'TD_Histor. Af. Act. Ec.'!$A$3,"Año",B36,"Actividad",$P$5) -> 0 | Q36: =GETPIVOTDATA("Afiliados",'TD_Histor. Af. Act. Ec.'!$A$3,"Año",B36,"Actividad",$Q$5) -> 0 | R36: =GETPIVOTDATA("Afiliados",'TD_Histor. Af. Act. Ec.'!$A$3,"Año",B36,"Actividad",$R$5) -> 0 | S36: =GETPIVOTDATA("Afiliados",'TD_Histor. Af. Act. Ec.'!$A$3,"Año",B36,"Actividad",$S$5) -> 0 | T36: =GETPIVOTDATA("Afiliados",'TD_Histor. Af. Act. Ec.'!$A$3,"Año",B36,"Actividad",$T$5) -> 0 | U36: 785753 | W36: 1990 | X36: 279234 | Y36: 3216 | Z36: 103327 | AA36: 12716 | AB36: 18357 | AC36: 84389 | AD36: 21502 | AE36: 263012 | AF36: 785753
B37: 1991 | C37: =GETPIVOTDATA("Afiliados",'TD_Histor. Af. Act. Ec.'!$A$3,"Año",B37,"Actividad",$C$5) -> 237488 | D37: =GETPIVOTDATA("Afiliados",'TD_Histor. Af. Act. Ec.'!$A$3,"Año",B37,"Actividad",$D$5) -> 0 | E37: =GETPIVOTDATA("Afiliados",'TD_Histor. Af. Act. Ec.'!$A$3,"Año",B37,"Actividad",$E$5) -> 2849 | F37: =GETPIVOTDATA("Afiliados",'TD_Histor. Af. Act. Ec.'!$A$3,"Año",B37,"Actividad",$F$5) -> 118762 | G37: =GETPIVOTDATA("Afiliados",'TD_Histor. Af. Act. Ec.'!$A$3,"Año",B37,"Actividad",$G$5) -> 14777 | H37: =GETPIVOTDATA("Afiliados",'TD_Histor. Af. Act. Ec.'!$A$3,"Año",B37,"Actividad",$H$5) -> 14042 | I37: =GETPIVOTDATA("Afiliados",'TD_Histor. Af. Act. Ec.'!$A$3,"Año",B37,"Actividad",$I$5) -> 99504 | J37: =GETPIVOTDATA("Afiliados",'TD_Histor. Af. Act. Ec.'!$A$3,"Año",B37,"Actividad",$J$5) -> 0 | K37: =GETPIVOTDATA("Afiliados",'TD_Histor. Af. Act. Ec.'!$A$3,"Año",B37,"Actividad",$K$5) -> 23194 | L37: =GETPIVOTDATA("Afiliados",'TD_Histor. Af. Act. Ec.'!$A$3,"Año",B37,"Actividad",$L$5) -> 276287 | M37: =GETPIVOTDATA("Afiliados",'TD_Histor. Af. Act. Ec.'!$A$3,"Año",B37,"Actividad",$M$5) -> 0 | N37: =GETPIVOTDATA("Afiliados",'TD_Histor. Af. Act. Ec.'!$A$3,"Año",B37,"Actividad",$N$5) -> 0 | O37: =GETPIVOTDATA("Afiliados",'TD_Histor. Af. Act. Ec.'!$A$3,"Año",B37,"Actividad",$O$5) -> 0 | P37: =GETPIVOTDATA("Afiliados",'TD_Histor. Af. Act. Ec.'!$A$3,"Año",B37,"Actividad",$P$5) -> 0 | Q37: =GETPIVOTDATA("Afiliados",'TD_Histor. Af. Act. Ec.'!$A$3,"Año",B37,"Actividad",$Q$5) -> 0 | R37: =GETPIVOTDATA("Afiliados",'TD_Histor. Af. Act. Ec.'!$A$3,"Año",B37,"Actividad",$R$5) -> 0 | S37: =GETPIVOTDATA("Afiliados",'TD_Histor. Af. Act. Ec.'!$A$3,"Año",B37,"Actividad",$S$5) -> 0 | T37: =GETPIVOTDATA("Afiliados",'TD_Histor. Af. Act. Ec.'!$A$3,"Año",B37,"Actividad",$T$5) -> 0 | U37: 786903 | W37: 1991 | X37: 237488 | Y37: 2849 | Z37: 118762 | AA37: 14777 | AB37: 14042 | AC37: 99504 | AD37: 23194 | AE37: 276287 | AF37: 786903
B38: 1992 | C38: =GETPIVOTDATA("Afiliados",'TD_Histor. Af. Act. Ec.'!$A$3,"Año",B38,"Actividad",$C$5) -> 221168 | D38: =GETPIVOTDATA("Afiliados",'TD_Histor. Af. Act. Ec.'!$A$3,"Año",B38,"Actividad",$D$5) -> 0 | E38: =GETPIVOTDATA("Afiliados",'TD_Histor. Af. Act. Ec.'!$A$3,"Año",B38,"Actividad",$E$5) -> 3144 | F38: =GETPIVOTDATA("Afiliados",'TD_Histor. Af. Act. Ec.'!$A$3,"Año",B38,"Actividad",$F$5) -> 130659 | G38: =GETPIVOTDATA("Afiliados",'TD_Histor. Af. Act. Ec.'!$A$3,"Año",B38,"Actividad",$G$5) -> 12858 | H38: =GETPIVOTDATA("Afiliados",'TD_Histor. Af. Act. Ec.'!$A$3,"Año",B38,"Actividad",$H$5) -> 18043 | I38: =GETPIVOTDATA("Afiliados",'TD_Histor. Af. Act. Ec.'!$A$3,"Año",B38,"Actividad",$I$5) -> 98029 | J38: =GETPIVOTDATA("Afiliados",'TD_Histor. Af. Act. Ec.'!$A$3,"Año",B38,"Actividad",$J$5) -> 0 | K38: =GETPIVOTDATA("Afiliados",'TD_Histor. Af. Act. Ec.'!$A$3,"Año",B38,"Actividad",$K$5) -> 23918 | L38: =GETPIVOTDATA("Afiliados",'TD_Histor. Af. Act. Ec.'!$A$3,"Año",B38,"Actividad",$L$5) -> 287889 | M38: =GETPIVOTDATA("Afiliados",'TD_Histor. Af. Act. Ec.'!$A$3,"Año",B38,"Actividad",$M$5) -> 0 | N38: =GETPIVOTDATA("Afiliados",'TD_Histor. Af. Act. Ec.'!$A$3,"Año",B38,"Actividad",$N$5) -> 0 | O38: =GETPIVOTDATA("Afiliados",'TD_Histor. Af. Act. Ec.'!$A$3,"Año",B38,"Actividad",$O$5) -> 0 | P38: =GETPIVOTDATA("Afiliados",'TD_Histor. Af. Act. Ec.'!$A$3,"Año",B38,"Actividad",$P$5) -> 0 | Q38: =GETPIVOTDATA("Afiliados",'TD_Histor. Af. Act. Ec.'!$A$3,"Año",B38,"Actividad",$Q$5) -> 0 | R38: =GETPIVOTDATA("Afiliados",'TD_Histor. Af. Act. Ec.'!$A$3,"Año",B38,"Actividad",$R$5) -> 0 | S38: =GETPIVOTDATA("Afiliados",'TD_Histor. Af. Act. Ec.'!$A$3,"Año",B38,"Actividad",$S$5) -> 0 | T38: =GETPIVOTDATA("Afiliados",'TD_Histor. Af. Act. Ec.'!$A$3,"Año",B38,"Actividad",$T$5) -> 0 | U38: 795708 | W38: 1992 | X38: 221168 | Y38: 3144 | Z38: 130659 | AA38: 12858 | AB38: 18043 | AC38: 98029 | AD38: 23918 | AE38: 287889 | AF38: =SUM(X38:AE38) -> 795708
B39: 1993 | C39: =GETPIVOTDATA("Afiliados",'TD_Histor. Af. Act. Ec.'!$A$3,"Año",B39,"Actividad",$C$5) -> 214639 | D39: =GETPIVOTDATA("Afiliados",'TD_Histor. Af. Act. Ec.'!$A$3,"Año",B39,"Actividad",$D$5) -> 0 | E39: =GETPIVOTDATA("Afiliados",'TD_Histor. Af. Act. Ec.'!$A$3,"Año",B39,"Actividad",$E$5) -> 2420 | F39: =GETPIVOTDATA("Afiliados",'TD_Histor. Af. Act. Ec.'!$A$3,"Año",B39,"Actividad",$F$5) -> 136677 | G39: =GETPIVOTDATA("Afiliados",'TD_Histor. Af. Act. Ec.'!$A$3,"Año",B39,"Actividad",$G$5) -> 11142 | H39: =GETPIVOTDATA("Afiliados",'TD_Histor. Af. Act. Ec.'!$A$3,"Año",B39,"Actividad",$H$5) -> 26395 | I39: =GETPIVOTDATA("Afiliados",'TD_Histor. Af. Act. Ec.'!$A$3,"Año",B39,"Actividad",$I$5) -> 102625 | J39: =GETPIVOTDATA("Afiliados",'TD_Histor. Af. Act. Ec.'!$A$3,"Año",B39,"Actividad",$J$5) -> 0 | K39: =GETPIVOTDATA("Afiliados",'TD_Histor. Af. Act. Ec.'!$A$3,"Año",B39,"Actividad",$K$5) -> 25162 | L39: =GETPIVOTDATA("Afiliados",'TD_Histor. Af. Act. Ec.'!$A$3,"Año",B39,"Actividad",$L$5) -> 304179 | M39: =GETPIVOTDATA("Afiliados",'TD_Histor. Af. Act. Ec.'!$A$3,"Año",B39,"Actividad",$M$5) -> 0 | N39: =GETPIVOTDATA("Afiliados",'TD_Histor. Af. Act. Ec.'!$A$3,"Año",B39,"Actividad",$N$5) -> 0 | O39: =GETPIVOTDATA("Afiliados",'TD_Histor. Af. Act. Ec.'!$A$3,"Año",B39,"Actividad",$O$5) -> 0 | P39: =GETPIVOTDATA("Afiliados",'TD_Histor. Af. Act. Ec.'!$A$3,"Año",B39,"Actividad",$P$5) -> 0 | Q39: =GETPIVOTDATA("Afiliados",'TD_Histor. Af. Act. Ec.'!$A$3,"Año",B39,"Actividad",$Q$5) -> 0 | R39: =GETPIVOTDATA("Afiliados",'TD_Histor. Af. Act. Ec.'!$A$3,"Año",B39,"Actividad",$R$5) -> 0 | S39: =GETPIVOTDATA("Afiliados",'TD_Histor. Af. Act. Ec.'!$A$3,"Año",B39,"Actividad",$S$5) -> 0 | T39: =GETPIVOTDATA("Afiliados",'TD_Histor. Af. Act. Ec.'!$A$3,"Año",B39,"Actividad",$T$5) -> 0 | U39: 823239 | W39: 1993 | X39: 214639 | Y39: 2420 | Z39: 136677 | AA39: 11142 | AB39: 26395 | AC39: 102625 | AD39: 25162 | AE39: 304179 | AF39: 823239
B40: 1994 | C40: =GETPIVOTDATA("Afiliados",'TD_Histor. Af. Act. Ec.'!$A$3,"Año",B40,"Actividad",$C$5) -> 205500 | D40: =GETPIVOTDATA("Afiliados",'TD_Histor. Af. Act. Ec.'!$A$3,"Año",B40,"Actividad",$D$5) -> 0 | E40: =GETPIVOTDATA("Afiliados",'TD_Histor. Af. Act. Ec.'!$A$3,"Año",B40,"Actividad",$E$5) -> 1900 | F40: =GETPIVOTDATA("Afiliados",'TD_Histor. Af. Act. Ec.'!$A$3,"Año",B40,"Actividad",$F$5) -> 152892 | G40: =GETPIVOTDATA("Afiliados",'TD_Histor. Af. Act. Ec.'!$A$3,"Año",B40,"Actividad",$G$5) -> 9283 | H40: =GETPIVOTDATA("Afiliados",'TD_Histor. Af. Act. Ec.'!$A$3,"Año",B40,"Actividad",$H$5) -> 23934 | I40: =GETPIVOTDATA("Afiliados",'TD_Histor. Af. Act. Ec.'!$A$3,"Año",B40,"Actividad",$I$5) -> 108094 | J40: =GETPIVOTDATA("Afiliados",'TD_Histor. Af. Act. Ec.'!$A$3,"Año",B40,"Actividad",$J$5) -> 0 | K40: =GETPIVOTDATA("Afiliados",'TD_Histor. Af. Act. Ec.'!$A$3,"Año",B40,"Actividad",$K$5) -> 23475 | L40: =GETPIVOTDATA("Afiliados",'TD_Histor. Af. Act. Ec.'!$A$3,"Año",B40,"Actividad",$L$5) -> 305246 | M40: =GETPIVOTDATA("Afiliados",'TD_Histor. Af. Act. Ec.'!$A$3,"Año",B40,"Actividad",$M$5) -> 0 | N40: =GETPIVOTDATA("Afiliados",'TD_Histor. Af. Act. Ec.'!$A$3,"Año",B40,"Actividad",$N$5) -> 0 | O40: =GETPIVOTDATA("Afiliados",'TD_Histor. Af. Act. Ec.'!$A$3,"Año",B40,"Actividad",$O$5) -> 0 | P40: =GETPIVOTDATA("Afiliados",'TD_Histor. Af. Act. Ec.'!$A$3,"Año",B40,"Actividad",$P$5) -> 0 | Q40: =GETPIVOTDATA("Afiliados",'TD_Histor. Af. Act. Ec.'!$A$3,"Año",B40,"Actividad",$Q$5) -> 0 | R40: =GETPIVOTDATA("Afiliados",'TD_Histor. Af. Act. Ec.'!$A$3,"Año",B40,"Actividad",$R$5) -> 0 | S40: =GETPIVOTDATA("Afiliados",'TD_Histor. Af. Act. Ec.'!$A$3,"Año",B40,"Actividad",$S$5) -> 0 | T40: =GETPIVOTDATA("Afiliados",'TD_Histor. Af. Act. Ec.'!$A$3,"Año",B40,"Actividad",$T$5) -> 0 | U40: 830324 | W40: 1994 | X40: 205500 | Y40: 1900 | Z40: 152892 | AA40: 9283 | AB40: 23934 | AC40: 108094 | AD40: 23475 | AE40: 305246 | AF40: 830324
B41: 1995 | C41: =GETPIVOTDATA("Afiliados",'TD_Histor. Af. Act. Ec.'!$A$3,"Año",B41,"Actividad",$C$5) -> 224329 | D41: =GETPIVOTDATA("Afiliados",'TD_Histor. Af. Act. Ec.'!$A$3,"Año",B41,"Actividad",$D$5) -> 0 | E41: =GETPIVOTDATA("Afiliados",'TD_Histor. Af. Act. Ec.'!$A$3,"Año",B41,"Actividad",$E$5) -> 2494 | F41: =GETPIVOTDATA("Afiliados",'TD_Histor. Af. Act. Ec.'!$A$3,"Año",B41,"Actividad",$F$5) -> 142365 | G41: =GETPIVOTDATA("Afiliados",'TD_Histor. Af. Act. Ec.'!$A$3,"Año",B41,"Actividad",$G$5) -> 9800 | H41: =GETPIVOTDATA("Afiliados",'TD_Histor. Af. Act. Ec.'!$A$3,"Año",B41,"Actividad",$H$5) -> 20056 | I41: =GETPIVOTDATA("Afiliados",'TD_Histor. Af. Act. Ec.'!$A$3,"Año",B41,"Actividad",$I$5) -> 119985 | J41: =GETPIVOTDATA("Afiliados",'TD_Histor. Af. Act. Ec.'!$A$3,"Año",B41,"Actividad",$J$5) -> 0 | K41: =GETPIVOTDATA("Afiliados",'TD_Histor. Af. Act. Ec.'!$A$3,"Año",B41,"Actividad",$K$5) -> 27450 | L41: =GETPIVOTDATA("Afiliados",'TD_Histor. Af. Act. Ec.'!$A$3,"Año",B41,"Actividad",$L$5) -> 309117 | M41: =GETPIVOTDATA("Afiliados",'TD_Histor. Af. Act. Ec.'!$A$3,"Año",B41,"Actividad",$M$5) -> 0 | N41: =GETPIVOTDATA("Afiliados",'TD_Histor. Af. Act. Ec.'!$A$3,"Año",B41,"Actividad",$N$5) -> 0 | O41: =GETPIVOTDATA("Afiliados",'TD_Histor. Af. Act. Ec.'!$A$3,"Año",B41,"Actividad",$O$5) -> 0 | P41: =GETPIVOTDATA("Afiliados",'TD_Histor. Af. Act. Ec.'!$A$3,"Año",B41,"Actividad",$P$5) -> 0 | Q41: =GETPIVOTDATA("Afiliados",'TD_Histor. Af. Act. Ec.'!$A$3,"Año",B41,"Actividad",$Q$5) -> 0 | R41: =GETPIVOTDATA("Afiliados",'TD_Histor. Af. Act. Ec.'!$A$3,"Año",B41,"Actividad",$R$5) -> 0 | S41: =GETPIVOTDATA("Afiliados",'TD_Histor. Af. Act. Ec.'!$A$3,"Año",B41,"Actividad",$S$5) -> 0 | T41: =GETPIVOTDATA("Afiliados",'TD_Histor. Af. Act. Ec.'!$A$3,"Año",B41,"Actividad",$T$5) -> 0 | U41: 855596 | W41: 1995 | X41: 224329 | Y41: 2494 | Z41: 142365 | AA41: 9800 | AB41: 20056 | AC41: 119985 | AD41: 27450 | AE41: 309117 | AF41: 855596
B42: 1996 | C42: =GETPIVOTDATA("Afiliados",'TD_Histor. Af. Act. Ec.'!$A$3,"Año",B42,"Actividad",$C$5) -> 204374 | D42: =GETPIVOTDATA("Afiliados",'TD_Histor. Af. Act. Ec.'!$A$3,"Año",B42,"Actividad",$D$5) -> 0 | E42: =GETPIVOTDATA("Afiliados",'TD_Histor. Af. Act. Ec.'!$A$3,"Año",B42,"Actividad",$E$5) -> 3004 | F42: =GETPIVOTDATA("Afiliados",'TD_Histor. Af. Act. Ec.'!$A$3,"Año",B42,"Actividad",$F$5) -> 129875 | G42: =GETPIVOTDATA("Afiliados",'TD_Histor. Af. Act. Ec.'!$A$3,"Año",B42,"Actividad",$G$5) -> 10979 | H42: =GETPIVOTDATA("Afiliados",'TD_Histor. Af. Act. Ec.'!$A$3,"Año",B42,"Actividad",$H$5) -> 24792 | I42: =GETPIVOTDATA("Afiliados",'TD_Histor. Af. Act. Ec.'!$A$3,"Año",B42,"Actividad",$I$5) -> 129844 | J42: =GETPIVOTDATA("Afiliados",'TD_Histor. Af. Act. Ec.'!$A$3,"Año",B42,"Actividad",$J$5) -> 0 | K42: =GETPIVOTDATA("Afiliados",'TD_Histor. Af. Act. Ec.'!$A$3,"Año",B42,"Actividad",$K$5) -> 25927 | L42: =GETPIVOTDATA("Afiliados",'TD_Histor. Af. Act. Ec.'!$A$3,"Año",B42,"Actividad",$L$5) -> 323448 | M42: =GETPIVOTDATA("Afiliados",'TD_Histor. Af. Act. Ec.'!$A$3,"Año",B42,"Actividad",$M$5) -> 0 | N42: =GETPIVOTDATA("Afiliados",'TD_Histor. Af. Act. Ec.'!$A$3,"Año",B42,"Actividad",$N$5) -> 0 | O42: =GETPIVOTDATA("Afiliados",'TD_Histor. Af. Act. Ec.'!$A$3,"Año",B42,"Actividad",$O$5) -> 0 | P42: =GETPIVOTDATA("Afiliados",'TD_Histor. Af. Act. Ec.'!$A$3,"Año",B42,"Actividad",$P$5) -> 0 | Q42: =GETPIVOTDATA("Afiliados",'TD_Histor. Af. Act. Ec.'!$A$3,"Año",B42,"Actividad",$Q$5) -> 0 | R42: =GETPIVOTDATA("Afiliados",'TD_Histor. Af. Act. Ec.'!$A$3,"Año",B42,"Actividad",$R$5) -> 0 | S42: =GETPIVOTDATA("Afiliados",'TD_Histor. Af. Act. Ec.'!$A$3,"Año",B42,"Actividad",$S$5) -> 0 | T42: =GETPIVOTDATA("Afiliados",'TD_Histor. Af. Act. Ec.'!$A$3,"Año",B42,"Actividad",$T$5) -> 0 | U42: 852243 | W42: 1996 | X42: 204374 | Y42: 3004 | Z42: 129875 | AA42: 10979 | AB42: 24792 | AC42: 129844 | AD42: 25927 | AE42: 323448 | AF42: 852243
B43: 1997 | C43: =GETPIVOTDATA("Afiliados",'TD_Histor. Af. Act. Ec.'!$A$3,"Año",B43,"Actividad",$C$5) -> 212808 | D43: =GETPIVOTDATA("Afiliados",'TD_Histor. Af. Act. Ec.'!$A$3,"Año",B43,"Actividad",$D$5) -> 0 | E43: =GETPIVOTDATA("Afiliados",'TD_Histor. Af. Act. Ec.'!$A$3,"Año",B43,"Actividad",$E$5) -> 2273 | F43: =GETPIVOTDATA("Afiliados",'TD_Histor. Af. Act. Ec.'!$A$3,"Año",B43,"Actividad",$F$5) -> 138591 | G43: =GETPIVOTDATA("Afiliados",'TD_Histor. Af. Act. Ec.'!$A$3,"Año",B43,"Actividad",$G$5) -> 10301 | H43: =GETPIVOTDATA("Afiliados",'TD_Histor. Af. Act. Ec.'!$A$3,"Año",B43,"Actividad",$H$5) -> 22298 | I43: =GETPIVOTDATA("Afiliados",'TD_Histor. Af. Act. Ec.'!$A$3,"Año",B43,"Actividad",$I$5) -> 124079 | J43: =GETPIVOTDATA("Afiliados",'TD_Histor. Af. Act. Ec.'!$A$3,"Año",B43,"Actividad",$J$5) -> 0 | K43: =GETPIVOTDATA("Afiliados",'TD_Histor. Af. Act. Ec.'!$A$3,"Año",B43,"Actividad",$K$5) -> 26098 | L43: =GETPIVOTDATA("Afiliados",'TD_Histor. Af. Act. Ec.'!$A$3,"Año",B43,"Actividad",$L$5) -> 307960 | M43: =GETPIVOTDATA("Afiliados",'TD_Histor. Af. Act. Ec.'!$A$3,"Año",B43,"Actividad",$M$5) -> 0 | N43: =GETPIVOTDATA("Afiliados",'TD_Histor. Af. Act. Ec.'!$A$3,"Año",B43,"Actividad",$N$5) -> 0 | O43: =GETPIVOTDATA("Afiliados",'TD_Histor. Af. Act. Ec.'!$A$3,"Año",B43,"Actividad",$O$5) -> 0 | P43: =GETPIVOTDATA("Afiliados",'TD_Histor. Af. Act. Ec.'!$A$3,"Año",B43,"Actividad",$P$5) -> 0 | Q43: =GETPIVOTDATA("Afiliados",'TD_Histor. Af. Act. Ec.'!$A$3,"Año",B43,"Actividad",$Q$5) -> 0 | R43: =GETPIVOTDATA("Afiliados",'TD_Histor. Af. Act. Ec.'!$A$3,"Año",B43,"Actividad",$R$5) -> 0 | S43: =GETPIVOTDATA("Afiliados",'TD_Histor. Af. Act. Ec.'!$A$3,"Año",B43,"Actividad",$S$5) -> 0 | T43: =GETPIVOTDATA("Afiliados",'TD_Histor. Af. Act. Ec.'!$A$3,"Año",B43,"Actividad",$T$5) -> 0 | U43: 844408 | W43: 1997 | X43: 212808 | Y43: 2273 | Z43: 138591 | AA43: 10301 | AB43: 22298 | AC43: 124079 | AD43: 26098 | AE43: 307960 | AF43: 844408
B44: 1998 | C44: =GETPIVOTDATA("Afiliados",'TD_Histor. Af. Act. Ec.'!$A$3,"Año",B44,"Actividad",$C$5) -> 203975 | D44: =GETPIVOTDATA("Afiliados",'TD_Histor. Af. Act. Ec.'!$A$3,"Año",B44,"Actividad",$D$5) -> 0 | E44: =GETPIVOTDATA("Afiliados",'TD_Histor. Af. Act. Ec.'!$A$3,"Año",B44,"Actividad",$E$5) -> 2787 | F44: =GETPIVOTDATA("Afiliados",'TD_Histor. Af. Act. Ec.'!$A$3,"Año",B44,"Actividad",$F$5) -> 150251 | G44: =GETPIVOTDATA("Afiliados",'TD_Histor. Af. Act. Ec.'!$A$3,"Año",B44,"Actividad",$G$5) -> 11280 | H44: =GETPIVOTDATA("Afiliados",'TD_Histor. Af. Act. Ec.'!$A$3,"Año",B44,"Actividad",$H$5) -> 27882 | I44: =GETPIVOTDATA("Afiliados",'TD_Histor. Af. Act. Ec.'!$A$3,"Año",B44,"Actividad",$I$5) -> 135859 | J44: =GETPIVOTDATA("Afiliados",'TD_Histor. Af. Act. Ec.'!$A$3,"Año",B44,"Actividad",$J$5) -> 0 | K44: =GETPIVOTDATA("Afiliados",'TD_Histor. Af. Act. Ec.'!$A$3,"Año",B44,"Actividad",$K$5) -> 27380 | L44: =GETPIVOTDATA("Afiliados",'TD_Histor. Af. Act. Ec.'!$A$3,"Año",B44,"Actividad",$L$5) -> 327814 | M44: =GETPIVOTDATA("Afiliados",'TD_Histor. Af. Act. Ec.'!$A$3,"Año",B44,"Actividad",$M$5) -> 0 | N44: =GETPIVOTDATA("Afiliados",'TD_Histor. Af. Act. Ec.'!$A$3,"Año",B44,"Actividad",$N$5) -> 0 | O44: =GETPIVOTDATA("Afiliados",'TD_Histor. Af. Act. Ec.'!$A$3,"Año",B44,"Actividad",$O$5) -> 0 | P44: =GETPIVOTDATA("Afiliados",'TD_Histor. Af. Act. Ec.'!$A$3,"Año",B44,"Actividad",$P$5) -> 0 | Q44: =GETPIVOTDATA("Afiliados",'TD_Histor. Af. Act. Ec.'!$A$3,"Año",B44,"Actividad",$Q$5) -> 0 | R44: =GETPIVOTDATA("Afiliados",'TD_Histor. Af. Act. Ec.'!$A$3,"Año",B44,"Actividad",$R$5) -> 0 | S44: =GETPIVOTDATA("Afiliados",'TD_Histor. Af. Act. Ec.'!$A$3,"Año",B44,"Actividad",$S$5) -> 0 | T44: =GETPIVOTDATA("Afiliados",'TD_Histor. Af. Act. Ec.'!$A$3,"Año",B44,"Actividad",$T$5) -> 0 | U44: 887228 | W44: 1998 | X44: 203975 | Y44: 2787 | Z44: 150251 | AA44: 11280 | AB44: 27882 | AC44: 135859 | AD44: 27380 | AE44: 327814 | AF44: 887228
B45: 1999 | C45: =GETPIVOTDATA("Afiliados",'TD_Histor. Af. Act. Ec.'!$A$3,"Año",B45,"Actividad",$C$5) -> 184292 | D45: =GETPIVOTDATA("Afiliados",'TD_Histor. Af. Act. Ec.'!$A$3,"Año",B45,"Actividad",$D$5) -> 0 | E45: =GETPIVOTDATA("Afiliados",'TD_Histor. Af. Act. Ec.'!$A$3,"Año",B45,"Actividad",$E$5) -> 2851 | F45: =GETPIVOTDATA("Afiliados",'TD_Histor. Af. Act. Ec.'!$A$3,"Año",B45,"Actividad",$F$5) -> 165967 | G45: =GETPIVOTDATA("Afiliados",'TD_Histor. Af. Act. Ec.'!$A$3,"Año",B45,"Actividad",$G$5) -> 10429 | H45: =GETPIVOTDATA("Afiliados",'TD_Histor. Af. Act. Ec.'!$A$3,"Año",B45,"Actividad",$H$5) -> 22711 | I45: =GETPIVOTDATA("Afiliados",'TD_Histor. Af. Act. Ec.'!$A$3,"Año",B45,"Actividad",$I$5) -> 139031 | J45: =GETPIVOTDATA("Afiliados",'TD_Histor. Af. Act. Ec.'!$A$3,"Año",B45,"Actividad",$J$5) -> 0 | K45: =GETPIVOTDATA("Afiliados",'TD_Histor. Af. Act. Ec.'!$A$3,"Año",B45,"Actividad",$K$5) -> 27345 | L45: =GETPIVOTDATA("Afiliados",'TD_Histor. Af. Act. Ec.'!$A$3,"Año",B45,"Actividad",$L$5) -> 340500 | M45: =GETPIVOTDATA("Afiliados",'TD_Histor. Af. Act. Ec.'!$A$3,"Año",B45,"Actividad",$M$5) -> 0 | N45: =GETPIVOTDATA("Afiliados",'TD_Histor. Af. Act. Ec.'!$A$3,"Año",B45,"Actividad",$N$5) -> 0 | O45: =GETPIVOTDATA("Afiliados",'TD_Histor. Af. Act. Ec.'!$A$3,"Año",B45,"Actividad",$O$5) -> 0 | P45: =GETPIVOTDATA("Afiliados",'TD_Histor. Af. Act. Ec.'!$A$3,"Año",B45,"Actividad",$P$5) -> 0 | Q45: =GETPIVOTDATA("Afiliados",'TD_Histor. Af. Act. Ec.'!$A$3,"Año",B45,"Actividad",$Q$5) -> 0 | R45: =GETPIVOTDATA("Afiliados",'TD_Histor. Af. Act. Ec.'!$A$3,"Año",B45,"Actividad",$R$5) -> 0 | S45: =GETPIVOTDATA("Afiliados",'TD_Histor. Af. Act. Ec.'!$A$3,"Año",B45,"Actividad",$S$5) -> 0 | T45: =GETPIVOTDATA("Afiliados",'TD_Histor. Af. Act. Ec.'!$A$3,"Año",B45,"Actividad",$T$5) -> 0 | U45: 893126 | W45: 1999 | X45: 184292 | Y45: 2851 | Z45: 165967 | AA45: 10429 | AB45: 22711 | AC45: 139031 | AD45: 27345 | AE45: 340500 | AF45: 893126
B46: 2000 | C46: =GETPIVOTDATA("Afiliados",'TD_Histor. Af. Act. Ec.'!$A$3,"Año",B46,"Actividad",$C$5) -> 169022 | D46: =GETPIVOTDATA("Afiliados",'TD_Histor. Af. Act. Ec.'!$A$3,"Año",B46,"Actividad",$D$5) -> 0 | E46: =GETPIVOTDATA("Afiliados",'TD_Histor. Af. Act. Ec.'!$A$3,"Año",B46,"Actividad",$E$5) -> 2699 | F46: =GETPIVOTDATA("Afiliados",'TD_Histor. Af. Act. Ec.'!$A$3,"Año",B46,"Actividad",$F$5) -> 184034 | G46: =GETPIVOTDATA("Afiliados",'TD_Histor. Af. Act. Ec.'!$A$3,"Año",B46,"Actividad",$G$5) -> 9896 | H46: =GETPIVOTDATA("Afiliados",'TD_Histor. Af. Act. Ec.'!$A$3,"Año",B46,"Actividad",$H$5) -> 20904 | I46: =GETPIVOTDATA("Afiliados",'TD_Histor. Af. Act. Ec.'!$A$3,"Año",B46,"Actividad",$I$5) -> 141715 | J46: =GETPIVOTDATA("Afiliados",'TD_Histor. Af. Act. Ec.'!$A$3,"Año",B46,"Actividad",$J$5) -> 0 | K46: =GETPIVOTDATA("Afiliados",'TD_Histor. Af. Act. Ec.'!$A$3,"Año",B46,"Actividad",$K$5) -> 28799 | L46: =GETPIVOTDATA("Afiliados",'TD_Histor. Af. Act. Ec.'!$A$3,"Año",B46,"Actividad",$L$5) -> 351053 | M46: =GETPIVOTDATA("Afiliados",'TD_Histor. Af. Act. Ec.'!$A$3,"Año",B46,"Actividad",$M$5) -> 0 | N46: =GETPIVOTDATA("Afiliados",'TD_Histor. Af. Act. Ec.'!$A$3,"Año",B46,"Actividad",$N$5) -> 0 | O46: =GETPIVOTDATA("Afiliados",'TD_Histor. Af. Act. Ec.'!$A$3,"Año",B46,"Actividad",$O$5) -> 0 | P46: =GETPIVOTDATA("Afiliados",'TD_Histor. Af. Act. Ec.'!$A$3,"Año",B46,"Actividad",$P$5) -> 0 | Q46: =GETPIVOTDATA("Afiliados",'TD_Histor. Af. Act. Ec.'!$A$3,"Año",B46,"Actividad",$Q$5) -> 0 | R46: =GETPIVOTDATA("Afiliados",'TD_Histor. Af. Act. Ec.'!$A$3,"Año",B46,"Actividad",$R$5) -> 0 | S46: =GETPIVOTDATA("Afiliados",'TD_Histor. Af. Act. Ec.'!$A$3,"Año",B46,"Actividad",$S$5) -> 0 | T46: =GETPIVOTDATA("Afiliados",'TD_Histor. Af. Act. Ec.'!$A$3,"Año",B46,"Actividad",$T$5) -> 0 | U46: 908122 | W46: 2000 | X46: 169022 | Y46: 2699 | Z46: 184034 | AA46: 9896 | AB46: 20904 | AC46: 141715 | AD46: 28799 | AE46: 351053 | AF46: 908122
B47: 2001 | C47: =GETPIVOTDATA("Afiliados",'TD_Histor. Af. Act. Ec.'!$A$3,"Año",B47,"Actividad",$C$5) -> 151981 | D47: =GETPIVOTDATA("Afiliados",'TD_Histor. Af. Act. Ec.'!$A$3,"Año",B47,"Actividad",$D$5) -> 0 | E47: =GETPIVOTDATA("Afiliados",'TD_Histor. Af. Act. Ec.'!$A$3,"Año",B47,"Actividad",$E$5) -> 2610 | F47: =GETPIVOTDATA("Afiliados",'TD_Histor. Af. Act. Ec.'!$A$3,"Año",B47,"Actividad",$F$5) -> 193111 | G47: =GETPIVOTDATA("Afiliados",'TD_Histor. Af. Act. Ec.'!$A$3,"Año",B47,"Actividad",$G$5) -> 9984 | H47: =GETPIVOTDATA("Afiliados",'TD_Histor. Af. Act. Ec.'!$A$3,"Año",B47,"Actividad",$H$5) -> 21576 | I47: =GETPIVOTDATA("Afiliados",'TD_Histor. Af. Act. Ec.'!$A$3,"Año",B47,"Actividad",$I$5) -> 149431 | J47: =GETPIVOTDATA("Afiliados",'TD_Histor. Af. Act. Ec.'!$A$3,"Año",B47,"Actividad",$J$5) -> 0 | K47: =GETPIVOTDATA("Afiliados",'TD_Histor. Af. Act. Ec.'!$A$3,"Año",B47,"Actividad",$K$5) -> 31237 | L47: =GETPIVOTDATA("Afiliados",'TD_Histor. Af. Act. Ec.'!$A$3,"Año",B47,"Actividad",$L$5) -> 367838 | M47: =GETPIVOTDATA("Afiliados",'TD_Histor. Af. Act. Ec.'!$A$3,"Año",B47,"Actividad",$M$5) -> 0 | N47: =GETPIVOTDATA("Afiliados",'TD_Histor. Af. Act. Ec.'!$A$3,"Año",B47,"Actividad",$N$5) -> 0 | O47: =GETPIVOTDATA("Afiliados",'TD_Histor. Af. Act. Ec.'!$A$3,"Año",B47,"Actividad",$O$5) -> 0 | P47: =GETPIVOTDATA("Afiliados",'TD_Histor. Af. Act. Ec.'!$A$3,"Año",B47,"Actividad",$P$5) -> 0 | Q47: =GETPIVOTDATA("Afiliados",'TD_Histor. Af. Act. Ec.'!$A$3,"Año",B47,"Actividad",$Q$5) -> 0 | R47: =GETPIVOTDATA("Afiliados",'TD_Histor. Af. Act. Ec.'!$A$3,"Año",B47,"Actividad",$R$5) -> 0 | S47: =GETPIVOTDATA("Afiliados",'TD_Histor. Af. Act. Ec.'!$A$3,"Año",B47,"Actividad",$S$5) -> 0 | T47: =GETPIVOTDATA("Afiliados",'TD_Histor. Af. Act. Ec.'!$A$3,"Año",B47,"Actividad",$T$5) -> 0 | U47: 927768 | W47: 2001 | X47: 151981 | Y47: 2610 | Z47: 193111 | AA47: 9984 | AB47: 21576 | AC47: 149431 | AD47: 31237 | AE47: 367838 | AF47: 927768
B48: 2002 | C48: =GETPIVOTDATA("Afiliados",'TD_Histor. Af. Act. Ec.'!$A$3,"Año",B48,"Actividad",$C$5) -> 145807 | D48: =GETPIVOTDATA("Afiliados",'TD_Histor. Af. Act. Ec.'!$A$3,"Año",B48,"Actividad",$D$5) -> 0 | E48: =GETPIVOTDATA("Afiliados",'TD_Histor. Af. Act. Ec.'!$A$3,"Año",B48,"Actividad",$E$5) -> 2150 | F48: =GETPIVOTDATA("Afiliados",'TD_Histor. Af. Act. Ec.'!$A$3,"Año",B48,"Actividad",$F$5) -> 195943 | G48: =GETPIVOTDATA("Afiliados",'TD_Histor. Af. Act. Ec.'!$A$3,"Año",B48,"Actividad",$G$5) -> 10542 | H48: =GETPIVOTDATA("Afiliados",'TD_Histor. Af. Act. Ec.'!$A$3,"Año",B48,"Actividad",$H$5) -> 23503 | I48: =GETPIVOTDATA("Afiliados",'TD_Histor. Af. Act. Ec.'!$A$3,"Año",B48,"Actividad",$I$5) -> 157789 | J48: =GETPIVOTDATA("Afiliados",'TD_Histor. Af. Act. Ec.'!$A$3,"Año",B48,"Actividad",$J$5) -> 0 | K48: =GETPIVOTDATA("Afiliados",'TD_Histor. Af. Act. Ec.'!$A$3,"Año",B48,"Actividad",$K$5) -> 31877 | L48: =GETPIVOTDATA("Afiliados",'TD_Histor. Af. Act. Ec.'!$A$3,"Año",B48,"Actividad",$L$5) -> 385441 | M48: =GETPIVOTDATA("Afiliados",'TD_Histor. Af. Act. Ec.'!$A$3,"Año",B48,"Actividad",$M$5) -> 0 | N48: =GETPIVOTDATA("Afiliados",'TD_Histor. Af. Act. Ec.'!$A$3,"Año",B48,"Actividad",$N$5) -> 0 | O48: =GETPIVOTDATA("Afiliados",'TD_Histor. Af. Act. Ec.'!$A$3,"Año",B48,"Actividad",$O$5) -> 0 | P48: =GETPIVOTDATA("Afiliados",'TD_Histor. Af. Act. Ec.'!$A$3,"Año",B48,"Actividad",$P$5) -> 0 | Q48: =GETPIVOTDATA("Afiliados",'TD_Histor. Af. Act. Ec.'!$A$3,"Año",B48,"Actividad",$Q$5) -> 0 | R48: =GETPIVOTDATA("Afiliados",'TD_Histor. Af. Act. Ec.'!$A$3,"Año",B48,"Actividad",$R$5) -> 0 | S48: =GETPIVOTDATA("Afiliados",'TD_Histor. Af. Act. Ec.'!$A$3,"Año",B48,"Actividad",$S$5) -> 0 | T48: =GETPIVOTDATA("Afiliados",'TD_Histor. Af. Act. Ec.'!$A$3,"Año",B48,"Actividad",$T$5) -> 0 | U48: 953052 | W48: 2002 | X48: 145807 | Y48: 2150 | Z48: 195943 | AA48: 10542 | AB48: 23503 | AC48: 157789 | AD48: 31877 | AE48: 385441 | AF48: 953052
B49: 2003 | C49: =GETPIVOTDATA("Afiliados",'TD_Histor. Af. Act. Ec.'!$A$3,"Año",B49,"Actividad",$C$5) -> 145672 | D49: =GETPIVOTDATA("Afiliados",'TD_Histor. Af. Act. Ec.'!$A$3,"Año",B49,"Actividad",$D$5) -> 0 | E49: =GETPIVOTDATA("Afiliados",'TD_Histor. Af. Act. Ec.'!$A$3,"Año",B49,"Actividad",$E$5) -> 2278 | F49: =GETPIVOTDATA("Afiliados",'TD_Histor. Af. Act. Ec.'!$A$3,"Año",B49,"Actividad",$F$5) -> 196337 | G49: =GETPIVOTDATA("Afiliados",'TD_Histor. Af. Act. Ec.'!$A$3,"Año",B49,"Actividad",$G$5) -> 9870 | H49: =GETPIVOTDATA("Afiliados",'TD_Histor. Af. Act. Ec.'!$A$3,"Año",B49,"Actividad",$H$5) -> 22705 | I49: =GETPIVOTDATA("Afiliados",'TD_Histor. Af. Act. Ec.'!$A$3,"Año",B49,"Actividad",$I$5) -> 161404 | J49: =GETPIVOTDATA("Afiliados",'TD_Histor. Af. Act. Ec.'!$A$3,"Año",B49,"Actividad",$J$5) -> 0 | K49: =GETPIVOTDATA("Afiliados",'TD_Histor. Af. Act. Ec.'!$A$3,"Año",B49,"Actividad",$K$5) -> 31044 | L49: =GETPIVOTDATA("Afiliados",'TD_Histor. Af. Act. Ec.'!$A$3,"Año",B49,"Actividad",$L$5) -> 388611 | M49: =GETPIVOTDATA("Afiliados",'TD_Histor. Af. Act. Ec.'!$A$3,"Año",B49,"Actividad",$M$5) -> 0 | N49: =GETPIVOTDATA("Afiliados",'TD_Histor. Af. Act. Ec.'!$A$3,"Año",B49,"Actividad",$N$5) -> 0 | O49: =GETPIVOTDATA("Afiliados",'TD_Histor. Af. Act. Ec.'!$A$3,"Año",B49,"Actividad",$O$5) -> 0 | P49: =GETPIVOTDATA("Afiliados",'TD_Histor. Af. Act. Ec.'!$A$3,"Año",B49,"Actividad",$P$5) -> 0 | Q49: =GETPIVOTDATA("Afiliados",'TD_Histor. Af. Act. Ec.'!$A$3,"Año",B49,"Actividad",$Q$5) -> 0 | R49: =GETPIVOTDATA("Afiliados",'TD_Histor. Af. Act. Ec.'!$A$3,"Año",B49,"Actividad",$R$5) -> 0 | S49: =GETPIVOTDATA("Afiliados",'TD_Histor. Af. Act. Ec.'!$A$3,"Año",B49,"Actividad",$S$5) -> 0 | T49: =GETPIVOTDATA("Afiliados",'TD_Histor. Af. Act. Ec.'!$A$3,"Año",B49,"Actividad",$T$5) -> 0 | U49: 957921 | W49: 2003 | X49: 145672 | Y49: 2278 | Z49: 196337 | AA49: 9870 | AB49: 22705 | AC49: 161404 | AD49: 31044 | AE49: 388611 | AF49: 957921
B50: 2004 | C50: =GETPIVOTDATA("Afiliados",'TD_Histor. Af. Act. Ec.'!$A$3,"Año",B50,"Actividad",$C$5) -> 142692 | D50: =GETPIVOTDATA("Afiliados",'TD_Histor. Af. Act. Ec.'!$A$3,"Año",B50,"Actividad",$D$5) -> 0 | E50: =GETPIVOTDATA("Afiliados",'TD_Histor. Af. Act. Ec.'!$A$3,"Año",B50,"Actividad",$E$5) -> 2709 | F50: =GETPIVOTDATA("Afiliados",'TD_Histor. Af. Act. Ec.'!$A$3,"Año",B50,"Actividad",$F$5) -> 199701 | G50: =GETPIVOTDATA("Afiliados",'TD_Histor. Af. Act. Ec.'!$A$3,"Año",B50,"Actividad",$G$5) -> 9486 | H50: =GETPIVOTDATA("Afiliados",'TD_Histor. Af. Act. Ec.'!$A$3,"Año",B50,"Actividad",$H$5) -> 23777 | I50: =GETPIVOTDATA("Afiliados",'TD_Histor. Af. Act. Ec.'!$A$3,"Año",B50,"Actividad",$I$5) -> 167537 | J50: =GETPIVOTDATA("Afiliados",'TD_Histor. Af. Act. Ec.'!$A$3,"Año",B50,"Actividad",$J$5) -> 0 | K50: =GETPIVOTDATA("Afiliados",'TD_Histor. Af. Act. Ec.'!$A$3,"Año",B50,"Actividad",$K$5) -> 31263 | L50: =GETPIVOTDATA("Afiliados",'TD_Histor. Af. Act. Ec.'!$A$3,"Año",B50,"Actividad",$L$5) -> 411727 | M50: =GETPIVOTDATA("Afiliados",'TD_Histor. Af. Act. Ec.'!$A$3,"Año",B50,"Actividad",$M$5) -> 0 | N50: =GETPIVOTDATA("Afiliados",'TD_Histor. Af. Act. Ec.'!$A$3,"Año",B50,"Actividad",$N$5) -> 0 | O50: =GETPIVOTDATA("Afiliados",'TD_Histor. Af. Act. Ec.'!$A$3,"Año",B50,"Actividad",$O$5) -> 0 | P50: =GETPIVOTDATA("Afiliados",'TD_Histor. Af. Act. Ec.'!$A$3,"Año",B50,"Actividad",$P$5) -> 0 | Q50: =GETPIVOTDATA("Afiliados",'TD_Histor. Af. Act. Ec.'!$A$3,"Año",B50,"Actividad",$Q$5) -> 0 | R50: =GETPIVOTDATA("Afiliados",'TD_Histor. Af. Act. Ec.'!$A$3,"Año",B50,"Actividad",$R$5) -> 0 | S50: =GETPIVOTDATA("Afiliados",'TD_Histor. Af. Act. Ec.'!$A$3,"Año",B50,"Actividad",$S$5) -> 0 | T50: =GETPIVOTDATA("Afiliados",'TD_Histor. Af. Act. Ec.'!$A$3,"Año",B50,"Actividad",$T$5) -> 0 | U50: 988892 | W50: 2004 | X50: 142692 | Y50: 2709 | Z50: 199701 | AA50: 9486 | AB50: 23777 | AC50: 167537 | AD50: 31263 | AE50: 411727 | AF50: 988892
B51: 2005 | C51: =GETPIVOTDATA("Afiliados",'TD_Histor. Af. Act. Ec.'!$A$3,"Año",B51,"Actividad",$C$5) -> 141860 | D51: =GETPIVOTDATA("Afiliados",'TD_Histor. Af. Act. Ec.'!$A$3,"Año",B51,"Actividad",$D$5) -> 0 | E51: =GETPIVOTDATA("Afiliados",'TD_Histor. Af. Act. Ec.'!$A$3,"Año",B51,"Actividad",$E$5) -> 3129 | F51: =GETPIVOTDATA("Afiliados",'TD_Histor. Af. Act. Ec.'!$A$3,"Año",B51,"Actividad",$F$5) -> 192111 | G51: =GETPIVOTDATA("Afiliados",'TD_Histor. Af. Act. Ec.'!$A$3,"Año",B51,"Actividad",$G$5) -> 9209 | H51: =GETPIVOTDATA("Afiliados",'TD_Histor. Af. Act. Ec.'!$A$3,"Año",B51,"Actividad",$H$5) -> 25840 | I51: =GETPIVOTDATA("Afiliados",'TD_Histor. Af. Act. Ec.'!$A$3,"Año",B51,"Actividad",$I$5) -> 179422 | J51: =GETPIVOTDATA("Afiliados",'TD_Histor. Af. Act. Ec.'!$A$3,"Año",B51,"Actividad",$J$5) -> 0 | K51: =GETPIVOTDATA("Afiliados",'TD_Histor. Af. Act. Ec.'!$A$3,"Año",B51,"Actividad",$K$5) -> 30567 | L51: =GETPIVOTDATA("Afiliados",'TD_Histor. Af. Act. Ec.'!$A$3,"Año",B51,"Actividad",$L$5) -> 420218 | M51: =GETPIVOTDATA("Afiliados",'TD_Histor. Af. Act. Ec.'!$A$3,"Año",B51,"Actividad",$M$5) -> 0 | N51: =GETPIVOTDATA("Afiliados",'TD_Histor. Af. Act. Ec.'!$A$3,"Año",B51,"Actividad",$N$5) -> 0 | O51: =GETPIVOTDATA("Afiliados",'TD_Histor. Af. Act. Ec.'!$A$3,"Año",B51,"Actividad",$O$5) -> 0 | P51: =GETPIVOTDATA("Afiliados",'TD_Histor. Af. Act. Ec.'!$A$3,"Año",B51,"Actividad",$P$5) -> 0 | Q51: =GETPIVOTDATA("Afiliados",'TD_Histor. Af. Act. Ec.'!$A$3,"Año",B51,"Actividad",$Q$5) -> 0 | R51: =GETPIVOTDATA("Afiliados",'TD_Histor. Af. Act. Ec.'!$A$3,"Año",B51,"Actividad",$R$5) -> 0 | S51: =GETPIVOTDATA("Afiliados",'TD_Histor. Af. Act. Ec.'!$A$3,"Año",B51,"Actividad",$S$5) -> 0 | T51: =GETPIVOTDATA("Afiliados",'TD_Histor. Af. Act. Ec.'!$A$3,"Año",B51,"Actividad",$T$5) -> 0 | U51: 1002356 | W51: 2005 | X51: 141860 | Y51: 3129 | Z51: 192111 | AA51: 9209 | AB51: 25840 | AC51: 179422 | AD51: 30567 | AE51: 420218 | AF51: 1002356
B52: 2006 | C52: =GETPIVOTDATA("Afiliados",'TD_Histor. Af. Act. Ec.'!$A$3,"Año",B52,"Actividad",$C$5) -> 140554 | D52: =GETPIVOTDATA("Afiliados",'TD_Histor. Af. Act. Ec.'!$A$3,"Año",B52,"Actividad",$D$5) -> 0 | E52: =GETPIVOTDATA("Afiliados",'TD_Histor. Af. Act. Ec.'!$A$3,"Año",B52,"Actividad",$E$5) -> 3192 | F52: =GETPIVOTDATA("Afiliados",'TD_Histor. Af. Act. Ec.'!$A$3,"Año",B52,"Actividad",$F$5) -> 176736 | G52: =GETPIVOTDATA("Afiliados",'TD_Histor. Af. Act. Ec.'!$A$3,"Año",B52,"Actividad",$G$5) -> 8885 | H52: =GETPIVOTDATA("Afiliados",'TD_Histor. Af. Act. Ec.'!$A$3,"Año",B52,"Actividad",$H$5) -> 31291 | I52: =GETPIVOTDATA("Afiliados",'TD_Histor. Af. Act. Ec.'!$A$3,"Año",B52,"Actividad",$I$5) -> 195391 | J52: =GETPIVOTDATA("Afiliados",'TD_Histor. Af. Act. Ec.'!$A$3,"Año",B52,"Actividad",$J$5) -> 0 | K52: =GETPIVOTDATA("Afiliados",'TD_Histor. Af. Act. Ec.'!$A$3,"Año",B52,"Actividad",$K$5) -> 33386 | L52: =GETPIVOTDATA("Afiliados",'TD_Histor. Af. Act. Ec.'!$A$3,"Año",B52,"Actividad",$L$5) -> 436970 | M52: =GETPIVOTDATA("Afiliados",'TD_Histor. Af. Act. Ec.'!$A$3,"Año",B52,"Actividad",$M$5) -> 0 | N52: =GETPIVOTDATA("Afiliados",'TD_Histor. Af. Act. Ec.'!$A$3,"Año",B52,"Actividad",$N$5) -> 0 | O52: =GETPIVOTDATA("Afiliados",'TD_Histor. Af. Act. Ec.'!$A$3,"Año",B52,"Actividad",$O$5) -> 0 | P52: =GETPIVOTDATA("Afiliados",'TD_Histor. Af. Act. Ec.'!$A$3,"Año",B52,"Actividad",$P$5) -> 0 | Q52: =GETPIVOTDATA("Afiliados",'TD_Histor. Af. Act. Ec.'!$A$3,"Año",B52,"Actividad",$Q$5) -> 0 | R52: =GETPIVOTDATA("Afiliados",'TD_Histor. Af. Act. Ec.'!$A$3,"Año",B52,"Actividad",$R$5) -> 0 | S52: =GETPIVOTDATA("Afiliados",'TD_Histor. Af. Act. Ec.'!$A$3,"Año",B52,"Actividad",$S$5) -> 0 | T52: =GETPIVOTDATA("Afiliados",'TD_Histor. Af. Act. Ec.'!$A$3,"Año",B52,"Actividad",$T$5) -> 0 | U52: 1026405 | W52: 2006 | X52: 140554 | Y52: 3192 | Z52: 176736 | AA52: 8885 | AB52: 31291 | AC52: 195391 | AD52: 33386 | AE52: 436970 | AF52: 1026405
B53: 2007 | C53: =GETPIVOTDATA("Afiliados",'TD_Histor. Af. Act. Ec.'!$A$3,"Año",B53,"Actividad",$C$5) -> 151200 | D53: =GETPIVOTDATA("Afiliados",'TD_Histor. Af. Act. Ec.'!$A$3,"Año",B53,"Actividad",$D$5) -> 0 | E53: =GETPIVOTDATA("Afiliados",'TD_Histor. Af. Act. Ec.'!$A$3,"Año",B53,"Actividad",$E$5) -> 3442 | F53: =GETPIVOTDATA("Afiliados",'TD_Histor. Af. Act. Ec.'!$A$3,"Año",B53,"Actividad",$F$5) -> 172567 | G53: =GETPIVOTDATA("Afiliados",'TD_Histor. Af. Act. Ec.'!$A$3,"Año",B53,"Actividad",$G$5) -> 8283 | H53: =GETPIVOTDATA("Afiliados",'TD_Histor. Af. Act. Ec.'!$A$3,"Año",B53,"Actividad",$H$5) -> 29970 | I53: =GETPIVOTDATA("Afiliados",'TD_Histor. Af. Act. Ec.'!$A$3,"Año",B53,"Actividad",$I$5) -> 212358 | J53: =GETPIVOTDATA("Afiliados",'TD_Histor. Af. Act. Ec.'!$A$3,"Año",B53,"Actividad",$J$5) -> 0 | K53: =GETPIVOTDATA("Afiliados",'TD_Histor. Af. Act. Ec.'!$A$3,"Año",B53,"Actividad",$K$5) -> 35013 | L53: =GETPIVOTDATA("Afiliados",'TD_Histor. Af. Act. Ec.'!$A$3,"Año",B53,"Actividad",$L$5) -> 460625 | M53: =GETPIVOTDATA("Afiliados",'TD_Histor. Af. Act. Ec.'!$A$3,"Año",B53,"Actividad",$M$5) -> 0 | N53: =GETPIVOTDATA("Afiliados",'TD_Histor. Af. Act. Ec.'!$A$3,"Año",B53,"Actividad",$N$5) -> 0 | O53: =GETPIVOTDATA("Afiliados",'TD_Histor. Af. Act. Ec.'!$A$3,"Año",B53,"Actividad",$O$5) -> 0 | P53: =GETPIVOTDATA("Afiliados",'TD_Histor. Af. Act. Ec.'!$A$3,"Año",B53,"Actividad",$P$5) -> 0 | Q53: =GETPIVOTDATA("Afiliados",'TD_Histor. Af. Act. Ec.'!$A$3,"Año",B53,"Actividad",$Q$5) -> 0 | R53: =GETPIVOTDATA("Afiliados",'TD_Histor. Af. Act. Ec.'!$A$3,"Año",B53,"Actividad",$R$5) -> 0 | S53: =GETPIVOTDATA("Afiliados",'TD_Histor. Af. Act. Ec.'!$A$3,"Año",B53,"Actividad",$S$5) -> 0 | T53: =GETPIVOTDATA("Afiliados",'TD_Histor. Af. Act. Ec.'!$A$3,"Año",B53,"Actividad",$T$5) -> 0 | U53: 1073458 | W53: 2007 | X53: 151200 | Y53: 3442 | Z53: 172567 | AA53: 8283 | AB53: 29970 | AC53: 212358 | AD53: 35013 | AE53: 460625 | AF53: 1073458
B54: 2008 | C54: =GETPIVOTDATA("Afiliados",'TD_Histor. Af. Act. Ec.'!$A$3,"Año",B54,"Actividad",$C$5) -> 143740 | D54: =GETPIVOTDATA("Afiliados",'TD_Histor. Af. Act. Ec.'!$A$3,"Año",B54,"Actividad",$D$5) -> 0 | E54: =GETPIVOTDATA("Afiliados",'TD_Histor. Af. Act. Ec.'!$A$3,"Año",B54,"Actividad",$E$5) -> 3791 | F54: =GETPIVOTDATA("Afiliados",'TD_Histor. Af. Act. Ec.'!$A$3,"Año",B54,"Actividad",$F$5) -> 160101 | G54: =GETPIVOTDATA("Afiliados",'TD_Histor. Af. Act. Ec.'!$A$3,"Año",B54,"Actividad",$G$5) -> 8537 | H54: =GETPIVOTDATA("Afiliados",'TD_Histor. Af. Act. Ec.'!$A$3,"Año",B54,"Actividad",$H$5) -> 24456 | I54: =GETPIVOTDATA("Afiliados",'TD_Histor. Af. Act. Ec.'!$A$3,"Año",B54,"Actividad",$I$5) -> 220630 | J54: =GETPIVOTDATA("Afiliados",'TD_Histor. Af. Act. Ec.'!$A$3,"Año",B54,"Actividad",$J$5) -> 0 | K54: =GETPIVOTDATA("Afiliados",'TD_Histor. Af. Act. Ec.'!$A$3,"Año",B54,"Actividad",$K$5) -> 34267 | L54: =GETPIVOTDATA("Afiliados",'TD_Histor. Af. Act. Ec.'!$A$3,"Año",B54,"Actividad",$L$5) -> 477170 | M54: =GETPIVOTDATA("Afiliados",'TD_Histor. Af. Act. Ec.'!$A$3,"Año",B54,"Actividad",$M$5) -> 0 | N54: =GETPIVOTDATA("Afiliados",'TD_Histor. Af. Act. Ec.'!$A$3,"Año",B54,"Actividad",$N$5) -> 0 | O54: =GETPIVOTDATA("Afiliados",'TD_Histor. Af. Act. Ec.'!$A$3,"Año",B54,"Actividad",$O$5) -> 0 | P54: =GETPIVOTDATA("Afiliados",'TD_Histor. Af. Act. Ec.'!$A$3,"Año",B54,"Actividad",$P$5) -> 0 | Q54: =GETPIVOTDATA("Afiliados",'TD_Histor. Af. Act. Ec.'!$A$3,"Año",B54,"Actividad",$Q$5) -> 0 | R54: =GETPIVOTDATA("Afiliados",'TD_Histor. Af. Act. Ec.'!$A$3,"Año",B54,"Actividad",$R$5) -> 0 | S54: =GETPIVOTDATA("Afiliados",'TD_Histor. Af. Act. Ec.'!$A$3,"Año",B54,"Actividad",$S$5) -> 0 | T54: =GETPIVOTDATA("Afiliados",'TD_Histor. Af. Act. Ec.'!$A$3,"Año",B54,"Actividad",$T$5) -> 0 | U54: 1072692 | W54: 2008 | X54: 143740 | Y54: 3791 | Z54: 160101 | AA54: 8537 | AB54: 24456 | AC54: 220630 | AD54: 34267 | AE54: 477170 | AF54: 1072692
B55: 2009 | C55: =GETPIVOTDATA("Afiliados",'TD_Histor. Af. Act. Ec.'!$A$3,"Año",B55,"Actividad",$C$5) -> 152415 | D55: =GETPIVOTDATA("Afiliados",'TD_Histor. Af. Act. Ec.'!$A$3,"Año",B55,"Actividad",$D$5) -> 0 | E55: =GETPIVOTDATA("Afiliados",'TD_Histor. Af. Act. Ec.'!$A$3,"Año",B55,"Actividad",$E$5) -> 3321 | F55: =GETPIVOTDATA("Afiliados",'TD_Histor. Af. Act. Ec.'!$A$3,"Año",B55,"Actividad",$F$5) -> 150387 | G55: =GETPIVOTDATA("Afiliados",'TD_Histor. Af. Act. Ec.'!$A$3,"Año",B55,"Actividad",$G$5) -> 8575 | H55: =GETPIVOTDATA("Afiliados",'TD_Histor. Af. Act. Ec.'!$A$3,"Año",B55,"Actividad",$H$5) -> 20174 | I55: =GETPIVOTDATA("Afiliados",'TD_Histor. Af. Act. Ec.'!$A$3,"Año",B55,"Actividad",$I$5) -> 215692 | J55: =GETPIVOTDATA("Afiliados",'TD_Histor. Af. Act. Ec.'!$A$3,"Año",B55,"Actividad",$J$5) -> 0 | K55: =GETPIVOTDATA("Afiliados",'TD_Histor. Af. Act. Ec.'!$A$3,"Año",B55,"Actividad",$K$5) -> 35277 | L55: =GETPIVOTDATA("Afiliados",'TD_Histor. Af. Act. Ec.'!$A$3,"Año",B55,"Actividad",$L$5) -> 502576 | M55: =GETPIVOTDATA("Afiliados",'TD_Histor. Af. Act. Ec.'!$A$3,"Año",B55,"Actividad",$M$5) -> 0 | N55: =GETPIVOTDATA("Afiliados",'TD_Histor. Af. Act. Ec.'!$A$3,"Año",B55,"Actividad",$N$5) -> 0 | O55: =GETPIVOTDATA("Afiliados",'TD_Histor. Af. Act. Ec.'!$A$3,"Año",B55,"Actividad",$O$5) -> 0 | P55: =GETPIVOTDATA("Afiliados",'TD_Histor. Af. Act. Ec.'!$A$3,"Año",B55,"Actividad",$P$5) -> 0 | Q55: =GETPIVOTDATA("Afiliados",'TD_Histor. Af. Act. Ec.'!$A$3,"Año",B55,"Actividad",$Q$5) -> 0 | R55: =GETPIVOTDATA("Afiliados",'TD_Histor. Af. Act. Ec.'!$A$3,"Año",B55,"Actividad",$R$5) -> 0 | S55: =GETPIVOTDATA("Afiliados",'TD_Histor. Af. Act. Ec.'!$A$3,"Año",B55,"Actividad",$S$5) -> 0 | T55: =GETPIVOTDATA("Afiliados",'TD_Histor. Af. Act. Ec.'!$A$3,"Año",B55,"Actividad",$T$5) -> 0 | U55: 1088417 | W55: 2009 | X55: 152415 | Y55: 3321 | Z55: 150387 | AA55: 8575 | AB55: 20174 | AC55: 215692 | AD55: 35277 | AE55: 502576 | AF55: 1088417
B56: 2010 | C56: =GETPIVOTDATA("Afiliados",'TD_Histor. Af. Act. Ec.'!$A$3,"Año",B56,"Actividad",$C$5) -> 149615 | D56: =GETPIVOTDATA("Afiliados",'TD_Histor. Af. Act. Ec.'!$A$3,"Año",B56,"Actividad",$D$5) -> 0 | E56: =GETPIVOTDATA("Afiliados",'TD_Histor. Af. Act. Ec.'!$A$3,"Año",B56,"Actividad",$E$5) -> 3594 | F56: =GETPIVOTDATA("Afiliados",'TD_Histor. Af. Act. Ec.'!$A$3,"Año",B56,"Actividad",$F$5) -> 152576 | G56: =GETPIVOTDATA("Afiliados",'TD_Histor. Af. Act. Ec.'!$A$3,"Año",B56,"Actividad",$G$5) -> 9483 | H56: =GETPIVOTDATA("Afiliados",'TD_Histor. Af. Act. Ec.'!$A$3,"Año",B56,"Actividad",$H$5) -> 18182 | I56: =GETPIVOTDATA("Afiliados",'TD_Histor. Af. Act. Ec.'!$A$3,"Año",B56,"Actividad",$I$5) -> 214852 | J56: =GETPIVOTDATA("Afiliados",'TD_Histor. Af. Act. Ec.'!$A$3,"Año",B56,"Actividad",$J$5) -> 0 | K56: =GETPIVOTDATA("Afiliados",'TD_Histor. Af. Act. Ec.'!$A$3,"Año",B56,"Actividad",$K$5) -> 36658 | L56: =GETPIVOTDATA("Afiliados",'TD_Histor. Af. Act. Ec.'!$A$3,"Año",B56,"Actividad",$L$5) -> 522231 | M56: =GETPIVOTDATA("Afiliados",'TD_Histor. Af. Act. Ec.'!$A$3,"Año",B56,"Actividad",$M$5) -> 0 | N56: =GETPIVOTDATA("Afiliados",'TD_Histor. Af. Act. Ec.'!$A$3,"Año",B56,"Actividad",$N$5) -> 0 | O56: =GETPIVOTDATA("Afiliados",'TD_Histor. Af. Act. Ec.'!$A$3,"Año",B56,"Actividad",$O$5) -> 0 | P56: =GETPIVOTDATA("Afiliados",'TD_Histor. Af. Act. Ec.'!$A$3,"Año",B56,"Actividad",$P$5) -> 0 | Q56: =GETPIVOTDATA("Afiliados",'TD_Histor. Af. Act. Ec.'!$A$3,"Año",B56,"Actividad",$Q$5) -> 0 | R56: =GETPIVOTDATA("Afiliados",'TD_Histor. Af. Act. Ec.'!$A$3,"Año",B56,"Actividad",$R$5) -> 0 | S56: =GETPIVOTDATA("Afiliados",'TD_Histor. Af. Act. Ec.'!$A$3,"Año",B56,"Actividad",$S$5) -> 0 | T56: =GETPIVOTDATA("Afiliados",'TD_Histor. Af. Act. Ec.'!$A$3,"Año",B56,"Actividad",$T$5) -> 0 | U56: 1107191 | W56: 2010 | X56: 149615 | Y56: 3594 | Z56: 152576 | AA56: 9483 | AB56: 18182 | AC56: 214852 | AD56: 36658 | AE56: 522231 | AF56: 1107191
B57: 2011 | C57: =GETPIVOTDATA("Afiliados",'TD_Histor. Af. Act. Ec.'!$A$3,"Año",B57,"Actividad",$C$5) -> 150193 | D57: =GETPIVOTDATA("Afiliados",'TD_Histor. Af. Act. Ec.'!$A$3,"Año",B57,"Actividad",$D$5) -> 0 | E57: =GETPIVOTDATA("Afiliados",'TD_Histor. Af. Act. Ec.'!$A$3,"Año",B57,"Actividad",$E$5) -> 4093 | F57: =GETPIVOTDATA("Afiliados",'TD_Histor. Af. Act. Ec.'!$A$3,"Año",B57,"Actividad",$F$5) -> 153461 | G57: =GETPIVOTDATA("Afiliados",'TD_Histor. Af. Act. Ec.'!$A$3,"Año",B57,"Actividad",$G$5) -> 9531 | H57: =GETPIVOTDATA("Afiliados",'TD_Histor. Af. Act. Ec.'!$A$3,"Año",B57,"Actividad",$H$5) -> 17506 | I57: =GETPIVOTDATA("Afiliados",'TD_Histor. Af. Act. Ec.'!$A$3,"Año",B57,"Actividad",$I$5) -> 222231 | J57: =GETPIVOTDATA("Afiliados",'TD_Histor. Af. Act. Ec.'!$A$3,"Año",B57,"Actividad",$J$5) -> 0 | K57: =GETPIVOTDATA("Afiliados",'TD_Histor. Af. Act. Ec.'!$A$3,"Año",B57,"Actividad",$K$5) -> 37566 | L57: =GETPIVOTDATA("Afiliados",'TD_Histor. Af. Act. Ec.'!$A$3,"Año",B57,"Actividad",$L$5) -> 559797 | M57: =GETPIVOTDATA("Afiliados",'TD_Histor. Af. Act. Ec.'!$A$3,"Año",B57,"Actividad",$M$5) -> 0 | N57: =GETPIVOTDATA("Afiliados",'TD_Histor. Af. Act. Ec.'!$A$3,"Año",B57,"Actividad",$N$5) -> 0 | O57: =GETPIVOTDATA("Afiliados",'TD_Histor. Af. Act. Ec.'!$A$3,"Año",B57,"Actividad",$O$5) -> 0 | P57: =GETPIVOTDATA("Afiliados",'TD_Histor. Af. Act. Ec.'!$A$3,"Año",B57,"Actividad",$P$5) -> 0 | Q57: =GETPIVOTDATA("Afiliados",'TD_Histor. Af. Act. Ec.'!$A$3,"Año",B57,"Actividad",$Q$5) -> 0 | R57: =GETPIVOTDATA("Afiliados",'TD_Histor. Af. Act. Ec.'!$A$3,"Año",B57,"Actividad",$R$5) -> 0 | S57: =GETPIVOTDATA("Afiliados",'TD_Histor. Af. Act. Ec.'!$A$3,"Año",B57,"Actividad",$S$5) -> 0 | T57: =GETPIVOTDATA("Afiliados",'TD_Histor. Af. Act. Ec.'!$A$3,"Año",B57,"Actividad",$T$5) -> 0 | U57: 1154378 | W57: 2011 | X57: 150193 | Y57: 4093 | Z57: 153461 | AA57: 9531 | AB57: 17506 | AC57: 222231 | AD57: 37566 | AE57: 559797 | AF57: 1154378
B58: 2012 | C58: =GETPIVOTDATA("Afiliados",'TD_Histor. Af. Act. Ec.'!$A$3,"Año",B58,"Actividad",$C$5) -> 144211 | D58: =GETPIVOTDATA("Afiliados",'TD_Histor. Af. Act. Ec.'!$A$3,"Año",B58,"Actividad",$D$5) -> 0 | E58: =GETPIVOTDATA("Afiliados",'TD_Histor. Af. Act. Ec.'!$A$3,"Año",B58,"Actividad",$E$5) -> 4784 | F58: =GETPIVOTDATA("Afiliados",'TD_Histor. Af. Act. Ec.'!$A$3,"Año",B58,"Actividad",$F$5) -> 150728 | G58: =GETPIVOTDATA("Afiliados",'TD_Histor. Af. Act. Ec.'!$A$3,"Año",B58,"Actividad",$G$5) -> 10149 | H58: =GETPIVOTDATA("Afiliados",'TD_Histor. Af. Act. Ec.'!$A$3,"Año",B58,"Actividad",$H$5) -> 17585 | I58: =GETPIVOTDATA("Afiliados",'TD_Histor. Af. Act. Ec.'!$A$3,"Año",B58,"Actividad",$I$5) -> 238282 | J58: =GETPIVOTDATA("Afiliados",'TD_Histor. Af. Act. Ec.'!$A$3,"Año",B58,"Actividad",$J$5) -> 0 | K58: =GETPIVOTDATA("Afiliados",'TD_Histor. Af. Act. Ec.'!$A$3,"Año",B58,"Actividad",$K$5) -> 39615 | L58: =GETPIVOTDATA("Afiliados",'TD_Histor. Af. Act. Ec.'!$A$3,"Año",B58,"Actividad",$L$5) -> 580512 | M58: =GETPIVOTDATA("Afiliados",'TD_Histor. Af. Act. Ec.'!$A$3,"Año",B58,"Actividad",$M$5) -> 0 | N58: =GETPIVOTDATA("Afiliados",'TD_Histor. Af. Act. Ec.'!$A$3,"Año",B58,"Actividad",$N$5) -> 0 | O58: =GETPIVOTDATA("Afiliados",'TD_Histor. Af. Act. Ec.'!$A$3,"Año",B58,"Actividad",$O$5) -> 0 | P58: =GETPIVOTDATA("Afiliados",'TD_Histor. Af. Act. Ec.'!$A$3,"Año",B58,"Actividad",$P$5) -> 0 | Q58: =GETPIVOTDATA("Afiliados",'TD_Histor. Af. Act. Ec.'!$A$3,"Año",B58,"Actividad",$Q$5) -> 0 | R58: =GETPIVOTDATA("Afiliados",'TD_Histor. Af. Act. Ec.'!$A$3,"Año",B58,"Actividad",$R$5) -> 0 | S58: =GETPIVOTDATA("Afiliados",'TD_Histor. Af. Act. Ec.'!$A$3,"Año",B58,"Actividad",$S$5) -> 0 | T58: =GETPIVOTDATA("Afiliados",'TD_Histor. Af. Act. Ec.'!$A$3,"Año",B58,"Actividad",$T$5) -> 0 | U58: 1185866 | W58: 2012 | X58: 144211 | Y58: 4784 | Z58: 150728 | AA58: 10149 | AB58: 17585 | AC58: 238282 | AD58: 39615 | AE58: 580512 | AF58: 1185866
B59: 2013 | C59: =GETPIVOTDATA("Afiliados",'TD_Histor. Af. Act. Ec.'!$A$3,"Año",B59,"Actividad",$C$5) -> 143019 | D59: =GETPIVOTDATA("Afiliados",'TD_Histor. Af. Act. Ec.'!$A$3,"Año",B59,"Actividad",$D$5) -> 0 | E59: =GETPIVOTDATA("Afiliados",'TD_Histor. Af. Act. Ec.'!$A$3,"Año",B59,"Actividad",$E$5) -> 5949 | F59: =GETPIVOTDATA("Afiliados",'TD_Histor. Af. Act. Ec.'!$A$3,"Año",B59,"Actividad",$F$5) -> 152199 | G59: =GETPIVOTDATA("Afiliados",'TD_Histor. Af. Act. Ec.'!$A$3,"Año",B59,"Actividad",$G$5) -> 10583 | H59: =GETPIVOTDATA("Afiliados",'TD_Histor. Af. Act. Ec.'!$A$3,"Año",B59,"Actividad",$H$5) -> 15139 | I59: =GETPIVOTDATA("Afiliados",'TD_Histor. Af. Act. Ec.'!$A$3,"Año",B59,"Actividad",$I$5) -> 250463 | J59: =GETPIVOTDATA("Afiliados",'TD_Histor. Af. Act. Ec.'!$A$3,"Año",B59,"Actividad",$J$5) -> 0 | K59: =GETPIVOTDATA("Afiliados",'TD_Histor. Af. Act. Ec.'!$A$3,"Año",B59,"Actividad",$K$5) -> 40583 | L59: =GETPIVOTDATA("Afiliados",'TD_Histor. Af. Act. Ec.'!$A$3,"Año",B59,"Actividad",$L$5) -> 604365 | M59: =GETPIVOTDATA("Afiliados",'TD_Histor. Af. Act. Ec.'!$A$3,"Año",B59,"Actividad",$M$5) -> 0 | N59: =GETPIVOTDATA("Afiliados",'TD_Histor. Af. Act. Ec.'!$A$3,"Año",B59,"Actividad",$N$5) -> 0 | O59: =GETPIVOTDATA("Afiliados",'TD_Histor. Af. Act. Ec.'!$A$3,"Año",B59,"Actividad",$O$5) -> 0 | P59: =GETPIVOTDATA("Afiliados",'TD_Histor. Af. Act. Ec.'!$A$3,"Año",B59,"Actividad",$P$5) -> 0 | Q59: =GETPIVOTDATA("Afiliados",'TD_Histor. Af. Act. Ec.'!$A$3,"Año",B59,"Actividad",$Q$5) -> 0 | R59: =GETPIVOTDATA("Afiliados",'TD_Histor. Af. Act. Ec.'!$A$3,"Año",B59,"Actividad",$R$5) -> 0 | S59: =GETPIVOTDATA("Afiliados",'TD_Histor. Af. Act. Ec.'!$A$3,"Año",B59,"Actividad",$S$5) -> 0 | T59: =GETPIVOTDATA("Afiliados",'TD_Histor. Af. Act. Ec.'!$A$3,"Año",B59,"Actividad",$T$5) -> 0 | U59: 1222300 | W59: 2013 | X59: 143019 | Y59: 5949 | Z59: 152199 | AA59: 10583 | AB59: 15139 | AC59: 250463 | AD59: 40583 | AE59: 604365 | AF59: 1222300
B60: 2014 | C60: =GETPIVOTDATA("Afiliados",'TD_Histor. Af. Act. Ec.'!$A$3,"Año",B60,"Actividad",$C$5) -> 147502 | D60: =GETPIVOTDATA("Afiliados",'TD_Histor. Af. Act. Ec.'!$A$3,"Año",B60,"Actividad",$D$5) -> 0 | E60: =GETPIVOTDATA("Afiliados",'TD_Histor. Af. Act. Ec.'!$A$3,"Año",B60,"Actividad",$E$5) -> 5691 | F60: =GETPIVOTDATA("Afiliados",'TD_Histor. Af. Act. Ec.'!$A$3,"Año",B60,"Actividad",$F$5) -> 152522 | G60: =GETPIVOTDATA("Afiliados",'TD_Histor. Af. Act. Ec.'!$A$3,"Año",B60,"Actividad",$G$5) -> 10890 | H60: =GETPIVOTDATA("Afiliados",'TD_Histor. Af. Act. Ec.'!$A$3,"Año",B60,"Actividad",$H$5) -> 15337 | I60: =GETPIVOTDATA("Afiliados",'TD_Histor. Af. Act. Ec.'!$A$3,"Año",B60,"Actividad",$I$5) -> 241562 | J60: =GETPIVOTDATA("Afiliados",'TD_Histor. Af. Act. Ec.'!$A$3,"Año",B60,"Actividad",$J$5) -> 0 | K60: =GETPIVOTDATA("Afiliados",'TD_Histor. Af. Act. Ec.'!$A$3,"Año",B60,"Actividad",$K$5) -> 41754 | L60: =GETPIVOTDATA("Afiliados",'TD_Histor. Af. Act. Ec.'!$A$3,"Año",B60,"Actividad",$L$5) -> 622004 | M60: =GETPIVOTDATA("Afiliados",'TD_Histor. Af. Act. Ec.'!$A$3,"Año",B60,"Actividad",$M$5) -> 0 | N60: =GETPIVOTDATA("Afiliados",'TD_Histor. Af. Act. Ec.'!$A$3,"Año",B60,"Actividad",$N$5) -> 0 | O60: =GETPIVOTDATA("Afiliados",'TD_Histor. Af. Act. Ec.'!$A$3,"Año",B60,"Actividad",$O$5) -> 0 | P60: =GETPIVOTDATA("Afiliados",'TD_Histor. Af. Act. Ec.'!$A$3,"Año",B60,"Actividad",$P$5) -> 0 | Q60: =GETPIVOTDATA("Afiliados",'TD_Histor. Af. Act. Ec.'!$A$3,"Año",B60,"Actividad",$Q$5) -> 0 | R60: =GETPIVOTDATA("Afiliados",'TD_Histor. Af. Act. Ec.'!$A$3,"Año",B60,"Actividad",$R$5) -> 0 | S60: =GETPIVOTDATA("Afiliados",'TD_Histor. Af. Act. Ec.'!$A$3,"Año",B60,"Actividad",$S$5) -> 0 | T60: =GETPIVOTDATA("Afiliados",'TD_Histor. Af. Act. Ec.'!$A$3,"Año",B60,"Actividad",$T$5) -> 0 | U60: 1237262 | W60: 2014 | X60: 147502 | Y60: 5691 | Z60: 152522 | AA60: 10890 | AB60: 15337 | AC60: 241562 | AD60: 41754 | AE60: 622004 | AF60: 1237262
B61: 2015 | C61: =GETPIVOTDATA("Afiliados",'TD_Histor. Af. Act. Ec.'!$A$3,"Año",B61,"Actividad",$C$5) -> 147902 | D61: =GETPIVOTDATA("Afiliados",'TD_Histor. Af. Act. Ec.'!$A$3,"Año",B61,"Actividad",$D$5) -> 0 | E61: =GETPIVOTDATA("Afiliados",'TD_Histor. Af. Act. Ec.'!$A$3,"Año",B61,"Actividad",$E$5) -> 5405 | F61: =GETPIVOTDATA("Afiliados",'TD_Histor. Af. Act. Ec.'!$A$3,"Año",B61,"Actividad",$F$5) -> 156413 | G61: =GETPIVOTDATA("Afiliados",'TD_Histor. Af. Act. Ec.'!$A$3,"Año",B61,"Actividad",$G$5) -> 10847 | H61: =GETPIVOTDATA("Afiliados",'TD_Histor. Af. Act. Ec.'!$A$3,"Año",B61,"Actividad",$H$5) -> 14254 | I61: =GETPIVOTDATA("Afiliados",'TD_Histor. Af. Act. Ec.'!$A$3,"Año",B61,"Actividad",$I$5) -> 251412 | J61: =GETPIVOTDATA("Afiliados",'TD_Histor. Af. Act. Ec.'!$A$3,"Año",B61,"Actividad",$J$5) -> 0 | K61: =GETPIVOTDATA("Afiliados",'TD_Histor. Af. Act. Ec.'!$A$3,"Año",B61,"Actividad",$K$5) -> 41985 | L61: =GETPIVOTDATA("Afiliados",'TD_Histor. Af. Act. Ec.'!$A$3,"Año",B61,"Actividad",$L$5) -> 639211 | M61: =GETPIVOTDATA("Afiliados",'TD_Histor. Af. Act. Ec.'!$A$3,"Año",B61,"Actividad",$M$5) -> 0 | N61: =GETPIVOTDATA("Afiliados",'TD_Histor. Af. Act. Ec.'!$A$3,"Año",B61,"Actividad",$N$5) -> 0 | O61: =GETPIVOTDATA("Afiliados",'TD_Histor. Af. Act. Ec.'!$A$3,"Año",B61,"Actividad",$O$5) -> 0 | P61: =GETPIVOTDATA("Afiliados",'TD_Histor. Af. Act. Ec.'!$A$3,"Año",B61,"Actividad",$P$5) -> 0 | Q61: =GETPIVOTDATA("Afiliados",'TD_Histor. Af. Act. Ec.'!$A$3,"Año",B61,"Actividad",$Q$5) -> 0 | R61: =GETPIVOTDATA("Afiliados",'TD_Histor. Af. Act. Ec.'!$A$3,"Año",B61,"Actividad",$R$5) -> 0 | S61: =GETPIVOTDATA("Afiliados",'TD_Histor. Af. Act. Ec.'!$A$3,"Año",B61,"Actividad",$S$5) -> 0 | T61: =GETPIVOTDATA("Afiliados",'TD_Histor. Af. Act. Ec.'!$A$3,"Año",B61,"Actividad",$T$5) -> 0 | U61: 1267429 | W61: 2015 | X61: 147902 | Y61: 5405 | Z61: 156413 | AA61: 10847 | AB61: 14254 | AC61: 251412 | AD61: 41985 | AE61: 639211 | AF61: 1267429
B62: 2016 | C62: =GETPIVOTDATA("Afiliados",'TD_Histor. Af. Act. Ec.'!$A$3,"Año",B62,"Actividad",$C$5) -> 150750 | D62: =GETPIVOTDATA("Afiliados",'TD_Histor. Af. Act. Ec.'!$A$3,"Año",B62,"Actividad",$D$5) -> 0 | E62: =GETPIVOTDATA("Afiliados",'TD_Histor. Af. Act. Ec.'!$A$3,"Año",B62,"Actividad",$E$5) -> 4800 | F62: =GETPIVOTDATA("Afiliados",'TD_Histor. Af. Act. Ec.'!$A$3,"Año",B62,"Actividad",$F$5) -> 162860 | G62: =GETPIVOTDATA("Afiliados",'TD_Histor. Af. Act. Ec.'!$A$3,"Año",B62,"Actividad",$G$5) -> 10581 | H62: =GETPIVOTDATA("Afiliados",'TD_Histor. Af. Act. Ec.'!$A$3,"Año",B62,"Actividad",$H$5) -> 12616 | I62: =GETPIVOTDATA("Afiliados",'TD_Histor. Af. Act. Ec.'!$A$3,"Año",B62,"Actividad",$I$5) -> 261859 | J62: =GETPIVOTDATA("Afiliados",'TD_Histor. Af. Act. Ec.'!$A$3,"Año",B62,"Actividad",$J$5) -> 0 | K62: =GETPIVOTDATA("Afiliados",'TD_Histor. Af. Act. Ec.'!$A$3,"Año",B62,"Actividad",$K$5) -> 46250 | L62: =GETPIVOTDATA("Afiliados",'TD_Histor. Af. Act. Ec.'!$A$3,"Año",B62,"Actividad",$L$5) -> 650285 | M62: =GETPIVOTDATA("Afiliados",'TD_Histor. Af. Act. Ec.'!$A$3,"Año",B62,"Actividad",$M$5) -> 0 | N62: =GETPIVOTDATA("Afiliados",'TD_Histor. Af. Act. Ec.'!$A$3,"Año",B62,"Actividad",$N$5) -> 0 | O62: =GETPIVOTDATA("Afiliados",'TD_Histor. Af. Act. Ec.'!$A$3,"Año",B62,"Actividad",$O$5) -> 0 | P62: =GETPIVOTDATA("Afiliados",'TD_Histor. Af. Act. Ec.'!$A$3,"Año",B62,"Actividad",$P$5) -> 0 | Q62: =GETPIVOTDATA("Afiliados",'TD_Histor. Af. Act. Ec.'!$A$3,"Año",B62,"Actividad",$Q$5) -> 0 | R62: =GETPIVOTDATA("Afiliados",'TD_Histor. Af. Act. Ec.'!$A$3,"Año",B62,"Actividad",$R$5) -> 0 | S62: =GETPIVOTDATA("Afiliados",'TD_Histor. Af. Act. Ec.'!$A$3,"Año",B62,"Actividad",$S$5) -> 0 | T62: =GETPIVOTDATA("Afiliados",'TD_Histor. Af. Act. Ec.'!$A$3,"Año",B62,"Actividad",$T$5) -> 0 | U62: 1300001 | W62: 2016 | X62: 150750 | Y62: 4800 | Z62: 162860 | AA62: 10581 | AB62: 12616 | AC62: 261859 | AD62: 46250 | AE62: 650285 | AF62: 1300001
B63: 2017 | C63: =GETPIVOTDATA("Afiliados",'TD_Histor. Af. Act. Ec.'!$A$3,"Año",B63,"Actividad",$C$5) -> 149253 | D63: =GETPIVOTDATA("Afiliados",'TD_Histor. Af. Act. Ec.'!$A$3,"Año",B63,"Actividad",$D$5) -> 0 | E63: =GETPIVOTDATA("Afiliados",'TD_Histor. Af. Act. Ec.'!$A$3,"Año",B63,"Actividad",$E$5) -> 3828 | F63: =GETPIVOTDATA("Afiliados",'TD_Histor. Af. Act. Ec.'!$A$3,"Año",B63,"Actividad",$F$5) -> 160265 | G63: =GETPIVOTDATA("Afiliados",'TD_Histor. Af. Act. Ec.'!$A$3,"Año",B63,"Actividad",$G$5) -> 10490 | H63: =GETPIVOTDATA("Afiliados",'TD_Histor. Af. Act. Ec.'!$A$3,"Año",B63,"Actividad",$H$5) -> 12343 | I63: =GETPIVOTDATA("Afiliados",'TD_Histor. Af. Act. Ec.'!$A$3,"Año",B63,"Actividad",$I$5) -> 269676 | J63: =GETPIVOTDATA("Afiliados",'TD_Histor. Af. Act. Ec.'!$A$3,"Año",B63,"Actividad",$J$5) -> 0 | K63: =GETPIVOTDATA("Afiliados",'TD_Histor. Af. Act. Ec.'!$A$3,"Año",B63,"Actividad",$K$5) -> 43431 | L63: =GETPIVOTDATA("Afiliados",'TD_Histor. Af. Act. Ec.'!$A$3,"Año",B63,"Actividad",$L$5) -> 663731 | M63: =GETPIVOTDATA("Afiliados",'TD_Histor. Af. Act. Ec.'!$A$3,"Año",B63,"Actividad",$M$5) -> 0 | N63: =GETPIVOTDATA("Afiliados",'TD_Histor. Af. Act. Ec.'!$A$3,"Año",B63,"Actividad",$N$5) -> 0 | O63: =GETPIVOTDATA("Afiliados",'TD_Histor. Af. Act. Ec.'!$A$3,"Año",B63,"Actividad",$O$5) -> 0 | P63: =GETPIVOTDATA("Afiliados",'TD_Histor. Af. Act. Ec.'!$A$3,"Año",B63,"Actividad",$P$5) -> 0 | Q63: =GETPIVOTDATA("Afiliados",'TD_Histor. Af. Act. Ec.'!$A$3,"Año",B63,"Actividad",$Q$5) -> 0 | R63: =GETPIVOTDATA("Afiliados",'TD_Histor. Af. Act. Ec.'!$A$3,"Año",B63,"Actividad",$R$5) -> 0 | S63: =GETPIVOTDATA("Afiliados",'TD_Histor. Af. Act. Ec.'!$A$3,"Año",B63,"Actividad",$S$5) -> 0 | T63: =GETPIVOTDATA("Afiliados",'TD_Histor. Af. Act. Ec.'!$A$3,"Año",B63,"Actividad",$T$5) -> 0 | U63: 1313017 | W63: 2017 | X63: 149253 | Y63: 3828 | Z63: 160265 | AA63: 10490 | AB63: 12343 | AC63: 269676 | AD63: 43431 | AE63: 663731 | AF63: 1313017
B64: 2018 | C64: =GETPIVOTDATA("Afiliados",'TD_Histor. Af. Act. Ec.'!$A$3,"Año",B64,"Actividad",$C$5) -> 135610 | D64: =GETPIVOTDATA("Afiliados",'TD_Histor. Af. Act. Ec.'!$A$3,"Año",B64,"Actividad",$D$5) -> 0 | E64: =GETPIVOTDATA("Afiliados",'TD_Histor. Af. Act. Ec.'!$A$3,"Año",B64,"Actividad",$E$5) -> 2745 | F64: =GETPIVOTDATA("Afiliados",'TD_Histor. Af. Act. Ec.'!$A$3,"Año",B64,"Actividad",$F$5) -> 160831 | G64: =GETPIVOTDATA("Afiliados",'TD_Histor. Af. Act. Ec.'!$A$3,"Año",B64,"Actividad",$G$5) -> 10858 | H64: =GETPIVOTDATA("Afiliados",'TD_Histor. Af. Act. Ec.'!$A$3,"Año",B64,"Actividad",$H$5) -> 11088 | I64: =GETPIVOTDATA("Afiliados",'TD_Histor. Af. Act. Ec.'!$A$3,"Año",B64,"Actividad",$I$5) -> 285076 | J64: =GETPIVOTDATA("Afiliados",'TD_Histor. Af. Act. Ec.'!$A$3,"Año",B64,"Actividad",$J$5) -> 0 | K64: =GETPIVOTDATA("Afiliados",'TD_Histor. Af. Act. Ec.'!$A$3,"Año",B64,"Actividad",$K$5) -> 46569 | L64: =GETPIVOTDATA("Afiliados",'TD_Histor. Af. Act. Ec.'!$A$3,"Año",B64,"Actividad",$L$5) -> 672760 | M64: =GETPIVOTDATA("Afiliados",'TD_Histor. Af. Act. Ec.'!$A$3,"Año",B64,"Actividad",$M$5) -> 0 | N64: =GETPIVOTDATA("Afiliados",'TD_Histor. Af. Act. Ec.'!$A$3,"Año",B64,"Actividad",$N$5) -> 0 | O64: =GETPIVOTDATA("Afiliados",'TD_Histor. Af. Act. Ec.'!$A$3,"Año",B64,"Actividad",$O$5) -> 0 | P64: =GETPIVOTDATA("Afiliados",'TD_Histor. Af. Act. Ec.'!$A$3,"Año",B64,"Actividad",$P$5) -> 0 | Q64: =GETPIVOTDATA("Afiliados",'TD_Histor. Af. Act. Ec.'!$A$3,"Año",B64,"Actividad",$Q$5) -> 0 | R64: =GETPIVOTDATA("Afiliados",'TD_Histor. Af. Act. Ec.'!$A$3,"Año",B64,"Actividad",$R$5) -> 0 | S64: =GETPIVOTDATA("Afiliados",'TD_Histor. Af. Act. Ec.'!$A$3,"Año",B64,"Actividad",$S$5) -> 0 | T64: =GETPIVOTDATA("Afiliados",'TD_Histor. Af. Act. Ec.'!$A$3,"Año",B64,"Actividad",$T$5) -> 0 | U64: 1325537 | W64: 2018 | X64: 135610 | Y64: 2745 | Z64: 160831 | AA64: 10858 | AB64: 11088 | AC64: 285076 | AD64: 46569 | AE64: 672760 | AF64: 1325537
B65: 2019 | C65: =GETPIVOTDATA("Afiliados",'TD_Histor. Af. Act. Ec.'!$A$3,"Año",B65,"Actividad",$C$5) -> 124772 | D65: =GETPIVOTDATA("Afiliados",'TD_Histor. Af. Act. Ec.'!$A$3,"Año",B65,"Actividad",$D$5) -> 0 | E65: =GETPIVOTDATA("Afiliados",'TD_Histor. Af. Act. Ec.'!$A$3,"Año",B65,"Actividad",$E$5) -> 1886 | F65: =GETPIVOTDATA("Afiliados",'TD_Histor. Af. Act. Ec.'!$A$3,"Año",B65,"Actividad",$F$5) -> 165782 | G65: =GETPIVOTDATA("Afiliados",'TD_Histor. Af. Act. Ec.'!$A$3,"Año",B65,"Actividad",$G$5) -> 10954 | H65: =GETPIVOTDATA("Afiliados",'TD_Histor. Af. Act. Ec.'!$A$3,"Año",B65,"Actividad",$H$5) -> 9273 | I65: =GETPIVOTDATA("Afiliados",'TD_Histor. Af. Act. Ec.'!$A$3,"Año",B65,"Actividad",$I$5) -> 300181 | J65: =GETPIVOTDATA("Afiliados",'TD_Histor. Af. Act. Ec.'!$A$3,"Año",B65,"Actividad",$J$5) -> 0 | K65: =GETPIVOTDATA("Afiliados",'TD_Histor. Af. Act. Ec.'!$A$3,"Año",B65,"Actividad",$K$5) -> 48483 | L65: =GETPIVOTDATA("Afiliados",'TD_Histor. Af. Act. Ec.'!$A$3,"Año",B65,"Actividad",$L$5) -> 689490 | M65: =GETPIVOTDATA("Afiliados",'TD_Histor. Af. Act. Ec.'!$A$3,"Año",B65,"Actividad",$M$5) -> 0 | N65: =GETPIVOTDATA("Afiliados",'TD_Histor. Af. Act. Ec.'!$A$3,"Año",B65,"Actividad",$N$5) -> 0 | O65: =GETPIVOTDATA("Afiliados",'TD_Histor. Af. Act. Ec.'!$A$3,"Año",B65,"Actividad",$O$5) -> 0 | P65: =GETPIVOTDATA("Afiliados",'TD_Histor. Af. Act. Ec.'!$A$3,"Año",B65,"Actividad",$P$5) -> 0 | Q65: =GETPIVOTDATA("Afiliados",'TD_Histor. Af. Act. Ec.'!$A$3,"Año",B65,"Actividad",$Q$5) -> 0 | R65: =GETPIVOTDATA("Afiliados",'TD_Histor. Af. Act. Ec.'!$A$3,"Año",B65,"Actividad",$R$5) -> 0 | S65: =GETPIVOTDATA("Afiliados",'TD_Histor. Af. Act. Ec.'!$A$3,"Año",B65,"Actividad",$S$5) -> 0 | T65: =GETPIVOTDATA("Afiliados",'TD_Histor. Af. Act. Ec.'!$A$3,"Año",B65,"Actividad",$T$5) -> 0 | U65: 1350821 | W65: 2019 | X65: 124772 | Y65: 1886 | Z65: 165782 | AA65: 10954 | AB65: 9273 | AC65: 300181 | AD65: 48483 | AE65: 689490 | AF65: 1350821
B66: 2020 | C66: =GETPIVOTDATA("Afiliados",'TD_Histor. Af. Act. Ec.'!$A$3,"Año",B66,"Actividad",$C$5) -> 91526 | D66: =GETPIVOTDATA("Afiliados",'TD_Histor. Af. Act. Ec.'!$A$3,"Año",B66,"Actividad",$D$5) -> 39 | E66: =GETPIVOTDATA("Afiliados",'TD_Histor. Af. Act. Ec.'!$A$3,"Año",B66,"Actividad",$E$5) -> 2687 | F66: =GETPIVOTDATA("Afiliados",'TD_Histor. Af. Act. Ec.'!$A$3,"Año",B66,"Actividad",$F$5) -> 178643 | G66: =GETPIVOTDATA("Afiliados",'TD_Histor. Af. Act. Ec.'!$A$3,"Año",B66,"Actividad",$G$5) -> 11204 | H66: =GETPIVOTDATA("Afiliados",'TD_Histor. Af. Act. Ec.'!$A$3,"Año",B66,"Actividad",$H$5) -> 17971 | I66: =GETPIVOTDATA("Afiliados",'TD_Histor. Af. Act. Ec.'!$A$3,"Año",B66,"Actividad",$I$5) -> 176262 | J66: =GETPIVOTDATA("Afiliados",'TD_Histor. Af. Act. Ec.'!$A$3,"Año",B66,"Actividad",$J$5) -> 30985 | K66: =GETPIVOTDATA("Afiliados",'TD_Histor. Af. Act. Ec.'!$A$3,"Año",B66,"Actividad",$K$5) -> 50103 | L66: =GETPIVOTDATA("Afiliados",'TD_Histor. Af. Act. Ec.'!$A$3,"Año",B66,"Actividad",$L$5) -> 0 | M66: =GETPIVOTDATA("Afiliados",'TD_Histor. Af. Act. Ec.'!$A$3,"Año",B66,"Actividad",$M$5) -> 64062 | N66: =GETPIVOTDATA("Afiliados",'TD_Histor. Af. Act. Ec.'!$A$3,"Año",B66,"Actividad",$N$5) -> 150762 | O66: =GETPIVOTDATA("Afiliados",'TD_Histor. Af. Act. Ec.'!$A$3,"Año",B66,"Actividad",$O$5) -> 320775 | P66: =GETPIVOTDATA("Afiliados",'TD_Histor. Af. Act. Ec.'!$A$3,"Año",B66,"Actividad",$P$5) -> 44566 | Q66: =GETPIVOTDATA("Afiliados",'TD_Histor. Af. Act. Ec.'!$A$3,"Año",B66,"Actividad",$Q$5) -> 17628 | R66: =GETPIVOTDATA("Afiliados",'TD_Histor. Af. Act. Ec.'!$A$3,"Año",B66,"Actividad",$R$5) -> 131044 | S66: =GETPIVOTDATA("Afiliados",'TD_Histor. Af. Act. Ec.'!$A$3,"Año",B66,"Actividad",$S$5) -> 587 | T66: =GETPIVOTDATA("Afiliados",'TD_Histor. Af. Act. Ec.'!$A$3,"Año",B66,"Actividad",$T$5) -> 1038 | U66: 1289882 | W66: 2020 | X66: 91565 | Y66: 2687 | Z66: 178643 | AA66: 11204 | AB66: 17971 | AC66: 391086 | AD66: 50103 | AE66: 546623 | AF66: 1289882
B67: 2021 | C67: =GETPIVOTDATA("Afiliados",'TD_Histor. Af. Act. Ec.'!$A$3,"Año",B67,"Actividad",$C$5) -> 91532 | D67: =GETPIVOTDATA("Afiliados",'TD_Histor. Af. Act. Ec.'!$A$3,"Año",B67,"Actividad",$D$5) -> 42 | E67: =GETPIVOTDATA("Afiliados",'TD_Histor. Af. Act. Ec.'!$A$3,"Año",B67,"Actividad",$E$5) -> 2430 | F67: =GETPIVOTDATA("Afiliados",'TD_Histor. Af. Act. Ec.'!$A$3,"Año",B67,"Actividad",$F$5) -> 199637 | G67: =GETPIVOTDATA("Afiliados",'TD_Histor. Af. Act. Ec.'!$A$3,"Año",B67,"Actividad",$G$5) -> 11942 | H67: =GETPIVOTDATA("Afiliados",'TD_Histor. Af. Act. Ec.'!$A$3,"Año",B67,"Actividad",$H$5) -> 18819 | I67: =GETPIVOTDATA("Afiliados",'TD_Histor. Af. Act. Ec.'!$A$3,"Año",B67,"Actividad",$I$5) -> 197343 | J67: =GETPIVOTDATA("Afiliados",'TD_Histor. Af. Act. Ec.'!$A$3,"Año",B67,"Actividad",$J$5) -> 36565 | K67: =GETPIVOTDATA("Afiliados",'TD_Histor. Af. Act. Ec.'!$A$3,"Año",B67,"Actividad",$K$5) -> 56067 | L67: =GETPIVOTDATA("Afiliados",'TD_Histor. Af. Act. Ec.'!$A$3,"Año",B67,"Actividad",$L$5) -> 0 | M67: =GETPIVOTDATA("Afiliados",'TD_Histor. Af. Act. Ec.'!$A$3,"Año",B67,"Actividad",$M$5) -> 65672 | N67: =GETPIVOTDATA("Afiliados",'TD_Histor. Af. Act. Ec.'!$A$3,"Año",B67,"Actividad",$N$5) -> 167662 | O67: =GETPIVOTDATA("Afiliados",'TD_Histor. Af. Act. Ec.'!$A$3,"Año",B67,"Actividad",$O$5) -> 333342 | P67: =GETPIVOTDATA("Afiliados",'TD_Histor. Af. Act. Ec.'!$A$3,"Año",B67,"Actividad",$P$5) -> 44335 | Q67: =GETPIVOTDATA("Afiliados",'TD_Histor. Af. Act. Ec.'!$A$3,"Año",B67,"Actividad",$Q$5) -> 19870 | R67: =GETPIVOTDATA("Afiliados",'TD_Histor. Af. Act. Ec.'!$A$3,"Año",B67,"Actividad",$R$5) -> 140904 | S67: =GETPIVOTDATA("Afiliados",'TD_Histor. Af. Act. Ec.'!$A$3,"Año",B67,"Actividad",$S$5) -> 978 | T67: =GETPIVOTDATA("Afiliados",'TD_Histor. Af. Act. Ec.'!$A$3,"Año",B67,"Actividad",$T$5) -> 1108 | U67: 1388248 | W67: 2021 | X67: 91574 | Y67: 2430 | Z67: 199637 | AA67: 11942 | AB67: 18819 | AC67: 430677 | AD67: 56067 | AE67: 577102 | AF67: 1388248
B68: Fuente: IGSS (2022). Subgerencia de Planificación y Desarrollo. Departamento Actuarial y Estadístico, Área Estadística, Subsistema de Estadísticas Económicas y Financieras, con información del año 2021.

Sheet Historico A.E
B4: IGSS: Afiliados cotizantes a la seguridad social clasificados por actividad económica, período 1960 - 2021 (en cantidad de personas). Ref. CIIU Vrs. 2
B40: Fuente: IGSS (2022). Subgerencia de Planificación y Desarrollo. Departamento Actuarial y Estadístico, Área Estadística, Subsistema de Estadísticas Económicas y Financieras, con información del año 2021.

Sheet Historico A.E_
B4: IGSS: Afiliados cotizantes a la seguridad social clasificados por actividad económica, período 2020 - 2021 (en cantidad de personas). Ref. CIIU Vrs. 3
B40: Fuente: IGSS (2022). Subgerencia de Planificación y Desarrollo. Departamento Actuarial y Estadístico, Área Estadística, Subsistema de Estadísticas Económicas y Financieras, con información del año 2021.

Sheet Historico S.
B4: IGSS: Historial de la Masa Salarial de los Afiliados Cotizantes. Período 1960 - 2021.
B39: Fuente: IGSS (2022). Subgerencia de Planificación y Desarrollo. Departamento Actuarial y Estadístico, Área Estadística, Subsistema de Estadísticas Económicas y Financieras, con información del año 2021.

Sheet Sal Med
B4: IGSS: Historial del Salario Medio de Cotización de los Afiliados Cotizantes. Período 1997 - 2021.
B39: Fuente: IGSS (2022). Subgerencia de Planificación y Desarrollo. Departamento Actuarial y Estadístico, Área Estadística, Subsistema de Estadísticas Económicas y Financieras, con información del año 2021.

Sheet Estr. Dem.
A4: IGSS: Estructura demográfica de los afiliados, año 2021
O9: Rango de Edad | P9: Masculino | Q9: Femenino | R9: Total
O11: Hasta 19 | P11: =+IFERROR(GETPIVOTDATA("Masculino",TD_Edad!$A$4,"Rango",'Estr. Dem.'!O11),0) -> 17093 | Q11: =+IFERROR(GETPIVOTDATA("Femenino",TD_Edad!$A$4,"Rango",'Estr. Dem.'!O11),0) -> 5798 | R11: =SUM(P11:Q11) -> 22891
O12: 20 - 24 | P12: =+IFERROR(GETPIVOTDATA("Masculino",TD_Edad!$A$4,"Rango",'Estr. Dem.'!O12),0) -> 134368 | Q12: =+IFERROR(GETPIVOTDATA("Femenino",TD_Edad!$A$4,"Rango",'Estr. Dem.'!O12),0) -> 57358 | R12: =SUM(P12:Q12) -> 191726
O13: 25 - 29 | P13: =+IFERROR(GETPIVOTDATA("Masculino",TD_Edad!$A$4,"Rango",'Estr. Dem.'!O13),0) -> 177415 | Q13: =+IFERROR(GETPIVOTDATA("Femenino",TD_Edad!$A$4,"Rango",'Estr. Dem.'!O13),0) -> 81637 | R13: 259052
O14: 30 - 34 | P14: =+IFERROR(GETPIVOTDATA("Masculino",TD_Edad!$A$4,"Rango",'Estr. Dem.'!O14),0) -> 159393 | Q14: =+IFERROR(GETPIVOTDATA("Femenino",TD_Edad!$A$4,"Rango",'Estr. Dem.'!O14),0) -> 86559 | R14: 245952
O15: 35 - 39 | P15: =+IFERROR(GETPIVOTDATA("Masculino",TD_Edad!$A$4,"Rango",'Estr. Dem.'!O15),0) -> 127632 | Q15: =+IFERROR(GETPIVOTDATA("Femenino",TD_Edad!$A$4,"Rango",'Estr. Dem.'!O15),0) -> 77643 | R15: 205275
O16: 40 - 44 | P16: =+IFERROR(GETPIVOTDATA("Masculino",TD_Edad!$A$4,"Rango",'Estr. Dem.'!O16),0) -> 100824 | Q16: =+IFERROR(GETPIVOTDATA("Femenino",TD_Edad!$A$4,"Rango",'Estr. Dem.'!O16),0) -> 61183 | R16: 162007
O17: 45 - 49 | P17: =+IFERROR(GETPIVOTDATA("Masculino",TD_Edad!$A$4,"Rango",'Estr. Dem.'!O17),0) -> 71283 | Q17: =+IFERROR(GETPIVOTDATA("Femenino",TD_Edad!$A$4,"Rango",'Estr. Dem.'!O17),0) -> 41876 | R17: 113159
O18: 50 - 54 | P18: =+IFERROR(GETPIVOTDATA("Masculino",TD_Edad!$A$4,"Rango",'Estr. Dem.'!O18),0) -> 49997 | Q18: =+IFERROR(GETPIVOTDATA("Femenino",TD_Edad!$A$4,"Rango",'Estr. Dem.'!O18),0) -> 27813 | R18: 77810
O19: 55 - 59 | P19: =+IFERROR(GETPIVOTDATA("Masculino",TD_Edad!$A$4,"Rango",'Estr. Dem.'!O19),0) -> 35973 | Q19: =+IFERROR(GETPIVOTDATA("Femenino",TD_Edad!$A$4,"Rango",'Estr. Dem.'!O19),0) -> 18615 | R19: 54588
O20: 60 - 64 | P20: =+IFERROR(GETPIVOTDATA("Masculino",TD_Edad!$A$4,"Rango",'Estr. Dem.'!O20),0) -> 21280 | Q20: =+IFERROR(GETPIVOTDATA("Femenino",TD_Edad!$A$4,"Rango",'Estr. Dem.'!O20),0) -> 10276 | R20: 31556
O21: 65 - 69 | P21: =+IFERROR(GETPIVOTDATA("Masculino",TD_Edad!$A$4,"Rango",'Estr. Dem.'!O21),0) -> 10524 | Q21: =+IFERROR(GETPIVOTDATA("Femenino",TD_Edad!$A$4,"Rango",'Estr. Dem.'!O21),0) -> 4402 | R21: 14926
O22: 70 - 74 | P22: =+IFERROR(GETPIVOTDATA("Masculino",TD_Edad!$A$4,"Rango",'Estr. Dem.'!O22),0) -> 4493 | Q22: =+IFERROR(GETPIVOTDATA("Femenino",TD_Edad!$A$4,"Rango",'Estr. Dem.'!O22),0) -> 1698 | R22: 6191
O23: 75 - 79 | P23: =+IFERROR(GETPIVOTDATA("Masculino",TD_Edad!$A$4,"Rango",'Estr. Dem.'!O23),0) -> 1722 | Q23: =+IFERROR(GETPIVOTDATA("Femenino",TD_Edad!$A$4,"Rango",'Estr. Dem.'!O23),0) -> 668 | R23: 2390
O24: 80 y más | P24: =+IFERROR(GETPIVOTDATA("Masculino",TD_Edad!$A$4,"Rango",'Estr. Dem.'!O24),0) -> 532 | Q24: =+IFERROR(GETPIVOTDATA("Femenino",TD_Edad!$A$4,"Rango",'Estr. Dem.'!O24),0) -> 193 | R24: 725
O25: Total general | P25: =SUM(P11:P24) -> 912529 | Q25: =SUM(Q11:Q24) -> 475719 | R25: =SUM(R11:R24) -> 1388248
B37: Fuente: IGSS (2022). Subgerencia de Planificación y Desarrollo. Departamento Actuarial y Estadístico, Área Estadística, Subsistema de Estadísticas Económicas y Financieras, con información del año 2021.

Sheet Afiliación_1.
D4: IGSS: Comportamiento mensual de los Afiliados Cotizantes, por Departamento de la República y Actividad Económica, año 2021.
B5: Seleccione Indicador
B6: Afiliados
B8: Seleccione Departamento
B9: República
D35: Fuente: IGSS (2022). Subgerencia de Planificación y Desarrollo. Departamento Actuarial y Estadístico, Área Estadística, Subsistema de Estadísticas Económicas y Financieras, con información del año 2021.

Sheet Afil. Dpt
E4: IGSS: Comportamiento mensual de los Afiliados Cotizantes, por Departamento de la República y Actividad Económica, año 2021.
B5: Seleccione Indicador
B6: Afiliados
B8: ID | C8: Departamento | D8: Total
B9: 1 | C9: Guatemala | D9: =+IF($B$6="Afiliados",GETPIVOTDATA("Afiliados ",TD_Afil!$A$47,"Departamento ",Tabla15[[#This Row],[Departamento]]),IF($B$6="Salarios",GETPIVOTDATA("Salarios ",TD_Afil!A47,"Departamento ",Tabla15[[#This Row],[Departamento]]))) -> 773646
B10: 5 | C10: Escuintla | D10: =+IF($B$6="Afiliados",GETPIVOTDATA("Afiliados ",TD_Afil!$A$47,"Departamento ",Tabla15[[#This Row],[Departamento]]),IF($B$6="Salarios",GETPIVOTDATA("Salarios ",TD_Afil!A51,"Departamento ",Tabla15[[#This Row],[Departamento]]))) -> 131537
B11: 9 | C11: Quetzaltenango | D11: =+IF($B$6="Afiliados",GETPIVOTDATA("Afiliados ",TD_Afil!$A$47,"Departamento ",Tabla15[[#This Row],[Departamento]]),IF($B$6="Salarios",GETPIVOTDATA("Salarios ",TD_Afil!A55,"Departamento ",Tabla15[[#This Row],[Departamento]]))) -> 55543
B12: 18 | C12: Izabal | D12: =+IF($B$6="Afiliados",GETPIVOTDATA("Afiliados ",TD_Afil!$A$47,"Departamento ",Tabla15[[#This Row],[Departamento]]),IF($B$6="Salarios",GETPIVOTDATA("Salarios ",TD_Afil!A64,"Departamento ",Tabla15[[#This Row],[Departamento]]))) -> 39354
B13: 16 | C13: Alta Verapaz | D13: =+IF($B$6="Afiliados",GETPIVOTDATA("Afiliados ",TD_Afil!$A$47,"Departamento ",Tabla15[[#This Row],[Departamento]]),IF($B$6="Salarios",GETPIVOTDATA("Salarios ",TD_Afil!A62,"Departamento ",Tabla15[[#This Row],[Departamento]]))) -> 35358
B14: 12 | C14: San Marcos | D14: =+IF($B$6="Afiliados",GETPIVOTDATA("Afiliados ",TD_Afil!$A$47,"Departamento ",Tabla15[[#This Row],[Departamento]]),IF($B$6="Salarios",GETPIVOTDATA("Salarios ",TD_Afil!A58,"Departamento ",Tabla15[[#This Row],[Departamento]]))) -> 35417
B15: 17 | C15: Petén | D15: =+IF($B$6="Afiliados",GETPIVOTDATA("Afiliados ",TD_Afil!$A$47,"Departamento ",Tabla15[[#This Row],[Departamento]]),IF($B$6="Salarios",GETPIVOTDATA("Salarios ",TD_Afil!A63,"Departamento ",Tabla15[[#This Row],[Departamento]]))) -> 30418
B16: 3 | C16: Sacatepéquez | D16: =+IF($B$6="Afiliados",GETPIVOTDATA("Afiliados ",TD_Afil!$A$47,"Departamento ",Tabla15[[#This Row],[Departamento]]),IF($B$6="Salarios",GETPIVOTDATA("Salarios ",TD_Afil!A49,"Departamento ",Tabla15[[#This Row],[Departamento]]))) -> 33132
B17: 10 | C17: Suchitepéquez | D17: =+IF($B$6="Afiliados",GETPIVOTDATA("Afiliados ",TD_Afil!$A$47,"Departamento ",Tabla15[[#This Row],[Departamento]]),IF($B$6="Salarios",GETPIVOTDATA("Salarios ",TD_Afil!A56,"Departamento ",Tabla15[[#This Row],[Departamento]]))) -> 31019
B18: 13 | C18: Huehuetenango | D18: =+IF($B$6="Afiliados",GETPIVOTDATA("Afiliados ",TD_Afil!$A$47,"Departamento ",Tabla15[[#This Row],[Departamento]]),IF($B$6="Salarios",GETPIVOTDATA("Salarios ",TD_Afil!A59,"Departamento ",Tabla15[[#This Row],[Departamento]]))) -> 26326
B19: 11 | C19: Retalhuleu | D19: =+IF($B$6="Afiliados",GETPIVOTDATA("Afiliados ",TD_Afil!$A$47,"Departamento ",Tabla15[[#This Row],[Departamento]]),IF($B$6="Salarios",GETPIVOTDATA("Salarios ",TD_Afil!A57,"Departamento ",Tabla15[[#This Row],[Departamento]]))) -> 28471
B20: 4 | C20: Chimaltenango | D20: =+IF($B$6="Afiliados",GETPIVOTDATA("Afiliados ",TD_Afil!$A$47,"Departamento ",Tabla15[[#This Row],[Departamento]]),IF($B$6="Salarios",GETPIVOTDATA("Salarios ",TD_Afil!A50,"Departamento ",Tabla15[[#This Row],[Departamento]]))) -> 25759
B21: 14 | C21: Quiché | D21: =+IF($B$6="Afiliados",GETPIVOTDATA("Afiliados ",TD_Afil!$A$47,"Departamento ",Tabla15[[#This Row],[Departamento]]),IF($B$6="Salarios",GETPIVOTDATA("Salarios ",TD_Afil!A60,"Departamento ",Tabla15[[#This Row],[Departamento]]))) -> 19742
B22: 19 | C22: Zacapa | D22: =+IF($B$6="Afiliados",GETPIVOTDATA("Afiliados ",TD_Afil!$A$47,"Departamento ",Tabla15[[#This Row],[Departamento]]),IF($B$6="Salarios",GETPIVOTDATA("Salarios ",TD_Afil!A65,"Departamento ",Tabla15[[#This Row],[Departamento]]))) -> 23138
B23: 6 | C23: Santa Rosa | D23: =+IF($B$6="Afiliados",GETPIVOTDATA("Afiliados ",TD_Afil!$A$47,"Departamento ",Tabla15[[#This Row],[Departamento]]),IF($B$6="Salarios",GETPIVOTDATA("Salarios ",TD_Afil!A52,"Departamento ",Tabla15[[#This Row],[Departamento]]))) -> 16891
B24: 20 | C24: Chiquimula | D24: =+IF($B$6="Afiliados",GETPIVOTDATA("Afiliados ",TD_Afil!$A$47,"Departamento ",Tabla15[[#This Row],[Departamento]]),IF($B$6="Salarios",GETPIVOTDATA("Salarios ",TD_Afil!A66,"Departamento ",Tabla15[[#This Row],[Departamento]]))) -> 15879
B25: 22 | C25: Jutiapa | D25: =+IF($B$6="Afiliados",GETPIVOTDATA("Afiliados ",TD_Afil!$A$47,"Departamento ",Tabla15[[#This Row],[Departamento]]),IF($B$6="Salarios",GETPIVOTDATA("Salarios ",TD_Afil!A68,"Departamento ",Tabla15[[#This Row],[Departamento]]))) -> 15877
B26: 7 | C26: Sololá | D26: =+IF($B$6="Afiliados",GETPIVOTDATA("Afiliados ",TD_Afil!$A$47,"Departamento ",Tabla15[[#This Row],[Departamento]]),IF($B$6="Salarios",GETPIVOTDATA("Salarios ",TD_Afil!A53,"Departamento ",Tabla15[[#This Row],[Departamento]]))) -> 12324
B27: 21 | C27: Jalapa | D27: =+IF($B$6="Afiliados",GETPIVOTDATA("Afiliados ",TD_Afil!$A$47,"Departamento ",Tabla15[[#This Row],[Departamento]]),IF($B$6="Salarios",GETPIVOTDATA("Salarios ",TD_Afil!A67,"Departamento ",Tabla15[[#This Row],[Departamento]]))) -> 11323
B28: 2 | C28: El Progreso | D28: =+IF($B$6="Afiliados",GETPIVOTDATA("Afiliados ",TD_Afil!$A$47,"Departamento ",Tabla15[[#This Row],[Departamento]]),IF($B$6="Salarios",GETPIVOTDATA("Salarios ",TD_Afil!A48,"Departamento ",Tabla15[[#This Row],[Departamento]]))) -> 10019
B29: 15 | C29: Baja Verapaz | D29: =+IF($B$6="Afiliados",GETPIVOTDATA("Afiliados ",TD_Afil!$A$47,"Departamento ",Tabla15[[#This Row],[Departamento]]),IF($B$6="Salarios",GETPIVOTDATA("Salarios ",TD_Afil!A61,"Departamento ",Tabla15[[#This Row],[Departamento]]))) -> 9070
B30: 8 | C30: Totonicapán | D30: =+IF($B$6="Afiliados",GETPIVOTDATA("Afiliados ",TD_Afil!$A$47,"Departamento ",Tabla15[[#This Row],[Departamento]]),IF($B$6="Salarios",GETPIVOTDATA("Salarios ",TD_Afil!A54,"Departamento ",Tabla15[[#This Row],[Departamento]]))) -> 8005
D31: =SUM(D9:D30) -> 1388248
E38: Fuente: IGSS (2022). Subgerencia de Planificación y Desarrollo. Departamento Actuarial y Estadístico, Área Estadística, Subsistema de Estadísticas Económicas y Financieras, con información del año 2021.

Sheet TD_Afil (hidden)
A1: Categoría | B1: Afiliación | D1: Afiliación mensual
A2: Actividad Económica /Servicio /Costo /Riesgo /Área | B2: (Todas)
C4: Valores | D4: Mes
C5: Afiliados | P5: Salarios | AC5: Total Afiliados | AD5: Total Salarios
A6: Id. Dpto. | B6: Departamento | C6: 1 | D6: 2 | E6: 3 | F6: 4 | G6: 5 | H6: 6 | I6: 7 | J6: 8 | K6: 9 | L6: 10 | M6: 11 | N6: 12 | O6: 13 | P6: 1 | Q6: 2 | R6: 3 | S6: 4 | T6: 5 | U6: 6 | V6: 7 | W6: 8 | X6: 9 | Y6: 10 | Z6: 11 | AA6: 12 | AB6: 13
A7: 1 | B7: Guatemala | C7: 725155 | D7: 755504 | E7: 762523 | F7: 762851 | G7: 765979 | H7: 775475 | I7: 783369 | J7: 789152 | K7: 789588 | L7: 795505 | M7: 800187 | N7: 800055 | O7: 773646 | P7: 3920824666 | Q7: 4020683001 | R7: 4181518331 | S7: 4090273111 | T7: 4140657471 | U7: 4243457488 | V7: 4246723331 | W7: 4207734369 | X7: 4213002529 | Y7: 4278198313 | Z7: 4340674689 | AA7: 4503442467 | AB7: 50387189766 | AC7: 10078989 | AD7: 100774379532
A8: 2 | B8: El Progreso | C8: 9301 | D8: 9664 | E8: 9618 | F8: 9547 | G8: 9729 | H8: 10123 | I8: 10064 | J8: 10278 | K8: 9880 | L8: 10461 | M8: 10484 | N8: 10604 | O8: 10019 | P8: 42822626 | Q8: 45797247 | R8: 44489848 | S8: 45553188 | T8: 46646272 | U8: 47748109 | V8: 46936123 | W8: 47288533 | X8: 46636348 | Y8: 49045944 | Z8: 49867541 | AA8: 50541300 | AB8: 563373079 | AC8: 129772 | AD8: 1126746158
A9: 3 | B9: Sacatepéquez | C9: 31475 | D9: 33046 | E9: 32412 | F9: 32191 | G9: 31681 | H9: 32527 | I9: 32171 | J9: 32572 | K9: 33483 | L9: 33833 | M9: 34398 | N9: 35526 | O9: 33132 | P9: 121010614 | Q9: 128921510 | R9: 130519438 | S9: 127685153 | T9: 125818183 | U9: 130684447 | V9: 128828495 | W9: 128973314 | X9: 133397685 | Y9: 135749627 | Z9: 137089980 | AA9: 143293409 | AB9: 1571971855 | AC9: 428447 | AD9: 3143943710
A10: 4 | B10: Chimaltenango | C10: 23146 | D10: 24844 | E10: 25091 | F10: 25181 | G10: 25563 | H10: 25932 | I10: 25949 | J10: 26132 | K10: 26247 | L10: 26618 | M10: 26283 | N10: 26698 | O10: 25759 | P10: 106678525 | Q10: 113660529 | R10: 114115437 | S10: 115683239 | T10: 117146782 | U10: 119423211 | V10: 118868788 | W10: 118340692 | X10: 119558168 | Y10: 122248844 | Z10: 123350633 | AA10: 125985335 | AB10: 1415060183 | AC10: 333443 | AD10: 2830120366
A11: 5 | B11: Escuintla | C11: 137345 | D11: 140756 | E11: 143857 | F11: 142947 | G11: 144199 | H11: 121871 | I11: 120044 | J11: 118221 | K11: 117628 | L11: 116901 | M11: 136446 | N11: 139933 | O11: 131537 | P11: 554218860 | Q11: 522826748 | R11: 543777556 | S11: 568558438 | T11: 531101021 | U11: 474254546 | V11: 483561111 | W11: 469329999 | X11: 470378396 | Y11: 494720053 | Z11: 501166815 | AA11: 561901599 | AB11: 6175795142 | AC11: 1711685 | AD11: 12351590284
